Workbook

Sheet nn - ranked data - new (40)
A1: irány | B1: 0 | C1: 0 | D1: 0 | E1: 0 | F1: 0 | M1: súlyok | U1: 2. layer vektor | AK1: 2 layer súlyok | AS1: Futtat | AY1: 1 | AZ1: 2 | BA1: 3 | BB1: 4 | BC1: 5 | BD1: 6 | BE1: 7 | BF1: 8 | BG1: 9 | BH1: 10 | BI1: 11 | BJ1: 12 | BK1: 13 | BL1: 14 | BM1: 15 | BN1: max | BO1: Ranking | CE1: O2 - O1 | CF1: O3 - O2 | CG1: O4 - O3 | CH1: O5 - O4 | CI1: O6 - O5 | CJ1: O7 - O6 | CK1: O8 - O7 | CL1: O9 - O8 | CM1: O10 - O9 | CN1: O11 - O10 | CO1: O12 - O11 | CP1: O13 - 12 | CQ1: O14 - O13 | CR1: O15 - O14 | CU1: O | CV1: A | CW1: 37&38 | CX1: átlag | DA1: 37 | DB1: 38
A2: rnd(1-100) | B2: A1 | C2: A2 | D2: A3 | E2: A4 | F2: A5 | H2: rank = 0 | I2: =B2 -> A1 | J2: A2 | K2: A3 | L2: A4 | M2: A5 | N2: w0 | O2: w1 | P2: w2 | Q2: w3 | R2: w4 | S2: w5 | T2: =AK2 -> w6 | U2: O1 | V2: O2 | W2: O3 | X2: O4 | Y2: O5 | Z2: O6 | AA2: O7 | AB2: O8 | AC2: O9 | AD2: O10 | AE2: O11 | AF2: O12 | AG2: O13 | AH2: O14 | AI2: O15 | AK2: w6 | AN2: Y0 | AO2: Ybecslés | AP2: eltérés | AQ2: MAE | AR2: 37&38 | AS2: abs(isis) | AT2: isis | AU2: O | AV2: 1 | AW2: A | AX2: 1 | AY2: 1279.137182 | AZ2: 1231.083656 | BA2: 1230.883656 | BB2: 1182.830131 | BC2: 1134.576605 | BD2: 1086.523079 | BE2: 1086.523079 | BF2: 990.5160277 | BG2: 990.2160277 | BH2: 942.262502 | BI2: 942.162502 | BJ2: 845.9554505 | BK2: 797.9019247 | BL2: 797.6019247 | BM2: 797.6019247 | BN2: =MAX(AY2:BM2) -> 1279.137182 | BO2: =RANK(AY2,$AY2:$BM2, 1) -> 15 | BP2: =RANK(AZ2,$AY2:$BM2, 1) -> 14 | BQ2: 13 | BR2: 12 | BS2: 11 | BT2: 9 | BU2: 9 | BV2: =RANK(BF2,$AY2:$BM2, 1) -> 8 | BW2: 7 | BX2: 6 | BY2: 5 | BZ2: 4 | CA2: 3 | CB2: 1 | CC2: 1 | CE2: =AZ2-AY2 -> -48.05352575 | CF2: =BA2-AZ2 -> -0.2 | CG2: -48.05352575 | CH2: -48.25352575 | CI2: =BD2-BC2 -> -48.05352575 | CJ2: 0 | CK2: -96.0070515 | CL2: -0.3 | CM2: =BH2-BG2 -> -47.95352575 | CN2: -0.1 | CO2: -96.2070515 | CP2: -48.05352575 | CQ2: -0.3 | CR2: =BM2-BL2 -> 0 | CS2: =STDEV(CE2:CR2) -> 34.83510984 | CU2: =AV2 -> 1 | CV2: =AX2 -> 1 | CW2: ='nn - ranked data - new (37)'!BN2-'nn - ranked data - new (40)'!BN2 -> -277.1371822 | CX2: =DA2-DB2 -> -21.93837824 | DA2: =AVERAGE('nn - ranked data - new (37)'!AY2:BM2) -> 1000.446667 | DB2: =AVERAGE(AY2:BM2) -> 1022.385045
A3: O1 | B3: 78 | C3: 50 | D3: 75 | E3: 79 | F3: 10 | H3: =A3 -> O1 | I3: 6 | J3: 8 | K3: 4 | L3: 3 | M3: 13 | N3: 0.1 | O3: 0.17837822 | P3: 0.13921523 | Q3: 0.15091406 | R3: 0.15942907 | S3: 0.1297149213 | T3: 384.684255 | U3: =$I$3*$O3+$J$3*$P3+$K$3*$Q3+$L$3*$R3+$M$3*$S3 -> 4.952228587 | V3: =$I$4*$O3+$J$4*$P3+$K$4*$Q3+$L$4*$R3+$M$4*$S3 -> 8.378805489 | W3: =$I$5*$O3+$J$5*$P3+$K$5*$Q3+$L$5*$R3+$M$5*$S3 -> 5.242739887 | X3: =$I$6*$O3+$J$6*$P3+$K$6*$Q3+$L$6*$R3+$M$6*$S3 -> 7.05292711 | Y3: =$I$7*$O3+$J$7*$P3+$K$7*$Q3+$L$7*$R3+$M$7*$S3 -> 4.928085173 | Z3: =$I$8*$O3+$J$8*$P3+$K$8*$Q3+$L$8*$R3+$M$8*$S3 -> 4.700811333 | AA3: =$I$9*$O3+$J$9*$P3+$K$9*$Q3+$L$9*$R3+$M$9*$S3 -> 5.3514932 | AB3: =$I$10*$O3+$J$10*$P3+$K$10*$Q3+$L$10*$R3+$M$10*$S3 -> 4.551539395 | AC3: =$I$11*$O3+$J$11*$P3+$K$11*$Q3+$L$11*$R3+$M$11*$S3 -> 6.019146921 | AD3: =$I$12*$O3+$J$12*$P3+$K$12*$Q3+$L$12*$R3+$M$12*$S3 -> 6.174940639 | AE3: =$I$13*$O3+$J$13*$P3+$K$13*$Q3+$L$13*$R3+$M$13*$S3 -> 7.275799826 | AF3: =$I$14*$O3+$J$14*$P3+$K$14*$Q3+$L$14*$R3+$M$14*$S3 -> 4.753346936 | AG3: =$I$15*$O3+$J$15*$P3+$K$15*$Q3+$L$15*$R3+$M$15*$S3 -> 5.962382284 | AH3: =$I$16*$O3+$J$16*$P3+$K$16*$Q3+$L$16*$R3+$M$16*$S3 -> 6.956108144 | AI3: =$I$17*$O3+$J$17*$P3+$K$17*$Q3+$L$17*$R3+$M$17*$S3 -> 6.267384933 | AK3: =T3 -> 384.684255 | AM3: O1 | AN3: 1000 | AO3: =U33 -> 1086.523079 | AP3: =AN3-AO3 -> -86.52307924 | AQ3: =ABS(AP3) -> 86.52307924 | AR3: =AO3-'nn - ranked data - new (39)'!AO3 -> -66.17955196 | AS3: =ABS(AP3)+ABS('nn - ranked data - new (39)'!AP3) -> 239.2257104 | AT3: =AP3+'nn - ranked data - new (39)'!AP3 -> -239.2257104 | AU3: O | AV3: 1 | AW3: A | AX3: 2 | AY3: 1490.918483 | AZ3: 1442.964958 | BA3: 1442.964958 | BB3: 1404.391311 | BC3: 1288.770372 | BD3: 1288.670372 | BE3: 1086.623079 | BF3: 1086.523079 | BG3: 1086.523079 | BH3: 1086.523079 | BI3: 970.8029586 | BJ3: 894.0573029 | BK3: 778.8388194 | BL3: 778.7388194 | BM3: 740.3659916 | BN3: =MAX(AY3:BM3) -> 1490.918483 | BO3: =RANK(AY3,$AY3:$BM3, 1) -> 15 | BP3: 13 | BQ3: 13 | BR3: 12 | BS3: 11 | BT3: 10 | BU3: 9 | BV3: 6 | BW3: 6 | BX3: 6 | BY3: 5 | BZ3: 4 | CA3: 3 | CB3: 2 | CC3: 1 | CE3: =AZ3-AY3 -> -47.95352575 | CF3: 0 | CG3: -38.57364642 | CH3: -115.6209393 | CI3: -0.1 | CJ3: -202.0472928 | CK3: -0.1 | CL3: 0 | CM3: 0 | CN3: -115.7201207 | CO3: -76.74565567 | CP3: -115.2184835 | CQ3: -0.1 | CR3: -38.37282783 | CS3: =STDEV(CE3:CR3) -> 63.10542645 | CU3: =AV3 -> 1 | CV3: 2 | CW3: ='nn - ranked data - new (37)'!BN3-'nn - ranked data - new (40)'!BN3 -> -488.1184835 | CX3: =DA3-DB3 -> -123.5451109 | DA3: =AVERAGE('nn - ranked data - new (37)'!AY3:BM3) -> 1000.966667 | DB3: =AVERAGE(AY3:BM3) -> 1124.511778
A4: O2 | B4: 45 | C4: 40 | D4: 70 | E4: 50 | F4: 6 | H4: =A4 -> O2 | I4: 12 | J4: 13 | K4: 8 | L4: 8 | M4: 15 | N4: 38.37282783 | O4: 0.1 | P4: 0.46503866 | Q4: 0.43478802 | R4: 0.19912481 | S4: 0.1 | T4: 0.1 | U4: =$I$3*$O4+$J$3*$P4+$K$3*$Q4+$L$3*$R4+$M$3*$S4 -> 7.95683579 | V4: =$I$4*$O4+$J$4*$P4+$K$4*$Q4+$L$4*$R4+$M$4*$S4 -> 13.81680522 | W4: =$I$5*$O4+$J$5*$P4+$K$5*$Q4+$L$5*$R4+$M$5*$S4 -> 9.16957274 | X4: =$I$6*$O4+$J$6*$P4+$K$6*$Q4+$L$6*$R4+$M$6*$S4 -> 12.7403792 | Y4: =$I$7*$O4+$J$7*$P4+$K$7*$Q4+$L$7*$R4+$M$7*$S4 -> 9.96381353 | Z4: =$I$8*$O4+$J$8*$P4+$K$8*$Q4+$L$8*$R4+$M$8*$S4 -> 4.52902881 | AA4: =$I$9*$O4+$J$9*$P4+$K$9*$Q4+$L$9*$R4+$M$9*$S4 -> 9.4912448 | AB4: =$I$10*$O4+$J$10*$P4+$K$10*$Q4+$L$10*$R4+$M$10*$S4 -> 10.17469282 | AC4: =$I$11*$O4+$J$11*$P4+$K$11*$Q4+$L$11*$R4+$M$11*$S4 -> 12.35246843 | AD4: =$I$12*$O4+$J$12*$P4+$K$12*$Q4+$L$12*$R4+$M$12*$S4 -> 11.39927105 | AE4: =$I$13*$O4+$J$13*$P4+$K$13*$Q4+$L$13*$R4+$M$13*$S4 -> 12.61226784 | AF4: =$I$14*$O4+$J$14*$P4+$K$14*$Q4+$L$14*$R4+$M$14*$S4 -> 7.4538431 | AG4: =$I$15*$O4+$J$15*$P4+$K$15*$Q4+$L$15*$R4+$M$15*$S4 -> 10.14069347 | AH4: =$I$16*$O4+$J$16*$P4+$K$16*$Q4+$L$16*$R4+$M$16*$S4 -> 10.95419833 | AI4: =$I$17*$O4+$J$17*$P4+$K$17*$Q4+$L$17*$R4+$M$17*$S4 -> 9.64053204 | AK4: =T4 -> 0.1 | AM4: O2 | AN4: 1000 | AO4: =V33 -> 125 | AP4: =AN4-AO4 -> 875 | AQ4: =ABS(AP4) -> 875 | AR4: =AO4-'nn - ranked data - new (39)'!AO4 -> -585.3349687 | AS4: =ABS(AP4)+ABS('nn - ranked data - new (39)'!AP4) -> 1164.665031 | AT4: =AP4+'nn - ranked data - new (39)'!AP4 -> 1164.665031 | AU4: O | AV4: 1 | AW4: A | AX4: 3 | AY4: 1221.502959 | AZ4: 1221.202959 | BA4: 1134.576605 | BB4: 1086.523079 | BC4: 1086.523079 | BD4: 1038.469553 | BE4: 951.8431999 | BF4: 875.0975442 | BG4: 788.6711907 | BH4: 711.825535 | BI4: 673.3527072 | BJ4: 500.2991814 | BK4: 461.625535 | BL4: 413.6720092 | BM4: 336.9263536 | BN4: 1221.502959 | BO4: =RANK(AY4,$AY4:$BM4, 1) -> 15 | BP4: 14 | BQ4: 13 | BR4: 11 | BS4: 11 | BT4: 10 | BU4: 9 | BV4: 8 | BW4: 7 | BX4: 6 | BY4: 5 | BZ4: 4 | CA4: 3 | CB4: 2 | CC4: 1 | CE4: -0.3 | CF4: -86.62635358 | CG4: -48.05352575 | CH4: 0 | CI4: -48.05352575 | CJ4: -86.62635358 | CK4: -76.74565567 | CL4: -86.42635358 | CM4: -76.84565567 | CN4: -38.47282783 | CO4: -173.0535257 | CP4: -38.67364642 | CQ4: -47.95352575 | CR4: -76.74565567 | CS4: 43.06786241 | CU4: 1 | CV4: 3 | CW4: ='nn - ranked data - new (37)'!BN4-'nn - ranked data - new (40)'!BN4 -> -219.6029586 | CX4: 166.2525673 | DA4: =AVERAGE('nn - ranked data - new (37)'!AY4:BM4) -> 999.7266667 | DB4: 833.4740994
A5: O3 | B5: 81 | C5: 60 | D5: 50 | E5: 74 | F5: 10 | H5: O3 | I5: 4 | J5: 5 | K5: 10 | L5: 4 | M5: 13 | N5: 0.1 | O5: 0.1 | P5: 0.1 | Q5: 0.10348205 | R5: 0.1 | S5: 0.1 | T5: 345.0395239 | U5: =$I$3*$O5+$J$3*$P5+$K$3*$Q5+$L$3*$R5+$M$3*$S5 -> 3.4139282 | V5: =$I$4*$O5+$J$4*$P5+$K$4*$Q5+$L$4*$R5+$M$4*$S5 -> 5.6278564 | W5: =$I$5*$O5+$J$5*$P5+$K$5*$Q5+$L$5*$R5+$M$5*$S5 -> 3.6348205 | X5: 4.65223075 | Y5: 3.2348205 | Z5: 3.00348205 | AA5: 3.6278564 | AB5: 3.11044615 | AC5: 3.93133845 | AD5: 4.14526665 | AE5: 4.7208923 | AF5: 3.1139282 | AG5: 3.8487487 | AH5: 4.62437435 | AI5: 4.1417846 | AK5: 345.0395239 | AM5: O3 | AN5: 1000 | AO5: =W33 -> 1067.364139 | AP5: -67.36413917 | AQ5: =ABS(AP5) -> 67.36413917 | AR5: =AO5-'nn - ranked data - new (39)'!AO5 -> -5.742140185 | AS5: =ABS(AP5)+ABS('nn - ranked data - new (39)'!AP5) -> 140.4704185 | AT5: =AP5+'nn - ranked data - new (39)'!AP5 -> -140.4704185 | AU5: O | AV5: 1 | AW5: A | AX5: 4 | AY5: 1134.876605 | AZ5: 1134.576605 | BA5: 1086.523079 | BB5: 1086.523079 | BC5: 1086.423079 | BD5: 1086.123079 | BE5: 1086.123079 | BF5: 1086.023079 | BG5: 999.4959071 | BH5: 922.4494328 | BI5: 883.776605 | BJ5: 797.3502514 | BK5: 797.3502514 | BL5: 720.6045957 | BM5: 682.2317679 | BN5: 1134.876605 | BO5: 15 | BP5: 14 | BQ5: 12 | BR5: 12 | BS5: 11 | BT5: 9 | BU5: 9 | BV5: 8 | BW5: 7 | BX5: 6 | BY5: 5 | BZ5: 3 | CA5: 3 | CB5: 2 | CC5: 1 | CE5: -0.3 | CF5: -48.05352575 | CG5: 0 | CH5: -0.1 | CI5: -0.3 | CJ5: 0 | CK5: -0.1 | CL5: -86.52717217 | CM5: -77.04647425 | CN5: -38.67282783 | CO5: -86.42635358 | CP5: 0 | CQ5: -76.74565567 | CR5: -38.37282783 | CS5: 36.61138246 | CU5: 1 | CV5: 4 | CW5: ='nn - ranked data - new (37)'!BN5-'nn - ranked data - new (40)'!BN5 -> -133.576605 | CX5: 27.17663355 | DA5: =AVERAGE('nn - ranked data - new (37)'!AY5:BM5) -> 999.8733333 | DB5: 972.6966998
A6: O4 | B6: 40 | C6: 50 | D6: 32 | E6: 80 | F6: 45 | H6: O4 | I6: 13 | J6: 8 | K6: 15 | L6: 2 | M6: 8 | N6: 38.47364642 | O6: 0.1 | P6: 0.63917863 | Q6: 0.17624931 | R6: 0.2369472723 | S6: 0.6100153165 | T6: 266.0762212 | U6: 15.05946721 | V6: =$I$4*$O6+$J$4*$P6+$K$4*$Q6+$L$4*$R6+$M$4*$S6 -> 21.9651246 | W6: 14.23637445 | X6: 14.41118577 | Y6: 9.980689135 | Z6: 9.930885638 | AA6: 12.90327197 | AB6: 14.27817228 | AC6: 13.0642122 | AD6: 12.87227185 | AE6: 16.35165144 | AF6: 10.29433424 | AG6: 8.71702946 | AH6: 16.56376269 | AI6: 12.28908032 | AK6: 266.0762212 | AM6: O4 | AN6: 1000 | AO6: =X33 -> 365.6209393 | AP6: 634.3790607 | AQ6: 634.3790607 | AR6: =AO6-'nn - ranked data - new (39)'!AO6 -> 104.0980207 | AS6: =ABS(AP6)+ABS('nn - ranked data - new (39)'!AP6) -> 1372.856142 | AT6: =AP6+'nn - ranked data - new (39)'!AP6 -> 1372.856142 | AU6: O | AV6: 1 | AW6: A | AX6: 5 | AY6: 1836.627172 | AZ6: 1788.673646 | BA6: 1750.2 | BB6: 1750.2 | BC6: 1673.252707 | BD6: 1586.825535 | BE6: 1586.825535 | BF6: 1500.499181 | BG6: 1461.925535 | BH6: 1298.25107 | BI6: 1298.25107 | BJ6: 1134.576605 | BK6: 1086.523079 | BL6: 1086.523079 | BM6: 1038.569553 | BN6: 1836.627172 | BO6: 15 | BP6: 14 | BQ6: 12 | BR6: 12 | BS6: 11 | BT6: 9 | BU6: 9 | BV6: 8 | BW6: 7 | BX6: 5 | BY6: 5 | BZ6: 4 | CA6: 2 | CB6: 2 | CC6: 1 | CE6: -47.95352575 | CF6: =BA6-AZ6 -> -38.47364642 | CG6: 0 | CH6: -76.94729284 | CI6: -86.42717217 | CJ6: 0 | CK6: -86.32635358 | CL6: -38.57364642 | CM6: -163.674465 | CN6: 0 | CO6: -163.674465 | CP6: -48.05352575 | CQ6: 0 | CR6: -47.95352575 | CS6: 54.63532513 | CU6: 1 | CV6: 5 | CW6: ='nn - ranked data - new (37)'!BN6-'nn - ranked data - new (40)'!BN6 -> -833.2271722 | CX6: -456.2482513 | DA6: =AVERAGE('nn - ranked data - new (37)'!AY6:BM6) -> 1002.266667 | DB6: 1458.514918
A7: O5 | B7: 67 | C7: 50 | D7: 50 | E7: 72 | F7: 84 | H7: O5 | I7: 7 | J7: 8 | K7: 10 | L7: 5 | M7: 2 | N7: 47.95352575 | O7: 0.5611306 | P7: 0.1 | Q7: 0.39463338 | R7: 0.1345434012 | S7: 0.441996228 | T7: 0.1 | U7: 11.89489829 | V7: 18.89692487 | W7: 12.97498077 | X7: 17.81925513 | Y7: 10.23095746 | Z7: 13.66609806 | AA7: 9.637775082 | AB7: 6.94253726 | AC7: 11.28567586 | AD7: 11.76461975 | AE7: 14.90995703 | AF7: 8.708688475 | AG7: 12.62783442 | AH7: 14.95454498 | AI7: 15.48208545 | AK7: 0.1 | AM7: O5 | AN7: 1000 | AO7: =Y33 -> 1423.355163 | AP7: -423.3551629 | AQ7: 423.3551629 | AR7: =AO7-'nn - ranked data - new (39)'!AO7 -> 52.69998301 | AS7: =ABS(AP7)+ABS('nn - ranked data - new (39)'!AP7) -> 794.0103428 | AT7: =AP7+'nn - ranked data - new (39)'!AP7 -> -794.0103428 | AU7: O | AV7: 2 | AW7: A | AX7: 1 | AY7: 451.6939823 | AZ7: 365.2676287 | BA7: 317.114103 | BB7: 317.114103 | BC7: 221.0070515 | BD7: 172.9535257 | BE7: 172.9535257 | BF7: 172.9535257 | BG7: 172.9535257 | BH7: 172.9535257 | BI7: 125 | BJ7: 125 | BK7: 125 | BL7: 125 | BM7: 125 | BN7: 451.6939823 | BO7: 15 | BP7: 14 | BQ7: 12 | BR7: 12 | BS7: 11 | BT7: 6 | BU7: 6 | BV7: 6 | BW7: 6 | BX7: 6 | BY7: 1 | BZ7: 1 | CA7: 1 | CB7: 1 | CC7: 1 | CE7: -86.42635358 | CF7: -48.15352575 | CG7: 0 | CH7: -96.1070515 | CI7: -48.05352575 | CJ7: 0 | CK7: 0 | CL7: 0 | CM7: 0 | CN7: -47.95352575 | CO7: 0 | CP7: 0 | CQ7: 0 | CR7: 0 | CS7: 35.09331182 | CU7: 2 | CV7: 1 | CW7: ='nn - ranked data - new (37)'!BN7-'nn - ranked data - new (40)'!BN7 -> 549.7060177 | CX7: 788.6157002 | DA7: =AVERAGE('nn - ranked data - new (37)'!AY7:BM7) -> 999.4133333 | DB7: 210.7976332
A8: O6 | B8: 26 | C8: 83 | D8: 83 | E8: 94 | F8: 29 | H8: O6 | I8: 15 | J8: 3 | K8: 1 | L8: 1 | M8: 10 | AM8: O6 | AN8: 1000 | AO8: =Z33 -> 1404.844622 | AP8: -404.8446218 | AQ8: 404.8446218 | AR8: =AO8-'nn - ranked data - new (39)'!AO8 -> 4.546115522 | AS8: =ABS(AP8)+ABS('nn - ranked data - new (39)'!AP8) -> 805.1431282 | AT8: =AP8+'nn - ranked data - new (39)'!AP8 -> -805.1431282 | AU8: O | AV8: 2 | AW8: A | AX8: 2 | AY8: 749.5492176 | AZ8: 711.0755712 | BA8: 624.448399 | BB8: 547.4027433 | BC8: 393.7097948 | BD8: 316.8641392 | BE8: 278.4913113 | BF8: 240.1184835 | BG8: 240.1184835 | BH8: 201.7456557 | BI8: 125 | BJ8: 125 | BK8: 125 | BL8: 125 | BM8: 125 | BN8: 749.5492176 | BO8: 15 | BP8: 14 | BQ8: 13 | BR8: 12 | BS8: 11 | BT8: 10 | BU8: 9 | BV8: 7 | BW8: 7 | BX8: 6 | BY8: 1 | BZ8: 1 | CA8: 1 | CB8: 1 | CC8: 1 | CE8: -38.47364642 | CF8: -86.62717217 | CG8: -77.04565567 | CH8: -153.6929485 | CI8: -76.84565567 | CJ8: -38.37282783 | CK8: -38.37282783 | CL8: 0 | CM8: -38.37282783 | CN8: -76.74565567 | CO8: 0 | CP8: 0 | CQ8: 0 | CR8: 0 | CS8: 45.48293366 | CU8: 2 | CV8: 2 | CW8: ='nn - ranked data - new (37)'!BN8-'nn - ranked data - new (40)'!BN8 -> 250.6507824 | CX8: 669.8317467 | DA8: =AVERAGE('nn - ranked data - new (37)'!AY8:BM8) -> 998.4 | DB8: 328.5682533
A9: O7 | B9: 97 | C9: 60 | D9: 70 | E9: 33 | F9: 45 | H9: O7 | I9: 1 | J9: 5 | K9: 8 | L9: 14 | M9: 8 | AM9: O7 | AN9: 1000 | AO9: =AA33 -> 1393.659759 | AP9: -393.6597587 | AQ9: 393.6597587 | AR9: =AO9-'nn - ranked data - new (39)'!AO9 -> 53.88738669 | AS9: =ABS(AP9)+ABS('nn - ranked data - new (39)'!AP9) -> 733.4321306 | AT9: =AP9+'nn - ranked data - new (39)'!AP9 -> -733.4321306 | AU9: O | AV9: 2 | AW9: A | AX9: 3 | AY9: 364.8176649 | AZ9: 326.4448371 | BA9: 288.0720092 | BB9: 288.0720092 | BC9: 249.6991814 | BD9: 125 | BE9: 125 | BF9: 125 | BG9: 125 | BH9: 125 | BI9: 125 | BJ9: 125 | BK9: 125 | BL9: 125 | BM9: 125 | BN9: 364.8176649 | BO9: 15 | BP9: 14 | BQ9: 12 | BR9: 12 | BS9: 11 | BT9: 1 | BU9: 1 | BV9: 1 | BW9: 1 | BX9: 1 | BY9: 1 | BZ9: 1 | CA9: 1 | CB9: 1 | CC9: 1 | CE9: -38.37282783 | CF9: -38.37282783 | CG9: 0 | CH9: -38.37282783 | CI9: -124.6991814 | CJ9: 0 | CK9: 0 | CL9: 0 | CM9: 0 | CN9: 0 | CO9: 0 | CP9: 0 | CQ9: 0 | CR9: 0 | CS9: 34.92769564 | CU9: 2 | CV9: 3 | CW9: ='nn - ranked data - new (37)'!BN9-'nn - ranked data - new (40)'!BN9 -> 633.4823351 | CX9: 812.6196199 | DA9: =AVERAGE('nn - ranked data - new (37)'!AY9:BM9) -> 997.0933333 | DB9: 184.4737135
A10: O8 | B10: 95 | C10: 14 | D10: 76 | E10: 63 | F10: 66 | H10: O8 | I10: 3 | J10: 15 | K10: 3 | L10: 6 | M10: 4 | AM10: O8 | AN10: 1000 | AO10: =AB33 -> 1221.65456 | AP10: -221.6545596 | AQ10: 221.6545596 | AR10: =AO10-'nn - ranked data - new (39)'!AO10 -> 97.99525478 | AS10: =ABS(AP10)+ABS('nn - ranked data - new (39)'!AP10) -> 345.3138644 | AT10: =AP10+'nn - ranked data - new (39)'!AP10 -> -345.3138644 | AU10: O | AV10: 2 | AW10: A | AX10: 4 | AY10: 201.8456557 | AZ10: 163.3728278 | BA10: 125 | BB10: 125 | BC10: 125 | BD10: 125 | BE10: 125 | BF10: 125 | BG10: 125 | BH10: 125 | BI10: 125 | BJ10: 125 | BK10: 125 | BL10: 125 | BM10: 125 | BN10: 201.8456557 | BO10: 15 | BP10: 14 | BQ10: 1 | BR10: 1 | BS10: 1 | BT10: 1 | BU10: 1 | BV10: 1 | BW10: 1 | BX10: 1 | BY10: 1 | BZ10: 1 | CA10: 1 | CB10: 1 | CC10: 1 | CE10: -38.47282783 | CF10: -38.37282783 | CG10: 0 | CH10: 0 | CI10: 0 | CJ10: 0 | CK10: 0 | CL10: 0 | CM10: 0 | CN10: 0 | CO10: 0 | CP10: 0 | CQ10: 0 | CR10: 0 | CS10: 13.95274576 | CU10: 2 | CV10: 4 | CW10: ='nn - ranked data - new (37)'!BN10-'nn - ranked data - new (40)'!BN10 -> 797.9543443 | CX10: 865.7587678 | DA10: =AVERAGE('nn - ranked data - new (37)'!AY10:BM10) -> 998.44 | DB10: 132.6812322
A11: O9 | B11: 50 | C11: 40 | D11: 58 | E11: 53 | F11: 90 | H11: O9 | I11: 9 | J11: 13 | K11: 9 | L11: 7 | M11: 1 | AM11: O9 | AN11: 1000 | AO11: =AC33 -> 990.1692659 | AP11: 9.830734085 | AQ11: 9.830734085 | AR11: =AO11-'nn - ranked data - new (39)'!AO11 -> 113.4240135 | AS11: =ABS(AP11)+ABS('nn - ranked data - new (39)'!AP11) -> 133.0854817 | AT11: =AP11+'nn - ranked data - new (39)'!AP11 -> 133.0854817 | AU11: O | AV11: 2 | AW11: A | AX11: 5 | AY11: 720.9086887 | AZ11: 672.9551629 | BA11: 519.1613958 | BB11: 432.7342237 | BC11: 394.0613958 | BD11: 307.4342237 | BE11: 220.9070515 | BF11: 172.9535257 | BG11: 172.9535257 | BH11: 172.9535257 | BI11: 172.9535257 | BJ11: 172.9535257 | BK11: 125 | BL11: 125 | BM11: 125 | BN11: 720.9086887 | BO11: 15 | BP11: 14 | BQ11: 13 | BR11: 12 | BS11: 11 | BT11: 10 | BU11: 9 | BV11: 4 | BW11: 4 | BX11: 4 | BY11: 4 | BZ11: 4 | CA11: 1 | CB11: 1 | CC11: 1 | CE11: -47.95352575 | CF11: -153.7937671 | CG11: -86.42717217 | CH11: -38.67282783 | CI11: -86.62717217 | CJ11: -86.52717217 | CK11: -47.95352575 | CL11: 0 | CM11: 0 | CN11: 0 | CO11: 0 | CP11: -47.95352575 | CQ11: 0 | CR11: 0 | CS11: 47.34717062 | CU11: 2 | CV11: 5 | CW11: ='nn - ranked data - new (37)'!BN11-'nn - ranked data - new (40)'!BN11 -> 281.9913113 | CX11: 699.9646819 | DA11: =AVERAGE('nn - ranked data - new (37)'!AY11:BM11) -> 1000.493333 | DB11: 300.5286514
A12: O10 | B12: 96 | C12: 66 | D12: 44 | E12: 12 | F12: 47 | H12: O10 | I12: 2 | J12: 4 | K12: 13 | L12: 15 | M12: 7 | AM12: O10 | AN12: 1000 | AO12: =AD33 -> 1057.235861 | AP12: -57.23586083 | AQ12: 57.23586083 | AR12: =AO12-'nn - ranked data - new (39)'!AO12 -> 104.5452799 | AS12: =ABS(AP12)+ABS('nn - ranked data - new (39)'!AP12) -> 104.5452799 | AT12: =AP12+'nn - ranked data - new (39)'!AP12 -> -9.926441808 | AU12: O | AV12: 3 | AW12: A | AX12: 1 | AY12: 1211.724716 | AZ12: 1163.571191 | BA12: 1115.417665 | BB12: 1067.364139 | BC12: 1028.790493 | BD12: 942.3633206 | BE12: 942.1633206 | BF12: 807.8834412 | BG12: 721.3570877 | BH12: 720.9570877 | BI12: 720.9570877 | BJ12: 682.5842598 | BK12: 596.1570877 | BL12: 557.5842598 | BM12: 470.9579063 | BN12: 1211.724716 | BO12: 15 | BP12: 14 | BQ12: 13 | BR12: 12 | BS12: 11 | BT12: 10 | BU12: 9 | BV12: 8 | BW12: 7 | BX12: 5 | BY12: 5 | BZ12: 4 | CA12: 3 | CB12: 2 | CC12: 1 | CE12: -48.15352575 | CF12: -48.15352575 | CG12: -48.05352575 | CH12: -38.57364642 | CI12: -86.42717217 | CJ12: -0.2 | CK12: -134.2798793 | CL12: -86.52635358 | CM12: -0.4 | CN12: 0 | CO12: -38.37282783 | CP12: -86.42717217 | CQ12: -38.57282783 | CR12: -86.62635358 | CS12: 39.38085365 | CU12: 3 | CV12: 1 | CW12: ='nn - ranked data - new (37)'!BN12-'nn - ranked data - new (40)'!BN12 -> -210.4247164 | CX12: 149.3911291 | DA12: =AVERAGE('nn - ranked data - new (37)'!AY12:BM12) -> 999.38 | DB12: 849.9888709
A13: O11 | B13: 37 | C13: 36 | D13: 74 | E13: 50 | F13: 50 | H13: O11 | I13: 14 | J13: 14 | K13: 6 | L13: 8 | M13: 5 | AM13: O11 | AN13: 1000 | AO13: =AE33 -> 470.7070515 | AP13: 529.2929485 | AQ13: 529.2929485 | AR13: =AO13-'nn - ranked data - new (39)'!AO13 -> 62.87322027 | AS13: =ABS(AP13)+ABS('nn - ranked data - new (39)'!AP13) -> 1121.459117 | AT13: =AP13+'nn - ranked data - new (39)'!AP13 -> 1121.459117 | AU13: O | AV13: 3 | AW13: A | AX13: 2 | AY13: 1346.557906 | AZ13: 1221.557906 | BA13: 1105.937786 | BB13: 1067.464139 | BC13: 1067.364139 | BD13: 951.9440185 | BE13: 836.7247164 | BF13: 759.7790607 | BG13: 644.4589401 | BH13: 606.0861122 | BI13: 605.6861122 | BJ13: 519.2597587 | BK13: 442.414103 | BL13: 442.414103 | BM13: 403.9412752 | BN13: 1346.557906 | BO13: 15 | BP13: 14 | BQ13: 13 | BR13: 12 | BS13: 11 | BT13: 10 | BU13: 9 | BV13: 8 | BW13: 7 | BX13: 6 | BY13: 5 | BZ13: 4 | CA13: 2 | CB13: 2 | CC13: 1 | CE13: -125 | CF13: -115.6201207 | CG13: -38.47364642 | CH13: -0.1 | CI13: -115.4201207 | CJ13: -115.2193021 | CK13: -76.94565567 | CL13: -115.3201207 | CM13: -38.37282783 | CN13: -0.4 | CO13: -86.42635358 | CP13: -76.84565567 | CQ13: 0 | CR13: -38.47282783 | CS13: 47.35407593 | CU13: 3 | CV13: 2 | CW13: ='nn - ranked data - new (37)'!BN13-'nn - ranked data - new (40)'!BN13 -> -344.7579063 | CX13: 197.9939949 | DA13: =AVERAGE('nn - ranked data - new (37)'!AY13:BM13) -> 999.4333333 | DB13: 801.4393384
A14: O12 | B14: 79 | C14: 60 | D14: 75 | E14: 45 | F14: 50 | H14: O12 | I14: 5 | J14: 5 | K14: 4 | L14: 12 | M14: 5 | AM14: O12 | AN14: 1000 | AO14: =AF33 -> 1672.852707 | AP14: -672.8527072 | AQ14: 672.8527072 | AR14: =AO14-'nn - ranked data - new (39)'!AO14 -> -43.06656321 | AS14: =ABS(AP14)+ABS('nn - ranked data - new (39)'!AP14) -> 1388.771978 | AT14: =AP14+'nn - ranked data - new (39)'!AP14 -> -1388.771978 | AU14: O | AV14: 3 | AW14: A | AX14: 3 | AY14: 1548.351889 | AZ14: 1500.398363 | BA14: 1423.45107 | BB14: 1336.923898 | BC14: 1336.723898 | BD14: 1288.670372 | BE14: 1202.044018 | BF14: 1115.517665 | BG14: 1115.417665 | BH14: 1067.364139 | BI14: 951.9440185 | BJ14: 827.2448371 | BK14: 750.2991814 | BL14: 750.2991814 | BM14: 625.1991814 | BN14: 1548.351889 | BO14: 15 | BP14: 14 | BQ14: 13 | BR14: 12 | BS14: 11 | BT14: 10 | BU14: 9 | BV14: 8 | BW14: 7 | BX14: 6 | BY14: 5 | BZ14: 4 | CA14: 2 | CB14: 2 | CC14: 1 | CE14: -47.95352575 | CF14: -76.94729284 | CG14: -86.52717217 | CH14: -0.2 | CI14: -48.05352575 | CJ14: -86.62635358 | CK14: -86.52635358 | CL14: -0.1 | CM14: -48.05352575 | CN14: -115.4201207 | CO14: -124.6991814 | CP14: -76.94565567 | CQ14: 0 | CR14: -125.1 | CS14: 43.75347995 | CU14: 3 | CV14: 3 | CW14: ='nn - ranked data - new (37)'!BN14-'nn - ranked data - new (40)'!BN14 -> -545.6518886 | CX14: -121.7232918 | DA14: =AVERAGE('nn - ranked data - new (37)'!AY14:BM14) -> 1000.933333 | DB14: 1122.656625
A15: O13 | B15: 67 | C15: 96 | D15: 38 | E15: 44 | F15: 72 | H15: O13 | I15: 7 | J15: 1 | K15: 14 | L15: 13 | M15: 3 | AM15: O13 | AN15: 1000 | AO15: =AG33 -> 1269.315525 | AP15: -269.3155249 | AQ15: 269.3155249 | AR15: =AO15-'nn - ranked data - new (39)'!AO15 -> 80.15198735 | AS15: =ABS(AP15)+ABS('nn - ranked data - new (39)'!AP15) -> 458.4790625 | AT15: =AP15+'nn - ranked data - new (39)'!AP15 -> -458.4790625 | AU15: O | AV15: 3 | AW15: A | AX15: 4 | AY15: 1115.717665 | AZ15: 1067.664139 | BA15: 1067.464139 | BB15: 1067.364139 | BC15: 990.3168463 | BD15: 951.9440185 | BE15: 913.3711907 | BF15: 836.5247164 | BG15: 797.9518886 | BH15: 711.325535 | BI15: 711.225535 | BJ15: 711.225535 | BK15: 634.3790607 | BL15: 595.8054143 | BM15: 595.5054143 | BN15: 1115.717665 | BO15: 15 | BP15: 14 | BQ15: 13 | BR15: 12 | BS15: 11 | BT15: 10 | BU15: 9 | BV15: 8 | BW15: 7 | BX15: 6 | BY15: 4 | BZ15: 4 | CA15: 3 | CB15: 2 | CC15: 1 | CE15: -48.05352575 | CF15: -0.2 | CG15: -0.1 | CH15: -77.04729284 | CI15: -38.37282783 | CJ15: -38.57282783 | CK15: -76.84647425 | CL15: -38.57282783 | CM15: -86.62635358 | CN15: -0.1 | CO15: 0 | CP15: -76.84647425 | CQ15: -38.57364642 | CR15: -0.3 | CS15: 33.01110897 | CU15: 3 | CV15: 4 | CW15: ='nn - ranked data - new (37)'!BN15-'nn - ranked data - new (40)'!BN15 -> -114.7176649 | CX15: 148.2476508 | DA15: =AVERAGE('nn - ranked data - new (37)'!AY15:BM15) -> 999.4333333 | DB15: 851.1856825
A16: O14 | B16: 50 | C16: 50 | D16: 71 | E16: 48 | F16: 31 | H16: O14 | I16: 9 | J16: 8 | K16: 7 | L16: 11 | M16: 11 | AM16: O14 | AN16: 1000 | AO16: =AH33 -> 499.7983628 | AP16: 500.2016372 | AQ16: 500.2016372 | AR16: =AO16-'nn - ranked data - new (39)'!AO16 -> 18.75825225 | AS16: =ABS(AP16)+ABS('nn - ranked data - new (39)'!AP16) -> 1019.161527 | AT16: =AP16+'nn - ranked data - new (39)'!AP16 -> 1019.161527 | AU16: O | AV16: 3 | AW16: A | AX16: 5 | AY16: 1711.927991 | AZ16: 1711.927991 | BA16: 1711.927991 | BB16: 1625.500819 | BC16: 1625.500819 | BD16: 1539.073646 | BE16: 1414.072828 | BF16: 1413.772828 | BG16: 1413.672828 | BH16: 1327.045656 | BI16: 1153.891311 | BJ16: 1115.417665 | BK16: 1067.364139 | BL16: 990.3168463 | BM16: 903.8896742 | BN16: 1711.927991 | BO16: 13 | BP16: 13 | BQ16: 13 | BR16: 11 | BS16: 11 | BT16: 10 | BU16: 9 | BV16: 8 | BW16: 7 | BX16: 6 | BY16: 5 | BZ16: 4 | CA16: 3 | CB16: 2 | CC16: 1 | CE16: 0 | CF16: 0 | CG16: -86.42717217 | CH16: 0 | CI16: -86.42717217 | CJ16: -125.0008186 | CK16: -0.3 | CL16: -0.1 | CM16: -86.62717217 | CN16: -173.1543443 | CO16: -38.47364642 | CP16: -48.05352575 | CQ16: -77.04729284 | CR16: -86.42717217 | CS16: 54.49703533 | CU16: 3 | CV16: 5 | CW16: ='nn - ranked data - new (37)'!BN16-'nn - ranked data - new (40)'!BN16 -> -708.8279908 | CX16: -379.8602021 | DA16: =AVERAGE('nn - ranked data - new (37)'!AY16:BM16) -> 1001.826667 | DB16: 1381.686869
A17: O15 | B17: 50 | C17: 84 | D17: 46 | E17: 50 | F17: 43 | H17: O15 | I17: 9 | J17: 2 | K17: 12 | L17: 8 | M17: 10 | AM17: O15 | AN17: 1000 | AO17: =AI33 -> 951.8989662 | AP17: 48.10103383 | AQ17: 48.10103383 | AR17: =AO17-'nn - ranked data - new (39)'!AO17 -> 7.343710109 | AS17: =ABS(AP17)+ABS('nn - ranked data - new (39)'!AP17) -> 103.5457778 | AT17: =AP17+'nn - ranked data - new (39)'!AP17 -> 103.5457778 | AU17: O | AV17: 4 | AW17: A | AX17: 1 | AY17: 952.4956195 | AZ17: 904.3420937 | BA17: 808.1350422 | BB17: 760.0815165 | BC17: 712.0279908 | BD17: 663.974465 | BE17: 663.874465 | BF17: 567.6674135 | BG17: 519.5138878 | BH17: 481.1410599 | BI17: 481.1410599 | BJ17: 365.8209393 | BK17: 365.6209393 | BL17: 365.5209393 | BM17: 317.4674135 | BN17: 952.4956195 | BO17: 15 | BP17: 14 | BQ17: 13 | BR17: 12 | BS17: 11 | BT17: 10 | BU17: 9 | BV17: 8 | BW17: 7 | BX17: 5 | BY17: 5 | BZ17: 4 | CA17: 3 | CB17: 2 | CC17: 1 | CE17: -48.15352575 | CF17: -96.2070515 | CG17: -48.05352575 | CH17: -48.05352575 | CI17: -48.05352575 | CJ17: -0.1 | CK17: -96.2070515 | CL17: -48.15352575 | CM17: -38.37282783 | CN17: 0 | CO17: -115.3201207 | CP17: -0.2 | CQ17: -0.1 | CR17: -48.05352575 | CS17: 37.57311092 | CU17: 4 | CV17: 1 | CW17: ='nn - ranked data - new (37)'!BN17-'nn - ranked data - new (40)'!BN17 -> 47.9043805 | CX17: 403.1583437 | DA17: =AVERAGE('nn - ranked data - new (37)'!AY17:BM17) -> 998.4133333 | DB17: 595.2549897
AN18: szum | AO18: szum | AP18: hiba | AU18: O | AV18: 4 | AW18: A | AX18: 2 | AY18: 1019.365561 | AZ18: 865.5726126 | BA18: 750.1541291 | BB18: 750.1541291 | BC18: 673.3076548 | BD18: 519.5138878 | BE18: 519.5138878 | BF18: 365.6209393 | BG18: 365.5209393 | BH18: 326.9472928 | BI18: 288.574465 | BJ18: 211.6271722 | BK18: 211.6271722 | BL18: 211.6271722 | BM18: 211.6271722 | BN18: 1019.365561 | BO18: 15 | BP18: 14 | BQ18: 12 | BR18: 12 | BS18: 11 | BT18: 9 | BU18: 9 | BV18: 8 | BW18: 7 | BX18: 6 | BY18: 5 | BZ18: 1 | CA18: 1 | CB18: 1 | CC18: 1 | CE18: -153.7929485 | CF18: -115.4184835 | CG18: 0 | CH18: -76.84647425 | CI18: -153.7937671 | CJ18: 0 | CK18: -153.8929485 | CL18: -0.1 | CM18: -38.57364642 | CN18: -38.37282783 | CO18: -76.94729284 | CP18: 0 | CQ18: 0 | CR18: 0 | CS18: 63.54464571 | CU18: 4 | CV18: 2 | CW18: ='nn - ranked data - new (37)'!BN18-'nn - ranked data - new (40)'!BN18 -> -19.66556109 | CX18: 511.5030542 | DA18: =AVERAGE('nn - ranked data - new (37)'!AY18:BM18) -> 997.5533333 | DB18: 486.0502791
U19: Activation - linear | AK19: Szórás | AN19: =SUM(AN3:AN17) -> 15000 | AO19: =SUM(AO3:AO17) -> 15000 | AP19: =SUMSQ(AP3:AP17) -> 2788614.092 | AQ19: =SUM(AQ3:AQ17)/15 -> 346.2407219 | AU19: O | AV19: 4 | AW19: A | AX19: 3 | AY19: 1346.357906 | AZ19: 1298.204381 | BA19: 1173.404381 | BB19: 1134.731553 | BC19: 1086.778027 | BD19: 1086.578027 | BE19: 971.2579063 | BF19: 759.9315527 | BG19: 721.3587248 | BH19: 596.4595434 | BI19: 557.8867156 | BJ19: 519.5138878 | BK19: 519.5138878 | BL19: 519.5138878 | BM19: 365.6209393 | BN19: 1346.357906 | BO19: 15 | BP19: 14 | BQ19: 13 | BR19: 12 | BS19: 11 | BT19: 10 | BU19: 9 | BV19: 8 | BW19: 7 | BX19: 6 | BY19: 5 | BZ19: 2 | CA19: 2 | CB19: 2 | CC19: 1 | CE19: -48.15352575 | CF19: -124.8 | CG19: -38.67282783 | CH19: -47.95352575 | CI19: -0.2 | CJ19: -115.3201207 | CK19: -211.3263536 | CL19: -38.57282783 | CM19: -124.8991814 | CN19: -38.57282783 | CO19: -38.37282783 | CP19: 0 | CQ19: 0 | CR19: -153.8929485 | CS19: 64.85152225 | CU19: 4 | CV19: 3 | CW19: ='nn - ranked data - new (37)'!BN19-'nn - ranked data - new (40)'!BN19 -> -344.6579063 | CX19: 155.5392454 | DA19: =AVERAGE('nn - ranked data - new (37)'!AY19:BM19) -> 999.3466667 | DB19: 843.8074213
P20: -1 | U20: =IF(U3>0,U3,U3*$P$20) -> 4.952228587 | V20: =IF(V3>0,V3,V3*$P$20) -> 8.378805489 | W20: 5.242739887 | X20: 7.05292711 | Y20: 4.928085173 | Z20: 4.700811333 | AA20: 5.3514932 | AB20: 4.551539395 | AC20: 6.019146921 | AD20: 6.174940639 | AE20: 7.275799826 | AF20: 4.753346936 | AG20: 5.962382284 | AH20: 6.956108144 | AI20: 6.267384933 | AK20: =STDEV(U20:AI20) -> 1.129386849 | AP20: hiba2 | AU20: O | AV20: 4 | AW20: A | AX20: 4 | AY20: 481.1410599 | AZ20: 365.6209393 | BA20: 365.5209393 | BB20: 365.4209393 | BC20: 326.9472928 | BD20: 326.9472928 | BE20: 326.9472928 | BF20: 288.574465 | BG20: 288.574465 | BH20: 288.574465 | BI20: 202.0472928 | BJ20: 163.4736464 | BK20: 163.4736464 | BL20: 163.4736464 | BM20: 163.4736464 | BN20: 481.1410599 | BO20: 15 | BP20: 14 | BQ20: 13 | BR20: 12 | BS20: 9 | BT20: 9 | BU20: 9 | BV20: 6 | BW20: 6 | BX20: 6 | BY20: 5 | BZ20: 1 | CA20: 1 | CB20: 1 | CC20: 1 | CE20: -115.5201207 | CF20: -0.1 | CG20: -0.1 | CH20: -38.47364642 | CI20: 0 | CJ20: 0 | CK20: -38.37282783 | CL20: 0 | CM20: 0 | CN20: -86.52717217 | CO20: -38.57364642 | CP20: 0 | CQ20: 0 | CR20: 0 | CS20: 37.27697738 | CU20: 4 | CV20: 4 | CW20: ='nn - ranked data - new (37)'!BN20-'nn - ranked data - new (40)'!BN20 -> 516.4589401 | CX20: 711.4859314 | DA20: =AVERAGE('nn - ranked data - new (37)'!AY20:BM20) -> 996.8333333 | DB20: 285.347402
U21: =IF(U4>0,U4,U4*$P$20) -> 7.95683579 | V21: 13.81680522 | W21: 9.16957274 | X21: 12.7403792 | Y21: 9.96381353 | Z21: 4.52902881 | AA21: 9.4912448 | AB21: 10.17469282 | AC21: 12.35246843 | AD21: 11.39927105 | AE21: 12.61226784 | AF21: 7.4538431 | AG21: 10.14069347 | AH21: 10.95419833 | AI21: 9.64053204 | AK21: =STDEV(U21:AI21) -> 2.370048488 | AP21: =ABS(AN19-AO19) -> 3.637978807e-12 | AQ21: =AQ19+AP21 -> 346.2407219 | AU21: O | AV21: 4 | AW21: A | AX21: 5 | AY21: 856.1426971 | AZ21: 721.5619992 | BA21: 673.4084734 | BB21: 673.4084734 | BC21: 596.5619992 | BD21: 481.1410599 | BE21: 442.7682321 | BF21: 365.6209393 | BG21: 365.5209393 | BH21: 326.9472928 | BI21: 278.9937671 | BJ21: 202.0464743 | BK21: 202.0464743 | BL21: 202.0464743 | BM21: 202.0464743 | BN21: 856.1426971 | BO21: 15 | BP21: 14 | BQ21: 12 | BR21: 12 | BS21: 11 | BT21: 10 | BU21: 9 | BV21: 8 | BW21: 7 | BX21: 6 | BY21: 5 | BZ21: 1 | CA21: 1 | CB21: 1 | CC21: 1 | CE21: -134.5806979 | CF21: -48.15352575 | CG21: 0 | CH21: -76.84647425 | CI21: -115.4209393 | CJ21: -38.37282783 | CK21: -77.14729284 | CL21: -0.1 | CM21: -38.57364642 | CN21: -47.95352575 | CO21: -76.94729284 | CP21: 0 | CQ21: 0 | CR21: 0 | CS21: 44.91916504 | CU21: 4 | CV21: 5 | CW21: ='nn - ranked data - new (37)'!BN21-'nn - ranked data - new (40)'!BN21 -> 143.1573029 | CX21: 558.1025487 | DA21: =AVERAGE('nn - ranked data - new (37)'!AY21:BM21) -> 997.4533333 | DB21: 439.3507846
U22: 3.4139282 | V22: 5.6278564 | W22: 3.6348205 | X22: 4.65223075 | Y22: 3.2348205 | Z22: 3.00348205 | AA22: 3.6278564 | AB22: 3.11044615 | AC22: 3.93133845 | AD22: 4.14526665 | AE22: 4.7208923 | AF22: 3.1139282 | AG22: 3.8487487 | AH22: 4.62437435 | AI22: 4.1417846 | AK22: 0.7432057833 | AP22: hiba3 | AU22: O | AV22: 5 | AW22: A | AX22: 1 | AY22: 1683.035042 | AZ22: 1635.081517 | BA22: 1596.708689 | BB22: 1558.335861 | BC22: 1510.182335 | BD22: 1461.928809 | BE22: 1423.355163 | BF22: 1423.255163 | BG22: 1336.728809 | BH22: 1202.34893 | BI22: 1163.675284 | BJ22: 1067.768232 | BK22: 1067.668232 | BL22: 1019.314706 | BM22: 1019.214706 | BN22: 1683.035042 | BO22: 15 | BP22: 14 | BQ22: 13 | BR22: 12 | BS22: 11 | BT22: 10 | BU22: 9 | BV22: 8 | BW22: 7 | BX22: 6 | BY22: 5 | BZ22: 4 | CA22: 3 | CB22: 2 | CC22: 1 | CE22: -47.95352575 | CF22: -38.37282783 | CG22: -38.37282783 | CH22: -48.15352575 | CI22: -48.25352575 | CJ22: -38.57364642 | CK22: -0.1 | CL22: -86.52635358 | CM22: -134.3798793 | CN22: -38.67364642 | CO22: -95.9070515 | CP22: -0.1 | CQ22: -48.35352575 | CR22: -0.1 | CS22: 37.70402639 | CU22: 5 | CV22: 1 | CW22: ='nn - ranked data - new (37)'!BN22-'nn - ranked data - new (40)'!BN22 -> -680.1350422 | CX22: -343.0934319 | DA22: =AVERAGE('nn - ranked data - new (37)'!AY22:BM22) -> 1001.48 | DB22: 1344.573432
U23: 15.05946721 | V23: 21.9651246 | W23: 14.23637445 | X23: 14.41118577 | Y23: 9.980689135 | Z23: 9.930885638 | AA23: 12.90327197 | AB23: 14.27817228 | AC23: 13.0642122 | AD23: 12.87227185 | AE23: 16.35165144 | AF23: 10.29433424 | AG23: 8.71702946 | AH23: 16.56376269 | AI23: 12.28908032 | AK23: 3.31941108 | AP23: =AP19*AP21 -> 1.014491897e-05 | AU23: O | AV23: 5 | AW23: A | AX23: 2 | AY23: 1740.720121 | AZ23: 1740.720121 | BA23: 1654.393767 | BB23: 1616.020939 | BC23: 1616.020939 | BD23: 1615.820939 | BE23: 1500.201637 | BF23: 1423.355163 | BG23: 1308.035861 | BH23: 1307.935861 | BI23: 1269.463033 | BJ23: 1192.316559 | BK23: 1076.895619 | BL23: 961.777136 | BM23: 846.1561967 | BN23: 1740.720121 | BO23: 14 | BP23: 14 | BQ23: 13 | BR23: 11 | BS23: 11 | BT23: 10 | BU23: 9 | BV23: 8 | BW23: 7 | BX23: 6 | BY23: 5 | BZ23: 4 | CA23: 3 | CB23: 2 | CC23: 1 | CE23: 0 | CF23: -86.32635358 | CG23: -38.37282783 | CH23: 0 | CI23: -0.2 | CJ23: -115.6193021 | CK23: -76.84647425 | CL23: -115.3193021 | CM23: -0.1 | CN23: -38.47282783 | CO23: -77.14647425 | CP23: -115.4209393 | CQ23: -115.1184835 | CR23: -115.6209393 | CS23: 49.38886183 | CU23: 5 | CV23: 2 | CW23: ='nn - ranked data - new (37)'!BN23-'nn - ranked data - new (40)'!BN23 -> -737.5201207 | CX23: -389.6289261 | DA23: =AVERAGE('nn - ranked data - new (37)'!AY23:BM23) -> 1001.693333 | DB23: 1391.322259
U24: 11.89489829 | V24: 18.89692487 | W24: 12.97498077 | X24: 17.81925513 | Y24: 10.23095746 | Z24: 13.66609806 | AA24: 9.637775082 | AB24: 6.94253726 | AC24: 11.28567586 | AD24: 11.76461975 | AE24: 14.90995703 | AF24: 8.708688475 | AG24: 12.62783442 | AH24: 14.95454498 | AI24: 15.48208545 | AK24: 3.287349758 | AN24: szórás | AO24: szórás | AU24: O | AV24: 5 | AW24: A | AX24: 3 | AY24: 1836.627172 | AZ24: 1788.673646 | BA24: 1750.2 | BB24: 1750.2 | BC24: 1711.827172 | BD24: 1673.454344 | BE24: 1625.500819 | BF24: 1625.300819 | BG24: 1500.201637 | BH24: 1423.355163 | BI24: 1346.509507 | BJ24: 1307.935861 | BK24: 1221.409507 | BL24: 1134.883154 | BM24: 1086.929628 | BN24: 1836.627172 | BO24: 15 | BP24: 14 | BQ24: 12 | BR24: 12 | BS24: 11 | BT24: 10 | BU24: 9 | BV24: 8 | BW24: 7 | BX24: 6 | BY24: 5 | BZ24: 4 | CA24: 3 | CB24: 2 | CC24: 1 | CE24: -47.95352575 | CF24: -38.47364642 | CG24: 0 | CH24: -38.37282783 | CI24: -38.37282783 | CJ24: -47.95352575 | CK24: -0.2 | CL24: -125.0991814 | CM24: -76.84647425 | CN24: -76.84565567 | CO24: -38.57364642 | CP24: -86.52635358 | CQ24: -86.52635358 | CR24: -47.95352575 | CS24: 34.08095083 | CU24: 5 | CV24: 3 | CW24: ='nn - ranked data - new (37)'!BN24-'nn - ranked data - new (40)'!BN24 -> -833.2271722 | CX24: -516.6472286 | DA24: =AVERAGE('nn - ranked data - new (37)'!AY24:BM24) -> 1002.22 | DB24: 1518.867229
AN25: =STDEV(AN3:AN17) -> 0 | AO25: =STDEV(AO3:AO17) -> 446.3033955 | AU25: O | AV25: 5 | AW25: A | AX25: 4 | AY25: 1577.547293 | AZ25: 1539.174465 | BA25: 1500.601637 | BB25: 1461.828809 | BC25: 1423.355163 | BD25: 1384.882335 | BE25: 1307.835861 | BF25: 1307.735861 | BG25: 1307.535861 | BH25: 1269.163033 | BI25: 1269.163033 | BJ25: 1268.763033 | BK25: 1182.336679 | BL25: 1182.236679 | BM25: 1143.563033 | BN25: 1577.547293 | BO25: 15 | BP25: 14 | BQ25: 13 | BR25: 12 | BS25: 11 | BT25: 10 | BU25: 9 | BV25: 8 | BW25: 7 | BX25: 5 | BY25: 5 | BZ25: 4 | CA25: 3 | CB25: 2 | CC25: 1 | CE25: -38.37282783 | CF25: -38.57282783 | CG25: -38.77282783 | CH25: -38.47364642 | CI25: -38.47282783 | CJ25: -77.04647425 | CK25: -0.1 | CL25: -0.2 | CM25: -38.37282783 | CN25: 0 | CO25: -0.4 | CP25: -86.42635358 | CQ25: -0.1 | CR25: -38.67364642 | CS25: 28.2094414 | CU25: 5 | CV25: 4 | CW25: ='nn - ranked data - new (37)'!BN25-'nn - ranked data - new (40)'!BN25 -> -574.8472928 | CX25: -340.5415184 | DA25: =AVERAGE('nn - ranked data - new (37)'!AY25:BM25) -> 1001.173333 | DB25: 1341.714852
AU26: O | AV26: 5 | AW26: A | AX26: 5 | AY26: 1461.828809 | AZ26: 1423.355163 | BA26: 1384.781517 | BB26: 1346.308689 | BC26: 1259.882335 | BD26: 1125.201637 | BE26: 1048.254344 | BF26: 961.8271722 | BG26: 875.2 | BH26: 750.1991814 | BI26: 711.625535 | BJ26: 672.9527072 | BK26: 499.9983628 | BL26: 452.0448371 | BM26: 452.0448371 | BN26: 1461.828809 | BO26: 15 | BP26: 14 | BQ26: 13 | BR26: 12 | BS26: 11 | BT26: 10 | BU26: 9 | BV26: 8 | BW26: 7 | BX26: 6 | BY26: 5 | BZ26: 4 | CA26: 3 | CB26: 1 | CC26: 1 | CE26: -38.47364642 | CF26: -38.57364642 | CG26: -38.47282783 | CH26: -86.42635358 | CI26: -134.6806979 | CJ26: -76.94729284 | CK26: -86.42717217 | CL26: -86.62717217 | CM26: -125.0008186 | CN26: -38.57364642 | CO26: -38.67282783 | CP26: -172.9543443 | CQ26: -47.95352575 | CR26: 0 | CS26: 47.1820248 | CU26: 5 | CV26: 5 | CW26: ='nn - ranked data - new (37)'!BN26-'nn - ranked data - new (40)'!BN26 -> -459.8288093 | CX26: 38.21299155 | DA26: =AVERAGE('nn - ranked data - new (37)'!AY26:BM26) -> 999.9133333 | DB26: 961.7003418
U27: =RANK(U20,$U20:$AI20,0) -> 11 | V27: =RANK(V20,$U20:$AI20,0) -> 1 | W27: 10 | X27: 3 | Y27: 12 | Z27: 14 | AA27: 9 | AB27: 15 | AC27: 7 | AD27: 6 | AE27: 2 | AF27: 13 | AG27: 8 | AH27: 4 | AI27: 5 | AU27: O | AV27: 6 | AW27: A | AX27: 1 | AY27: 1875 | AZ27: 1875 | BA27: 1836.526354 | BB27: 1788.572828 | BC27: 1788.572828 | BD27: 1788.572828 | BE27: 1740.619302 | BF27: 1692.665776 | BG27: 1644.712251 | BH27: 1644.712251 | BI27: 1596.758725 | BJ27: 1500.851673 | BK27: 1500.851673 | BL27: 1404.944622 | BM27: 1404.844622 | BN27: 1875 | BO27: 14 | BP27: 14 | BQ27: 13 | BR27: 10 | BS27: 10 | BT27: 10 | BU27: 9 | BV27: 8 | BW27: 6 | BX27: 6 | BY27: 5 | BZ27: 3 | CA27: 3 | CB27: 2 | CC27: 1 | CE27: 0 | CF27: -38.47364642 | CG27: -47.95352575 | CH27: 0 | CI27: 0 | CJ27: -47.95352575 | CK27: -47.95352575 | CL27: -47.95352575 | CM27: 0 | CN27: -47.95352575 | CO27: -95.9070515 | CP27: 0 | CQ27: -95.9070515 | CR27: -0.1 | CS27: 34.62463995 | CU27: 6 | CV27: 1 | CW27: ='nn - ranked data - new (37)'!BN27-'nn - ranked data - new (40)'!BN27 -> -871.6 | CX27: -669.4470488 | DA27: =AVERAGE('nn - ranked data - new (37)'!AY27:BM27) -> 1002.766667 | DB27: 1672.213715
U28: =RANK(U21,$U21:$AI21,0) -> 13 | V28: 1 | W28: 12 | X28: 2 | Y28: 9 | Z28: 15 | AA28: 11 | AB28: 7 | AC28: 4 | AD28: 5 | AE28: 3 | AF28: 14 | AG28: 8 | AH28: 6 | AI28: 10 | AU28: O | AV28: 6 | AW28: A | AX28: 2 | AY28: 1443.418268 | AZ28: 1404.844622 | BA28: 1404.844622 | BB28: 1327.797329 | BC28: 1327.397329 | BD28: 1327.297329 | BE28: 1288.723683 | BF28: 1173.102743 | BG28: 1173.102743 | BH28: 1057.582623 | BI28: 980.7361484 | BJ28: 942.162502 | BK28: 903.4896742 | BL28: 749.6967257 | BM28: 711.0238978 | BN28: 1443.418268 | BO28: 15 | BP28: 13 | BQ28: 13 | BR28: 12 | BS28: 11 | BT28: 10 | BU28: 9 | BV28: 7 | BW28: 7 | BX28: 6 | BY28: 5 | BZ28: 4 | CA28: 3 | CB28: 2 | CC28: 1 | CE28: -38.57364642 | CF28: 0 | CG28: -77.04729284 | CH28: -0.4 | CI28: -0.1 | CJ28: -38.57364642 | CK28: -115.6209393 | CL28: 0 | CM28: -115.5201207 | CN28: -76.84647425 | CO28: -38.57364642 | CP28: -38.67282783 | CQ28: -153.7929485 | CR28: -38.67282783 | CS28: 49.10566848 | CU28: 6 | CV28: 2 | CW28: ='nn - ranked data - new (37)'!BN28-'nn - ranked data - new (40)'!BN28 -> -441.0182683 | CX28: -147.4080159 | DA28: =AVERAGE('nn - ranked data - new (37)'!AY28:BM28) -> 1000.273333 | DB28: 1147.681349
U29: =RANK(U22,$U22:$AI22,0) -> 11 | V29: 1 | W29: 9 | X29: 3 | Y29: 12 | Z29: 15 | AA29: 10 | AB29: 14 | AC29: 7 | AD29: 5 | AE29: 2 | AF29: 13 | AG29: 8 | AH29: 4 | AI29: 6 | AU29: O | AV29: 6 | AW29: A | AX29: 3 | AY29: 1404.844622 | AZ29: 1366.270975 | BA29: 1365.870975 | BB29: 1327.297329 | BC29: 1231.190278 | BD29: 1183.136752 | BE29: 1183.136752 | BF29: 1144.563924 | BG29: 1106.191096 | BH29: 1105.791096 | BI29: 1105.691096 | BJ29: 1019.164743 | BK29: 942.3190868 | BL29: 827.2006033 | BM29: 740.7734312 | BN29: 1404.844622 | BO29: 15 | BP29: 14 | BQ29: 13 | BR29: 12 | BS29: 11 | BT29: 9 | BU29: 9 | BV29: 8 | BW29: 7 | BX29: 6 | BY29: 5 | BZ29: 4 | CA29: 3 | CB29: 2 | CC29: 1 | CE29: -38.57364642 | CF29: -0.4 | CG29: -38.57364642 | CH29: -96.1070515 | CI29: -48.05352575 | CJ29: 0 | CK29: -38.57282783 | CL29: -38.37282783 | CM29: -0.4 | CN29: -0.1 | CO29: -86.52635358 | CP29: -76.84565567 | CQ29: -115.1184835 | CR29: -86.42717217 | CS29: 39.31811806 | CU29: 6 | CV29: 3 | CW29: ='nn - ranked data - new (37)'!BN29-'nn - ranked data - new (40)'!BN29 -> -403.1446218 | CX29: -136.8628506 | DA29: =AVERAGE('nn - ranked data - new (37)'!AY29:BM29) -> 1000.033333 | DB29: 1136.896184
U30: 4 | V30: 1 | W30: 7 | X30: 5 | Y30: 13 | Z30: 14 | AA30: 9 | AB30: 6 | AC30: 8 | AD30: 10 | AE30: 3 | AF30: 12 | AG30: 15 | AH30: 2 | AI30: 11 | AU30: O | AV30: 6 | AW30: A | AX30: 4 | AY30: 1404.844622 | AZ30: 1366.270975 | BA30: 1327.397329 | BB30: 1327.297329 | BC30: 1327.197329 | BD30: 1326.997329 | BE30: 1326.997329 | BF30: 1326.797329 | BG30: 1326.697329 | BH30: 1326.497329 | BI30: 1191.816631 | BJ30: 1191.816631 | BK30: 1191.616631 | BL30: 1114.669338 | BM30: 1028.242166 | BN30: 1404.844622 | BO30: 15 | BP30: 14 | BQ30: 13 | BR30: 12 | BS30: 11 | BT30: 9 | BU30: 9 | BV30: 8 | BW30: 7 | BX30: 6 | BY30: 4 | BZ30: 4 | CA30: 3 | CB30: 2 | CC30: 1 | CE30: -38.57364642 | CF30: -38.87364642 | CG30: -0.1 | CH30: -0.1 | CI30: -0.2 | CJ30: 0 | CK30: -0.2 | CL30: -0.1 | CM30: -0.2 | CN30: -134.6806979 | CO30: 0 | CP30: -0.2 | CQ30: -76.94729284 | CR30: -86.42717217 | CS30: 43.32172738 | CU30: 6 | CV30: 4 | CW30: ='nn - ranked data - new (37)'!BN30-'nn - ranked data - new (40)'!BN30 -> -403.1446218 | CX30: -273.3437085 | DA30: =AVERAGE('nn - ranked data - new (37)'!AY30:BM30) -> 1000.333333 | DB30: 1273.677042
U31: 9 | V31: 1 | W31: 7 | X31: 2 | Y31: 12 | Z31: 6 | AA31: 13 | AB31: 15 | AC31: 11 | AD31: 10 | AE31: 5 | AF31: 14 | AG31: 8 | AH31: 4 | AI31: 3 | AU31: O | AV31: 6 | AW31: A | AX31: 5 | AY31: 1731.139423 | AZ31: 1731.139423 | BA31: 1683.185897 | BB31: 1683.185897 | BC31: 1635.232371 | BD31: 1539.32532 | BE31: 1539.32532 | BF31: 1491.371794 | BG31: 1404.844622 | BH31: 1404.844622 | BI31: 1327.797329 | BJ31: 1327.397329 | BK31: 1231.390278 | BL31: 1192.916631 | BM31: 1067.815813 | BN31: 1731.139423 | BO31: 14 | BP31: 14 | BQ31: 12 | BR31: 12 | BS31: 11 | BT31: 9 | BU31: 9 | BV31: 8 | BW31: 6 | BX31: 6 | BY31: 5 | BZ31: 4 | CA31: 3 | CB31: 2 | CC31: 1 | CE31: 0 | CF31: -47.95352575 | CG31: 0 | CH31: -47.95352575 | CI31: -95.9070515 | CJ31: 0 | CK31: -47.95352575 | CL31: -86.52717217 | CM31: 0 | CN31: -77.04729284 | CO31: -0.4 | CP31: -96.0070515 | CQ31: -38.47364642 | CR31: -125.1008186 | CS31: 43.3585479 | CU31: 6 | CV31: 5 | CW31: ='nn - ranked data - new (37)'!BN31-'nn - ranked data - new (40)'!BN31 -> -727.9394228 | CX31: -463.6674711 | DA31: =AVERAGE('nn - ranked data - new (37)'!AY31:BM31) -> 1002.393333 | DB31: 1466.060804
AU32: O | AV32: 7 | AW32: A | AX32: 1 | AY32: 1393.659759 | AZ32: 1393.559759 | BA32: 1268.759759 | BB32: 1220.706233 | BC32: 1172.452707 | BD32: 1086.026354 | BE32: 989.8193021 | BF32: 913.0736464 | BG32: 865.1201207 | BH32: 865.0201207 | BI32: 768.9130692 | BJ32: 720.6595434 | BK32: 720.6595434 | BL32: 720.6595434 | BM32: 643.7122506 | BN32: 1393.659759 | BO32: 15 | BP32: 14 | BQ32: 13 | BR32: 12 | BS32: 11 | BT32: 10 | BU32: 9 | BV32: 8 | BW32: 7 | BX32: 6 | BY32: 5 | BZ32: 2 | CA32: 2 | CB32: 2 | CC32: 1 | CE32: -0.1 | CF32: -124.8 | CG32: -48.05352575 | CH32: -48.25352575 | CI32: -86.42635358 | CJ32: -96.2070515 | CK32: -76.74565567 | CL32: -47.95352575 | CM32: -0.1 | CN32: -96.1070515 | CO32: -48.25352575 | CP32: 0 | CQ32: 0 | CR32: -76.94729284 | CS32: 41.5472467 | CU32: 7 | CV32: 1 | CW32: ='nn - ranked data - new (37)'!BN32-'nn - ranked data - new (40)'!BN32 -> -392.5597587 | CX32: 16.37988603 | DA32: =AVERAGE('nn - ranked data - new (37)'!AY32:BM32) -> 999.2333333 | DB32: 982.8534473
U33: =SUMPRODUCT(U27:U31,$N$3:$N$7) -> 1086.523079 | V33: =SUMPRODUCT(V27:V31,$N$3:$N$7) -> 125 | W33: 1067.364139 | X33: 365.6209393 | Y33: 1423.355163 | Z33: 1404.844622 | AA33: 1393.659759 | AB33: 1221.65456 | AC33: 990.1692659 | AD33: 1057.235861 | AE33: 470.7070515 | AF33: 1672.852707 | AG33: 1269.315525 | AH33: 499.7983628 | AI33: 951.8989662 | AU33: O | AV33: 7 | AW33: A | AX33: 2 | AY33: 1547.852707 | AZ33: 1509.279879 | BA33: 1509.079879 | BB33: 1509.079879 | BC33: 1393.659759 | BD33: 1316.713284 | BE33: 1201.594801 | BF33: 1086.073862 | BG33: 1009.127387 | BH33: 970.5545596 | BI33: 845.353741 | BJ33: 730.1352575 | BK33: 730.1352575 | BL33: 730.1352575 | BM33: 691.6624297 | BN33: 1547.852707 | BO33: 15 | BP33: 14 | BQ33: 12 | BR33: 12 | BS33: 11 | BT33: 10 | BU33: 9 | BV33: 8 | BW33: 7 | BX33: 6 | BY33: 5 | BZ33: 2 | CA33: 2 | CB33: 2 | CC33: 1 | CE33: -38.57282783 | CF33: -0.2 | CG33: 0 | CH33: -115.4201207 | CI33: -76.94647425 | CJ33: -115.1184835 | CK33: -115.5209393 | CL33: -76.94647425 | CM33: -38.57282783 | CN33: -125.2008186 | CO33: -115.2184835 | CP33: 0 | CQ33: 0 | CR33: -38.47282783 | CS33: 50.23451822 | CU33: 7 | CV33: 2 | CW33: ='nn - ranked data - new (37)'!BN33-'nn - ranked data - new (40)'!BN33 -> -545.5527072 | CX33: -118.6158627 | DA33: =AVERAGE('nn - ranked data - new (37)'!AY33:BM33) -> 1000.08 | DB33: 1118.695863
AU34: O | AV34: 7 | AW34: A | AX34: 3 | AY34: 1682.732586 | AZ34: 1634.679061 | BA34: 1634.479061 | BB34: 1595.906233 | BC34: 1518.859759 | BD34: 1470.606233 | BE34: 1470.606233 | BF34: 1393.659759 | BG34: 1316.713284 | BH34: 1153.641275 | BI34: 1153.441275 | BJ34: 1115.068447 | BK34: 1028.342094 | BL34: 932.3350422 | BM34: 893.8622144 | BN34: 1682.732586 | BO34: =RANK(AY34,$AY34:$BM34, 1) -> 15 | BP34: 14 | BQ34: 13 | BR34: 12 | BS34: 11 | BT34: 9 | BU34: 9 | BV34: 8 | BW34: 7 | BX34: 6 | BY34: 5 | BZ34: 4 | CA34: 3 | CB34: 2 | CC34: 1 | CE34: -48.05352575 | CF34: -0.2 | CG34: -38.57282783 | CH34: -77.04647425 | CI34: -48.25352575 | CJ34: 0 | CK34: -76.94647425 | CL34: -76.94647425 | CM34: -163.0720092 | CN34: -0.2 | CO34: -38.37282783 | CP34: -86.72635358 | CQ34: -96.0070515 | CR34: -38.47282783 | CS34: 44.49366167 | CU34: 7 | CV34: 3 | CW34: ='nn - ranked data - new (37)'!BN34-'nn - ranked data - new (40)'!BN34 -> -679.7325865 | CX34: -331.9221704 | DA34: =AVERAGE('nn - ranked data - new (37)'!AY34:BM34) -> 1001.073333 | DB34: 1332.995504
U35: nincs w6-hatás | AU35: O | AV35: 7 | AW35: A | AX35: 4 | AY35: 1750.2 | AZ35: 1673.252707 | BA35: 1634.779061 | BB35: 1596.406233 | BC35: 1596.406233 | BD35: 1596.406233 | BE35: 1558.033405 | BF35: 1509.979879 | BG35: 1509.679879 | BH35: 1509.579879 | BI35: 1509.379879 | BJ35: 1470.606233 | BK35: 1432.233405 | BL35: 1393.659759 | BM35: 1316.713284 | BN35: 1750.2 | BO35: 15 | BP35: 14 | BQ35: 13 | BR35: 10 | BS35: 10 | BT35: 10 | BU35: 9 | BV35: 8 | BW35: 7 | BX35: 6 | BY35: 5 | BZ35: 4 | CA35: 3 | CB35: 2 | CC35: 1 | CE35: -76.94729284 | CF35: -38.47364642 | CG35: =BB35-BA35 -> -38.37282783 | CH35: 0 | CI35: 0 | CJ35: -38.37282783 | CK35: -48.05352575 | CL35: -0.3 | CM35: -0.1 | CN35: -0.2 | CO35: -38.77364642 | CP35: -38.37282783 | CQ35: -38.57364642 | CR35: -76.94647425 | CS35: 27.19968467 | CU35: 7 | CV35: 4 | CW35: ='nn - ranked data - new (37)'!BN35-'nn - ranked data - new (40)'!BN35 -> -747 | CX35: -534.8810713 | DA35: =AVERAGE('nn - ranked data - new (37)'!AY35:BM35) -> 1002.273333 | DB35: 1537.154405
AU36: O | AV36: 7 | AW36: A | AX36: 5 | AY36: 1759.881517 | AZ36: 1673.254344 | BA36: 1672.954344 | BB36: 1557.433405 | BC36: 1518.760577 | BD36: 1470.707051 | BE36: 1432.233405 | BF36: 1393.659759 | BG36: 1355.086112 | BH36: 1268.759759 | BI36: 1153.238819 | BJ36: 1066.711647 | BK36: 980.2852937 | BL36: 893.5581215 | BM36: 730.2852937 | BN36: 1759.881517 | BO36: 15 | BP36: 14 | BQ36: 13 | BR36: 12 | BS36: 11 | BT36: 10 | BU36: 9 | BV36: 8 | BW36: 7 | BX36: 6 | BY36: 5 | BZ36: 4 | CA36: 3 | CB36: 2 | CC36: 1 | CE36: =AZ36-AY36 -> -86.62717217 | CF36: -0.3 | CG36: -115.5209393 | CH36: -38.67282783 | CI36: -48.05352575 | CJ36: -38.47364642 | CK36: -38.57364642 | CL36: -38.57364642 | CM36: -86.32635358 | CN36: -115.5209393 | CO36: -86.52717217 | CP36: -86.42635358 | CQ36: -86.72717217 | CR36: -163.2728278 | CS36: 42.35789689 | CU36: 7 | CV36: 5 | CW36: ='nn - ranked data - new (37)'!BN36-'nn - ranked data - new (40)'!BN36 -> -756.7815165 | CX36: -327.4072966 | DA36: =AVERAGE('nn - ranked data - new (37)'!AY36:BM36) -> 1001.046667 | DB36: 1328.453963
AU37: O | AV37: 8 | AW37: A | AX37: 1 | AY37: 1298.601034 | AZ37: 1298.501034 | BA37: 1221.65456 | BB37: 1221.45456 | BC37: 1182.780913 | BD37: 1182.580913 | BE37: 1134.427387 | BF37: 1086.373862 | BG37: 1038.220336 | BH37: 1038.220336 | BI37: 913.2203359 | BJ37: 817.1132844 | BK37: 816.9132844 | BL37: 720.8062329 | BM37: 672.8527072 | BN37: 1298.601034 | BO37: 15 | BP37: 14 | BQ37: 13 | BR37: 12 | BS37: 11 | BT37: 10 | BU37: 9 | BV37: 8 | BW37: 6 | BX37: 6 | BY37: 5 | BZ37: 4 | CA37: 3 | CB37: 2 | CC37: 1 | CE37: -0.1 | CF37: -76.84647425 | CG37: -0.2 | CH37: -38.67364642 | CI37: -0.2 | CJ37: -48.15352575 | CK37: -48.05352575 | CL37: -48.15352575 | CM37: 0 | CN37: -125 | CO37: -96.1070515 | CP37: -0.2 | CQ37: -96.1070515 | CR37: -47.95352575 | CS37: 41.85768718 | CU37: 8 | CV37: 1 | CW37: ='nn - ranked data - new (37)'!BN37-'nn - ranked data - new (40)'!BN37 -> -296.7010338 | CX37: -42.56805192 | DA37: =AVERAGE('nn - ranked data - new (37)'!AY37:BM37) -> 1000.346667 | DB37: 1042.914719
AU38: O | AV38: 8 | AW38: A | AX38: 2 | AY38: 1875 | AZ38: 1875 | BA38: 1836.627172 | BB38: 1836.627172 | BC38: 1836.627172 | BD38: 1836.627172 | BE38: 1798.153526 | BF38: 1798.153526 | BG38: 1682.732586 | BH38: 1644.359759 | BI38: 1605.986931 | BJ38: 1567.513284 | BK38: 1452.193164 | BL38: 1336.873862 | BM38: 1221.65456 | BN38: 1875 | BO38: 14 | BP38: 14 | BQ38: 10 | BR38: 10 | BS38: 10 | BT38: 10 | BU38: 8 | BV38: 8 | BW38: 7 | BX38: 6 | BY38: 5 | BZ38: 4 | CA38: 3 | CB38: 2 | CC38: 1 | CE38: 0 | CF38: -38.37282783 | CG38: 0 | CH38: 0 | CI38: 0 | CJ38: -38.47364642 | CK38: 0 | CL38: -115.4209393 | CM38: -38.37282783 | CN38: -38.37282783 | CO38: -38.47364642 | CP38: -115.3201207 | CQ38: -115.3193021 | CR38: -115.2193021 | CS38: 48.10453221 | CU38: 8 | CV38: 2 | CW38: ='nn - ranked data - new (37)'!BN38-'nn - ranked data - new (40)'!BN38 -> -871.5 | CX38: -677.288659 | DA38: =AVERAGE('nn - ranked data - new (37)'!AY38:BM38) -> 1002.986667 | DB38: 1680.275326
AU39: O | AV39: 8 | AW39: A | AX39: 3 | AY39: 1413.719517 | AZ39: 1336.873862 | BA39: 1221.65456 | BB39: 1182.980913 | BC39: 1144.408085 | BD39: 1105.735257 | BE39: 1105.735257 | BF39: 1019.108085 | BG39: 903.7896018 | BH39: 855.8360761 | BI39: 855.6360761 | BJ39: 769.3097225 | BK39: 768.9097225 | BL39: 768.8097225 | BM39: 682.2825503 | BN39: 1413.719517 | BO39: 15 | BP39: 14 | BQ39: 13 | BR39: 12 | BS39: 11 | BT39: 9 | BU39: 9 | BV39: 8 | BW39: 7 | BX39: 6 | BY39: 5 | BZ39: 4 | CA39: 3 | CB39: 2 | CC39: 1 | CE39: -76.84565567 | CF39: -115.2193021 | CG39: -38.67364642 | CH39: -38.57282783 | CI39: -38.67282783 | CJ39: 0 | CK39: -86.62717217 | CL39: -115.3184835 | CM39: -47.95352575 | CN39: -0.2 | CO39: -86.32635358 | CP39: -0.4 | CQ39: -0.1 | CR39: -86.52717217 | CS39: 42.50530889 | CU39: 8 | CV39: 3 | CW39: ='nn - ranked data - new (37)'!BN39-'nn - ranked data - new (40)'!BN39 -> -411.5195173 | CX39: -8.719267276 | DA39: =AVERAGE('nn - ranked data - new (37)'!AY39:BM39) -> 1000.266667 | DB39: 1008.985934
AU40: O | AV40: 8 | AW40: A | AX40: 4 | AY40: 1413.719517 | AZ40: 1413.719517 | BA40: 1375.346689 | BB40: 1336.973862 | BC40: 1298.501034 | BD40: 1221.65456 | BE40: 1182.980913 | BF40: 1182.780913 | BG40: 1182.580913 | BH40: 1105.634439 | BI40: 1105.534439 | BJ40: 1105.234439 | BK40: 1066.861611 | BL40: 1066.761611 | BM40: 1028.087965 | BN40: 1413.719517 | BO40: 14 | BP40: 14 | BQ40: 13 | BR40: 12 | BS40: 11 | BT40: 10 | BU40: 9 | BV40: 8 | BW40: 7 | BX40: 6 | BY40: 5 | BZ40: 4 | CA40: 3 | CB40: 2 | CC40: 1 | CE40: 0 | CF40: -38.37282783 | CG40: -38.37282783 | CH40: -38.47282783 | CI40: -76.84647425 | CJ40: -38.67364642 | CK40: -0.2 | CL40: -0.2 | CM40: -76.94647425 | CN40: -0.1 | CO40: -0.3 | CP40: -38.37282783 | CQ40: -0.1 | CR40: -38.67364642 | CS40: 27.86360833 | CU40: 8 | CV40: 4 | CW40: ='nn - ranked data - new (37)'!BN40-'nn - ranked data - new (40)'!BN40 -> -411.5195173 | CX40: -204.6448281 | DA40: =AVERAGE('nn - ranked data - new (37)'!AY40:BM40) -> 1001.113333 | DB40: 1205.758161
AU41: O | AV41: 8 | AW41: A | AX41: 5 | AY41: 1452.394801 | AZ41: 1337.07468 | BA41: 1298.501034 | BB41: 1221.65456 | BC41: 1183.080913 | BD41: 1144.307267 | BE41: 1144.207267 | BF41: 1019.106448 | BG41: 1019.106448 | BH41: 1018.806448 | BI41: 970.7529224 | BJ41: 884.3265688 | BK41: 884.2265688 | BL41: 836.2730431 | BM41: 788.0195173 | BN41: 1452.394801 | BO41: 15 | BP41: 14 | BQ41: 13 | BR41: 12 | BS41: 11 | BT41: 10 | BU41: 9 | BV41: 7 | BW41: 7 | BX41: 6 | BY41: 5 | BZ41: 4 | CA41: 3 | CB41: 2 | CC41: 1 | CE41: -115.3201207 | CF41: -38.57364642 | CG41: -76.84647425 | CH41: -38.57364642 | CI41: -38.77364642 | CJ41: -0.1 | CK41: -125.1008186 | CL41: 0 | CM41: -0.3 | CN41: -48.05352575 | CO41: -86.42635358 | CP41: -0.1 | CQ41: -47.95352575 | CR41: -48.25352575 | CS41: 41.33549712 | CU41: 8 | CV41: 5 | CW41: ='nn - ranked data - new (37)'!BN41-'nn - ranked data - new (40)'!BN41 -> -450.0948009 | CX41: -79.51589907 | DA41: =AVERAGE('nn - ranked data - new (37)'!AY41:BM41) -> 1000.606667 | DB41: 1080.122566
AU42: O | AV42: 9 | AW42: A | AX42: 1 | AY42: 1298.604308 | AZ42: 1211.977136 | BA42: 1211.777136 | BB42: 1211.577136 | BC42: 1163.52361 | BD42: 1163.32361 | BE42: 1115.270084 | BF42: 990.3692659 | BG42: 990.1692659 | BH42: 942.1157402 | BI42: 894.0622144 | BJ42: 807.5358608 | BK42: 721.2095073 | BL42: 673.2559815 | BM42: 673.0559815 | BN42: 1298.604308 | BO42: 15 | BP42: 14 | BQ42: 13 | BR42: 12 | BS42: 11 | BT42: 10 | BU42: 9 | BV42: 8 | BW42: 7 | BX42: 6 | BY42: 5 | BZ42: 4 | CA42: 3 | CB42: 2 | CC42: 1 | CE42: -86.62717217 | CF42: -0.2 | CG42: -0.2 | CH42: -48.05352575 | CI42: -0.2 | CJ42: -48.05352575 | CK42: -124.9008186 | CL42: -0.2 | CM42: -48.05352575 | CN42: -48.05352575 | CO42: -86.52635358 | CP42: -86.32635358 | CQ42: -47.95352575 | CR42: -0.2 | CS42: 40.789395 | CU42: 9 | CV42: 1 | CW42: ='nn - ranked data - new (37)'!BN42-'nn - ranked data - new (40)'!BN42 -> -297.0043082 | CX42: -4.708455911 | DA42: =AVERAGE('nn - ranked data - new (37)'!AY42:BM42) -> 999.8133333 | DB42: 1004.521789
AU43: O | AV43: 9 | AW43: A | AX43: 2 | AY43: 1692.766595 | AZ43: 1692.766595 | BA43: 1606.340241 | BB43: 1567.667414 | BC43: 1567.467414 | BD43: 1567.267414 | BE43: 1451.948111 | BF43: 1375.002456 | BG43: 1182.735861 | BH43: 1144.263033 | BI43: 1105.790205 | BJ43: 1067.316559 | BK43: 990.1692659 | BL43: 913.4236102 | BM43: 836.2763174 | BN43: 1692.766595 | BO43: 14 | BP43: 14 | BQ43: 13 | BR43: 12 | BS43: 11 | BT43: 10 | BU43: 9 | BV43: 8 | BW43: 7 | BX43: 6 | BY43: 5 | BZ43: 4 | CA43: 3 | CB43: 2 | CC43: 1 | CE43: 0 | CF43: -86.42635358 | CG43: -38.67282783 | CH43: -0.2 | CI43: -0.2 | CJ43: -115.3193021 | CK43: -76.94565567 | CL43: -192.2665949 | CM43: -38.47282783 | CN43: -38.47282783 | CO43: -38.47364642 | CP43: -77.14729284 | CQ43: -76.74565567 | CR43: -77.14729284 | CS43: 51.87736126 | CU43: 9 | CV43: 2 | CW43: ='nn - ranked data - new (37)'!BN43-'nn - ranked data - new (40)'!BN43 -> -689.6665949 | CX43: -316.2467393 | DA43: =AVERAGE('nn - ranked data - new (37)'!AY43:BM43) -> 1001.166667 | DB43: 1317.413406
AU44: O | AV44: 9 | AW44: A | AX44: 3 | AY44: 1557.633405 | AZ44: 1518.860577 | BA44: 1394.061396 | BB44: 1278.742912 | BC44: 1192.21574 | BD44: 1153.842912 | BE44: 1067.316559 | BF44: 1028.842912 | BG44: 990.1692659 | BH44: 913.4236102 | BI44: 817.3165588 | BJ44: 817.1165588 | BK44: 730.7902052 | BL44: 682.8366794 | BM44: 682.8366794 | BN44: 1557.633405 | BO44: 15 | BP44: 14 | BQ44: 13 | BR44: 12 | BS44: 11 | BT44: 10 | BU44: 9 | BV44: 8 | BW44: 7 | BX44: 6 | BY44: 5 | BZ44: 4 | CA44: 3 | CB44: 1 | CC44: 1 | CE44: -38.77282783 | CF44: -124.7991814 | CG44: -115.3184835 | CH44: -86.52717217 | CI44: -38.37282783 | CJ44: -86.52635358 | CK44: -38.47364642 | CL44: -38.67364642 | CM44: -76.74565567 | CN44: -96.1070515 | CO44: -0.2 | CP44: -86.32635358 | CQ44: -47.95352575 | CR44: 0 | CS44: 39.23775213 | CU44: 9 | CV44: 3 | CW44: ='nn - ranked data - new (37)'!BN44-'nn - ranked data - new (40)'!BN44 -> -555.2334051 | CX44: -55.11373145 | DA44: =AVERAGE('nn - ranked data - new (37)'!AY44:BM44) -> 999.9533333 | DB44: 1055.067065
AU45: O | AV45: 9 | AW45: A | AX45: 4 | AY45: 1144.663033 | AZ45: 1144.563033 | BA45: 1105.990205 | BB45: 1067.416559 | BC45: 1067.316559 | BD45: 1067.316559 | BE45: 990.1692659 | BF45: 990.0692659 | BG45: 913.2236102 | BH45: 913.0236102 | BI45: 865.0700845 | BJ45: 778.6429123 | BK45: 701.5956195 | BL45: 701.3956195 | BM45: 662.7227917 | BN45: 1144.663033 | BO45: 15 | BP45: 14 | BQ45: 13 | BR45: 12 | BS45: 10 | BT45: 10 | BU45: 9 | BV45: 8 | BW45: 7 | BX45: 6 | BY45: 5 | BZ45: 4 | CA45: 3 | CB45: 2 | CC45: 1 | CE45: -0.1 | CF45: -38.57282783 | CG45: -38.57364642 | CH45: -0.1 | CI45: 0 | CJ45: -77.14729284 | CK45: -0.1 | CL45: -76.84565567 | CM45: -0.2 | CN45: -47.95352575 | CO45: -86.42717217 | CP45: -77.04729284 | CQ45: -0.2 | CR45: -38.67282783 | CS45: 34.46678627 | CU45: 9 | CV45: 4 | CW45: ='nn - ranked data - new (37)'!BN45-'nn - ranked data - new (40)'!BN45 -> -143.963033 | CX45: 58.46808485 | DA45: =AVERAGE('nn - ranked data - new (37)'!AY45:BM45) -> 999.3466667 | DB45: 940.8785818
AU46: O | AV46: 9 | AW46: A | AX46: 5 | AY46: 990.1692659 | AZ46: 990.1692659 | BA46: 817.1149216 | BB46: 740.0684473 | BC46: 567.3149216 | BD46: 567.3149216 | BE46: 442.414103 | BF46: 442.314103 | BG46: 441.914103 | BH46: 346.0070515 | BI46: 297.9535257 | BJ46: 297.9535257 | BK46: 297.9535257 | BL46: 297.9535257 | BM46: 297.9535257 | BN46: 990.1692659 | BO46: 14 | BP46: 14 | BQ46: 13 | BR46: 12 | BS46: 10 | BT46: 10 | BU46: 9 | BV46: 8 | BW46: 7 | BX46: 6 | BY46: 1 | BZ46: 1 | CA46: 1 | CB46: 1 | CC46: 1 | CE46: 0 | CF46: -173.0543443 | CG46: -77.04647425 | CH46: -172.7535257 | CI46: 0 | CJ46: -124.9008186 | CK46: -0.1 | CL46: -0.4 | CM46: -95.9070515 | CN46: -48.05352575 | CO46: 0 | CP46: 0 | CQ46: 0 | CR46: 0 | CS46: 67.14481026 | CU46: 9 | CV46: 5 | CW46: ='nn - ranked data - new (37)'!BN46-'nn - ranked data - new (40)'!BN46 -> 9.430734085 | CX46: 475.3954178 | DA46: =AVERAGE('nn - ranked data - new (37)'!AY46:BM46) -> 997.7 | DB46: 522.3045822
AU47: O | AV47: 10 | AW47: A | AX47: 1 | AY47: 1105.389387 | AZ47: 1057.235861 | BA47: 970.7086887 | BB47: 884.2815165 | BC47: 836.3279908 | BD47: 788.374465 | BE47: 788.074465 | BF47: 691.9674135 | BG47: 643.9138878 | BH47: 643.9138878 | BI47: 643.9138878 | BJ47: 605.5410599 | BK47: 557.5875342 | BL47: 557.5875342 | BM47: 471.1611806 | BN47: 1105.389387 | BO47: 15 | BP47: 14 | BQ47: 13 | BR47: 12 | BS47: 11 | BT47: 10 | BU47: 9 | BV47: 8 | BW47: 5 | BX47: 5 | BY47: 5 | BZ47: 4 | CA47: 2 | CB47: 2 | CC47: 1 | CE47: -48.15352575 | CF47: -86.52717217 | CG47: -86.42717217 | CH47: -47.95352575 | CI47: -47.95352575 | CJ47: -0.3 | CK47: -96.1070515 | CL47: -48.05352575 | CM47: 0 | CN47: 0 | CO47: -38.37282783 | CP47: -47.95352575 | CQ47: 0 | CR47: -86.42635358 | CS47: 35.00545147 | CU47: 10 | CV47: 1 | CW47: ='nn - ranked data - new (37)'!BN47-'nn - ranked data - new (40)'!BN47 -> -105.5893866 | CX47: 248.5014161 | DA47: =AVERAGE('nn - ranked data - new (37)'!AY47:BM47) -> 998.2333333 | DB47: 749.7319173
AU48: O | AV48: 10 | AW48: A | AX48: 2 | AY48: 1211.327991 | AZ48: 1134.382335 | BA48: 1134.182335 | BB48: 1057.235861 | BC48: 980.188568 | BD48: 932.2350422 | BE48: 701.6956195 | BF48: 663.2219731 | BG48: 663.1219731 | BH48: 547.5018524 | BI48: 547.4018524 | BJ48: 547.3018524 | BK48: 499.3483267 | BL48: 499.3483267 | BM48: 499.3483267 | BN48: 1211.327991 | BO48: 15 | BP48: 14 | BQ48: 13 | BR48: 12 | BS48: 11 | BT48: 10 | BU48: 9 | BV48: 8 | BW48: 7 | BX48: 6 | BY48: 5 | BZ48: 4 | CA48: 1 | CB48: 1 | CC48: 1 | CE48: -76.94565567 | CF48: -0.2 | CG48: -76.94647425 | CH48: -77.04729284 | CI48: -47.95352575 | CJ48: -230.5394228 | CK48: -38.47364642 | CL48: -0.1 | CM48: -115.6201207 | CN48: -0.1 | CO48: -0.1 | CP48: -47.95352575 | CQ48: 0 | CR48: 0 | CS48: 64.54889163 | CU48: 10 | CV48: 2 | CW48: ='nn - ranked data - new (37)'!BN48-'nn - ranked data - new (40)'!BN48 -> -210.8279908 | CX48: 223.9305177 | DA48: =AVERAGE('nn - ranked data - new (37)'!AY48:BM48) -> 998.4533333 | DB48: 774.5228157
AU49: O | AV49: 10 | AW49: A | AX49: 3 | AY49: 1634.779061 | AZ49: 1634.679061 | BA49: 1634.479061 | BB49: 1595.806233 | BC49: 1595.506233 | BD49: 1509.079879 | BE49: 1508.979879 | BF49: 1422.453526 | BG49: 1345.60787 | BH49: 1220.80787 | BI49: 1143.862214 | BJ49: 1057.335861 | BK49: 1057.235861 | BL49: 970.7086887 | BM49: 932.2350422 | BN49: 1634.779061 | BO49: 15 | BP49: 14 | BQ49: 13 | BR49: 12 | BS49: 11 | BT49: 10 | BU49: 9 | BV49: 8 | BW49: 7 | BX49: 6 | BY49: 5 | BZ49: 4 | CA49: 3 | CB49: 2 | CC49: 1 | CE49: -0.1 | CF49: -0.2 | CG49: -38.67282783 | CH49: -0.3 | CI49: -86.42635358 | CJ49: -0.1 | CK49: -86.52635358 | CL49: -76.84565567 | CM49: -124.8 | CN49: -76.94565567 | CO49: -86.52635358 | CP49: -0.1 | CQ49: -86.52717217 | CR49: -38.47364642 | CS49: 43.898589 | CU49: 10 | CV49: 3 | CW49: ='nn - ranked data - new (37)'!BN49-'nn - ranked data - new (40)'!BN49 -> -631.7790607 | CX49: -349.8704226 | DA49: =AVERAGE('nn - ranked data - new (37)'!AY49:BM49) -> 1001.033333 | DB49: 1350.903756
AU50: O | AV50: 10 | AW50: A | AX50: 4 | AY50: 1577.547293 | AZ50: 1577.547293 | BA50: 1500.6 | BB50: 1414.173646 | BC50: 1375.4 | BD50: 1336.827172 | BE50: 1298.354344 | BF50: 1259.681517 | BG50: 1182.935861 | BH50: 1182.535861 | BI50: 1182.535861 | BJ50: 1134.582335 | BK50: 1057.535861 | BL50: 1057.435861 | BM50: 1057.235861 | BN50: 1577.547293 | BO50: 14 | BP50: 14 | BQ50: 13 | BR50: 12 | BS50: 11 | BT50: 10 | BU50: 9 | BV50: 8 | BW50: 7 | BX50: 5 | BY50: 5 | BZ50: 4 | CA50: 3 | CB50: 2 | CC50: 1 | CE50: 0 | CF50: -76.94729284 | CG50: -86.42635358 | CH50: -38.77364642 | CI50: -38.57282783 | CJ50: -38.47282783 | CK50: -38.67282783 | CL50: -76.74565567 | CM50: -0.4 | CN50: 0 | CO50: -47.95352575 | CP50: -77.04647425 | CQ50: -0.1 | CR50: -0.2 | CS50: 32.98692418 | CU50: 10 | CV50: 4 | CW50: ='nn - ranked data - new (37)'!BN50-'nn - ranked data - new (40)'!BN50 -> -574.8472928 | CX50: -278.5285843 | DA50: =AVERAGE('nn - ranked data - new (37)'!AY50:BM50) -> 1001.133333 | DB50: 1279.661918
AU51: O | AV51: 10 | AW51: A | AX51: 5 | AY51: 1394.063852 | AZ51: 1393.863852 | BA51: 1192.116559 | BB51: 1144.163033 | BC51: 1143.963033 | BD51: 1095.809507 | BE51: 1057.235861 | BF51: 932.2350422 | BG51: 884.2815165 | BH51: 720.9070515 | BI51: 682.4334051 | BJ51: 634.3798793 | BK51: 595.7062329 | BL51: 557.0325865 | BM51: 461.125535 | BN51: 1394.063852 | BO51: =RANK(AY51,$AY51:$BM51, 1) -> 15 | BP51: 14 | BQ51: 13 | BR51: 12 | BS51: 11 | BT51: 10 | BU51: 9 | BV51: 8 | BW51: 7 | BX51: 6 | BY51: 5 | BZ51: 4 | CA51: 3 | CB51: 2 | CC51: 1 | CE51: -0.2 | CF51: -201.7472928 | CG51: -47.95352575 | CH51: -0.2 | CI51: -48.15352575 | CJ51: -38.57364642 | CK51: -125.0008186 | CL51: -47.95352575 | CM51: -163.374465 | CN51: -38.47364642 | CO51: -48.05352575 | CP51: -38.67364642 | CQ51: -38.67364642 | CR51: -95.9070515 | CS51: 58.98728862 | CU51: 10 | CV51: 5 | CW51: ='nn - ranked data - new (37)'!BN51-'nn - ranked data - new (40)'!BN51 -> -393.0638516 | CX51: 73.20553699 | DA51: =AVERAGE('nn - ranked data - new (37)'!AY51:BM51) -> 999.16 | DB51: 925.954463
AU52: O | AV52: 11 | AW52: A | AX52: 1 | AY52: 1019.108085 | AZ52: 942.2616111 | BA52: 894.2080853 | BB52: 893.9080853 | BC52: 845.9545596 | BD52: 797.9010338 | BE52: 797.6010338 | BF52: 749.5475081 | BG52: 653.3404566 | BH52: 605.3869308 | BI52: 557.4334051 | BJ52: 471.1070515 | BK52: 470.9070515 | BL52: 470.7070515 | BM52: 422.7535257 | BN52: 1019.108085 | BO52: 15 | BP52: 14 | BQ52: 13 | BR52: 12 | BS52: 11 | BT52: 10 | BU52: 9 | BV52: 8 | BW52: 7 | BX52: 6 | BY52: 5 | BZ52: 4 | CA52: 3 | CB52: 2 | CC52: 1 | CE52: -76.84647425 | CF52: -48.05352575 | CG52: -0.3 | CH52: -47.95352575 | CI52: -48.05352575 | CJ52: -0.3 | CK52: -48.05352575 | CL52: -96.2070515 | CM52: -47.95352575 | CN52: -47.95352575 | CO52: -86.32635358 | CP52: -0.2 | CQ52: -0.2 | CR52: -47.95352575 | CS52: 32.02942709 | CU52: 11 | CV52: 1 | CW52: ='nn - ranked data - new (37)'!BN52-'nn - ranked data - new (40)'!BN52 -> -18.80808532 | CX52: 292.4849683 | DA52: =AVERAGE('nn - ranked data - new (37)'!AY52:BM52) -> 998.6266667 | DB52: 706.1416983
AU53: O | AV53: 11 | AW53: A | AX53: 2 | AY53: 1403.84544 | AZ53: 1355.891915 | BA53: 1279.04544 | BB53: 1201.998966 | BC53: 1124.851673 | BD53: 1124.751673 | BE53: 1086.078846 | BF53: 970.8595434 | BG53: 740.1201207 | BH53: 740.1201207 | BI53: 586.3263536 | BJ53: 509.3798793 | BK53: 509.2798793 | BL53: 470.7070515 | BM53: 345.9070515 | BN53: 1403.84544 | BO53: 15 | BP53: 14 | BQ53: 13 | BR53: 12 | BS53: 11 | BT53: 10 | BU53: 9 | BV53: 8 | BW53: 6 | BX53: 6 | BY53: 5 | BZ53: 4 | CA53: 3 | CB53: 2 | CC53: 1 | CE53: -47.95352575 | CF53: -76.84647425 | CG53: -77.04647425 | CH53: -77.14729284 | CI53: -0.1 | CJ53: -38.67282783 | CK53: -115.2193021 | CL53: -230.7394228 | CM53: 0 | CN53: -153.7937671 | CO53: -76.94647425 | CP53: -0.1 | CQ53: -38.57282783 | CR53: -124.8 | CS53: 64.9233203 | CU53: 11 | CV53: 2 | CW53: ='nn - ranked data - new (37)'!BN53-'nn - ranked data - new (40)'!BN53 -> -402.5454404 | CX53: 102.6090697 | DA53: =AVERAGE('nn - ranked data - new (37)'!AY53:BM53) -> 999.22 | DB53: 896.6109303
AU54: O | AV54: 11 | AW54: A | AX54: 3 | AY54: 682.1325865 | AZ54: 634.1790607 | BA54: 547.8527072 | BB54: 509.3798793 | BC54: 509.2798793 | BD54: 470.7070515 | BE54: 384.3806979 | BF54: 297.9535257 | BG54: 259.5806979 | BH54: 259.5806979 | BI54: 259.5806979 | BJ54: 259.5806979 | BK54: 259.5806979 | BL54: 211.5271722 | BM54: 211.4271722 | BN54: 682.1325865 | BO54: 15 | BP54: 14 | BQ54: 13 | BR54: 12 | BS54: 11 | BT54: 10 | BU54: 9 | BV54: 8 | BW54: 3 | BX54: 3 | BY54: 3 | BZ54: 3 | CA54: 3 | CB54: 2 | CC54: 1 | CE54: -47.95352575 | CF54: -86.32635358 | CG54: -38.47282783 | CH54: -0.1 | CI54: -38.57282783 | CJ54: -86.32635358 | CK54: -86.42717217 | CL54: -38.37282783 | CM54: 0 | CN54: 0 | CO54: 0 | CP54: 0 | CQ54: -48.05352575 | CR54: -0.1 | CS54: 34.63808669 | CU54: 11 | CV54: 3 | CW54: ='nn - ranked data - new (37)'!BN54-'nn - ranked data - new (40)'!BN54 -> 316.1674135 | CX54: 613.3451185 | DA54: =AVERAGE('nn - ranked data - new (37)'!AY54:BM54) -> 997.1266667 | DB54: 383.7815481
AU55: O | AV55: 11 | AW55: A | AX55: 4 | AY55: 586.7263536 | AZ55: 548.1535257 | BA55: 509.4798793 | BB55: 509.4798793 | BC55: 509.4798793 | BD55: 509.3798793 | BE55: 470.9070515 | BF55: 470.7070515 | BG55: 345.9070515 | BH55: 345.9070515 | BI55: 345.9070515 | BJ55: 345.9070515 | BK55: 297.9535257 | BL55: 297.9535257 | BM55: 259.4806979 | BN55: 586.7263536 | BO55: 15 | BP55: 14 | BQ55: 11 | BR55: 11 | BS55: 11 | BT55: 10 | BU55: 9 | BV55: 8 | BW55: 4 | BX55: 4 | BY55: 4 | BZ55: 4 | CA55: 2 | CB55: 2 | CC55: 1 | CE55: -38.57282783 | CF55: -38.67364642 | CG55: 0 | CH55: 0 | CI55: -0.1 | CJ55: -38.47282783 | CK55: -0.2 | CL55: -124.8 | CM55: 0 | CN55: 0 | CO55: 0 | CP55: -47.95352575 | CQ55: 0 | CR55: -38.47282783 | CS55: 35.26732625 | CU55: 11 | CV55: 4 | CW55: ='nn - ranked data - new (37)'!BN55-'nn - ranked data - new (40)'!BN55 -> 411.8736464 | CX55: 573.7980363 | DA55: =AVERAGE('nn - ranked data - new (37)'!AY55:BM55) -> 997.3533333 | DB55: 423.555297
AU56: O | AV56: 11 | AW56: A | AX56: 5 | AY56: 711.3279908 | AZ56: 595.9070515 | BA56: 471.0070515 | BB56: 470.9070515 | BC56: 470.7070515 | BD56: 384.2798793 | BE56: 297.9535257 | BF56: 297.9535257 | BG56: 297.9535257 | BH56: 297.9535257 | BI56: 297.9535257 | BJ56: 250 | BK56: 250 | BL56: 249.9 | BM56: 163.3728278 | BN56: 711.3279908 | BO56: 15 | BP56: 14 | BQ56: 13 | BR56: 12 | BS56: 11 | BT56: 10 | BU56: 5 | BV56: 5 | BW56: 5 | BX56: 5 | BY56: 5 | BZ56: 3 | CA56: 3 | CB56: 2 | CC56: 1 | CE56: -115.4209393 | CF56: -124.9 | CG56: -0.1 | CH56: -0.2 | CI56: -86.42717217 | CJ56: =BE56-BD56 -> -86.32635358 | CK56: 0 | CL56: 0 | CM56: 0 | CN56: 0 | CO56: -47.95352575 | CP56: 0 | CQ56: -0.1 | CR56: -86.52717217 | CS56: 49.75607812 | CU56: 11 | CV56: 5 | CW56: ='nn - ranked data - new (37)'!BN56-'nn - ranked data - new (40)'!BN56 -> 286.9720092 | CX56: 629.8215645 | DA56: =AVERAGE('nn - ranked data - new (37)'!AY56:BM56) -> 996.9666667 | DB56: 367.1451022
AU57: O | AV57: 12 | AW57: A | AX57: 1 | AY57: 1798.153526 | AZ57: 1673.252707 | BA57: 1673.252707 | BB57: 1673.052707 | BC57: 1672.852707 | BD57: 1672.752707 | BE57: 1624.599181 | BF57: 1576.445656 | BG57: 1576.345656 | BH57: 1528.39213 | BI57: 1393.912251 | BJ57: 1345.858725 | BK57: 1297.605199 | BL57: 1249.451673 | BM57: 1249.451673 | BN57: 1798.153526 | BO57: 15 | BP57: 13 | BQ57: 13 | BR57: 12 | BS57: 11 | BT57: 10 | BU57: 9 | BV57: 8 | BW57: 7 | BX57: 6 | BY57: 5 | BZ57: 4 | CA57: 3 | CB57: 1 | CC57: 1 | CE57: -124.9008186 | CF57: 0 | CG57: -0.2 | CH57: -0.2 | CI57: -0.1 | CJ57: -48.15352575 | CK57: -48.15352575 | CL57: -0.1 | CM57: -47.95352575 | CN57: -134.4798793 | CO57: -48.05352575 | CP57: -48.25352575 | CQ57: -48.15352575 | CR57: 0 | CS57: 44.78431847 | CU57: 12 | CV57: 1 | CW57: ='nn - ranked data - new (37)'!BN57-'nn - ranked data - new (40)'!BN57 -> -794.8535257 | CX57: -531.6986137 | DA57: =AVERAGE('nn - ranked data - new (37)'!AY57:BM57) -> 1001.993333 | DB57: 1533.691947
AU58: O | AV58: 12 | AW58: A | AX58: 2 | AY58: 1788.673646 | AZ58: 1788.673646 | BA58: 1750.2 | BB58: 1750 | BC58: 1672.852707 | BD58: 1672.852707 | BE58: 1634.179879 | BF58: 1634.079879 | BG58: 1557.133405 | BH58: 1364.86681 | BI58: 1249.548327 | BJ58: 1134.127387 | BK58: 1057.180913 | BL58: 1018.608085 | BM58: 893.6072667 | BN58: 1788.673646 | BO58: 14 | BP58: 14 | BQ58: 13 | BR58: 12 | BS58: 10 | BT58: 10 | BU58: 9 | BV58: 8 | BW58: 7 | BX58: 6 | BY58: 5 | BZ58: 4 | CA58: 3 | CB58: 2 | CC58: 1 | CE58: 0 | CF58: -38.47364642 | CG58: -0.2 | CH58: -77.14729284 | CI58: 0 | CJ58: -38.67282783 | CK58: -0.1 | CL58: -76.94647425 | CM58: -192.2665949 | CN58: -115.3184835 | CO58: -115.4209393 | CP58: -76.94647425 | CQ58: -38.57282783 | CR58: -125.0008186 | CS58: 58.33878634 | CU58: 12 | CV58: 2 | CW58: ='nn - ranked data - new (37)'!BN58-'nn - ranked data - new (40)'!BN58 -> -785.3736464 | CX58: -462.7389774 | DA58: =AVERAGE('nn - ranked data - new (37)'!AY58:BM58) -> 1001.7 | DB58: 1464.438977
AU59: O | AV59: 12 | AW59: A | AX59: 3 | AY59: 1750.2 | AZ59: 1711.726354 | BA59: 1673.052707 | BB59: 1672.852707 | BC59: 1672.852707 | BD59: 1634.179879 | BE59: 1586.126354 | BF59: 1499.6 | BG59: 1461.127172 | BH59: 1384.281517 | BI59: 1259.582335 | BJ59: 1211.428809 | BK59: 1124.902456 | BL59: 1038.276102 | BM59: 990.2225764 | BN59: 1750.2 | BO59: 15 | BP59: 14 | BQ59: 13 | BR59: 11 | BS59: 11 | BT59: 10 | BU59: 9 | BV59: 8 | BW59: 7 | BX59: 6 | BY59: 5 | BZ59: 4 | CA59: 3 | CB59: 2 | CC59: 1 | CE59: -38.47364642 | CF59: -38.67364642 | CG59: -0.2 | CH59: 0 | CI59: -38.67282783 | CJ59: -48.05352575 | CK59: -86.52635358 | CL59: -38.47282783 | CM59: -76.84565567 | CN59: -124.6991814 | CO59: -48.15352575 | CP59: -86.52635358 | CQ59: -86.62635358 | CR59: -48.05352575 | CS59: 34.6042427 | CU59: 12 | CV59: 3 | CW59: ='nn - ranked data - new (37)'!BN59-'nn - ranked data - new (40)'!BN59 -> -747 | CX59: -443.147445 | DA59: =AVERAGE('nn - ranked data - new (37)'!AY59:BM59) -> 1001.546667 | DB59: 1444.694112
AU60: O | AV60: 12 | AW60: A | AX60: 4 | AY60: 1788.673646 | AZ60: 1788.673646 | BA60: 1788.673646 | BB60: 1788.673646 | BC60: 1788.673646 | BD60: 1750.2 | BE60: 1750.2 | BF60: 1750.2 | BG60: 1750.2 | BH60: 1750.2 | BI60: 1673.052707 | BJ60: 1672.852707 | BK60: 1672.852707 | BL60: 1672.552707 | BM60: 1634.079879 | BN60: 1788.673646 | BO60: 11 | BP60: 11 | BQ60: 11 | BR60: 11 | BS60: 11 | BT60: 6 | BU60: 6 | BV60: 6 | BW60: 6 | BX60: 6 | BY60: 5 | BZ60: 3 | CA60: 3 | CB60: 2 | CC60: 1 | CE60: 0 | CF60: 0 | CG60: 0 | CH60: 0 | CI60: -38.47364642 | CJ60: 0 | CK60: 0 | CL60: 0 | CM60: 0 | CN60: -77.14729284 | CO60: -0.2 | CP60: 0 | CQ60: -0.3 | CR60: -38.47282783 | CS60: 23.54231327 | CU60: 12 | CV60: 4 | CW60: ='nn - ranked data - new (37)'!BN60-'nn - ranked data - new (40)'!BN60 -> -785.3736464 | CX60: -731.5972627 | DA60: =AVERAGE('nn - ranked data - new (37)'!AY60:BM60) -> 1003.053333 | DB60: 1734.650596
AU61: O | AV61: 12 | AW61: A | AX61: 5 | AY61: 1836.627172 | AZ61: 1788.673646 | BA61: 1750.2 | BB61: 1750 | BC61: 1672.852707 | BD61: 1672.852707 | BE61: 1672.552707 | BF61: 1624.499181 | BG61: 1537.972009 | BH61: 1422.45107 | BI61: 1335.924716 | BJ61: 1172.550251 | BK61: 1086.023079 | BL61: 1037.969553 | BM61: 951.3423813 | BN61: 1836.627172 | BO61: 15 | BP61: 14 | BQ61: 13 | BR61: 12 | BS61: 10 | BT61: 10 | BU61: 9 | BV61: 8 | BW61: 7 | BX61: 6 | BY61: 5 | BZ61: 4 | CA61: 3 | CB61: 2 | CC61: 1 | CE61: -47.95352575 | CF61: -38.47364642 | CG61: -0.2 | CH61: -77.14729284 | CI61: 0 | CJ61: -0.3 | CK61: -48.05352575 | CL61: -86.52717217 | CM61: -115.5209393 | CN61: -86.52635358 | CO61: -163.374465 | CP61: -86.52717217 | CQ61: -48.05352575 | CR61: -86.62717217 | CS61: 46.71559475 | CU61: 12 | CV61: 5 | CW61: ='nn - ranked data - new (37)'!BN61-'nn - ranked data - new (40)'!BN61 -> -833.2271722 | CX61: -485.6394122 | DA61: =AVERAGE('nn - ranked data - new (37)'!AY61:BM61) -> 1001.86 | DB61: 1487.499412
AU62: O | AV62: 13 | AW62: A | AX62: 1 | AY62: 1586.528809 | AZ62: 1500.002456 | BA62: 1451.84893 | BB62: 1451.74893 | BC62: 1403.595404 | BD62: 1269.315525 | BE62: 1269.315525 | BF62: 1182.789171 | BG62: 1134.635646 | BH62: 1134.435646 | BI62: 1134.435646 | BJ62: 1038.528594 | BK62: 990.4750683 | BL62: 990.3750683 | BM62: 990.1750683 | BN62: 1586.528809 | BO62: 15 | BP62: 14 | BQ62: 13 | BR62: 12 | BS62: 11 | BT62: 9 | BU62: 9 | BV62: 8 | BW62: 7 | BX62: 5 | BY62: 5 | BZ62: 4 | CA62: 3 | CB62: 2 | CC62: 1 | CE62: -86.52635358 | CF62: -48.15352575 | CG62: -0.1 | CH62: -48.15352575 | CI62: -134.2798793 | CJ62: 0 | CK62: -86.52635358 | CL62: -48.15352575 | CM62: -0.2 | CN62: 0 | CO62: -95.9070515 | CP62: -48.05352575 | CQ62: -0.1 | CR62: -0.2 | CS62: 44.77782489 | CU62: 13 | CV62: 1 | CW62: ='nn - ranked data - new (37)'!BN62-'nn - ranked data - new (40)'!BN62 -> -584.4288093 | CX62: -234.9536991 | DA62: =AVERAGE('nn - ranked data - new (37)'!AY62:BM62) -> 1000.26 | DB62: 1235.213699
AU63: O | AV63: 13 | AW63: A | AX63: 2 | AY63: 1269.315525 | AZ63: 1230.742697 | BA63: 1115.322576 | BB63: 1038.176102 | BC63: 990.2225764 | BD63: 951.8497486 | BE63: 836.6304465 | BF63: 721.2095073 | BG63: 682.5366794 | BH63: 566.9157402 | BI63: 528.3420937 | BJ63: 480.388568 | BK63: 441.9149216 | BL63: 403.4412752 | BM63: 403.4412752 | BN63: 1269.315525 | BO63: 15 | BP63: 14 | BQ63: 13 | BR63: 12 | BS63: 11 | BT63: 10 | BU63: 9 | BV63: 8 | BW63: 7 | BX63: 6 | BY63: 5 | BZ63: 4 | CA63: 3 | CB63: 1 | CC63: 1 | CE63: -38.57282783 | CF63: -115.4201207 | CG63: -77.14647425 | CH63: -47.95352575 | CI63: -38.37282783 | CJ63: -115.2193021 | CK63: -115.4209393 | CL63: -38.67282783 | CM63: -115.6209393 | CN63: -38.57364642 | CO63: -47.95352575 | CP63: -38.47364642 | CQ63: -38.47364642 | CR63: 0 | CS63: 38.42045765 | CU63: 13 | CV63: 2 | CW63: ='nn - ranked data - new (37)'!BN63-'nn - ranked data - new (40)'!BN63 -> -268.7155249 | CX63: 221.1700178 | DA63: =AVERAGE('nn - ranked data - new (37)'!AY63:BM63) -> 998.5333333 | DB63: 777.3633155
AU64: O | AV64: 13 | AW64: A | AX64: 3 | AY64: 1827.046474 | AZ64: 1788.673646 | BA64: 1788.673646 | BB64: 1788.673646 | BC64: 1740.620121 | BD64: 1740.320121 | BE64: 1692.166595 | BF64: 1605.640241 | BG64: 1567.167414 | BH64: 1566.867414 | BI64: 1518.913888 | BJ64: 1432.387534 | BK64: 1307.688353 | BL64: 1269.315525 | BM64: 1182.789171 | BN64: 1827.046474 | BO64: 15 | BP64: 12 | BQ64: 12 | BR64: 12 | BS64: 11 | BT64: 10 | BU64: 9 | BV64: 8 | BW64: 7 | BX64: 6 | BY64: 5 | BZ64: 4 | CA64: 3 | CB64: 2 | CC64: 1 | CE64: -38.37282783 | CF64: 0 | CG64: 0 | CH64: -48.05352575 | CI64: -0.3 | CJ64: -48.15352575 | CK64: -86.52635358 | CL64: -38.47282783 | CM64: -0.3 | CN64: -47.95352575 | CO64: -86.52635358 | CP64: -124.6991814 | CQ64: -38.37282783 | CR64: -86.52635358 | CS64: 38.94312338 | CU64: 13 | CV64: 3 | CW64: ='nn - ranked data - new (37)'!BN64-'nn - ranked data - new (40)'!BN64 -> -823.6464743 | CX64: -585.6895859 | DA64: =AVERAGE('nn - ranked data - new (37)'!AY64:BM64) -> 1002.106667 | DB64: 1587.796253
AU65: O | AV65: 13 | AW65: A | AX65: 4 | AY65: 1606.440241 | AZ65: 1606.440241 | BA65: 1568.067414 | BB65: 1520.113888 | BC65: 1519.913888 | BD65: 1519.513888 | BE65: 1471.260362 | BF65: 1423.306836 | BG65: 1384.734008 | BH65: 1346.261181 | BI65: 1307.688353 | BJ65: 1307.688353 | BK65: 1269.315525 | BL65: 1230.742697 | BM65: 1230.542697 | BN65: 1606.440241 | BO65: 14 | BP65: 14 | BQ65: 13 | BR65: 12 | BS65: 11 | BT65: 10 | BU65: 9 | BV65: 8 | BW65: 7 | BX65: 6 | BY65: 4 | BZ65: 4 | CA65: 3 | CB65: 2 | CC65: 1 | CE65: 0 | CF65: -38.37282783 | CG65: -47.95352575 | CH65: -0.2 | CI65: -0.4 | CJ65: -48.25352575 | CK65: -47.95352575 | CL65: -38.57282783 | CM65: -38.47282783 | CN65: -38.57282783 | CO65: 0 | CP65: -38.37282783 | CQ65: -38.57282783 | CR65: -0.2 | CS65: 20.98284343 | CU65: 13 | CV65: 4 | CW65: ='nn - ranked data - new (37)'!BN65-'nn - ranked data - new (40)'!BN65 -> -603.5402413 | CX65: -419.2219714 | DA65: =AVERAGE('nn - ranked data - new (37)'!AY65:BM65) -> 1001.58 | DB65: 1420.801971
AU66: O | AV66: 13 | AW66: A | AX66: 5 | AY66: 1403.595404 | AZ66: 1269.315525 | BA66: 1269.315525 | BB66: 1182.789171 | BC66: 1144.215525 | BD66: 1019.014706 | BE66: 1019.014706 | BF66: 1019.014706 | BG66: 884.6340084 | BH66: 759.7331898 | BI66: 721.0595434 | BJ66: 682.3867156 | BK66: 566.9657763 | BL66: 528.3921299 | BM66: 480.4386042 | BN66: 1403.595404 | BO66: 15 | BP66: 13 | BQ66: 13 | BR66: 12 | BS66: 11 | BT66: 8 | BU66: 8 | BV66: 8 | BW66: 7 | BX66: 6 | BY66: 5 | BZ66: 4 | CA66: 3 | CB66: 2 | CC66: 1 | CE66: -134.2798793 | CF66: 0 | CG66: -86.52635358 | CH66: -38.57364642 | CI66: -125.2008186 | CJ66: 0 | CK66: 0 | CL66: -134.3806979 | CM66: -124.9008186 | CN66: -38.67364642 | CO66: -38.67282783 | CP66: -115.4209393 | CQ66: -38.57364642 | CR66: -47.95352575 | CS66: 52.30634884 | CU66: 13 | CV66: =AX66 -> 5 | CW66: ='nn - ranked data - new (37)'!BN66-'nn - ranked data - new (40)'!BN66 -> -402.6954043 | CX66: 69.09431753 | DA66: =AVERAGE('nn - ranked data - new (37)'!AY66:BM66) -> 999.0866667 | DB66: 929.9923491
AU67: O | AV67: 14 | AW67: A | AX67: 1 | AY67: 913.1195173 | AZ67: 874.6466895 | BA67: 826.5931637 | BB67: 730.4861122 | BC67: 682.2325865 | BD67: 634.1790607 | BE67: 547.7518886 | BF67: 547.7518886 | BG67: 499.7983628 | BH67: 451.5448371 | BI67: 451.4448371 | BJ67: 451.4448371 | BK67: 451.4448371 | BL67: 413.0720092 | BM67: 365.1184835 | BN67: =MAX(AY67:BM67) -> 913.1195173 | BO67: 15 | BP67: 14 | BQ67: 13 | BR67: 12 | BS67: 11 | BT67: 10 | BU67: 8 | BV67: 8 | BW67: 7 | BX67: 6 | BY67: 3 | BZ67: 3 | CA67: 3 | CB67: 2 | CC67: 1 | CE67: -38.47282783 | CF67: -48.05352575 | CG67: -96.1070515 | CH67: -48.25352575 | CI67: -48.05352575 | CJ67: -86.42717217 | CK67: 0 | CL67: -47.95352575 | CM67: -48.25352575 | CN67: -0.1 | CO67: 0 | CP67: 0 | CQ67: -38.37282783 | CR67: -47.95352575 | CS67: =STDEV(CE67:CR67) -> 30.48665107 | CU67: =AV67 -> 14 | CV67: 1 | CW67: ='nn - ranked data - new (37)'!BN67-'nn - ranked data - new (40)'!BN67 -> 86.48048267 | CX67: =DA67-DB67 -> 408.6047259 | DA67: =AVERAGE('nn - ranked data - new (37)'!AY67:BM67) -> 997.98 | DB67: =AVERAGE(AY67:BM67) -> 589.3752741
AU68: O | AV68: 14 | AW68: A | AX68: 2 | AY68: 1163.224501 | AZ68: 1086.178027 | BA68: 970.6570877 | BB68: 970.3570877 | BC68: 778.1904927 | BD68: 662.9711907 | BE68: 586.225535 | BF68: 499.7983628 | BG68: 461.125535 | BH68: 461.125535 | BI68: 461.025535 | BJ68: 345.9070515 | BK68: 345.9070515 | BL68: 297.9535257 | BM68: 259.5806979 | BN68: 1163.224501 | BO68: =RANK(AY68,$AY68:$BM68, 1) -> 15 | BP68: 14 | BQ68: 13 | BR68: 12 | BS68: 11 | BT68: 10 | BU68: 9 | BV68: 8 | BW68: 6 | BX68: 6 | BY68: 5 | BZ68: 3 | CA68: 3 | CB68: 2 | CC68: 1 | CE68: -77.04647425 | CF68: -115.5209393 | CG68: -0.3 | CH68: -192.1665949 | CI68: -115.2193021 | CJ68: -76.74565567 | CK68: -86.42717217 | CL68: -38.67282783 | CM68: 0 | CN68: -0.1 | CO68: -115.1184835 | CP68: 0 | CQ68: -47.95352575 | CR68: -38.37282783 | CS68: 57.53772896 | CU68: 14 | CV68: 2 | CW68: ='nn - ranked data - new (37)'!BN68-'nn - ranked data - new (40)'!BN68 -> -162.8245012 | CX68: 374.6381856 | DA68: =AVERAGE('nn - ranked data - new (37)'!AY68:BM68) -> 997.9866667 | DB68: 623.3484811
AU69: O | AV69: 14 | AW69: A | AX69: 3 | AY69: 960.7230792 | AZ69: 864.7160277 | BA69: 826.0431999 | BB69: 701.3440185 | BC69: 662.9711907 | BD69: 547.7518886 | BE69: 499.7983628 | BF69: 499.4983628 | BG69: 413.1720092 | BH69: 413.0720092 | BI69: 336.3263536 | BJ69: 297.9535257 | BK69: 297.9535257 | BL69: 259.5806979 | BM69: 211.6271722 | BN69: 960.7230792 | BO69: 15 | BP69: 14 | BQ69: 13 | BR69: 12 | BS69: 11 | BT69: 10 | BU69: 9 | BV69: 8 | BW69: 7 | BX69: 6 | BY69: 5 | BZ69: 3 | CA69: 3 | CB69: 2 | CC69: 1 | CE69: -96.0070515 | CF69: -38.67282783 | CG69: -124.6991814 | CH69: -38.37282783 | CI69: -115.2193021 | CJ69: -47.95352575 | CK69: -0.3 | CL69: -86.32635358 | CM69: -0.1 | CN69: -76.74565567 | CO69: -38.37282783 | CP69: 0 | CQ69: -38.37282783 | CR69: -47.95352575 | CS69: 40.96460973 | CU69: 14 | CV69: 3 | CW69: ='nn - ranked data - new (37)'!BN69-'nn - ranked data - new (40)'!BN69 -> 38.77692076 | CX69: 478.1112384 | DA69: =AVERAGE('nn - ranked data - new (37)'!AY69:BM69) -> 997.6133333 | DB69: 519.5020949
AU70: O | AV70: 14 | AW70: A | AX70: 4 | AY70: 1019.310613 | AZ70: 855.7361484 | BA70: 817.3633206 | BB70: 778.8904927 | BC70: 701.8440185 | BD70: 701.7440185 | BE70: 624.5983628 | BF70: 586.225535 | BG70: 586.225535 | BH70: 586.225535 | BI70: 499.7983628 | BJ70: 499.4983628 | BK70: 499.4983628 | BL70: 461.025535 | BM70: 413.0720092 | BN70: 1019.310613 | BO70: 15 | BP70: 14 | BQ70: 13 | BR70: 12 | BS70: 11 | BT70: 10 | BU70: 9 | BV70: 6 | BW70: 6 | BX70: 6 | BY70: 5 | BZ70: 3 | CA70: 3 | CB70: 2 | CC70: 1 | CE70: -163.574465 | CF70: -38.37282783 | CG70: -38.47282783 | CH70: -77.04647425 | CI70: -0.1 | CJ70: -77.14565567 | CK70: -38.37282783 | CL70: 0 | CM70: 0 | CN70: -86.42717217 | CO70: -0.3 | CP70: 0 | CQ70: -38.47282783 | CR70: -47.95352575 | CS70: 46.46502015 | CU70: 14 | CV70: 4 | CW70: ='nn - ranked data - new (37)'!BN70-'nn - ranked data - new (40)'!BN70 -> -19.11061342 | CX70: 356.3162525 | DA70: =AVERAGE('nn - ranked data - new (37)'!AY70:BM70) -> 998.3866667 | DB70: 642.0704142
AU71: O | AV71: 14 | AW71: A | AX71: 5 | AY71: 1297.854344 | AZ71: 1259.281517 | BA71: 1172.955163 | BB71: 1047.855163 | BC71: 922.7543443 | BD71: 836.2271722 | BE71: 788.0736464 | BF71: 672.6527072 | BG71: 586.225535 | BH71: 586.225535 | BI71: 499.7983628 | BJ71: 499.4983628 | BK71: 451.5448371 | BL71: 451.4448371 | BM71: 451.4448371 | BN71: 1297.854344 | BO71: 15 | BP71: 14 | BQ71: 13 | BR71: 12 | BS71: 11 | BT71: 10 | BU71: 9 | BV71: 8 | BW71: 6 | BX71: 6 | BY71: 5 | BZ71: 4 | CA71: 3 | CB71: 1 | CC71: 1 | CE71: -38.57282783 | CF71: -86.32635358 | CG71: -125.1 | CH71: -125.1008186 | CI71: -86.52717217 | CJ71: -48.15352575 | CK71: -115.4209393 | CL71: -86.42717217 | CM71: 0 | CN71: -86.42717217 | CO71: -0.3 | CP71: -47.95352575 | CQ71: -0.1 | CR71: 0 | CS71: 47.5838624 | CU71: 14 | CV71: 5 | CW71: ='nn - ranked data - new (37)'!BN71-'nn - ranked data - new (40)'!BN71 -> -296.9543443 | CX71: 230.3242424 | DA71: =AVERAGE('nn - ranked data - new (37)'!AY71:BM71) -> 998.58 | DB71: 768.2557576
AU72: O | AV72: 15 | AW72: A | AX72: 1 | AY72: 1413.472828 | AZ72: 1365.219302 | BA72: 1269.312251 | BB72: 1220.958725 | BC72: 1134.632371 | BD72: 1086.678846 | BE72: 1086.478846 | BF72: 999.9524919 | BG72: 951.8989662 | BH72: 951.7989662 | BI72: 951.7989662 | BJ72: 951.7989662 | BK72: 913.3261383 | BL72: 865.1726126 | BM72: 749.6533105 | BN72: 1413.472828 | BO72: 15 | BP72: 14 | BQ72: 13 | BR72: 12 | BS72: 11 | BT72: 10 | BU72: 9 | BV72: 8 | BW72: 7 | BX72: 4 | BY72: 4 | BZ72: 4 | CA72: 3 | CB72: 2 | CC72: 1 | CE72: -48.25352575 | CF72: -95.9070515 | CG72: -48.35352575 | CH72: -86.32635358 | CI72: -47.95352575 | CJ72: -0.2 | CK72: -86.52635358 | CL72: -48.05352575 | CM72: -0.1 | CN72: 0 | CO72: 0 | CP72: -38.47282783 | CQ72: -48.15352575 | CR72: -115.5193021 | CS72: 38.31106074 | CU72: 15 | CV72: 1 | CW72: ='nn - ranked data - new (37)'!BN72-'nn - ranked data - new (40)'!BN72 -> -411.7728278 | CX72: -61.03023904 | DA72: =AVERAGE('nn - ranked data - new (37)'!AY72:BM72) -> 999.78 | DB72: 1060.810239
AU73: O | AV73: 15 | AW73: A | AX73: 2 | AY73: 990.371794 | AZ73: 951.8989662 | BA73: 836.4788455 | BB73: 721.2595434 | BC73: 682.8867156 | BD73: 529.0929485 | BE73: 490.4193021 | BF73: 451.7464743 | BG73: 298.0535257 | BH73: 297.9535257 | BI73: 259.5806979 | BJ73: 259.5806979 | BK73: 259.5806979 | BL73: 259.5806979 | BM73: 259.5806979 | BN73: 990.371794 | BO73: 15 | BP73: 14 | BQ73: 13 | BR73: 12 | BS73: 11 | BT73: 10 | BU73: 9 | BV73: 8 | BW73: 7 | BX73: 6 | BY73: 1 | BZ73: 1 | CA73: 1 | CB73: 1 | CC73: 1 | CE73: -38.47282783 | CF73: -115.4201207 | CG73: -115.2193021 | CH73: -38.37282783 | CI73: -153.7937671 | CJ73: -38.67364642 | CK73: -38.67282783 | CL73: -153.6929485 | CM73: -0.1 | CN73: -38.37282783 | CO73: 0 | CP73: 0 | CQ73: 0 | CR73: 0 | CS73: 57.60666458 | CU73: 15 | CV73: 2 | CW73: ='nn - ranked data - new (37)'!BN73-'nn - ranked data - new (40)'!BN73 -> 9.228205993 | CX73: 494.4023246 | DA73: =AVERAGE('nn - ranked data - new (37)'!AY73:BM73) -> 997.6066667 | DB73: 503.204342
AU74: O | AV74: 15 | AW74: A | AX74: 3 | AY74: 1490.718483 | AZ74: 1442.564958 | BA74: 1346.457906 | BB74: 1346.157906 | BC74: 1298.104381 | BD74: 1249.950855 | BE74: 1211.578027 | BF74: 1163.424501 | BG74: 1125.051673 | BH74: 1124.751673 | BI74: 990.371794 | BJ74: 951.8989662 | BK74: 913.4261383 | BL74: 836.6804827 | BM74: 836.6804827 | BN74: 1490.718483 | BO74: 15 | BP74: 14 | BQ74: 13 | BR74: 12 | BS74: 11 | BT74: 10 | BU74: 9 | BV74: 8 | BW74: 7 | BX74: 6 | BY74: 5 | BZ74: 4 | CA74: 3 | CB74: 1 | CC74: 1 | CE74: -48.15352575 | CF74: -96.1070515 | CG74: -0.3 | CH74: -48.05352575 | CI74: -48.15352575 | CJ74: -38.37282783 | CK74: -48.15352575 | CL74: -38.37282783 | CM74: -0.3 | CN74: -134.3798793 | CO74: -38.47282783 | CP74: -38.47282783 | CQ74: -76.74565567 | CR74: 0 | CS74: 37.00373361 | CU74: 15 | CV74: 3 | CW74: ='nn - ranked data - new (37)'!BN74-'nn - ranked data - new (40)'!BN74 -> -488.1184835 | CX74: -154.6412152 | DA74: =AVERAGE('nn - ranked data - new (37)'!AY74:BM74) -> 1000.546667 | DB74: 1155.187882
AU75: O | AV75: 15 | AW75: A | AX75: 4 | AY75: 1125.451673 | AZ75: 1125.351673 | BA75: 1125.051673 | BB75: 1077.098148 | BC75: 1029.144622 | BD75: 990.571794 | BE75: 990.371794 | BF75: 951.8989662 | BG75: 951.7989662 | BH75: 913.4261383 | BI75: 759.7331898 | BJ75: 721.2595434 | BK75: 720.9595434 | BL75: 720.7595434 | BM75: 682.2867156 | BN75: 1125.451673 | BO75: 15 | BP75: 14 | BQ75: 13 | BR75: 12 | BS75: 11 | BT75: 10 | BU75: 9 | BV75: 8 | BW75: 7 | BX75: 6 | BY75: 5 | BZ75: 4 | CA75: 3 | CB75: 2 | CC75: 1 | CE75: -0.1 | CF75: -0.3 | CG75: -47.95352575 | CH75: -47.95352575 | CI75: -38.57282783 | CJ75: -0.2 | CK75: -38.47282783 | CL75: -0.1 | CM75: -38.37282783 | CN75: -153.6929485 | CO75: -38.47364642 | CP75: -0.3 | CQ75: -0.2 | CR75: -38.47282783 | CS75: 40.75586975 | CU75: 15 | CV75: 4 | CW75: ='nn - ranked data - new (37)'!BN75-'nn - ranked data - new (40)'!BN75 -> -124.4516733 | CX75: 73.67573441 | DA75: =AVERAGE('nn - ranked data - new (37)'!AY75:BM75) -> 999.3533333 | DB75: 925.6775989
AU76: O | AV76: 15 | AW76: A | AX76: 5 | AY76: 1519.213888 | AZ76: 1423.306836 | BA76: 1423.006836 | BB76: 1375.053311 | BC76: 1288.426138 | BD76: 1202.099785 | BE76: 1086.678846 | BF76: 1086.378846 | BG76: 951.9989662 | BH76: 951.8989662 | BI76: 913.3253198 | BJ76: 836.3780269 | BK76: 836.3780269 | BL76: 682.5842598 | BM76: 644.0106134 | BN76: 1519.213888 | BO76: 15 | BP76: 14 | BQ76: 13 | BR76: 12 | BS76: 11 | BT76: 10 | BU76: 9 | BV76: 8 | BW76: 7 | BX76: 6 | BY76: 5 | BZ76: 3 | CA76: 3 | CB76: 2 | CC76: 1 | CE76: -95.9070515 | CF76: -0.3 | CG76: -47.95352575 | CH76: -86.62717217 | CI76: -86.32635358 | CJ76: -115.4209393 | CK76: -0.3 | CL76: -134.3798793 | CM76: -0.1 | CN76: -38.57364642 | CO76: -76.94729284 | CP76: 0 | CQ76: -153.7937671 | CR76: -38.57364642 | CS76: 52.38224409 | CU76: 15 | CV76: 5 | CW76: ='nn - ranked data - new (37)'!BN76-'nn - ranked data - new (40)'!BN76 -> -517.5138878 | CX76: -81.43591094 | DA76: =AVERAGE('nn - ranked data - new (37)'!AY76:BM76) -> 999.9466667 | DB76: 1081.382578
BO77: =AVERAGE(BO2:BO76) -> 14.78666667 | BP77: =AVERAGE(BP2:BP76) -> 13.86666667 | BQ77: 12.61333333 | BR77: 11.69333333 | BS77: 10.74666667 | BT77: 9.48 | BU77: 8.613333333 | BV77: 7.546666667 | BW77: 6.506666667 | BX77: 5.64 | BY77: 4.546666667 | BZ77: 3.426666667 | CA77: 2.6 | CB77: 1.76 | CC77: 1
BO78: =STDEV(BO2:BO76) -> 0.5993990985 | BP78: =STDEV(BP2:BP76) -> 0.4745789979 | BQ78: 1.469448631 | BR78: 1.335313844 | BS78: 1.197896053 | BT78: 1.596956565 | BU78: 1.441595712 | BV78: 1.32841435 | BW78: 1.201050591 | BX78: 0.9675826663 | BY78: 1.130574278 | BZ78: 1.028950309 | CA78: 0.7352146221 | CB78: 0.4299591433 | CC78: 0

Sheet nn - ranked data - new (39)
A1: irány | B1: 0 | C1: 0 | D1: 0 | E1: 0 | F1: 0 | M1: súlyok | U1: 2. layer vektor | AK1: 2 layer súlyok | AS1: Futtat | AY1: 1 | AZ1: 2 | BA1: 3 | BB1: 4 | BC1: 5 | BD1: 6 | BE1: 7 | BF1: 8 | BG1: 9 | BH1: 10 | BI1: 11 | BJ1: 12 | BK1: 13 | BL1: 14 | BM1: 15 | BN1: max | BO1: Ranking | CE1: O2 - O1 | CF1: O3 - O2 | CG1: O4 - O3 | CH1: O5 - O4 | CI1: O6 - O5 | CJ1: O7 - O6 | CK1: O8 - O7 | CL1: O9 - O8 | CM1: O10 - O9 | CN1: O11 - O10 | CO1: O12 - O11 | CP1: O13 - 12 | CQ1: O14 - O13 | CR1: O15 - O14
A2: rnd(1-100) | B2: A1 | C2: A2 | D2: A3 | E2: A4 | F2: A5 | H2: rank = 0 | I2: =B2 -> A1 | J2: A2 | K2: A3 | L2: A4 | M2: A5 | N2: w0 | O2: w1 | P2: w2 | Q2: w3 | R2: w4 | S2: w5 | T2: =AK2 -> w6 | U2: O1 | V2: O2 | W2: O3 | X2: O4 | Y2: O5 | Z2: O6 | AA2: O7 | AB2: O8 | AC2: O9 | AD2: O10 | AE2: O11 | AF2: O12 | AG2: O13 | AH2: O14 | AI2: O15 | AK2: w6 | AN2: Y0 | AO2: Ybecslés | AP2: eltérés | AQ2: MAE | AU2: O | AV2: 1 | AW2: A | AX2: 1 | AY2: 1318.673433 | AZ2: 1277.355733 | BA2: 1277.155733 | BB2: 1235.638032 | BC2: 1194.120332 | BD2: 1152.702631 | BE2: 1152.602631 | BF2: 1069.86723 | BG2: 1069.56723 | BH2: 1069.56723 | BI2: 978.7479598 | BJ2: 895.8125587 | BK2: 813.0771576 | BL2: 812.7771576 | BM2: 812.7771576 | BN2: =MAX(AY2:BM2) -> 1318.673433 | BO2: =RANK(AY2,$AY2:$BM2, 1) -> 15 | BP2: =RANK(AZ2,$AY2:$BM2, 1) -> 14 | BQ2: 13 | BR2: 12 | BS2: 11 | BT2: 10 | BU2: 9 | BV2: =RANK(BF2,$AY2:$BM2, 1) -> 8 | BW2: 6 | BX2: 6 | BY2: 5 | BZ2: 4 | CA2: 3 | CB2: 1 | CC2: 1 | CE2: =AZ2-AY2 -> -41.31770053 | CF2: =BA2-AZ2 -> -0.2 | CG2: -41.51770053 | CH2: -41.51770053 | CI2: =BD2-BC2 -> -41.41770053 | CJ2: -0.1 | CK2: -82.73540107 | CL2: -0.3 | CM2: =BH2-BG2 -> 0 | CN2: -90.81927037 | CO2: -82.93540107 | CP2: -82.73540107 | CQ2: -0.3 | CR2: =BM2-BL2 -> 0 | CS2: =STDEV(CE2:CR2) -> 36.59147895
A3: O1 | B3: 78 | C3: 50 | D3: 75 | E3: 79 | F3: 10 | H3: =A3 -> O1 | I3: 6 | J3: 8 | K3: 4 | L3: 3 | M3: 13 | N3: 0.1 | O3: 0.17837822 | P3: 0.13921523 | Q3: 0.15091406 | R3: 0.15942907 | S3: 0.1297149213 | T3: 259.6402063 | U3: =$I$3*$O3+$J$3*$P3+$K$3*$Q3+$L$3*$R3+$M$3*$S3 -> 4.952228587 | V3: =$I$4*$O3+$J$4*$P3+$K$4*$Q3+$L$4*$R3+$M$4*$S3 -> 6.626330919 | W3: =$I$5*$O3+$J$5*$P3+$K$5*$Q3+$L$5*$R3+$M$5*$S3 -> 5.242739887 | X3: =$I$6*$O3+$J$6*$P3+$K$6*$Q3+$L$6*$R3+$M$6*$S3 -> 7.05292711 | Y3: =$I$7*$O3+$J$7*$P3+$K$7*$Q3+$L$7*$R3+$M$7*$S3 -> 4.928085173 | Z3: =$I$8*$O3+$J$8*$P3+$K$8*$Q3+$L$8*$R3+$M$8*$S3 -> 4.960241175 | AA3: =$I$9*$O3+$J$9*$P3+$K$9*$Q3+$L$9*$R3+$M$9*$S3 -> 5.3514932 | AB3: =$I$10*$O3+$J$10*$P3+$K$10*$Q3+$L$10*$R3+$M$10*$S3 -> 4.551539395 | AC3: =$I$11*$O3+$J$11*$P3+$K$11*$Q3+$L$11*$R3+$M$11*$S3 -> 6.019146921 | AD3: =$I$12*$O3+$J$12*$P3+$K$12*$Q3+$L$12*$R3+$M$12*$S3 -> 6.174940639 | AE3: =$I$13*$O3+$J$13*$P3+$K$13*$Q3+$L$13*$R3+$M$13*$S3 -> 7.275799826 | AF3: =$I$14*$O3+$J$14*$P3+$K$14*$Q3+$L$14*$R3+$M$14*$S3 -> 4.753346936 | AG3: =$I$15*$O3+$J$15*$P3+$K$15*$Q3+$L$15*$R3+$M$15*$S3 -> 5.962382284 | AH3: =$I$16*$O3+$J$16*$P3+$K$16*$Q3+$L$16*$R3+$M$16*$S3 -> 6.956108144 | AI3: =$I$17*$O3+$J$17*$P3+$K$17*$Q3+$L$17*$R3+$M$17*$S3 -> 6.267384933 | AK3: =T3 -> 259.6402063 | AM3: O1 | AN3: 1000 | AO3: =U33 -> 1152.702631 | AP3: =AN3-AO3 -> -152.7026312 | AQ3: =ABS(AP3) -> 152.7026312 | AU3: O | AV3: 1 | AW3: A | AX3: 2 | AY3: 1607.487009 | AZ3: 1482.687009 | BA3: 1482.687009 | BB3: 1448.606279 | BC3: 1346.16409 | BD3: 1345.96409 | BE3: 1152.802631 | BF3: 1152.702631 | BG3: 1152.602631 | BH3: 1103.201061 | BI3: 985.2380323 | BJ3: 852.354163 | BK3: 704.0494534 | BL3: 703.9494534 | BM3: 654.5478836 | BN3: =MAX(AY3:BM3) -> 1607.487009 | BO3: =RANK(AY3,$AY3:$BM3, 1) -> 15 | BP3: 13 | BQ3: 13 | BR3: 12 | BS3: 11 | BT3: 10 | BU3: 9 | BV3: 8 | BW3: 7 | BX3: 6 | BY3: 5 | BZ3: 4 | CA3: 3 | CB3: 2 | CC3: 1 | CE3: =AZ3-AY3 -> -124.8 | CF3: 0 | CG3: -34.08072963 | CH3: -102.4421889 | CI3: -0.2 | CJ3: -193.1614593 | CK3: -0.1 | CL3: -0.1 | CM3: -49.40156984 | CN3: -117.9630291 | CO3: -132.8838693 | CP3: -148.3047095 | CQ3: -0.1 | CR3: -49.40156984 | CS3: =STDEV(CE3:CR3) -> 66.86800403
A4: O2 | B4: 45 | C4: 50 | D4: 83 | E4: 50 | F4: 6 | H4: =A4 -> O2 | I4: 12 | J4: 8 | K4: 1 | L4: 8 | M4: 15 | N4: 49.40156984 | O4: 0.1 | P4: 0.46503866 | Q4: 0.43478802 | R4: 0.19912481 | S4: 0.1 | T4: 409.0974374 | U4: =$I$3*$O4+$J$3*$P4+$K$3*$Q4+$L$3*$R4+$M$3*$S4 -> 7.95683579 | V4: =$I$4*$O4+$J$4*$P4+$K$4*$Q4+$L$4*$R4+$M$4*$S4 -> 8.44809578 | W4: =$I$5*$O4+$J$5*$P4+$K$5*$Q4+$L$5*$R4+$M$5*$S4 -> 9.16957274 | X4: =$I$6*$O4+$J$6*$P4+$K$6*$Q4+$L$6*$R4+$M$6*$S4 -> 12.7403792 | Y4: =$I$7*$O4+$J$7*$P4+$K$7*$Q4+$L$7*$R4+$M$7*$S4 -> 9.96381353 | Z4: =$I$8*$O4+$J$8*$P4+$K$8*$Q4+$L$8*$R4+$M$8*$S4 -> 4.72902881 | AA4: =$I$9*$O4+$J$9*$P4+$K$9*$Q4+$L$9*$R4+$M$9*$S4 -> 9.4912448 | AB4: =$I$10*$O4+$J$10*$P4+$K$10*$Q4+$L$10*$R4+$M$10*$S4 -> 10.17469282 | AC4: =$I$11*$O4+$J$11*$P4+$K$11*$Q4+$L$11*$R4+$M$11*$S4 -> 12.35246843 | AD4: =$I$12*$O4+$J$12*$P4+$K$12*$Q4+$L$12*$R4+$M$12*$S4 -> 11.39927105 | AE4: =$I$13*$O4+$J$13*$P4+$K$13*$Q4+$L$13*$R4+$M$13*$S4 -> 12.61226784 | AF4: =$I$14*$O4+$J$14*$P4+$K$14*$Q4+$L$14*$R4+$M$14*$S4 -> 7.4538431 | AG4: =$I$15*$O4+$J$15*$P4+$K$15*$Q4+$L$15*$R4+$M$15*$S4 -> 10.14069347 | AH4: =$I$16*$O4+$J$16*$P4+$K$16*$Q4+$L$16*$R4+$M$16*$S4 -> 10.95419833 | AI4: =$I$17*$O4+$J$17*$P4+$K$17*$Q4+$L$17*$R4+$M$17*$S4 -> 9.64053204 | AK4: =T4 -> 409.0974374 | AM4: O2 | AN4: 1000 | AO4: =V33 -> 710.3349687 | AP4: =AN4-AO4 -> 289.6650313 | AQ4: =ABS(AP4) -> 289.6650313 | AU4: O | AV4: 1 | AW4: A | AX4: 3 | AY4: 1285.439602 | AZ4: 1285.039602 | BA4: 1194.120332 | BB4: 1152.702631 | BC4: 1152.602631 | BD4: 1061.783361 | BE4: 970.7640905 | BF4: 871.9609508 | BG4: 822.4593809 | BH4: 723.5562413 | BI4: 632.7369709 | BJ4: 466.3192704 | BK4: 432.0385407 | BL4: 349.3031397 | BM4: 250.5 | BN4: 1285.439602 | BO4: =RANK(AY4,$AY4:$BM4, 1) -> 15 | BP4: 14 | BQ4: 13 | BR4: 12 | BS4: 11 | BT4: 10 | BU4: 9 | BV4: 8 | BW4: 7 | BX4: 6 | BY4: 5 | BZ4: 4 | CA4: 3 | CB4: 2 | CC4: 1 | CE4: -0.4 | CF4: -90.91927037 | CG4: -41.41770053 | CH4: -0.1 | CI4: -90.81927037 | CJ4: -91.01927037 | CK4: -98.80313968 | CL4: -49.50156984 | CM4: -98.90313968 | CN4: -90.81927037 | CO4: -166.4177005 | CP4: -34.28072963 | CQ4: -82.73540107 | CR4: -98.80313968 | CS4: 44.48602103
A5: O3 | B5: 81 | C5: 60 | D5: 50 | E5: 74 | F5: 10 | H5: O3 | I5: 4 | J5: 5 | K5: 10 | L5: 4 | M5: 13 | N5: 0.1 | O5: 0.1 | P5: 0.1 | Q5: 0.10348205 | R5: 0.1 | S5: 0.1 | T5: 0.1 | U5: =$I$3*$O5+$J$3*$P5+$K$3*$Q5+$L$3*$R5+$M$3*$S5 -> 3.4139282 | V5: =$I$4*$O5+$J$4*$P5+$K$4*$Q5+$L$4*$R5+$M$4*$S5 -> 4.40348205 | W5: =$I$5*$O5+$J$5*$P5+$K$5*$Q5+$L$5*$R5+$M$5*$S5 -> 3.6348205 | X5: 4.65223075 | Y5: 3.2348205 | Z5: 3.20348205 | AA5: 3.6278564 | AB5: 3.11044615 | AC5: 3.93133845 | AD5: 4.14526665 | AE5: 4.7208923 | AF5: 3.1139282 | AG5: 3.8487487 | AH5: 4.62437435 | AI5: 4.1417846 | AK5: 0.1 | AM5: O3 | AN5: 1000 | AO5: =W33 -> 1073.106279 | AP5: -73.10627935 | AQ5: =ABS(AP5) -> 73.10627935 | AU5: O | AV5: 1 | AW5: A | AX5: 4 | AY5: 1194.320332 | AZ5: 1194.120332 | BA5: 1152.702631 | BB5: 1152.602631 | BC5: 1152.502631 | BD5: 1102.801061 | BE5: 1102.801061 | BF5: 1102.701061 | BG5: 1027.202631 | BH5: 943.5203317 | BI5: 893.8187619 | BJ5: 802.9994915 | BK5: 802.8994915 | BL5: 669.9156222 | BM5: 620.5140524 | BN5: 1194.320332 | BO5: 15 | BP5: 14 | BQ5: 13 | BR5: 12 | BS5: 11 | BT5: 9 | BU5: 9 | BV5: 8 | BW5: 7 | BX5: 6 | BY5: 5 | BZ5: 4 | CA5: 3 | CB5: 2 | CC5: 1 | CE5: -0.2 | CF5: -41.41770053 | CG5: -0.1 | CH5: -0.1 | CI5: -49.70156984 | CJ5: 0 | CK5: -0.1 | CL5: -75.49843016 | CM5: -83.68229947 | CN5: -49.70156984 | CO5: -90.81927037 | CP5: -0.1 | CQ5: -132.9838693 | CR5: -49.40156984 | CS5: 43.15801475
A6: O4 | B6: 40 | C6: 50 | D6: 32 | E6: 80 | F6: 45 | H6: O4 | I6: 13 | J6: 8 | K6: 15 | L6: 2 | M6: 8 | N6: 34.08072963 | O6: 0.1 | P6: 0.63917863 | Q6: 0.17624931 | R6: 0.2369472723 | S6: 0.6100153165 | T6: 327.0623564 | U6: 15.05946721 | V6: =$I$4*$O6+$J$4*$P6+$K$4*$Q6+$L$4*$R6+$M$4*$S6 -> 17.53548628 | W6: 14.23637445 | X6: 14.41118577 | Y6: 9.980689135 | Z6: 11.15091627 | AA6: 12.90327197 | AB6: 14.27817228 | AC6: 13.0642122 | AD6: 12.87227185 | AE6: 16.35165144 | AF6: 10.29433424 | AG6: 8.71702946 | AH6: 16.56376269 | AI6: 12.28908032 | AK6: 327.0623564 | AM6: O4 | AN6: 1000 | AO6: =X33 -> 261.5229185 | AP6: 738.4770815 | AQ6: 738.4770815 | AU6: O | AV6: 1 | AW6: A | AX6: 5 | AY6: 1825.59843 | AZ6: 1784.28073 | BA6: 1750.2 | BB6: 1750.2 | BC6: 1716.11927 | BD6: 1640.72084 | BE6: 1606.640111 | BF6: 1515.92084 | BG6: 1481.840111 | BH6: 1337.980221 | BI6: 1337.880221 | BJ6: 1194.120332 | BK6: 1152.702631 | BL6: 1152.602631 | BM6: 1111.284931 | BN6: 1825.59843 | BO6: 15 | BP6: 14 | BQ6: 12 | BR6: 12 | BS6: 11 | BT6: 10 | BU6: 9 | BV6: 8 | BW6: 7 | BX6: 6 | BY6: 5 | BZ6: 4 | CA6: 3 | CB6: 2 | CC6: 1 | CE6: -41.31770053 | CF6: =BA6-AZ6 -> -34.08072963 | CG6: 0 | CH6: -34.08072963 | CI6: -75.39843016 | CJ6: -34.08072963 | CK6: -90.71927037 | CL6: -34.08072963 | CM6: -143.8598894 | CN6: -0.1 | CO6: -143.7598894 | CP6: -41.41770053 | CQ6: -0.1 | CR6: -41.31770053 | CS6: 46.91008921
A7: O5 | B7: 67 | C7: 50 | D7: 50 | E7: 72 | F7: 84 | H7: O5 | I7: 7 | J7: 8 | K7: 10 | L7: 5 | M7: 2 | N7: 41.31770053 | O7: 0.5611306 | P7: 0.1 | Q7: 0.39463338 | R7: 0.1345434012 | S7: 0.441996228 | T7: 0.1 | U7: 11.89489829 | V7: 15.63449121 | W7: 12.97498077 | X7: 17.81925513 | Y7: 10.23095746 | Z7: 14.55009052 | AA7: 9.637775082 | AB7: 6.94253726 | AC7: 11.28567586 | AD7: 11.76461975 | AE7: 14.90995703 | AF7: 8.708688475 | AG7: 12.62783442 | AH7: 14.95454498 | AI7: 15.48208545 | AK7: 0.1 | AM7: O5 | AN7: 1000 | AO7: =Y33 -> 1370.65518 | AP7: -370.6551799 | AQ7: 370.6551799 | AU7: O | AV7: 2 | AW7: A | AX7: 1 | AY7: 1299.413544 | AZ7: 1257.995843 | BA7: 1132.795843 | BB7: 1132.795843 | BC7: 1091.078143 | BD7: 1008.442742 | BE7: 967.0250412 | BF7: 876.2057709 | BG7: 876.0057709 | BH7: 875.6057709 | BI7: 751.6526693 | BJ7: 710.3349687 | BK7: 710.3349687 | BL7: 710.2349687 | BM7: 709.9349687 | BN7: 1299.413544 | BO7: 15 | BP7: 14 | BQ7: 12 | BR7: 12 | BS7: 11 | BT7: 10 | BU7: 9 | BV7: 8 | BW7: 7 | BX7: 6 | BY7: 5 | BZ7: 3 | CA7: 3 | CB7: 2 | CC7: 1 | CE7: -41.41770053 | CF7: -125.2 | CG7: 0 | CH7: -41.71770053 | CI7: -82.63540107 | CJ7: -41.41770053 | CK7: -90.81927037 | CL7: -0.2 | CM7: -0.4 | CN7: -123.9531016 | CO7: -41.31770053 | CP7: 0 | CQ7: -0.1 | CR7: -0.3 | CS7: 46.55391833
A8: O6 | B8: 26 | C8: 83 | D8: 83 | E8: 94 | F8: 29 | H8: O6 | I8: 15 | J8: 3 | K8: 1 | L8: 1 | M8: 12 | AM8: O6 | AN8: 1000 | AO8: =Z33 -> 1400.298506 | AP8: -400.2985063 | AQ8: 400.2985063 | AU8: O | AV8: 2 | AW8: A | AX8: 2 | AY8: 1131.138617 | AZ8: 1055.740187 | BA8: 987.4787275 | BB8: 953.0979978 | BC8: 918.9172682 | BD8: 869.2156984 | BE8: 710.3349687 | BF8: 710.3349687 | BG8: 710.3349687 | BH8: 660.9333989 | BI8: 561.8302592 | BJ8: 413.4255497 | BK8: 413.3255497 | BL8: 363.9239799 | BM8: 314.52241 | BN8: 1131.138617 | BO8: 15 | BP8: 14 | BQ8: 13 | BR8: 12 | BS8: 11 | BT8: 10 | BU8: 7 | BV8: 7 | BW8: 7 | BX8: 6 | BY8: 5 | BZ8: 4 | CA8: 3 | CB8: 2 | CC8: 1 | CE8: -75.39843016 | CF8: -68.26145926 | CG8: -34.38072963 | CH8: -34.18072963 | CI8: -49.70156984 | CJ8: -158.8807296 | CK8: 0 | CL8: 0 | CM8: -49.40156984 | CN8: -99.10313968 | CO8: -148.4047095 | CP8: -0.1 | CQ8: -49.40156984 | CR8: -49.40156984 | CS8: 49.56905249
A9: O7 | B9: 97 | C9: 60 | D9: 70 | E9: 33 | F9: 45 | H9: O7 | I9: 1 | J9: 5 | K9: 8 | L9: 14 | M9: 8 | AM9: O7 | AN9: 1000 | AO9: =AA33 -> 1339.772372 | AP9: -339.772372 | AQ9: 339.772372 | AU9: O | AV9: 2 | AW9: A | AX9: 3 | AY9: 710.3349687 | AZ9: 710.3349687 | BA9: 660.9333989 | BB9: 561.7302592 | BC9: 413.4255497 | BD9: 413.3255497 | BE9: 322.6062794 | BF9: 273.2047095 | BG9: 273.2047095 | BH9: 223.8031397 | BI9: 125 | BJ9: 125 | BK9: 125 | BL9: 125 | BM9: 125 | BN9: 710.3349687 | BO9: 14 | BP9: 14 | BQ9: 13 | BR9: 12 | BS9: 11 | BT9: 10 | BU9: 9 | BV9: 7 | BW9: 7 | BX9: 6 | BY9: 1 | BZ9: 1 | CA9: 1 | CB9: 1 | CC9: 1 | CE9: 0 | CF9: -49.40156984 | CG9: -99.20313968 | CH9: -148.3047095 | CI9: -0.1 | CJ9: -90.71927037 | CK9: -49.40156984 | CL9: 0 | CM9: -49.40156984 | CN9: -98.80313968 | CO9: 0 | CP9: 0 | CQ9: 0 | CR9: 0 | CS9: 50.13559064
A10: O8 | B10: 95 | C10: 14 | D10: 76 | E10: 63 | F10: 66 | H10: O8 | I10: 3 | J10: 15 | K10: 3 | L10: 6 | M10: 4 | AM10: O8 | AN10: 1000 | AO10: =AB33 -> 1123.659305 | AP10: -123.6593048 | AQ10: 123.6593048 | AU10: O | AV10: 2 | AW10: A | AX10: 4 | AY10: 1002.052669 | AZ10: 1002.052669 | BA10: 919.3172682 | BB10: 801.5542391 | BC10: 801.4542391 | BD10: 751.6526693 | BE10: 710.3349687 | BF10: 710.3349687 | BG10: 710.3349687 | BH10: 710.3349687 | BI10: 709.9349687 | BJ10: 660.4333989 | BK10: 660.3333989 | BL10: 561.5302592 | BM10: 561.5302592 | BN10: 1002.052669 | BO10: 14 | BP10: 14 | BQ10: 13 | BR10: 12 | BS10: 11 | BT10: 10 | BU10: 6 | BV10: 6 | BW10: 6 | BX10: 6 | BY10: 5 | BZ10: 4 | CA10: 3 | CB10: 1 | CC10: 1 | CE10: 0 | CF10: -82.73540107 | CG10: -117.7630291 | CH10: -0.1 | CI10: -49.80156984 | CJ10: -41.31770053 | CK10: 0 | CL10: 0 | CM10: 0 | CN10: -0.4 | CO10: -49.50156984 | CP10: -0.1 | CQ10: -98.80313968 | CR10: 0 | CS10: 42.29188324
A11: O9 | B11: 50 | C11: 40 | D11: 58 | E11: 53 | F11: 90 | H11: O9 | I11: 9 | J11: 13 | K11: 9 | L11: 7 | M11: 1 | AM11: O9 | AN11: 1000 | AO11: =AC33 -> 876.7452524 | AP11: 123.2547476 | AQ11: 123.2547476 | AU11: O | AV11: 2 | AW11: A | AX11: 5 | AY11: 1708.682299 | AZ11: 1667.264599 | BA11: 1591.366169 | BB11: 1557.185439 | BC11: 1523.00471 | BD11: 1432.085439 | BE11: 1315.369308 | BF11: 1212.92712 | BG11: 1130.291718 | BH11: 1027.84953 | BI11: 944.1672301 | BJ11: 944.0672301 | BK11: 902.4495296 | BL11: 751.6526693 | BM11: 710.3349687 | BN11: 1708.682299 | BO11: 15 | BP11: 14 | BQ11: 13 | BR11: 12 | BS11: 11 | BT11: 10 | BU11: 9 | BV11: 8 | BW11: 7 | BX11: 6 | BY11: 5 | BZ11: 4 | CA11: 3 | CB11: 2 | CC11: 1 | CE11: -41.41770053 | CF11: -75.89843016 | CG11: -34.18072963 | CH11: -34.18072963 | CI11: -90.91927037 | CJ11: -116.7161307 | CK11: -102.4421889 | CL11: -82.63540107 | CM11: -102.4421889 | CN11: -83.68229947 | CO11: -0.1 | CP11: -41.61770053 | CQ11: -150.7968603 | CR11: -41.31770053 | CS11: 40.67504384
A12: O10 | B12: 96 | C12: 66 | D12: 44 | E12: 12 | F12: 47 | H12: O10 | I12: 2 | J12: 4 | K12: 13 | L12: 15 | M12: 7 | AM12: O10 | AN12: 1000 | AO12: =AD33 -> 952.690581 | AP12: 47.30941903 | AQ12: 47.30941903 | AU12: O | AV12: 3 | AW12: A | AX12: 1 | AY12: 1197.659381 | AZ12: 1156.14168 | BA12: 1114.52398 | BB12: 1073.106279 | BC12: 1038.92555 | BD12: 1004.84482 | BE12: 963.3271196 | BF12: 831.2901487 | BG12: 699.0531778 | BH12: 698.6531778 | BI12: 698.6531778 | BJ12: 649.0516079 | BK12: 573.6531778 | BL12: 524.0516079 | BM12: 474.3500381 | BN12: 1197.659381 | BO12: 15 | BP12: 14 | BQ12: 13 | BR12: 12 | BS12: 11 | BT12: 10 | BU12: 9 | BV12: 8 | BW12: 7 | BX12: 5 | BY12: 5 | BZ12: 4 | CA12: 3 | CB12: 2 | CC12: 1 | CE12: -41.51770053 | CF12: -41.61770053 | CG12: -41.41770053 | CH12: -34.18072963 | CI12: -34.08072963 | CJ12: -41.51770053 | CK12: -132.0369709 | CL12: -132.2369709 | CM12: -0.4 | CN12: 0 | CO12: -49.60156984 | CP12: -75.39843016 | CQ12: -49.60156984 | CR12: -49.70156984 | CS12: 39.07715438
A13: O11 | B13: 37 | C13: 36 | D13: 74 | E13: 50 | F13: 50 | H13: O11 | I13: 14 | J13: 14 | K13: 6 | L13: 8 | M13: 5 | AM13: O11 | AN13: 1000 | AO13: =AE33 -> 407.8338312 | AP13: 592.1661688 | AQ13: 592.1661688 | AU13: O | AV13: 3 | AW13: A | AX13: 2 | AY13: 1399.551608 | AZ13: 1274.651608 | BA13: 1156.688579 | BB13: 1073.206279 | BC13: 1073.106279 | BD13: 955.4432503 | BE13: 822.5593809 | BF13: 723.5562413 | BG13: 605.9932122 | BH13: 556.5916423 | BI13: 522.1109127 | BJ13: 472.6093429 | BK13: 373.6062032 | BL13: 373.6062032 | BM13: 373.4062032 | BN13: 1399.551608 | BO13: 15 | BP13: 14 | BQ13: 13 | BR13: 12 | BS13: 11 | BT13: 10 | BU13: 9 | BV13: 8 | BW13: 7 | BX13: 6 | BY13: 5 | BZ13: 4 | CA13: 2 | CB13: 2 | CC13: 1 | CE13: -124.9 | CF13: -117.9630291 | CG13: -83.48229947 | CH13: -0.1 | CI13: -117.6630291 | CJ13: -132.8838693 | CK13: -99.00313968 | CL13: -117.5630291 | CM13: -49.40156984 | CN13: -34.48072963 | CO13: -49.50156984 | CP13: -99.00313968 | CQ13: 0 | CR13: -0.2 | CS13: 49.82973744
A14: O12 | B14: 79 | C14: 60 | D14: 75 | E14: 45 | F14: 50 | H14: O12 | I14: 5 | J14: 5 | K14: 4 | L14: 12 | M14: 5 | AM14: O12 | AN14: 1000 | AO14: =AF33 -> 1715.91927 | AP14: -715.9192704 | AQ14: 715.9192704 | AU14: O | AV14: 3 | AW14: A | AX14: 3 | AY14: 1572.559381 | AZ14: 1531.24168 | BA14: 1463.080221 | BB14: 1387.681791 | BC14: 1387.481791 | BD14: 1345.96409 | BE14: 1255.04482 | BF14: 1164.12555 | BG14: 1114.52398 | BH14: 1073.106279 | BI14: 955.4432503 | BJ14: 856.6401106 | BK14: 757.6369709 | BL14: 716.3192704 | BM14: 591.2192704 | BN14: 1572.559381 | BO14: 15 | BP14: 14 | BQ14: 13 | BR14: 12 | BS14: 11 | BT14: 10 | BU14: 9 | BV14: 8 | BW14: 7 | BX14: 6 | BY14: 5 | BZ14: 4 | CA14: 3 | CB14: 2 | CC14: 1 | CE14: -41.31770053 | CF14: -68.16145926 | CG14: -75.39843016 | CH14: -0.2 | CI14: -41.51770053 | CJ14: -90.91927037 | CK14: -90.91927037 | CL14: -49.60156984 | CM14: -41.41770053 | CN14: -117.6630291 | CO14: -98.80313968 | CP14: -99.00313968 | CQ14: -41.31770053 | CR14: -125.1 | CS14: 35.56995041
A15: O13 | B15: 67 | C15: 96 | D15: 38 | E15: 44 | F15: 72 | H15: O13 | I15: 7 | J15: 1 | K15: 14 | L15: 13 | M15: 3 | AM15: O13 | AN15: 1000 | AO15: =AG33 -> 1189.163538 | AP15: -189.1635376 | AQ15: 189.1635376 | AU15: O | AV15: 3 | AW15: A | AX15: 4 | AY15: 1114.92398 | AZ15: 1073.506279 | BA15: 1073.206279 | BB15: 1073.106279 | BC15: 1004.84482 | BD15: 955.4432503 | BE15: 905.8416804 | BF15: 822.3593809 | BG15: 772.7578111 | BH15: 723.0562413 | BI15: 722.9562413 | BJ15: 722.8562413 | BK15: 639.2739418 | BL15: 605.0932122 | BM15: 604.7932122 | BN15: 1114.92398 | BO15: 15 | BP15: 14 | BQ15: 13 | BR15: 12 | BS15: 11 | BT15: 10 | BU15: 9 | BV15: 8 | BW15: 7 | BX15: 6 | BY15: 5 | BZ15: 4 | CA15: 3 | CB15: 2 | CC15: 1 | CE15: -41.41770053 | CF15: -0.3 | CG15: -0.1 | CH15: -68.26145926 | CI15: -49.40156984 | CJ15: -49.60156984 | CK15: -83.48229947 | CL15: -49.60156984 | CM15: -49.70156984 | CN15: -0.1 | CO15: -0.1 | CP15: -83.58229947 | CQ15: -34.18072963 | CR15: -0.3 | CS15: 31.30762099
A16: O14 | B16: 50 | C16: 50 | D16: 71 | E16: 48 | F16: 31 | H16: O14 | I16: 9 | J16: 8 | K16: 7 | L16: 11 | M16: 11 | AM16: O14 | AN16: 1000 | AO16: =AH33 -> 481.0401106 | AP16: 518.9598894 | AQ16: 518.9598894 | AU16: O | AV16: 3 | AW16: A | AX16: 5 | AY16: 1685.47759 | AZ16: 1685.47759 | BA16: 1685.47759 | BB16: 1610.07916 | BC16: 1610.07916 | BD16: 1519.359889 | BE16: 1409.88073 | BF16: 1375.5 | BG16: 1375.4 | BH16: 1299.80157 | BI16: 1148.60471 | BJ16: 1114.52398 | BK16: 1073.106279 | BL16: 1004.84482 | BM16: 970.7640905 | BN16: 1685.47759 | BO16: 13 | BP16: 13 | BQ16: 13 | BR16: 11 | BS16: 11 | BT16: 10 | BU16: 9 | BV16: 8 | BW16: 7 | BX16: 6 | BY16: 5 | BZ16: 4 | CA16: 3 | CB16: 2 | CC16: 1 | CE16: 0 | CF16: 0 | CG16: -75.39843016 | CH16: 0 | CI16: -90.71927037 | CJ16: -109.4791598 | CK16: -34.38072963 | CL16: -0.1 | CM16: -75.59843016 | CN16: -151.1968603 | CO16: -34.08072963 | CP16: -41.41770053 | CQ16: -68.26145926 | CR16: -34.08072963 | CS16: 46.30125866
A17: O15 | B17: 50 | C17: 84 | D17: 46 | E17: 50 | F17: 43 | H17: O15 | I17: 9 | J17: 2 | K17: 12 | L17: 8 | M17: 10 | AM17: O15 | AN17: 1000 | AO17: =AI33 -> 944.5552561 | AP17: 55.44474394 | AQ17: 55.44474394 | AU17: O | AV17: 4 | AW17: A | AX17: 1 | AY17: 843.5645228 | AZ17: 801.9468222 | BA17: 719.0114212 | BB17: 677.5937206 | BC17: 636.1760201 | BD17: 636.0760201 | BE17: 635.9760201 | BF17: 511.7229185 | BG17: 470.205218 | BH17: 379.4859476 | BI17: 379.2859476 | BJ17: 261.7229185 | BK17: 261.5229185 | BL17: 261.4229185 | BM17: 261.3229185 | BN17: 843.5645228 | BO17: 15 | BP17: 14 | BQ17: 13 | BR17: 12 | BS17: 11 | BT17: 10 | BU17: 9 | BV17: 8 | BW17: 7 | BX17: 6 | BY17: 5 | BZ17: 4 | CA17: 3 | CB17: 2 | CC17: 1 | CE17: -41.61770053 | CF17: -82.93540107 | CG17: -41.41770053 | CH17: -41.41770053 | CI17: -0.1 | CJ17: -0.1 | CK17: -124.2531016 | CL17: -41.51770053 | CM17: -90.71927037 | CN17: -0.2 | CO17: -117.5630291 | CP17: -0.2 | CQ17: -0.1 | CR17: -0.1 | CS17: 45.60720832
AN18: szum | AO18: szum | AP18: hiba | AU18: O | AV18: 4 | AW18: A | AX18: 2 | AY18: 1013.663614 | AZ18: 846.5990148 | BA18: 664.0135756 | BB18: 664.0135756 | BC18: 580.4312762 | BD18: 428.6875175 | BE18: 428.6875175 | BF18: 261.5229185 | BG18: 261.4229185 | BH18: 227.2421889 | BI18: 227.2421889 | BJ18: 159.0807296 | BK18: 125 | BL18: 125 | BM18: 125 | BN18: 1013.663614 | BO18: 15 | BP18: 14 | BQ18: 12 | BR18: 12 | BS18: 11 | BT18: 9 | BU18: 9 | BV18: 8 | BW18: 7 | BX18: 5 | BY18: 5 | BZ18: 4 | CA18: 1 | CB18: 1 | CC18: 1 | CE18: -167.0645989 | CF18: -182.5854391 | CG18: 0 | CH18: -83.58229947 | CI18: -151.7437587 | CJ18: 0 | CK18: -167.1645989 | CL18: -0.1 | CM18: -34.18072963 | CN18: 0 | CO18: -68.16145926 | CP18: -34.08072963 | CQ18: 0 | CR18: 0 | CS18: 73.25992763
U19: Activation - linear | AK19: Szórás | AN19: =SUM(AN3:AN17) -> 15000 | AO19: =SUM(AO3:AO17) -> 15000 | AP19: =SUMSQ(AP3:AP17) -> 2275085.314 | AQ19: =SUM(AQ3:AQ17)/15 -> 315.3702775 | AU19: O | AV19: 4 | AW19: A | AX19: 3 | AY19: 1399.451608 | AZ19: 1357.833907 | BA19: 1233.033907 | BB19: 1183.332338 | BC19: 1183.332338 | BD19: 1133.730768 | BE19: 974.8500381 | BF19: 759.1307677 | BG19: 709.5291979 | BH19: 527.8906571 | BI19: 478.2890873 | BJ19: 428.8875175 | BK19: 428.6875175 | BL19: 428.6875175 | BM19: 261.5229185 | BN19: 1399.451608 | BO19: 15 | BP19: 14 | BQ19: 13 | BR19: 11 | BS19: 11 | BT19: 10 | BU19: 9 | BV19: 8 | BW19: 7 | BX19: 6 | BY19: 5 | BZ19: 4 | CA19: 2 | CB19: 2 | CC19: 1 | CE19: -41.61770053 | CF19: -124.8 | CG19: -49.70156984 | CH19: 0 | CI19: -49.60156984 | CJ19: -158.8807296 | CK19: -215.7192704 | CL19: -49.60156984 | CM19: -181.6385407 | CN19: -49.60156984 | CO19: -49.40156984 | CP19: -0.2 | CQ19: 0 | CR19: -167.1645989 | CS19: 73.28643681
P20: -1 | U20: =IF(U3>0,U3,U3*$P$20) -> 4.952228587 | V20: =IF(V3>0,V3,V3*$P$20) -> 6.626330919 | W20: 5.242739887 | X20: 7.05292711 | Y20: 4.928085173 | Z20: 4.960241175 | AA20: 5.3514932 | AB20: 4.551539395 | AC20: 6.019146921 | AD20: 6.174940639 | AE20: 7.275799826 | AF20: 4.753346936 | AG20: 5.962382284 | AH20: 6.956108144 | AI20: 6.267384933 | AK20: =STDEV(U20:AI20) -> 0.9083049873 | AP20: hiba2 | AU20: O | AV20: 4 | AW20: A | AX20: 4 | AY20: 379.2859476 | AZ20: 261.5229185 | BA20: 261.4229185 | BB20: 261.3229185 | BC20: 227.2421889 | BD20: 227.2421889 | BE20: 227.2421889 | BF20: 227.2421889 | BG20: 227.2421889 | BH20: 227.2421889 | BI20: 193.1614593 | BJ20: 159.0807296 | BK20: 159.0807296 | BL20: 159.0807296 | BM20: 159.0807296 | BN20: 379.2859476 | BO20: 15 | BP20: 14 | BQ20: 13 | BR20: 12 | BS20: 6 | BT20: 6 | BU20: 6 | BV20: 6 | BW20: 6 | BX20: 6 | BY20: 5 | BZ20: 1 | CA20: 1 | CB20: 1 | CC20: 1 | CE20: -117.7630291 | CF20: -0.1 | CG20: -0.1 | CH20: -34.08072963 | CI20: 0 | CJ20: 0 | CK20: 0 | CL20: 0 | CM20: 0 | CN20: -34.08072963 | CO20: -34.08072963 | CP20: 0 | CQ20: 0 | CR20: 0 | CS20: 32.68620486
U21: =IF(U4>0,U4,U4*$P$20) -> 7.95683579 | V21: 8.44809578 | W21: 9.16957274 | X21: 12.7403792 | Y21: 9.96381353 | Z21: 4.72902881 | AA21: 9.4912448 | AB21: 10.17469282 | AC21: 12.35246843 | AD21: 11.39927105 | AE21: 12.61226784 | AF21: 7.4538431 | AG21: 10.14069347 | AH21: 10.95419833 | AI21: 9.64053204 | AK21: =STDEV(U21:AI21) -> 2.141457846 | AP21: =ABS(AN19-AO19) -> 0 | AQ21: =AQ19+AP21 -> 315.3702775 | AU21: O | AV21: 4 | AW21: A | AX21: 5 | AY21: 799.0426974 | AZ21: 682.1265667 | BA21: 606.5281365 | BB21: 565.210436 | BC21: 481.6281365 | BD21: 379.2859476 | BE21: 329.8843778 | BF21: 261.5229185 | BG21: 261.4229185 | BH21: 227.2421889 | BI21: 227.2421889 | BJ21: 159.0807296 | BK21: 159.0807296 | BL21: 125 | BM21: 125 | BN21: 799.0426974 | BO21: 15 | BP21: 14 | BQ21: 13 | BR21: 12 | BS21: 11 | BT21: 10 | BU21: 9 | BV21: 8 | BW21: 7 | BX21: 5 | BY21: 5 | BZ21: 3 | CA21: 3 | CB21: 1 | CC21: 1 | CE21: -116.9161307 | CF21: -75.59843016 | CG21: -41.31770053 | CH21: -83.58229947 | CI21: -102.3421889 | CJ21: -49.40156984 | CK21: -68.36145926 | CL21: -0.1 | CM21: -34.18072963 | CN21: 0 | CO21: -68.16145926 | CP21: 0 | CQ21: -34.08072963 | CR21: 0 | CS21: 39.40792698
U22: 3.4139282 | V22: 4.40348205 | W22: 3.6348205 | X22: 4.65223075 | Y22: 3.2348205 | Z22: 3.20348205 | AA22: 3.6278564 | AB22: 3.11044615 | AC22: 3.93133845 | AD22: 4.14526665 | AE22: 4.7208923 | AF22: 3.1139282 | AG22: 3.8487487 | AH22: 4.62437435 | AI22: 4.1417846 | AK22: 0.5767969174 | AP22: hiba3 | AU22: O | AV22: 5 | AW22: A | AX22: 1 | AY22: 1593.911421 | AZ22: 1552.593721 | BA22: 1503.192151 | BB22: 1453.790581 | BC22: 1412.37288 | BD22: 1370.85518 | BE22: 1370.65518 | BF22: 1370.45518 | BG22: 1279.53591 | BH22: 1147.398939 | BI22: 1113.118209 | BJ22: 1030.482808 | BK22: 1030.382808 | BL22: 1029.982808 | BM22: 988.5651074 | BN22: 1593.911421 | BO22: 15 | BP22: 14 | BQ22: 13 | BR22: 12 | BS22: 11 | BT22: 10 | BU22: 9 | BV22: 8 | BW22: 7 | BX22: 6 | BY22: 5 | BZ22: 4 | CA22: 3 | CB22: 2 | CC22: 1 | CE22: -41.31770053 | CF22: -49.40156984 | CG22: -49.40156984 | CH22: -41.41770053 | CI22: -41.51770053 | CJ22: -0.2 | CK22: -0.2 | CL22: -90.91927037 | CM22: -132.1369709 | CN22: -34.28072963 | CO22: -82.63540107 | CP22: -0.1 | CQ22: -0.4 | CR22: -41.41770053 | CS22: 38.52940114
U23: 15.05946721 | V23: 17.53548628 | W23: 14.23637445 | X23: 14.41118577 | Y23: 9.980689135 | Z23: 11.15091627 | AA23: 12.90327197 | AB23: 14.27817228 | AC23: 13.0642122 | AD23: 12.87227185 | AE23: 16.35165144 | AF23: 10.29433424 | AG23: 8.71702946 | AH23: 16.56376269 | AI23: 12.28908032 | AK23: 2.551710808 | AP23: =AP19*AP21 -> 0 | AU23: O | AV23: 5 | AW23: A | AX23: 2 | AY23: 1742.963029 | AZ23: 1742.963029 | BA23: 1652.243759 | BB23: 1602.842189 | BC23: 1553.440619 | BD23: 1553.340619 | BE23: 1420.15675 | BF23: 1370.65518 | BG23: 1237.571311 | BH23: 1203.390581 | BI23: 1153.889011 | BJ23: 1070.106712 | BK23: 967.8645228 | BL23: 819.6598133 | BM23: 717.2176244 | BN23: 1742.963029 | BO23: 14 | BP23: 14 | BQ23: 13 | BR23: 12 | BS23: 11 | BT23: 10 | BU23: 9 | BV23: 8 | BW23: 7 | BX23: 6 | BY23: 5 | BZ23: 4 | CA23: 3 | CB23: 2 | CC23: 1 | CE23: 0 | CF23: -90.71927037 | CG23: -49.40156984 | CH23: -49.40156984 | CI23: -0.1 | CJ23: -133.1838693 | CK23: -49.50156984 | CL23: -133.0838693 | CM23: -34.18072963 | CN23: -49.50156984 | CO23: -83.78229947 | CP23: -102.2421889 | CQ23: -148.2047095 | CR23: -102.4421889 | CS23: 47.56175292
U24: 11.89489829 | V24: 15.63449121 | W24: 12.97498077 | X24: 17.81925513 | Y24: 10.23095746 | Z24: 14.55009052 | AA24: 9.637775082 | AB24: 6.94253726 | AC24: 11.28567586 | AD24: 11.76461975 | AE24: 14.90995703 | AF24: 8.708688475 | AG24: 12.62783442 | AH24: 14.95454498 | AI24: 15.48208545 | AK24: 2.976411249 | AN24: szórás | AO24: szórás | AU24: O | AV24: 5 | AW24: A | AX24: 3 | AY24: 1825.59843 | AZ24: 1784.28073 | BA24: 1750.2 | BB24: 1750.2 | BC24: 1700.79843 | BD24: 1651.39686 | BE24: 1560.67759 | BF24: 1560.57759 | BG24: 1420.15675 | BH24: 1370.65518 | BI24: 1271.65204 | BJ24: 1237.471311 | BK24: 1146.55204 | BL24: 1055.63277 | BM24: 1014.315069 | BN24: 1825.59843 | BO24: 15 | BP24: 14 | BQ24: 12 | BR24: 12 | BS24: 11 | BT24: 10 | BU24: 9 | BV24: 8 | BW24: 7 | BX24: 6 | BY24: 5 | BZ24: 4 | CA24: 3 | CB24: 2 | CC24: 1 | CE24: -41.31770053 | CF24: -34.08072963 | CG24: 0 | CH24: -49.40156984 | CI24: -49.40156984 | CJ24: -90.71927037 | CK24: -0.1 | CL24: -140.4208402 | CM24: -49.50156984 | CN24: -99.00313968 | CO24: -34.18072963 | CP24: -90.91927037 | CQ24: -90.91927037 | CR24: -41.31770053 | CS24: 39.55999314
AN25: =STDEV(AN3:AN17) -> 0 | AO25: =STDEV(AO3:AO17) -> 403.1204459 | AU25: O | AV25: 5 | AW25: A | AX25: 4 | AY25: 1519.359889 | AZ25: 1469.95832 | BA25: 1420.45675 | BB25: 1370.75518 | BC25: 1370.65518 | BD25: 1321.05361 | BE25: 1237.371311 | BF25: 1237.271311 | BG25: 1237.071311 | BH25: 1153.589011 | BI25: 1153.589011 | BJ25: 1153.189011 | BK25: 1062.369741 | BL25: 1062.269741 | BM25: 1027.989011 | BN25: 1519.359889 | BO25: 15 | BP25: 14 | BQ25: 13 | BR25: 12 | BS25: 11 | BT25: 10 | BU25: 9 | BV25: 8 | BW25: 7 | BX25: 5 | BY25: 5 | BZ25: 4 | CA25: 3 | CB25: 2 | CC25: 1 | CE25: -49.40156984 | CF25: -49.50156984 | CG25: -49.70156984 | CH25: -0.1 | CI25: -49.60156984 | CJ25: -83.68229947 | CK25: -0.1 | CL25: -0.2 | CM25: -83.48229947 | CN25: 0 | CO25: -0.4 | CP25: -90.81927037 | CQ25: -0.1 | CR25: -34.28072963 | CS25: 35.05045423
AU26: O | AV26: 5 | AW26: A | AX26: 5 | AY26: 1370.75518 | AZ26: 1370.65518 | BA26: 1336.37445 | BB26: 1252.792151 | BC26: 1161.97288 | BD26: 1044.95675 | BE26: 976.7952905 | BF26: 901.3968603 | BG26: 825.7984302 | BH26: 757.5369709 | BI26: 723.3562413 | BJ26: 632.3369709 | BK26: 481.4401106 | BL26: 440.02241 | BM26: 364.6239799 | BN26: 1370.75518 | BO26: 15 | BP26: 14 | BQ26: 13 | BR26: 12 | BS26: 11 | BT26: 10 | BU26: 9 | BV26: 8 | BW26: 7 | BX26: 6 | BY26: 5 | BZ26: 4 | CA26: 3 | CB26: 2 | CC26: 1 | CE26: -0.1 | CF26: -34.28072963 | CG26: -83.58229947 | CH26: -90.81927037 | CI26: -117.0161307 | CJ26: -68.16145926 | CK26: -75.39843016 | CL26: -75.59843016 | CM26: -68.26145926 | CN26: -34.18072963 | CO26: -91.01927037 | CP26: -150.8968603 | CQ26: -41.41770053 | CR26: -75.39843016 | CS26: 37.33800953
U27: =RANK(U20,$U20:$AI20,0) -> 12 | V27: =RANK(V20,$U20:$AI20,0) -> 4 | W27: 10 | X27: 2 | Y27: 13 | Z27: 11 | AA27: 9 | AB27: 15 | AC27: 7 | AD27: 6 | AE27: 1 | AF27: 14 | AG27: 8 | AH27: 3 | AI27: 5 | AU27: O | AV27: 6 | AW27: A | AX27: 1 | AY27: 1840.91927 | AZ27: 1799.60157 | BA27: 1799.60157 | BB27: 1765.52084 | BC27: 1724.20314 | BD27: 1724.20314 | BE27: 1648.80471 | BF27: 1607.487009 | BG27: 1607.487009 | BH27: 1566.169308 | BI27: 1483.533907 | BJ27: 1442.216207 | BK27: 1400.798506 | BL27: 1400.698506 | BM27: 1400.298506 | BN27: 1840.91927 | BO27: 15 | BP27: 13 | BQ27: 13 | BR27: 12 | BS27: 10 | BT27: 10 | BU27: 9 | BV27: 7 | BW27: 7 | BX27: 6 | BY27: 5 | BZ27: 4 | CA27: 3 | CB27: 2 | CC27: 1 | CE27: -41.31770053 | CF27: 0 | CG27: -34.08072963 | CH27: -41.31770053 | CI27: 0 | CJ27: -75.39843016 | CK27: -41.31770053 | CL27: 0 | CM27: -41.31770053 | CN27: -82.63540107 | CO27: -41.31770053 | CP27: -41.41770053 | CQ27: -0.1 | CR27: -0.4 | CS27: 27.81638741
U28: =RANK(U21,$U21:$AI21,0) -> 13 | V28: 12 | W28: 11 | X28: 1 | Y28: 8 | Z28: 15 | AA28: 10 | AB28: 6 | AC28: 3 | AD28: 4 | AE28: 2 | AF28: 14 | AG28: 7 | AH28: 5 | AI28: 9 | AU28: O | AV28: 6 | AW28: A | AX28: 2 | AY28: 1468.959966 | AZ28: 1400.698506 | BA28: 1400.298506 | BB28: 1400.198506 | BC28: 1366.117777 | BD28: 1263.575588 | BE28: 1222.257887 | BF28: 1112.578727 | BG28: 1029.096428 | BH28: 945.5141285 | BI28: 895.8125587 | BJ28: 827.5510994 | BK28: 702.4510994 | BL28: 562.3302592 | BM28: 413.9255497 | BN28: 1468.959966 | BO28: 15 | BP28: 14 | BQ28: 13 | BR28: 12 | BS28: 11 | BT28: 10 | BU28: 9 | BV28: 8 | BW28: 7 | BX28: 6 | BY28: 5 | BZ28: 4 | CA28: 3 | CB28: 2 | CC28: 1 | CE28: -68.26145926 | CF28: -0.4 | CG28: -0.1 | CH28: -34.08072963 | CI28: -102.5421889 | CJ28: -41.31770053 | CK28: -109.6791598 | CL28: -83.48229947 | CM28: -83.58229947 | CN28: -49.70156984 | CO28: -68.26145926 | CP28: -125.1 | CQ28: -140.1208402 | CR28: -148.4047095 | CS28: 47.19752015
U29: =RANK(U22,$U22:$AI22,0) -> 11 | V29: 4 | W29: 9 | X29: 2 | Y29: 12 | Z29: 13 | AA29: 10 | AB29: 15 | AC29: 7 | AD29: 5 | AE29: 1 | AF29: 14 | AG29: 8 | AH29: 3 | AI29: 6 | AU29: O | AV29: 6 | AW29: A | AX29: 3 | AY29: 1400.298506 | AZ29: 1358.880806 | BA29: 1317.463105 | BB29: 1234.627704 | BC29: 1234.627704 | BD29: 1234.427704 | BE29: 1234.427704 | BF29: 1150.745405 | BG29: 1101.143835 | BH29: 1010.224565 | BI29: 941.8631053 | BJ29: 808.9792359 | BK29: 759.3776661 | BL29: 611.1729566 | BM29: 610.7729566 | BN29: 1400.298506 | BO29: 15 | BP29: 14 | BQ29: 13 | BR29: 11 | BS29: 11 | BT29: 9 | BU29: 9 | BV29: 8 | BW29: 7 | BX29: 6 | BY29: 5 | BZ29: 4 | CA29: 3 | CB29: 2 | CC29: 1 | CE29: -41.41770053 | CF29: -41.41770053 | CG29: -82.83540107 | CH29: 0 | CI29: -0.2 | CJ29: 0 | CK29: -83.68229947 | CL29: -49.60156984 | CM29: -90.91927037 | CN29: -68.36145926 | CO29: -132.8838693 | CP29: -49.60156984 | CQ29: -148.2047095 | CR29: -0.4 | CS29: 48.24092843
U30: 4 | V30: 1 | W30: 7 | X30: 5 | Y30: 14 | Z30: 12 | AA30: 9 | AB30: 6 | AC30: 8 | AD30: 10 | AE30: 3 | AF30: 13 | AG30: 15 | AH30: 2 | AI30: 11 | AU30: O | AV30: 6 | AW30: A | AX30: 4 | AY30: 1400.298506 | AZ30: 1400.198506 | BA30: 1400.098506 | BB30: 1358.580806 | BC30: 1317.263105 | BD30: 1282.982376 | BE30: 1282.982376 | BF30: 1241.364675 | BG30: 1173.003216 | BH30: 1097.504786 | BI30: 1097.304786 | BJ30: 1097.204786 | BK30: 1097.204786 | BL30: 1097.004786 | BM30: 945.2610269 | BN30: 1400.298506 | BO30: 15 | BP30: 14 | BQ30: 13 | BR30: 12 | BS30: 11 | BT30: 9 | BU30: 9 | BV30: 8 | BW30: 7 | BX30: 6 | BY30: 5 | BZ30: 3 | CA30: 3 | CB30: 2 | CC30: 1 | CE30: -0.1 | CF30: -0.1 | CG30: -41.51770053 | CH30: -41.31770053 | CI30: -34.28072963 | CJ30: 0 | CK30: -41.61770053 | CL30: -68.36145926 | CM30: -75.49843016 | CN30: -0.2 | CO30: -0.1 | CP30: 0 | CQ30: -0.2 | CR30: -151.7437587 | CS30: 43.80702207
U31: 9 | V31: 2 | W31: 7 | X31: 1 | Y31: 12 | Z31: 6 | AA31: 13 | AB31: 15 | AC31: 11 | AD31: 10 | AE31: 5 | AF31: 14 | AG31: 8 | AH31: 4 | AI31: 3 | AU31: O | AV31: 6 | AW31: A | AX31: 5 | AY31: 1751.046898 | AZ31: 1751.046898 | BA31: 1709.729198 | BB31: 1709.729198 | BC31: 1668.411497 | BD31: 1585.776096 | BE31: 1585.776096 | BF31: 1544.458396 | BG31: 1468.959966 | BH31: 1468.959966 | BI31: 1400.698506 | BJ31: 1400.298506 | BK31: 1317.563105 | BL31: 1283.482376 | BM31: 1132.485515 | BN31: 1751.046898 | BO31: 14 | BP31: 14 | BQ31: 12 | BR31: 12 | BS31: 11 | BT31: 9 | BU31: 9 | BV31: 8 | BW31: 6 | BX31: 6 | BY31: 5 | BZ31: 4 | CA31: 3 | CB31: 2 | CC31: 1 | CE31: 0 | CF31: -41.31770053 | CG31: 0 | CH31: -41.31770053 | CI31: -82.63540107 | CJ31: 0 | CK31: -41.31770053 | CL31: -75.49843016 | CM31: 0 | CN31: -68.26145926 | CO31: -0.4 | CP31: -82.73540107 | CQ31: -34.08072963 | CR31: -150.9968603 | CS31: 44.5375301
AU32: O | AV32: 7 | AW32: A | AX32: 1 | AY32: 1339.772372 | AZ32: 1339.672372 | BA32: 1214.872372 | BB32: 1173.454671 | BC32: 1131.836971 | BD32: 1041.017701 | BE32: 958.0822995 | BF32: 859.2791598 | BG32: 859.0791598 | BH32: 817.6614593 | BI32: 734.8260582 | BJ32: 651.8906571 | BK32: 651.8906571 | BL32: 651.8906571 | BM32: 583.7291979 | BN32: 1339.772372 | BO32: 15 | BP32: 14 | BQ32: 13 | BR32: 12 | BS32: 11 | BT32: 10 | BU32: 9 | BV32: 8 | BW32: 7 | BX32: 6 | BY32: 5 | BZ32: 2 | CA32: 2 | CB32: 2 | CC32: 1 | CE32: -0.1 | CF32: -124.8 | CG32: -41.41770053 | CH32: -41.61770053 | CI32: -90.81927037 | CJ32: -82.93540107 | CK32: -98.80313968 | CL32: -0.2 | CM32: -41.41770053 | CN32: -82.83540107 | CO32: -82.93540107 | CP32: 0 | CQ32: 0 | CR32: -68.16145926 | CS32: 42.22992183
U33: =SUMPRODUCT(U27:U31,$N$3:$N$7) -> 1152.702631 | V33: =SUMPRODUCT(V27:V31,$N$3:$N$7) -> 710.3349687 | W33: 1073.106279 | X33: 261.5229185 | Y33: 1370.65518 | Z33: 1400.298506 | AA33: 1339.772372 | AB33: 1123.659305 | AC33: 876.7452524 | AD33: 952.690581 | AE33: 407.8338312 | AF33: 1715.91927 | AG33: 1189.163538 | AH33: 481.0401106 | AI33: 944.5552561 | AU33: O | AV33: 7 | AW33: A | AX33: 2 | AY33: 1590.81927 | AZ33: 1541.217701 | BA33: 1457.435401 | BB33: 1457.435401 | BC33: 1339.772372 | BD33: 1256.190073 | BE33: 1107.985363 | BF33: 1005.643174 | BG33: 922.0608746 | BH33: 872.4593048 | BI33: 762.680145 | BJ33: 614.3754355 | BK33: 580.1947059 | BL33: 580.1947059 | BM33: 579.9947059 | BN33: 1590.81927 | BO33: 15 | BP33: 14 | BQ33: 12 | BR33: 12 | BS33: 11 | BT33: 10 | BU33: 9 | BV33: 8 | BW33: 7 | BX33: 6 | BY33: 5 | BZ33: 4 | CA33: 2 | CB33: 2 | CC33: 1 | CE33: -49.60156984 | CF33: -83.78229947 | CG33: 0 | CH33: -117.6630291 | CI33: -83.58229947 | CJ33: -148.2047095 | CK33: -102.3421889 | CL33: -83.58229947 | CM33: -49.60156984 | CN33: -109.7791598 | CO33: -148.3047095 | CP33: -34.18072963 | CQ33: 0 | CR33: -0.2 | CS33: 51.46026145
AU34: O | AV34: 7 | AW34: A | AX34: 3 | AY34: 1689.275512 | AZ34: 1647.957811 | BA34: 1647.757811 | BB34: 1598.156241 | BC34: 1514.473942 | BD34: 1423.354671 | BE34: 1423.354671 | BF34: 1339.772372 | BG34: 1256.190073 | BH34: 1066.667662 | BI34: 1066.467662 | BJ34: 1017.066093 | BK34: 925.9468222 | BL34: 843.2114212 | BM34: 793.7098513 | BN34: 1689.275512 | BO34: =RANK(AY34,$AY34:$BM34, 1) -> 15 | BP34: 14 | BQ34: 13 | BR34: 12 | BS34: 11 | BT34: 9 | BU34: 9 | BV34: 8 | BW34: 7 | BX34: 6 | BY34: 5 | BZ34: 4 | CA34: 3 | CB34: 2 | CC34: 1 | CE34: -41.31770053 | CF34: -0.2 | CG34: -49.60156984 | CH34: -83.68229947 | CI34: -91.11927037 | CJ34: 0 | CK34: -83.58229947 | CL34: -83.58229947 | CM34: -189.52241 | CN34: -0.2 | CO34: -49.40156984 | CP34: -91.11927037 | CQ34: -82.73540107 | CR34: -49.50156984 | CS34: 49.70227731
U35: nincs w6-hatás | AU35: O | AV35: 7 | AW35: A | AX35: 4 | AY35: 1750.2 | AZ35: 1716.11927 | BA35: 1682.038541 | BB35: 1632.636971 | BC35: 1632.636971 | BD35: 1632.636971 | BE35: 1549.154671 | BF35: 1507.836971 | BG35: 1458.135401 | BH35: 1458.035401 | BI35: 1457.835401 | BJ35: 1423.354671 | BK35: 1373.953102 | BL35: 1339.772372 | BM35: 1256.190073 | BN35: 1750.2 | BO35: 15 | BP35: 14 | BQ35: 13 | BR35: 10 | BS35: 10 | BT35: 10 | BU35: 9 | BV35: 8 | BW35: 7 | BX35: 6 | BY35: 5 | BZ35: 4 | CA35: 3 | CB35: 2 | CC35: 1 | CE35: -34.08072963 | CF35: -34.08072963 | CG35: =BB35-BA35 -> -49.40156984 | CH35: 0 | CI35: 0 | CJ35: -83.48229947 | CK35: -41.31770053 | CL35: -49.70156984 | CM35: -0.1 | CN35: -0.2 | CO35: -34.48072963 | CP35: -49.40156984 | CQ35: -34.18072963 | CR35: -83.58229947 | CS35: 28.09621591
AU36: O | AV36: 7 | AW36: A | AX36: 5 | AY36: 1677.393721 | AZ36: 1601.89529 | BA36: 1601.69529 | BB36: 1533.333831 | BC36: 1483.532261 | BD36: 1408.033831 | BE36: 1373.953102 | BF36: 1339.772372 | BG36: 1305.591642 | BH36: 1214.872372 | BI36: 1112.530183 | BJ36: 1037.031753 | BK36: 946.2124825 | BL36: 870.5140524 | BM36: 696.2124825 | BN36: 1677.393721 | BO36: 15 | BP36: 14 | BQ36: 13 | BR36: 12 | BS36: 11 | BT36: 10 | BU36: 9 | BV36: 8 | BW36: 7 | BX36: 6 | BY36: 5 | BZ36: 4 | CA36: 3 | CB36: 2 | CC36: 1 | CE36: =AZ36-AY36 -> -75.49843016 | CF36: -0.2 | CG36: -68.36145926 | CH36: -49.80156984 | CI36: -75.49843016 | CJ36: -34.08072963 | CK36: -34.18072963 | CL36: -34.18072963 | CM36: -90.71927037 | CN36: -102.3421889 | CO36: -75.49843016 | CP36: -90.81927037 | CQ36: -75.69843016 | CR36: -174.3015698 | CS36: 41.18398785
AU37: O | AV37: 8 | AW37: A | AX37: 1 | AY37: 1207.141604 | AZ37: 1207.141604 | BA37: 1123.659305 | BB37: 1123.459305 | BC37: 1089.178575 | BD37: 1088.878575 | BE37: 1047.360875 | BF37: 1005.943174 | BG37: 964.4254736 | BH37: 964.4254736 | BI37: 839.4254736 | BJ37: 756.5900725 | BK37: 756.3900725 | BL37: 673.5546714 | BM37: 673.4546714 | BN37: 1207.141604 | BO37: 14 | BP37: 14 | BQ37: 13 | BR37: 12 | BS37: 11 | BT37: 10 | BU37: 9 | BV37: 8 | BW37: 6 | BX37: 6 | BY37: 5 | BZ37: 4 | CA37: 3 | CB37: 2 | CC37: 1 | CE37: 0 | CF37: -83.48229947 | CG37: -0.2 | CH37: -34.28072963 | CI37: -0.3 | CJ37: -41.51770053 | CK37: -41.41770053 | CL37: -41.51770053 | CM37: 0 | CN37: -125 | CO37: -82.83540107 | CP37: -0.2 | CQ37: -82.83540107 | CR37: -0.1 | CS37: 41.42788429
AU38: O | AV38: 8 | AW38: A | AX38: 2 | AY38: 1875 | AZ38: 1875 | BA38: 1875 | BB38: 1825.59843 | BC38: 1825.59843 | BD38: 1825.59843 | BE38: 1791.517701 | BF38: 1791.517701 | BG38: 1723.356241 | BH38: 1673.954671 | BI38: 1590.472372 | BJ38: 1506.990073 | BK38: 1389.427043 | BL38: 1256.543174 | BM38: 1123.659305 | BN38: 1875 | BO38: 13 | BP38: 13 | BQ38: 13 | BR38: 10 | BS38: 10 | BT38: 10 | BU38: 8 | BV38: 8 | BW38: 7 | BX38: 6 | BY38: 5 | BZ38: 4 | CA38: 3 | CB38: 2 | CC38: 1 | CE38: 0 | CF38: 0 | CG38: -49.40156984 | CH38: 0 | CI38: 0 | CJ38: -34.08072963 | CK38: 0 | CL38: -68.16145926 | CM38: -49.40156984 | CN38: -83.48229947 | CO38: -83.48229947 | CP38: -117.5630291 | CQ38: -132.8838693 | CR38: -132.8838693 | CS38: 50.71948877
AU39: O | AV39: 8 | AW39: A | AX39: 3 | AY39: 1355.346314 | AZ39: 1256.543174 | BA39: 1123.659305 | BB39: 1089.378575 | BC39: 1039.777005 | BD39: 989.9754355 | BE39: 989.9754355 | BF39: 914.3770053 | BG39: 765.9722958 | BH39: 724.6545953 | BI39: 724.4545953 | BJ39: 683.1368947 | BK39: 682.7368947 | BL39: 682.6368947 | BM39: 607.1384646 | BN39: 1355.346314 | BO39: 15 | BP39: 14 | BQ39: 13 | BR39: 12 | BS39: 11 | BT39: 9 | BU39: 9 | BV39: 8 | BW39: 7 | BX39: 6 | BY39: 5 | BZ39: 4 | CA39: 3 | CB39: 2 | CC39: 1 | CE39: -98.80313968 | CF39: -132.8838693 | CG39: -34.28072963 | CH39: -49.60156984 | CI39: -49.80156984 | CJ39: 0 | CK39: -75.59843016 | CL39: -148.4047095 | CM39: -41.31770053 | CN39: -0.2 | CO39: -41.31770053 | CP39: -0.4 | CQ39: -0.1 | CR39: -75.49843016 | CS39: 48.35977916
AU40: O | AV40: 8 | AW40: A | AX40: 4 | AY40: 1355.346314 | AZ40: 1355.346314 | BA40: 1305.944744 | BB40: 1256.543174 | BC40: 1207.141604 | BD40: 1123.659305 | BE40: 1089.378575 | BF40: 1089.178575 | BG40: 1088.878575 | BH40: 1005.296276 | BI40: 1005.196276 | BJ40: 1004.896276 | BK40: 955.4947059 | BL40: 955.3947059 | BM40: 921.1139762 | BN40: 1355.346314 | BO40: 14 | BP40: 14 | BQ40: 13 | BR40: 12 | BS40: 11 | BT40: 10 | BU40: 9 | BV40: 8 | BW40: 7 | BX40: 6 | BY40: 5 | BZ40: 4 | CA40: 3 | CB40: 2 | CC40: 1 | CE40: 0 | CF40: -49.40156984 | CG40: -49.40156984 | CH40: -49.40156984 | CI40: -83.48229947 | CJ40: -34.28072963 | CK40: -0.2 | CL40: -0.3 | CM40: -83.58229947 | CN40: -0.1 | CO40: -0.3 | CP40: -49.40156984 | CQ40: -0.1 | CR40: -34.28072963 | CS40: 31.13188272
AU41: O | AV41: 8 | AW41: A | AX41: 5 | AY41: 1358.785363 | AZ41: 1241.222334 | BA41: 1207.141604 | BB41: 1123.659305 | BC41: 1089.378575 | BD41: 1055.097846 | BE41: 1054.997846 | BF41: 945.2186857 | BG41: 945.2186857 | BH41: 910.8379561 | BI41: 869.4202556 | BJ41: 778.6009852 | BK41: 778.5009852 | BL41: 737.1832847 | BM41: 695.5655841 | BN41: 1358.785363 | BO41: 15 | BP41: 14 | BQ41: 13 | BR41: 12 | BS41: 11 | BT41: 10 | BU41: 9 | BV41: 7 | BW41: 7 | BX41: 6 | BY41: 5 | BZ41: 4 | CA41: 3 | CB41: 2 | CC41: 1 | CE41: -117.5630291 | CF41: -34.08072963 | CG41: -83.48229947 | CH41: -34.28072963 | CI41: -34.28072963 | CJ41: -0.1 | CK41: -109.7791598 | CL41: 0 | CM41: -34.38072963 | CN41: -41.41770053 | CO41: -90.81927037 | CP41: -0.1 | CQ41: -41.31770053 | CR41: -41.61770053 | CS41: 38.7495483
AU42: O | AV42: 9 | AW42: A | AX42: 1 | AY42: 1145.558243 | AZ42: 1069.959813 | BA42: 1069.759813 | BB42: 1069.459813 | BC42: 1028.042113 | BD42: 1027.842113 | BE42: 986.4244122 | BF42: 876.9452524 | BG42: 876.7452524 | BH42: 835.3275519 | BI42: 793.9098513 | BJ42: 702.990581 | BK42: 612.1713106 | BL42: 612.0713106 | BM42: 570.5536101 | BN42: 1145.558243 | BO42: 15 | BP42: 14 | BQ42: 13 | BR42: 12 | BS42: 11 | BT42: 10 | BU42: 9 | BV42: 8 | BW42: 7 | BX42: 6 | BY42: 5 | BZ42: 4 | CA42: 3 | CB42: 2 | CC42: 1 | CE42: -75.59843016 | CF42: -0.2 | CG42: -0.3 | CH42: -41.41770053 | CI42: -0.2 | CJ42: -41.41770053 | CK42: -109.4791598 | CL42: -0.2 | CM42: -41.41770053 | CN42: -41.41770053 | CO42: -90.91927037 | CP42: -90.81927037 | CQ42: -0.1 | CR42: -41.51770053 | CS42: 38.41519508
AU43: O | AV43: 9 | AW43: A | AX43: 2 | AY43: 1701.645329 | AZ43: 1701.645329 | BA43: 1610.826058 | BB43: 1561.324488 | BC43: 1511.722919 | BD43: 1511.322919 | BE43: 1378.339049 | BF43: 1279.33591 | BG43: 1112.271311 | BH43: 1062.769741 | BI43: 979.1874413 | BJ43: 945.1067117 | BK43: 876.7452524 | BL43: 777.9421127 | BM43: 709.5806535 | BN43: 1701.645329 | BO43: 14 | BP43: 14 | BQ43: 13 | BR43: 12 | BS43: 11 | BT43: 10 | BU43: 9 | BV43: 8 | BW43: 7 | BX43: 6 | BY43: 5 | BZ43: 4 | CA43: 3 | CB43: 2 | CC43: 1 | CE43: 0 | CF43: -90.81927037 | CG43: -49.50156984 | CH43: -49.60156984 | CI43: -0.4 | CJ43: -132.9838693 | CK43: -99.00313968 | CL43: -167.0645989 | CM43: -49.50156984 | CN43: -83.58229947 | CO43: -34.08072963 | CP43: -68.36145926 | CQ43: -98.80313968 | CR43: -68.36145926 | CS43: 46.37889272
AU44: O | AV44: 9 | AW44: A | AX44: 3 | AY44: 1499.553102 | AZ44: 1449.551532 | BA44: 1309.330692 | BB44: 1160.925982 | BC44: 1085.427552 | BD44: 1036.025982 | BE44: 945.1067117 | BF44: 911.025982 | BG44: 876.7452524 | BH44: 777.9421127 | BI44: 695.1067117 | BJ44: 694.9067117 | BK44: 653.5890111 | BL44: 612.0713106 | BM44: 612.0713106 | BN44: 1499.553102 | BO44: 15 | BP44: 14 | BQ44: 13 | BR44: 12 | BS44: 11 | BT44: 10 | BU44: 9 | BV44: 8 | BW44: 7 | BX44: 6 | BY44: 5 | BZ44: 4 | CA44: 3 | CB44: 1 | CC44: 1 | CE44: -50.00156984 | CF44: -140.2208402 | CG44: -148.4047095 | CH44: -75.49843016 | CI44: -49.40156984 | CJ44: -90.91927037 | CK44: -34.08072963 | CL44: -34.28072963 | CM44: -98.80313968 | CN44: -82.83540107 | CO44: -0.2 | CP44: -41.31770053 | CQ44: -41.51770053 | CR44: 0 | CS44: 45.34087049
AU45: O | AV45: 9 | AW45: A | AX45: 4 | AY45: 1029.089011 | AZ45: 1028.989011 | BA45: 979.3874413 | BB45: 945.2067117 | BC45: 945.1067117 | BD45: 945.1067117 | BE45: 876.7452524 | BF45: 876.6452524 | BG45: 777.7421127 | BH45: 777.5421127 | BI45: 736.1244122 | BJ45: 660.625982 | BK45: 592.3645228 | BL45: 592.1645228 | BM45: 591.8645228 | BN45: 1029.089011 | BO45: 15 | BP45: 14 | BQ45: 13 | BR45: 12 | BS45: 10 | BT45: 10 | BU45: 9 | BV45: 8 | BW45: 7 | BX45: 6 | BY45: 5 | BZ45: 4 | CA45: 3 | CB45: 2 | CC45: 1 | CE45: -0.1 | CF45: -49.60156984 | CG45: -34.18072963 | CH45: -0.1 | CI45: 0 | CJ45: -68.36145926 | CK45: -0.1 | CL45: -98.90313968 | CM45: -0.2 | CN45: -41.41770053 | CO45: -75.49843016 | CP45: -68.26145926 | CQ45: -0.2 | CR45: -0.3 | CS45: 35.63097497
AU46: O | AV46: 9 | AW46: A | AX46: 5 | AY46: 876.7452524 | AZ46: 876.7452524 | BA46: 725.7483921 | BB46: 642.0660926 | BC46: 475.9483921 | BD46: 475.7483921 | BE46: 407.5869328 | BF46: 407.4869328 | BG46: 331.6885027 | BH46: 249.0531016 | BI46: 166.3177005 | BJ46: 166.3177005 | BK46: 166.3177005 | BL46: 166.3177005 | BM46: 166.3177005 | BN46: 876.7452524 | BO46: 14 | BP46: 14 | BQ46: 13 | BR46: 12 | BS46: 11 | BT46: 10 | BU46: 9 | BV46: 8 | BW46: 7 | BX46: 6 | BY46: 1 | BZ46: 1 | CA46: 1 | CB46: 1 | CC46: 1 | CE46: 0 | CF46: -150.9968603 | CG46: -83.68229947 | CH46: -166.1177005 | CI46: -0.2 | CJ46: -68.16145926 | CK46: -0.1 | CL46: -75.79843016 | CM46: -82.63540107 | CN46: -82.73540107 | CO46: 0 | CP46: 0 | CQ46: 0 | CR46: 0 | CS46: 59.10391127
AU47: O | AV47: 10 | AW47: A | AX47: 1 | AY47: 994.2082815 | AZ47: 952.690581 | BA47: 877.1921508 | BB47: 801.7937206 | BC47: 760.2760201 | BD47: 760.2760201 | BE47: 718.6583196 | BF47: 635.8229185 | BG47: 553.0875175 | BH47: 553.0875175 | BI47: 553.0875175 | BJ47: 503.6859476 | BK47: 462.3682471 | BL47: 462.3682471 | BM47: 412.9666772 | BN47: 994.2082815 | BO47: 15 | BP47: 14 | BQ47: 13 | BR47: 12 | BS47: 10 | BT47: 10 | BU47: 9 | BV47: 8 | BW47: 5 | BX47: 5 | BY47: 5 | BZ47: 4 | CA47: 2 | CB47: 2 | CC47: 1 | CE47: -41.51770053 | CF47: -75.49843016 | CG47: -75.39843016 | CH47: -41.51770053 | CI47: 0 | CJ47: -41.61770053 | CK47: -82.83540107 | CL47: -82.73540107 | CM47: 0 | CN47: 0 | CO47: -49.40156984 | CP47: -41.31770053 | CQ47: 0 | CR47: -49.40156984 | CS47: 31.2900619
AU48: O | AV48: 10 | AW48: A | AX48: 2 | AY48: 1169.55675 | AZ48: 1036.47288 | BA48: 1036.27288 | BB48: 952.690581 | BC48: 884.4291217 | BD48: 843.1114212 | BE48: 592.5645228 | BF48: 558.3837931 | BG48: 558.2837931 | BH48: 489.8223339 | BI48: 489.7223339 | BJ48: 455.5416043 | BK48: 414.2239037 | BL48: 414.2239037 | BM48: 414.2239037 | BN48: 1169.55675 | BO48: 15 | BP48: 14 | BQ48: 13 | BR48: 12 | BS48: 11 | BT48: 10 | BU48: 9 | BV48: 8 | BW48: 7 | BX48: 6 | BY48: 5 | BZ48: 4 | CA48: 1 | CB48: 1 | CC48: 1 | CE48: -133.0838693 | CF48: -0.2 | CG48: -83.58229947 | CH48: -68.26145926 | CI48: -41.31770053 | CJ48: -250.5468984 | CK48: -34.18072963 | CL48: -0.1 | CM48: -68.46145926 | CN48: -0.1 | CO48: -34.18072963 | CP48: -41.31770053 | CQ48: 0 | CR48: 0 | CS48: 68.95745273
AU49: O | AV49: 10 | AW49: A | AX49: 3 | AY49: 1682.038541 | AZ49: 1682.038541 | BA49: 1681.838541 | BB49: 1598.056241 | BC49: 1597.656241 | BD49: 1506.836971 | BE49: 1457.335401 | BF49: 1366.416131 | BG49: 1267.512991 | BH49: 1142.712991 | BI49: 1043.709851 | BJ49: 952.790581 | BK49: 952.690581 | BL49: 877.1921508 | BM49: 843.1114212 | BN49: 1682.038541 | BO49: 14 | BP49: 14 | BQ49: 13 | BR49: 12 | BS49: 11 | BT49: 10 | BU49: 9 | BV49: 8 | BW49: 7 | BX49: 6 | BY49: 5 | BZ49: 4 | CA49: 3 | CB49: 2 | CC49: 1 | CE49: 0 | CF49: -0.2 | CG49: -83.78229947 | CH49: -0.4 | CI49: -90.81927037 | CJ49: -49.50156984 | CK49: -90.91927037 | CL49: -98.90313968 | CM49: -124.8 | CN49: -99.00313968 | CO49: -90.91927037 | CP49: -0.1 | CQ49: -75.49843016 | CR49: -34.08072963 | CS49: 44.72094817
AU50: O | AV50: 10 | AW50: A | AX50: 4 | AY50: 1519.359889 | AZ50: 1519.359889 | BA50: 1485.27916 | BB50: 1394.559889 | BC50: 1360.17916 | BD50: 1310.57759 | BE50: 1261.07602 | BF50: 1177.193721 | BG50: 1078.390581 | BH50: 1077.990581 | BI50: 1077.990581 | BJ50: 1036.67288 | BK50: 952.990581 | BL50: 952.890581 | BM50: 952.690581 | BN50: 1519.359889 | BO50: 14 | BP50: 14 | BQ50: 13 | BR50: 12 | BS50: 11 | BT50: 10 | BU50: 9 | BV50: 8 | BW50: 7 | BX50: 5 | BY50: 5 | BZ50: 4 | CA50: 3 | CB50: 2 | CC50: 1 | CE50: 0 | CF50: -34.08072963 | CG50: -90.71927037 | CH50: -34.38072963 | CI50: -49.60156984 | CJ50: -49.50156984 | CK50: -83.88229947 | CL50: -98.80313968 | CM50: -0.4 | CN50: 0 | CO50: -41.31770053 | CP50: -83.68229947 | CQ50: -0.1 | CR50: -0.2 | CS50: 37.26816157
AU51: O | AV51: 10 | AW51: A | AX51: 5 | AY51: 1263.068171 | AZ51: 1262.868171 | BA51: 1103.987441 | BB51: 1062.669741 | BC51: 1028.389011 | BD51: 986.8713106 | BE51: 952.690581 | BF51: 843.1114212 | BG51: 801.7937206 | BH51: 658.1338312 | BI51: 623.9531016 | BJ51: 623.8531016 | BK51: 589.572372 | BL51: 513.9739418 | BM51: 397.2578111 | BN51: 1263.068171 | BO51: =RANK(AY51,$AY51:$BM51, 1) -> 15 | BP51: 14 | BQ51: 13 | BR51: 12 | BS51: 11 | BT51: 10 | BU51: 9 | BV51: 8 | BW51: 7 | BX51: 6 | BY51: 5 | BZ51: 4 | CA51: 3 | CB51: 2 | CC51: 1 | CE51: -0.2 | CF51: -158.8807296 | CG51: -41.31770053 | CH51: -34.28072963 | CI51: -41.51770053 | CJ51: -34.18072963 | CK51: -109.5791598 | CL51: -41.31770053 | CM51: -143.6598894 | CN51: -34.18072963 | CO51: -0.1 | CP51: -34.28072963 | CQ51: -75.59843016 | CR51: -116.7161307 | CS51: 50.76859165
AU52: O | AV52: 11 | AW52: A | AX52: 1 | AY52: 914.4770053 | AZ52: 830.8947059 | BA52: 789.4770053 | BB52: 789.1770053 | BC52: 747.8593048 | BD52: 706.4416043 | BE52: 706.1416043 | BF52: 664.7239037 | BG52: 581.7885027 | BH52: 540.4708021 | BI52: 498.9531016 | BJ52: 449.5515318 | BK52: 449.3515318 | BL52: 407.8338312 | BM52: 366.5161307 | BN52: 914.4770053 | BO52: 15 | BP52: 14 | BQ52: 13 | BR52: 12 | BS52: 11 | BT52: 10 | BU52: 9 | BV52: 8 | BW52: 7 | BX52: 6 | BY52: 5 | BZ52: 4 | CA52: 3 | CB52: 2 | CC52: 1 | CE52: -83.58229947 | CF52: -41.41770053 | CG52: -0.3 | CH52: -41.31770053 | CI52: -41.41770053 | CJ52: -0.3 | CK52: -41.41770053 | CL52: -82.93540107 | CM52: -41.31770053 | CN52: -41.51770053 | CO52: -49.40156984 | CP52: -0.2 | CQ52: -41.51770053 | CR52: -41.31770053 | CS52: 25.67993465
AU53: O | AV53: 11 | AW53: A | AX53: 2 | AY53: 1452.539125 | AZ53: 1452.539125 | BA53: 1369.056826 | BB53: 1319.455256 | BC53: 1251.093797 | BD53: 1167.511497 | BE53: 1117.809927 | BF53: 984.9260582 | BG53: 734.2791598 | BH53: 734.1791598 | BI53: 541.1177005 | BJ53: 457.5354011 | BK53: 457.4354011 | BL53: 407.8338312 | BM53: 283.0338312 | BN53: 1452.539125 | BO53: 14 | BP53: 14 | BQ53: 13 | BR53: 12 | BS53: 11 | BT53: 10 | BU53: 9 | BV53: 8 | BW53: 7 | BX53: 6 | BY53: 5 | BZ53: 4 | CA53: 3 | CB53: 2 | CC53: 1 | CE53: 0 | CF53: -83.48229947 | CG53: -49.60156984 | CH53: -68.36145926 | CI53: -83.58229947 | CJ53: -49.70156984 | CK53: -132.8838693 | CL53: -250.6468984 | CM53: -0.1 | CN53: -193.0614593 | CO53: -83.58229947 | CP53: -0.1 | CQ53: -49.60156984 | CR53: -124.8 | CS53: 72.66325788
AU54: O | AV54: 11 | AW54: A | AX54: 3 | AY54: 639.2739418 | AZ54: 597.8562413 | BA54: 548.3546714 | BB54: 498.8531016 | BC54: 498.7531016 | BD54: 407.8338312 | BE54: 317.1145609 | BF54: 200.3984302 | BG54: 200.3984302 | BH54: 200.3984302 | BI54: 200.3984302 | BJ54: 200.3984302 | BK54: 166.3177005 | BL54: 125 | BM54: 125 | BN54: 639.2739418 | BO54: 15 | BP54: 14 | BQ54: 13 | BR54: 12 | BS54: 11 | BT54: 10 | BU54: 9 | BV54: 4 | BW54: 4 | BX54: 4 | BY54: 4 | BZ54: 4 | CA54: 3 | CB54: 1 | CC54: 1 | CE54: -41.41770053 | CF54: -49.50156984 | CG54: -49.50156984 | CH54: -0.1 | CI54: -90.91927037 | CJ54: -90.71927037 | CK54: -116.7161307 | CL54: 0 | CM54: 0 | CN54: 0 | CO54: 0 | CP54: -34.08072963 | CQ54: -41.31770053 | CR54: 0 | CS54: 39.91586035
AU55: O | AV55: 11 | AW55: A | AX55: 4 | AY55: 583.0354011 | AZ55: 533.4338312 | BA55: 499.1531016 | BB55: 499.0531016 | BC55: 498.9531016 | BD55: 457.5354011 | BE55: 408.0338312 | BF55: 407.8338312 | BG55: 283.0338312 | BH55: 283.0338312 | BI55: 283.0338312 | BJ55: 283.0338312 | BK55: 207.6354011 | BL55: 166.3177005 | BM55: 166.3177005 | BN55: 583.0354011 | BO55: 15 | BP55: 14 | BQ55: 13 | BR55: 12 | BS55: 11 | BT55: 10 | BU55: 9 | BV55: 8 | BW55: 4 | BX55: 4 | BY55: 4 | BZ55: 4 | CA55: 3 | CB55: 1 | CC55: 1 | CE55: -49.60156984 | CF55: -34.28072963 | CG55: -0.1 | CH55: -0.1 | CI55: -41.41770053 | CJ55: -49.50156984 | CK55: -0.2 | CL55: -124.8 | CM55: 0 | CN55: 0 | CO55: 0 | CP55: -75.39843016 | CQ55: -41.31770053 | CR55: 0 | CS55: 37.58545092
AU56: O | AV56: 11 | AW56: A | AX56: 5 | AY56: 635.3760201 | AZ56: 533.0338312 | BA56: 449.4515318 | BB56: 449.3515318 | BC56: 407.8338312 | BD56: 332.4354011 | BE56: 166.3177005 | BF56: 166.3177005 | BG56: 166.3177005 | BH56: 166.3177005 | BI56: 166.3177005 | BJ56: 125 | BK56: 125 | BL56: 125 | BM56: 125 | BN56: 635.3760201 | BO56: 15 | BP56: 14 | BQ56: 13 | BR56: 12 | BS56: 11 | BT56: 10 | BU56: 5 | BV56: 5 | BW56: 5 | BX56: 5 | BY56: 5 | BZ56: 1 | CA56: 1 | CB56: 1 | CC56: 1 | CE56: -102.3421889 | CF56: -83.58229947 | CG56: -0.1 | CH56: -41.51770053 | CI56: -75.39843016 | CJ56: =BE56-BD56 -> -166.1177005 | CK56: 0 | CL56: 0 | CM56: 0 | CN56: 0 | CO56: -41.31770053 | CP56: 0 | CQ56: 0 | CR56: 0 | CS56: 52.30446566
AU57: O | AV57: 12 | AW57: A | AX57: 1 | AY57: 1791.517701 | AZ57: 1716.11927 | BA57: 1716.11927 | BB57: 1716.01927 | BC57: 1715.91927 | BD57: 1715.71927 | BE57: 1674.10157 | BF57: 1632.583869 | BG57: 1632.483869 | BH57: 1591.166169 | BI57: 1458.929198 | BJ57: 1417.511497 | BK57: 1375.893797 | BL57: 1341.613067 | BM57: 1292.211497 | BN57: 1791.517701 | BO57: 15 | BP57: 13 | BQ57: 13 | BR57: 12 | BS57: 11 | BT57: 10 | BU57: 9 | BV57: 8 | BW57: 7 | BX57: 6 | BY57: 5 | BZ57: 4 | CA57: 3 | CB57: 2 | CC57: 1 | CE57: -75.39843016 | CF57: 0 | CG57: -0.1 | CH57: -0.1 | CI57: -0.2 | CJ57: -41.61770053 | CK57: -41.51770053 | CL57: -0.1 | CM57: -41.31770053 | CN57: -132.2369709 | CO57: -41.41770053 | CP57: -41.61770053 | CQ57: -34.28072963 | CR57: -49.40156984 | CS57: 36.7842323
AU58: O | AV58: 12 | AW58: A | AX58: 2 | AY58: 1784.28073 | AZ58: 1784.28073 | BA58: 1750.2 | BB58: 1750.1 | BC58: 1715.91927 | BD58: 1715.81927 | BE58: 1631.936971 | BF58: 1582.435401 | BG58: 1498.853102 | BH58: 1297.707773 | BI58: 1149.303064 | BJ58: 1047.060875 | BK58: 963.4785752 | BL58: 913.8770053 | BM58: 804.2978455 | BN58: 1784.28073 | BO58: 14 | BP58: 14 | BQ58: 13 | BR58: 12 | BS58: 11 | BT58: 10 | BU58: 9 | BV58: 8 | BW58: 7 | BX58: 6 | BY58: 5 | BZ58: 4 | CA58: 3 | CB58: 2 | CC58: 1 | CE58: 0 | CF58: -34.08072963 | CG58: -0.1 | CH58: -34.18072963 | CI58: -0.1 | CJ58: -83.88229947 | CK58: -49.50156984 | CL58: -83.58229947 | CM58: -201.1453286 | CN58: -148.4047095 | CO58: -102.2421889 | CP58: -83.58229947 | CQ58: -49.60156984 | CR58: -109.5791598 | CS58: 58.56991611
AU59: O | AV59: 12 | AW59: A | AX59: 3 | AY59: 1750.2 | AZ59: 1750.2 | BA59: 1716.01927 | BB59: 1715.91927 | BC59: 1715.81927 | BD59: 1666.017701 | BE59: 1575.19843 | BF59: 1484.27916 | BG59: 1400.69686 | BH59: 1301.793721 | BI59: 1161.67288 | BJ59: 1120.15518 | BK59: 1029.23591 | BL59: 938.2166392 | BM59: 896.7989386 | BN59: 1750.2 | BO59: 14 | BP59: 14 | BQ59: 13 | BR59: 12 | BS59: 11 | BT59: 10 | BU59: 9 | BV59: 8 | BW59: 7 | BX59: 6 | BY59: 5 | BZ59: 4 | CA59: 3 | CB59: 2 | CC59: 1 | CE59: 0 | CF59: -34.18072963 | CG59: -0.1 | CH59: -0.1 | CI59: -49.80156984 | CJ59: -90.81927037 | CK59: -90.91927037 | CL59: -83.58229947 | CM59: -98.90313968 | CN59: -140.1208402 | CO59: -41.51770053 | CP59: -90.91927037 | CQ59: -91.01927037 | CR59: -41.41770053 | CS59: 43.44199093
AU60: O | AV60: 12 | AW60: A | AX60: 4 | AY60: 1784.28073 | AZ60: 1784.28073 | BA60: 1784.28073 | BB60: 1784.28073 | BC60: 1784.28073 | BD60: 1750.2 | BE60: 1750.2 | BF60: 1750.2 | BG60: 1750.2 | BH60: 1750.2 | BI60: 1716.01927 | BJ60: 1715.91927 | BK60: 1715.81927 | BL60: 1715.41927 | BM60: 1665.917701 | BN60: 1784.28073 | BO60: 11 | BP60: 11 | BQ60: 11 | BR60: 11 | BS60: 11 | BT60: 6 | BU60: 6 | BV60: 6 | BW60: 6 | BX60: 6 | BY60: 5 | BZ60: 4 | CA60: 3 | CB60: 2 | CC60: 1 | CE60: 0 | CF60: 0 | CG60: 0 | CH60: 0 | CI60: -34.08072963 | CJ60: 0 | CK60: 0 | CL60: 0 | CM60: 0 | CN60: -34.18072963 | CO60: -0.1 | CP60: -0.1 | CQ60: -0.4 | CR60: -49.50156984 | CS60: 17.05128768
AU61: O | AV61: 12 | AW61: A | AX61: 5 | AY61: 1825.59843 | AZ61: 1784.28073 | BA61: 1750.2 | BB61: 1750.1 | BC61: 1715.91927 | BD61: 1715.81927 | BE61: 1681.338541 | BF61: 1639.92084 | BG61: 1564.42241 | BH61: 1462.080221 | BI61: 1371.160951 | BJ61: 1227.601061 | BK61: 1152.102631 | BL61: 1110.684931 | BM61: 985.6849307 | BN61: 1825.59843 | BO61: 15 | BP61: 14 | BQ61: 13 | BR61: 12 | BS61: 11 | BT61: 10 | BU61: 9 | BV61: 8 | BW61: 7 | BX61: 6 | BY61: 5 | BZ61: 4 | CA61: 3 | CB61: 2 | CC61: 1 | CE61: -41.31770053 | CF61: -34.08072963 | CG61: -0.1 | CH61: -34.18072963 | CI61: -0.1 | CJ61: -34.48072963 | CK61: -41.41770053 | CL61: -75.49843016 | CM61: -102.3421889 | CN61: -90.91927037 | CO61: -143.5598894 | CP61: -75.49843016 | CQ61: -41.41770053 | CR61: -125 | CS61: 43.53764771
AU62: O | AV62: 13 | AW62: A | AX62: 1 | AY62: 1495.35518 | AZ62: 1404.33591 | BA62: 1362.818209 | BB62: 1362.718209 | BC62: 1321.200508 | BD62: 1189.163538 | BE62: 1189.163538 | BF62: 1098.244267 | BG62: 1098.044267 | BH62: 1097.844267 | BI62: 1056.426567 | BJ62: 973.7911656 | BK62: 890.9557645 | BL62: 890.8557645 | BM62: 890.6557645 | BN62: 1495.35518 | BO62: 15 | BP62: 14 | BQ62: 13 | BR62: 12 | BS62: 11 | BT62: 9 | BU62: 9 | BV62: 8 | BW62: 7 | BX62: 6 | BY62: 5 | BZ62: 4 | CA62: 3 | CB62: 2 | CC62: 1 | CE62: -91.01927037 | CF62: -41.51770053 | CG62: -0.1 | CH62: -41.51770053 | CI62: -132.0369709 | CJ62: 0 | CK62: -90.91927037 | CL62: -0.2 | CM62: -0.2 | CN62: -41.41770053 | CO62: -82.63540107 | CP62: -82.83540107 | CQ62: -0.1 | CR62: -0.2 | CS62: 45.33569725
AU63: O | AV63: 13 | AW63: A | AX63: 2 | AY63: 1189.163538 | AZ63: 1139.561968 | BA63: 1055.979668 | BB63: 972.1973688 | BC63: 896.7989386 | BD63: 847.2973688 | BE63: 714.3134995 | BF63: 612.0713106 | BG63: 611.7713106 | BH63: 509.3291217 | BI63: 475.1483921 | BJ63: 475.1483921 | BK63: 441.0676625 | BL63: 406.9869328 | BM63: 372.9062032 | BN63: 1189.163538 | BO63: 15 | BP63: 14 | BQ63: 13 | BR63: 12 | BS63: 11 | BT63: 10 | BU63: 9 | BV63: 8 | BW63: 7 | BX63: 6 | BY63: 4 | BZ63: 4 | CA63: 3 | CB63: 2 | CC63: 1 | CE63: -49.60156984 | CF63: -83.58229947 | CG63: -83.78229947 | CH63: -75.39843016 | CI63: -49.50156984 | CJ63: -132.9838693 | CK63: -102.2421889 | CL63: -0.3 | CM63: -102.4421889 | CN63: -34.18072963 | CO63: 0 | CP63: -34.08072963 | CQ63: -34.08072963 | CR63: -34.08072963 | CS63: 39.51187836
AU64: O | AV64: 13 | AW64: A | AX64: 3 | AY64: 1833.682299 | AZ64: 1784.28073 | BA64: 1784.28073 | BB64: 1784.28073 | BC64: 1742.863029 | BD64: 1742.763029 | BE64: 1701.245329 | BF64: 1610.126058 | BG64: 1560.624488 | BH64: 1560.324488 | BI64: 1469.605218 | BJ64: 1378.685948 | BK64: 1238.565107 | BL64: 1189.163538 | BM64: 1098.244267 | BN64: 1833.682299 | BO64: 15 | BP64: 12 | BQ64: 12 | BR64: 12 | BS64: 11 | BT64: 10 | BU64: 9 | BV64: 8 | BW64: 7 | BX64: 6 | BY64: 5 | BZ64: 4 | CA64: 3 | CB64: 2 | CC64: 1 | CE64: -49.40156984 | CF64: 0 | CG64: 0 | CH64: -41.41770053 | CI64: -0.1 | CJ64: -41.51770053 | CK64: -91.11927037 | CL64: -49.50156984 | CM64: -0.3 | CN64: -90.71927037 | CO64: -90.91927037 | CP64: -140.1208402 | CQ64: -49.40156984 | CR64: -90.91927037 | CS64: 43.70914238
AU65: O | AV65: 13 | AW65: A | AX65: 4 | AY65: 1610.926058 | AZ65: 1610.926058 | BA65: 1561.524488 | BB65: 1520.206788 | BC65: 1470.705218 | BD65: 1470.405218 | BE65: 1428.587517 | BF65: 1387.269817 | BG65: 1337.668247 | BH65: 1288.166677 | BI65: 1238.565107 | BJ65: 1238.565107 | BK65: 1189.163538 | BL65: 1139.561968 | BM65: 1139.361968 | BN65: 1610.926058 | BO65: 14 | BP65: 14 | BQ65: 13 | BR65: 12 | BS65: 11 | BT65: 10 | BU65: 9 | BV65: 8 | BW65: 7 | BX65: 6 | BY65: 4 | BZ65: 4 | CA65: 3 | CB65: 2 | CC65: 1 | CE65: 0 | CF65: -49.40156984 | CG65: -41.31770053 | CH65: -49.50156984 | CI65: -0.3 | CJ65: -41.81770053 | CK65: -41.31770053 | CL65: -49.60156984 | CM65: -49.50156984 | CN65: -49.60156984 | CO65: 0 | CP65: -49.40156984 | CQ65: -49.60156984 | CR65: -0.2 | CS65: 22.26100314
AU66: O | AV66: 13 | AW66: A | AX66: 5 | AY66: 1321.200508 | AZ66: 1189.163538 | BA66: 1189.163538 | BB66: 1098.244267 | BC66: 1098.144267 | BD66: 1029.682808 | BE66: 995.6020783 | BF66: 954.2843778 | BG66: 837.3682471 | BH66: 686.5713868 | BI66: 652.2906571 | BJ66: 602.5890873 | BK66: 500.3468984 | BL66: 466.1661688 | BM66: 424.8484682 | BN66: 1321.200508 | BO66: 15 | BP66: 13 | BQ66: 13 | BR66: 12 | BS66: 11 | BT66: 10 | BU66: 9 | BV66: 8 | BW66: 7 | BX66: 6 | BY66: 5 | BZ66: 4 | CA66: 3 | CB66: 2 | CC66: 1 | CE66: -132.0369709 | CF66: 0 | CG66: -90.91927037 | CH66: -0.1 | CI66: -68.46145926 | CJ66: -34.08072963 | CK66: -41.31770053 | CL66: -116.9161307 | CM66: -150.7968603 | CN66: -34.28072963 | CO66: -49.70156984 | CP66: -102.2421889 | CQ66: -34.18072963 | CR66: -41.31770053 | CS66: 47.43421707
AU67: O | AV67: 14 | AW67: A | AX67: 1 | AY67: 854.7463138 | AZ67: 805.2447439 | BA67: 763.8270434 | BB67: 680.9916423 | BC67: 639.3739418 | BD67: 597.9562413 | BE67: 563.7755116 | BF67: 563.6755116 | BG67: 481.0401106 | BH67: 439.42241 | BI67: 398.0047095 | BJ67: 398.0047095 | BK67: 398.0047095 | BL67: 348.6031397 | BM67: 307.2854391 | BN67: =MAX(AY67:BM67) -> 854.7463138 | BO67: 15 | BP67: 14 | BQ67: 13 | BR67: 12 | BS67: 11 | BT67: 10 | BU67: 9 | BV67: 8 | BW67: 7 | BX67: 6 | BY67: 3 | BZ67: 3 | CA67: 3 | CB67: 2 | CC67: 1 | CE67: -49.50156984 | CF67: -41.41770053 | CG67: -82.83540107 | CH67: -41.61770053 | CI67: -41.41770053 | CJ67: -34.18072963 | CK67: -0.1 | CL67: -82.63540107 | CM67: -41.61770053 | CN67: -41.41770053 | CO67: 0 | CP67: 0 | CQ67: -49.40156984 | CR67: -41.31770053 | CS67: =STDEV(CE67:CR67) -> 25.80840865
AU68: O | AV68: 14 | AW68: A | AX68: 2 | AY68: 1266.414637 | AZ68: 1182.732338 | BA68: 1030.988579 | BB68: 989.3708783 | BC68: 788.3255497 | BD68: 655.2416804 | BE68: 556.4385407 | BF68: 481.0401106 | BG68: 431.3385407 | BH68: 397.2578111 | BI68: 397.1578111 | BJ68: 248.9531016 | BK68: 248.9531016 | BL68: 207.6354011 | BM68: 166.3177005 | BN68: 1266.414637 | BO68: =RANK(AY68,$AY68:$BM68, 1) -> 15 | BP68: 14 | BQ68: 13 | BR68: 12 | BS68: 11 | BT68: 10 | BU68: 9 | BV68: 8 | BW68: 7 | BX68: 6 | BY68: 5 | BZ68: 3 | CA68: 3 | CB68: 2 | CC68: 1 | CE68: -83.68229947 | CF68: -151.7437587 | CG68: -41.61770053 | CH68: -201.0453286 | CI68: -133.0838693 | CJ68: -98.80313968 | CK68: -75.39843016 | CL68: -49.70156984 | CM68: -34.08072963 | CN68: -0.1 | CO68: -148.2047095 | CP68: 0 | CQ68: -41.31770053 | CR68: -41.31770053 | CS68: 60.70441659
AU69: O | AV69: 14 | AW69: A | AX69: 3 | AY69: 1026.802631 | AZ69: 894.6656603 | BA69: 844.9640905 | BB69: 746.1609508 | BC69: 696.5593809 | BD69: 522.3578111 | BE69: 481.0401106 | BF69: 480.7401106 | BG69: 348.7031397 | BH69: 348.6031397 | BI69: 249.8 | BJ69: 200.3984302 | BK69: 166.3177005 | BL69: 166.3177005 | BM69: 125 | BN69: 1026.802631 | BO69: 15 | BP69: 14 | BQ69: 13 | BR69: 12 | BS69: 11 | BT69: 10 | BU69: 9 | BV69: 8 | BW69: 7 | BX69: 6 | BY69: 5 | BZ69: 4 | CA69: 2 | CB69: 2 | CC69: 1 | CE69: -132.1369709 | CF69: -49.70156984 | CG69: -98.80313968 | CH69: -49.60156984 | CI69: -174.2015698 | CJ69: -41.31770053 | CK69: -0.3 | CL69: -132.0369709 | CM69: -0.1 | CN69: -98.80313968 | CO69: -49.40156984 | CP69: -34.08072963 | CQ69: 0 | CR69: -41.31770053 | CS69: 54.50623426
AU70: O | AV70: 14 | AW70: A | AX70: 4 | AY70: 1031.688579 | AZ70: 929.2463899 | BA70: 879.8448201 | BB70: 830.3432503 | BC70: 746.6609508 | BD70: 746.5609508 | BE70: 647.3578111 | BF70: 556.6385407 | BG70: 556.4385407 | BH70: 556.4385407 | BI70: 481.0401106 | BJ70: 480.7401106 | BK70: 480.7401106 | BL70: 431.2385407 | BM70: 389.9208402 | BN70: 1031.688579 | BO70: 15 | BP70: 14 | BQ70: 13 | BR70: 12 | BS70: 11 | BT70: 10 | BU70: 9 | BV70: 8 | BW70: 6 | BX70: 6 | BY70: 5 | BZ70: 3 | CA70: 3 | CB70: 2 | CC70: 1 | CE70: -102.4421889 | CF70: -49.40156984 | CG70: -49.50156984 | CH70: -83.68229947 | CI70: -0.1 | CJ70: -99.20313968 | CK70: -90.71927037 | CL70: -0.2 | CM70: 0 | CN70: -75.39843016 | CO70: -0.3 | CP70: 0 | CQ70: -49.50156984 | CR70: -41.31770053 | CS70: 40.07966293
AU71: O | AV71: 14 | AW71: A | AX71: 5 | AY71: 1260.47602 | AZ71: 1210.87445 | BA71: 1086.07445 | BB71: 960.9744503 | BC71: 851.2952905 | BD71: 775.7968603 | BE71: 734.2791598 | BF71: 632.0369709 | BG71: 597.7562413 | BH71: 597.7562413 | BI71: 481.0401106 | BJ71: 480.7401106 | BK71: 364.0239799 | BL71: 363.9239799 | BM71: 363.9239799 | BN71: 1260.47602 | BO71: 15 | BP71: 14 | BQ71: 13 | BR71: 12 | BS71: 11 | BT71: 10 | BU71: 9 | BV71: 8 | BW71: 6 | BX71: 6 | BY71: 5 | BZ71: 4 | CA71: 3 | CB71: 1 | CC71: 1 | CE71: -49.60156984 | CF71: -124.8 | CG71: -125.1 | CH71: -109.6791598 | CI71: -75.49843016 | CJ71: -41.51770053 | CK71: -102.2421889 | CL71: -34.28072963 | CM71: 0 | CN71: -116.7161307 | CO71: -0.3 | CP71: -116.7161307 | CQ71: -0.1 | CR71: 0 | CS71: 51.5885924
AU72: O | AV72: 15 | AW72: A | AX72: 1 | AY72: 1375.2 | AZ72: 1333.482299 | BA72: 1250.846898 | BB72: 1209.129198 | BC72: 1118.409927 | BD72: 1118.409927 | BE72: 1118.209927 | BF72: 985.9729566 | BG72: 944.5552561 | BH72: 903.1375555 | BI72: 903.1375555 | BJ72: 902.9375555 | BK72: 853.4359857 | BL72: 811.9182852 | BM72: 678.7344159 | BN72: 1375.2 | BO72: 15 | BP72: 14 | BQ72: 13 | BR72: 12 | BS72: 10 | BT72: 10 | BU72: 9 | BV72: 8 | BW72: 7 | BX72: 5 | BY72: 5 | BZ72: 4 | CA72: 3 | CB72: 2 | CC72: 1 | CE72: -41.71770053 | CF72: -82.63540107 | CG72: -41.71770053 | CH72: -90.71927037 | CI72: 0 | CJ72: -0.2 | CK72: -132.2369709 | CL72: -41.41770053 | CM72: -41.41770053 | CN72: 0 | CO72: -0.2 | CP72: -49.50156984 | CQ72: -41.51770053 | CR72: -133.1838693 | CS72: 45.33761736
AU73: O | AV73: 15 | AW73: A | AX73: 2 | AY73: 994.0568259 | AZ73: 944.5552561 | BA73: 826.892227 | BB73: 652.6906571 | BC73: 603.0890873 | BD73: 451.4453286 | BE73: 417.1645989 | BF73: 367.4630291 | BG73: 200.4984302 | BH73: 200.3984302 | BI73: 166.3177005 | BJ73: 166.3177005 | BK73: 166.3177005 | BL73: 166.3177005 | BM73: 166.3177005 | BN73: 994.0568259 | BO73: 15 | BP73: 14 | BQ73: 13 | BR73: 12 | BS73: 11 | BT73: 10 | BU73: 9 | BV73: 8 | BW73: 7 | BX73: 6 | BY73: 1 | BZ73: 1 | CA73: 1 | CB73: 1 | CC73: 1 | CE73: -49.50156984 | CF73: -117.6630291 | CG73: -174.2015698 | CH73: -49.60156984 | CI73: -151.6437587 | CJ73: -34.28072963 | CK73: -49.70156984 | CL73: -166.9645989 | CM73: -0.1 | CN73: -34.08072963 | CO73: 0 | CP73: 0 | CQ73: 0 | CR73: 0 | CS73: 65.54035229
AU74: O | AV74: 15 | AW74: A | AX74: 3 | AY74: 1557.985439 | AZ74: 1516.567739 | BA74: 1433.632338 | BB74: 1433.232338 | BC74: 1391.814637 | BD74: 1316.216207 | BE74: 1266.814637 | BF74: 1266.614637 | BG74: 1217.213067 | BH74: 1126.193797 | BI74: 994.0568259 | BJ74: 944.5552561 | BK74: 853.7359857 | BL74: 754.932846 | BM74: 754.732846 | BN74: 1557.985439 | BO74: 15 | BP74: 14 | BQ74: 13 | BR74: 12 | BS74: 11 | BT74: 10 | BU74: 9 | BV74: 8 | BW74: 7 | BX74: 6 | BY74: 5 | BZ74: 4 | CA74: 3 | CB74: 2 | CC74: 1 | CE74: -41.41770053 | CF74: -82.93540107 | CG74: -0.4 | CH74: -41.41770053 | CI74: -75.59843016 | CJ74: -49.40156984 | CK74: -0.2 | CL74: -49.40156984 | CM74: -91.01927037 | CN74: -132.1369709 | CO74: -49.50156984 | CP74: -90.81927037 | CQ74: -98.80313968 | CR74: -0.2 | CS74: 40.21485707
AU75: O | AV75: 15 | AW75: A | AX75: 4 | AY75: 1251.693797 | AZ75: 1210.276096 | BA75: 1160.574526 | BB75: 1085.176096 | BC75: 1043.858396 | BD75: 994.2568259 | BE75: 994.0568259 | BF75: 944.5552561 | BG75: 944.4552561 | BH75: 853.7359857 | BI75: 686.5713868 | BJ75: 652.4906571 | BK75: 652.1906571 | BL75: 651.9906571 | BM75: 602.4890873 | BN75: 1251.693797 | BO75: 15 | BP75: 14 | BQ75: 13 | BR75: 12 | BS75: 11 | BT75: 10 | BU75: 9 | BV75: 8 | BW75: 7 | BX75: 6 | BY75: 5 | BZ75: 4 | CA75: 3 | CB75: 2 | CC75: 1 | CE75: -41.41770053 | CF75: -49.70156984 | CG75: -75.39843016 | CH75: -41.31770053 | CI75: -49.60156984 | CJ75: -0.2 | CK75: -49.50156984 | CL75: -0.1 | CM75: -90.71927037 | CN75: -167.1645989 | CO75: -34.08072963 | CP75: -0.3 | CQ75: -0.2 | CR75: -49.50156984 | CS75: 44.8671297
AU76: O | AV76: 15 | AW76: A | AX76: 5 | AY76: 1469.905218 | AZ76: 1387.269817 | BA76: 1386.969817 | BB76: 1345.652116 | BC76: 1270.053686 | BD76: 1220.652116 | BE76: 1152.490657 | BF76: 1110.872957 | BG76: 944.6552561 | BH76: 944.5552561 | BI76: 869.0568259 | BJ76: 800.8953666 | BK76: 800.6953666 | BL76: 649.0516079 | BM76: 614.8708783 | BN76: 1469.905218 | BO76: 15 | BP76: 14 | BQ76: 13 | BR76: 12 | BS76: 11 | BT76: 10 | BU76: 9 | BV76: 8 | BW76: 7 | BX76: 6 | BY76: 5 | BZ76: 4 | CA76: 3 | CB76: 2 | CC76: 1 | CE76: -82.63540107 | CF76: -0.3 | CG76: -41.31770053 | CH76: -75.59843016 | CI76: -49.40156984 | CJ76: -68.16145926 | CK76: -41.61770053 | CL76: -166.2177005 | CM76: -0.1 | CN76: -75.49843016 | CO76: -68.16145926 | CP76: -0.2 | CQ76: -151.6437587 | CR76: -34.18072963 | CS76: 50.37380622
BO77: =AVERAGE(BO2:BO76) -> 14.70666667 | BP77: =AVERAGE(BP2:BP76) -> 13.85333333 | BQ77: 12.88 | BR77: 11.89333333 | BS77: 10.85333333 | BT77: 9.786666667 | BU77: 8.786666667 | BV77: 7.773333333 | BW77: 6.76 | BX77: 5.84 | BY77: 4.76 | BZ77: 3.693333333 | CA77: 2.733333333 | CB77: 1.813333333 | CC77: 1
BO78: =STDEV(BO2:BO76) -> 0.652921363 | BP78: =STDEV(BP2:BP76) -> 0.4847215231 | BQ78: 0.3661339291 | BR78: 0.3881116214 | BS78: 0.6301722916 | BT78: 0.7031460833 | BU78: 0.7762232427 | BV78: 0.708506868 | BW78: 0.633309625 | BX78: 0.4361998054 | BY78: 0.8356903603 | BZ78: 0.8049397045 | CA78: 0.6224045207 | CB78: 0.3922676049 | CC78: 0

Sheet nn - ranked data - new (34)
A1: irány | B1: 0 | C1: 0 | D1: 0 | E1: 0 | F1: 0 | M1: súlyok | U1: 2. layer vektor | AK1: 2 layer súlyok | AS1: Futtat | AY1: 1 | AZ1: 2 | BA1: 3 | BB1: 4 | BC1: 5 | BD1: 6 | BE1: 7 | BF1: 8 | BG1: 9 | BH1: 10 | BI1: 11 | BJ1: 12 | BK1: 13 | BL1: 14 | BM1: 15 | BO1: Ranking | CE1: O2 - O1 | CF1: O3 - O2 | CG1: O4 - O3 | CH1: O5 - O4 | CI1: O6 - O5 | CJ1: O7 - O6 | CK1: O8 - O7 | CL1: O9 - O8 | CM1: O10 - O9 | CN1: O11 - O10 | CO1: O12 - O11 | CP1: O13 - 12 | CQ1: O14 - O13 | CR1: O15 - O14
A2: rnd(1-100) | B2: A1 | C2: A2 | D2: A3 | E2: A4 | F2: A5 | H2: rank = 0 | I2: =B2 -> A1 | J2: A2 | K2: A3 | L2: A4 | M2: A5 | O2: w1 | P2: w2 | Q2: w3 | R2: w4 | S2: w5 | U2: O1 | V2: O2 | W2: O3 | X2: O4 | Y2: O5 | Z2: O6 | AA2: O7 | AB2: O8 | AC2: O9 | AD2: O10 | AE2: O11 | AF2: O12 | AG2: O13 | AH2: O14 | AI2: O15 | AK2: w6 | AN2: Y0 | AO2: Ybecslés | AP2: eltérés | AQ2: MAE | AU2: O | AV2: 1 | AW2: A | AX2: 1 | AY2: 7.23674101 | AZ2: 7.79787161 | BA2: 8.35900221 | BB2: 8.92013281 | BC2: 9.48126341 | BD2: 9.94551675 | BE2: 9.95516852 | BF2: 9.96482029 | BG2: 9.97447206 | BH2: 9.98412383 | BI2: 9.9937756 | BJ2: 10.00342737 | BK2: 10.01307914 | BL2: 10.02273091 | BM2: 10.03238268 | BO2: =RANK(AY2,$AY2:$BM2, 1) -> 1 | BP2: =RANK(AZ2,$AY2:$BM2, 1) -> 2 | BQ2: 3 | BR2: 4 | BS2: 5 | BT2: 6 | BU2: 7 | BV2: =RANK(BF2,$AY2:$BM2, 1) -> 8 | BW2: 9 | BX2: 10 | BY2: 11 | BZ2: 12 | CA2: 13 | CB2: 14 | CC2: 15 | CE2: =AZ2-AY2 -> 0.5611306 | CF2: =BA2-AZ2 -> 0.5611306 | CG2: 0.5611306 | CH2: 0.5611306 | CI2: =BD2-BC2 -> 0.46425334 | CJ2: 0.00965177 | CK2: 0.00965177 | CL2: 0.00965177 | CM2: =BH2-BG2 -> 0.00965177 | CN2: 0.00965177 | CO2: 0.00965177 | CP2: 0.00965177 | CQ2: 0.00965177 | CR2: =BM2-BL2 -> 0.00965177 | CS2: =STDEV(CE2:CR2) -> 0.2656750111
A3: O1 | B3: 70 | C3: 10 | D3: 93 | E3: 33 | F3: 29 | H3: =A3 -> O1 | I3: 6 | J3: 13 | K3: 2 | L3: 11 | M3: 10 | O3: 0.17837822 | P3: 0.13921523 | Q3: 0.15091406 | R3: 0.15942907 | S3: 0.12971492 | U3: =$I$3*$O3+$J$3*$P3+$K$3*$Q3+$L$3*$R3+$M$3*$S3 -> 6.2327644 | V3: =$I$4*$O3+$J$4*$P3+$K$4*$Q3+$L$4*$R3+$M$4*$S3 -> 5.8927315 | W3: =$I$5*$O3+$J$5*$P3+$K$5*$Q3+$L$5*$R3+$M$5*$S3 -> 4.39990195 | X3: =$I$6*$O3+$J$6*$P3+$K$6*$Q3+$L$6*$R3+$M$6*$S3 -> 5.65393183 | Y3: =$I$7*$O3+$J$7*$P3+$K$7*$Q3+$L$7*$R3+$M$7*$S3 -> 6.98359906 | Z3: =$I$8*$O3+$J$8*$P3+$K$8*$Q3+$L$8*$R3+$M$8*$S3 -> 5.40091387 | AA3: =$I$9*$O3+$J$9*$P3+$K$9*$Q3+$L$9*$R3+$M$9*$S3 -> 7.75385879 | AB3: =$I$10*$O3+$J$10*$P3+$K$10*$Q3+$L$10*$R3+$M$10*$S3 -> 4.60574401 | AC3: =$I$11*$O3+$J$11*$P3+$K$11*$Q3+$L$11*$R3+$M$11*$S3 -> 7.22418237 | AD3: =$I$12*$O3+$J$12*$P3+$K$12*$Q3+$L$12*$R3+$M$12*$S3 -> 4.61667127 | AE3: =$I$13*$O3+$J$13*$P3+$K$13*$Q3+$L$13*$R3+$M$13*$S3 -> 6.2555413 | AF3: =$I$14*$O3+$J$14*$P3+$K$14*$Q3+$L$14*$R3+$M$14*$S3 -> 7.77044778 | AG3: =$I$15*$O3+$J$15*$P3+$K$15*$Q3+$L$15*$R3+$M$15*$S3 -> 4.27094175 | AH3: =$I$16*$O3+$J$16*$P3+$K$16*$Q3+$L$16*$R3+$M$16*$S3 -> 4.52515874 | AI3: =$I$17*$O3+$J$17*$P3+$K$17*$Q3+$L$17*$R3+$M$17*$S3 -> 8.33585771 | AK3: 100 | AM3: O1 | AN3: 1000 | AO3: =U30 -> 9.94551675 | AP3: =AN3-AO3 -> 990.0544832 | AQ3: =ABS(AP3) -> 990.0544832 | AU3: O | AV3: 1 | AW3: A | AX3: 2 | AY3: 4.56218164 | AZ3: 4.83009149 | BA3: 5.29513015 | BB3: 5.76016881 | BC3: 6.22520747 | BD3: 6.69024613 | BE3: 7.15528479 | BF3: 7.62032345 | BG3: 8.08536211 | BH3: 8.55040077 | BI3: 9.01543943 | BJ3: 9.48047809 | BK3: 9.94551675 | BL3: 10.05331706 | BM3: 10.06424011 | BO3: =RANK(AY3,$AY3:$BM3, 1) -> 1 | BP3: 2 | BQ3: 3 | BR3: 4 | BS3: 5 | BT3: 6 | BU3: 7 | BV3: 8 | BW3: 9 | BX3: 10 | BY3: 11 | BZ3: 12 | CA3: 13 | CB3: 14 | CC3: 15 | CE3: =AZ3-AY3 -> 0.26790985 | CF3: 0.46503866 | CG3: 0.46503866 | CH3: 0.46503866 | CI3: 0.46503866 | CJ3: 0.46503866 | CK3: 0.46503866 | CL3: 0.46503866 | CM3: 0.46503866 | CN3: 0.46503866 | CO3: 0.46503866 | CP3: 0.46503866 | CQ3: 0.10780031 | CR3: 0.01092305 | CS3: =STDEV(CE3:CR3) -> 0.1519246924
A4: O2 | B4: 17 | C4: 74 | D4: 84 | E4: 78 | F4: 23 | H4: =A4 -> O2 | I4: 13 | J4: 6 | K4: 4 | L4: 2 | M4: 14 | O4: 0.00965177 | P4: 0.46503866 | Q4: 0.43478802 | R4: 0.19912481 | S4: 0.07821546 | U4: =$I$3*$O4+$J$3*$P4+$K$3*$Q4+$L$3*$R4+$M$3*$S4 -> 9.94551675 | V4: =$I$4*$O4+$J$4*$P4+$K$4*$Q4+$L$4*$R4+$M$4*$S4 -> 6.14812311 | W4: =$I$5*$O4+$J$5*$P4+$K$5*$Q4+$L$5*$R4+$M$5*$S4 -> 6.69666063 | X4: =$I$6*$O4+$J$6*$P4+$K$6*$Q4+$L$6*$R4+$M$6*$S4 -> 6.55256175 | Y4: =$I$7*$O4+$J$7*$P4+$K$7*$Q4+$L$7*$R4+$M$7*$S4 -> 12.74828404 | Z4: =$I$8*$O4+$J$8*$P4+$K$8*$Q4+$L$8*$R4+$M$8*$S4 -> 11.44258963 | AA4: =$I$9*$O4+$J$9*$P4+$K$9*$Q4+$L$9*$R4+$M$9*$S4 -> 12.76418608 | AB4: =$I$10*$O4+$J$10*$P4+$K$10*$Q4+$L$10*$R4+$M$10*$S4 -> 5.54747122 | AC4: =$I$11*$O4+$J$11*$P4+$K$11*$Q4+$L$11*$R4+$M$11*$S4 -> 14.28672195 | AD4: =$I$12*$O4+$J$12*$P4+$K$12*$Q4+$L$12*$R4+$M$12*$S4 -> 7.46881641 | AE4: =$I$13*$O4+$J$13*$P4+$K$13*$Q4+$L$13*$R4+$M$13*$S4 -> 8.3924881 | AF4: =$I$14*$O4+$J$14*$P4+$K$14*$Q4+$L$14*$R4+$M$14*$S4 -> 13.77494278 | AG4: =$I$15*$O4+$J$15*$P4+$K$15*$Q4+$L$15*$R4+$M$15*$S4 -> 5.69732035 | AH4: =$I$16*$O4+$J$16*$P4+$K$16*$Q4+$L$16*$R4+$M$16*$S4 -> 4.00386112 | AI4: =$I$17*$O4+$J$17*$P4+$K$17*$Q4+$L$17*$R4+$M$17*$S4 -> 14.99890596 | AK4: 100 | AM4: O2 | AN4: 1000 | AO4: =V30 -> 6.14812311 | AP4: =AN4-AO4 -> 993.8518769 | AQ4: =ABS(AP4) -> 993.8518769 | AU4: O | AV4: 1 | AW4: A | AX4: 3 | AY4: 9.51072873 | AZ4: 9.94551675 | BA4: 10.38030477 | BB4: 10.81509279 | BC4: 11.22629415 | BD4: 11.62092753 | BE4: 12.01556091 | BF4: 12.41019429 | BG4: 12.80482767 | BH4: 13.19946105 | BI4: 13.59409443 | BJ4: 13.98872781 | BK4: 14.38336119 | BL4: 14.77799457 | BM4: 15.17262795 | BO4: =RANK(AY4,$AY4:$BM4, 1) -> 1 | BP4: 2 | BQ4: 3 | BR4: 4 | BS4: 5 | BT4: 6 | BU4: 7 | BV4: 8 | BW4: 9 | BX4: 10 | BY4: 11 | BZ4: 12 | CA4: 13 | CB4: 14 | CC4: 15 | CE4: 0.43478802 | CF4: 0.43478802 | CG4: 0.43478802 | CH4: 0.41120136 | CI4: 0.39463338 | CJ4: 0.39463338 | CK4: 0.39463338 | CL4: 0.39463338 | CM4: 0.39463338 | CN4: 0.39463338 | CO4: 0.39463338 | CP4: 0.39463338 | CQ4: 0.39463338 | CR4: 0.39463338 | CS4: 0.01703032599
A5: O3 | B5: 57 | C5: 57 | D5: 89 | E5: 37 | F5: 85 | H5: O3 | I5: 7 | J5: 7 | K5: 3 | L5: 10 | M5: 1 | O5: 0.07721187 | P5: 0.09975174 | Q5: 0.10348205 | R5: 0.06843713 | S5: 0.02211944 | U5: =$I$3*$O5+$J$3*$P5+$K$3*$Q5+$L$3*$R5+$M$3*$S5 -> 2.94101077 | V5: =$I$4*$O5+$J$4*$P5+$K$4*$Q5+$L$4*$R5+$M$4*$S5 -> 2.46273937 | W5: =$I$5*$O5+$J$5*$P5+$K$5*$Q5+$L$5*$R5+$M$5*$S5 -> 2.25568216 | X5: 2.76103849 | Y5: 3.48587511 | Z5: 3.00592839 | AA5: 4.15324843 | AB5: 2.19882738 | AC5: 3.7065225 | AD5: 2.09501632 | AE5: 2.95536045 | AF5: 3.86154404 | AG5: 1.91251856 | AH5: 1.78544173 | AI5: 4.45914554 | AK5: 100 | AM5: O3 | AN5: 1000 | AO5: =W30 -> 6.69666063 | AP5: 993.3033394 | AQ5: =ABS(AP5) -> 993.3033394 | AU5: O | AV5: 1 | AW5: A | AX5: 4 | AY5: 7.95426865 | AZ5: 8.15339346 | BA5: 8.35251827 | BB5: 8.55164308 | BC5: 8.75076789 | BD5: 8.9498927 | BE5: 9.14901751 | BF5: 9.34814232 | BG5: 9.54726713 | BH5: 9.74639194 | BI5: 9.94551675 | BJ5: 10.14464156 | BK5: 10.31148081 | BL5: 10.44602421 | BM5: 10.58056761 | BO5: 1 | BP5: 2 | BQ5: 3 | BR5: 4 | BS5: 5 | BT5: 6 | BU5: 7 | BV5: 8 | BW5: 9 | BX5: 10 | BY5: 11 | BZ5: 12 | CA5: 13 | CB5: 14 | CC5: 15 | CE5: 0.19912481 | CF5: 0.19912481 | CG5: 0.19912481 | CH5: 0.19912481 | CI5: 0.19912481 | CJ5: 0.19912481 | CK5: 0.19912481 | CL5: 0.19912481 | CM5: 0.19912481 | CN5: 0.19912481 | CO5: 0.19912481 | CP5: 0.16683925 | CQ5: 0.1345434 | CR5: 0.1345434 | CS5: 0.02405450113
A6: O4 | B6: 13 | C6: 88 | D6: 62 | E6: 44 | F6: 75 | H6: O4 | I6: 14 | J6: 4 | K6: 6 | L6: 9 | M6: 2 | O6: 0.09920991 | P6: 0.63917863 | Q6: 0.17624931 | R6: 0.23694727 | S6: 0.61001223 | U6: 17.96362254 | V6: =$I$4*$O6+$J$4*$P6+$K$4*$Q6+$L$4*$R6+$M$4*$S6 -> 14.84386361 | W6: 8.67695264 | X6: 8.35569901 | Y6: 17.95915757 | Z6: 12.78915588 | AA6: 15.68433074 | AB6: 6.90300475 | AC6: 17.91294131 | AD6: 14.4225038 | AE6: 10.21119812 | AF6: 21.95514435 | AG6: 8.53463712 | AH6: 12.0205455 | AI6: 19.54747017 | AK6: 100 | AM6: O4 | AN6: 1000 | AO6: =X30 -> 6.55256175 | AP6: 993.4474383 | AQ6: 993.4474383 | AU6: O | AV6: 1 | AW6: A | AX6: 5 | AY6: 6.20446407 | AZ6: 6.63090073 | BA6: 7.05733739 | BB6: 7.48377405 | BC6: 7.91021071 | BD6: 8.33664737 | BE6: 8.76308403 | BF6: 9.18952069 | BG6: 9.61595735 | BH6: 9.94551675 | BI6: 10.02373221 | BJ6: 10.10194767 | BK6: 10.18016313 | BL6: 10.25837859 | BM6: 10.33659405 | BO6: 1 | BP6: 2 | BQ6: 3 | BR6: 4 | BS6: 5 | BT6: 6 | BU6: 7 | BV6: 8 | BW6: 9 | BX6: 10 | BY6: 11 | BZ6: 12 | CA6: 13 | CB6: 14 | CC6: 15 | CE6: 0.42643666 | CF6: =BA6-AZ6 -> 0.42643666 | CG6: 0.42643666 | CH6: 0.42643666 | CI6: 0.42643666 | CJ6: 0.42643666 | CK6: 0.42643666 | CL6: 0.42643666 | CM6: 0.3295594 | CN6: 0.07821546 | CO6: 0.07821546 | CP6: 0.07821546 | CQ6: 0.07821546 | CR6: 0.07821546 | CS6: 0.1697002962
A7: O5 | B7: 76 | C7: 25 | D7: 28 | E7: 1 | F7: 33 | H7: O5 | I7: 3 | J7: 11 | K7: 9 | L7: 15 | M7: 9 | O7: 0.5611306 | P7: 0.01092305 | Q7: 0.39463338 | R7: 0.1345434 | S7: 0.42643666 | U7: 10.04239401 | V7: 15.17796966 | W7: 6.96014635 | X7: 12.3310848 | Y7: 11.21132671 | Z7: 7.93711288 | AA7: 16.48316984 | AB7: 11.29230313 | AC7: 12.72691295 | AD7: 9.82594382 | AE7: 13.70974979 | AF7: 16.31229156 | AG7: 9.64041353 | AH7: 11.87346855 | AI7: 16.64103395 | AK7: 100 | AM7: O5 | AN7: 1000 | AO7: =Y30 -> 11.21132671 | AP7: 988.7886733 | AQ7: 988.7886733 | AU7: O | AV7: 2 | AW7: A | AX7: 1 | AY7: 6.03230187 | AZ7: 6.04195364 | BA7: 6.05160541 | BB7: 6.06125718 | BC7: 6.07090895 | BD7: 6.08056072 | BE7: 6.09021249 | BF7: 6.09986426 | BG7: 6.10951603 | BH7: 6.1191678 | BI7: 6.12881957 | BJ7: 6.13847134 | BK7: 6.14812311 | BL7: 6.15777488 | BM7: 6.24948794 | BO7: 1 | BP7: 2 | BQ7: 3 | BR7: 4 | BS7: 5 | BT7: 6 | BU7: 7 | BV7: 8 | BW7: 9 | BX7: 10 | BY7: 11 | BZ7: 12 | CA7: 13 | CB7: 14 | CC7: 15 | CE7: 0.00965177 | CF7: 0.00965177 | CG7: 0.00965177 | CH7: 0.00965177 | CI7: 0.00965177 | CJ7: 0.00965177 | CK7: 0.00965177 | CL7: 0.00965177 | CM7: 0.00965177 | CN7: 0.00965177 | CO7: 0.00965177 | CP7: 0.00965177 | CQ7: 0.00965177 | CR7: 0.09171306 | CS7: 0.02193180228
A8: O6 | B8: 82 | C8: 33 | D8: 24 | E8: 33 | F8: 73 | H8: O6 | I8: 2 | J8: 10 | K8: 10 | L8: 11 | M8: 3 | AM8: O6 | AN8: 1000 | AO8: =Z30 -> 7.93711288 | AP8: 992.0628871 | AQ8: 992.0628871 | AU8: O | AV8: 2 | AW8: A | AX8: 2 | AY8: 5.19665535 | AZ8: 5.33587058 | BA8: 5.47508581 | BB8: 5.61430104 | BC8: 5.75351627 | BD8: 6.14812311 | BE8: 6.61316177 | BF8: 7.07820043 | BG8: 7.54323909 | BH8: 8.00827775 | BI8: 8.47331641 | BJ8: 8.93835507 | BK8: 9.40339373 | BL8: 9.86843239 | BM8: 10.33347105 | BO8: 1 | BP8: 2 | BQ8: 3 | BR8: 4 | BS8: 5 | BT8: 6 | BU8: 7 | BV8: 8 | BW8: 9 | BX8: 10 | BY8: 11 | BZ8: 12 | CA8: 13 | CB8: 14 | CC8: 15 | CE8: 0.13921523 | CF8: 0.13921523 | CG8: 0.13921523 | CH8: 0.13921523 | CI8: 0.39460684 | CJ8: 0.46503866 | CK8: 0.46503866 | CL8: 0.46503866 | CM8: 0.46503866 | CN8: 0.46503866 | CO8: 0.46503866 | CP8: 0.46503866 | CQ8: 0.46503866 | CR8: 0.46503866 | CS8: 0.1505911053
A9: O7 | B9: 12 | C9: 19 | D9: 11 | E9: 69 | F9: 55 | H9: O7 | I9: 15 | J9: 12 | K9: 13 | L9: 5 | M9: 5 | AM9: O7 | AN9: 1000 | AO9: =AA30 -> 12.76418608 | AP9: 987.2358139 | AQ9: 987.2358139 | AU9: O | AV9: 2 | AW9: A | AX9: 3 | AY9: 5.43998932 | AZ9: 5.59090338 | BA9: 5.74181744 | BB9: 6.14812311 | BC9: 6.58291113 | BD9: 7.01769915 | BE9: 7.45248717 | BF9: 7.88727519 | BG9: 8.32206321 | BH9: 8.75685123 | BI9: 9.19163925 | BJ9: 9.62642727 | BK9: 10.06121529 | BL9: 10.49600331 | BM9: 10.93079133 | BO9: 1 | BP9: 2 | BQ9: 3 | BR9: 4 | BS9: 5 | BT9: 6 | BU9: 7 | BV9: 8 | BW9: 9 | BX9: 10 | BY9: 11 | BZ9: 12 | CA9: 13 | CB9: 14 | CC9: 15 | CE9: 0.15091406 | CF9: 0.15091406 | CG9: 0.40630567 | CH9: 0.43478802 | CI9: 0.43478802 | CJ9: 0.43478802 | CK9: 0.43478802 | CL9: 0.43478802 | CM9: 0.43478802 | CN9: 0.43478802 | CO9: 0.43478802 | CP9: 0.43478802 | CQ9: 0.43478802 | CR9: 0.43478802 | CS9: 0.1025025004
A10: O8 | B10: 39 | C10: 97 | D10: 57 | E10: 56 | F10: 67 | H10: O8 | I10: 10 | J10: 1 | K10: 8 | L10: 6 | M10: 4 | AM10: O8 | AN10: 1000 | AO10: =AB30 -> 5.54747122 | AP10: 994.4525288 | AQ10: 994.4525288 | AU10: O | AV10: 2 | AW10: A | AX10: 4 | AY10: 5.9489983 | AZ10: 6.14812311 | BA10: 6.34724792 | BB10: 6.54637273 | BC10: 6.74549754 | BD10: 6.94462235 | BE10: 7.14374716 | BF10: 7.34287197 | BG10: 7.54199678 | BH10: 7.74112159 | BI10: 7.9402464 | BJ10: 8.13937121 | BK10: 8.33849602 | BL10: 8.53762083 | BM10: 8.73674564 | BO10: 1 | BP10: 2 | BQ10: 3 | BR10: 4 | BS10: 5 | BT10: 6 | BU10: 7 | BV10: 8 | BW10: 9 | BX10: 10 | BY10: 11 | BZ10: 12 | CA10: 13 | CB10: 14 | CC10: 15 | CE10: 0.19912481 | CF10: 0.19912481 | CG10: 0.19912481 | CH10: 0.19912481 | CI10: 0.19912481 | CJ10: 0.19912481 | CK10: 0.19912481 | CL10: 0.19912481 | CM10: 0.19912481 | CN10: 0.19912481 | CO10: 0.19912481 | CP10: 0.19912481 | CQ10: 0.19912481 | CR10: 0.19912481 | CS10: 5.42914515e-16
A11: O9 | B11: 90 | C11: 37 | D11: 1 | E11: 6 | F11: 29 | H11: O9 | I11: 1 | J11: 9 | K11: 15 | L11: 14 | M11: 10 | AM11: O9 | AN11: 1000 | AO11: =AC30 -> 12.72691295 | AP11: 987.273087 | AQ11: 987.273087 | AU11: O | AV11: 2 | AW11: A | AX11: 5 | AY11: 5.13132213 | AZ11: 5.20953759 | BA11: 5.28775305 | BB11: 5.36596851 | BC11: 5.44418397 | BD11: 5.52239943 | BE11: 5.60061489 | BF11: 5.67883035 | BG11: 5.75704581 | BH11: 5.83526127 | BI11: 5.91347673 | BJ11: 5.99169219 | BK11: 6.06990765 | BL11: 6.14812311 | BM11: 6.22633857 | BO11: 1 | BP11: 2 | BQ11: 3 | BR11: 4 | BS11: 5 | BT11: 6 | BU11: 7 | BV11: 8 | BW11: 9 | BX11: 10 | BY11: 11 | BZ11: 12 | CA11: 13 | CB11: 14 | CC11: 15 | CE11: 0.07821546 | CF11: 0.07821546 | CG11: 0.07821546 | CH11: 0.07821546 | CI11: 0.07821546 | CJ11: 0.07821546 | CK11: 0.07821546 | CL11: 0.07821546 | CM11: 0.07821546 | CN11: 0.07821546 | CO11: 0.07821546 | CP11: 0.07821546 | CQ11: 0.07821546 | CR11: 0.07821546 | CS11: 0
A12: O10 | B12: 74 | C12: 47 | D12: 82 | E12: 76 | F12: 24 | H12: O10 | I12: 4 | J12: 8 | K12: 5 | L12: 3 | M12: 12 | AM12: O10 | AN12: 1000 | AO12: =AD30 -> 7.46881641 | AP12: 992.5311836 | AQ12: 992.5311836 | AU12: O | AV12: 3 | AW12: A | AX12: 1 | AY12: 3.59336275 | AZ12: 4.15449335 | BA12: 4.71562395 | BB12: 5.27675455 | BC12: 5.83788515 | BD12: 6.39901575 | BE12: 6.69666063 | BF12: 6.7063124 | BG12: 6.71596417 | BH12: 6.72561594 | BI12: 6.73526771 | BJ12: 6.74491948 | BK12: 6.75457125 | BL12: 6.76422302 | BM12: 6.77387479 | BO12: 1 | BP12: 2 | BQ12: 3 | BR12: 4 | BS12: 5 | BT12: 6 | BU12: 7 | BV12: 8 | BW12: 9 | BX12: 10 | BY12: 11 | BZ12: 12 | CA12: 13 | CB12: 14 | CC12: 15 | CE12: 0.5611306 | CF12: 0.5611306 | CG12: 0.5611306 | CH12: 0.5611306 | CI12: 0.5611306 | CJ12: 0.29764488 | CK12: 0.00965177 | CL12: 0.00965177 | CM12: 0.00965177 | CN12: 0.00965177 | CO12: 0.00965177 | CP12: 0.00965177 | CQ12: 0.00965177 | CR12: 0.00965177 | CS12: 0.2690622694
A13: O11 | B13: 43 | C13: 97 | D13: 15 | E13: 28 | F13: 46 | H13: O11 | I13: 9 | J13: 1 | K13: 11 | L13: 13 | M13: 6 | AM13: O11 | AN13: 1000 | AO13: =AE30 -> 8.3924881 | AP13: 991.6075119 | AQ13: 991.6075119 | AU13: O | AV13: 3 | AW13: A | AX13: 2 | AY13: 3.90642867 | AZ13: 4.37146733 | BA13: 4.83650599 | BB13: 5.30154465 | BC13: 5.76658331 | BD13: 6.23162197 | BE13: 6.69666063 | BF13: 6.9710694 | BG13: 6.98199245 | BH13: 6.9929155 | BI13: 7.00383855 | BJ13: 7.0147616 | BK13: 7.02568465 | BL13: 7.0366077 | BM13: 7.04753075 | BO13: 1 | BP13: 2 | BQ13: 3 | BR13: 4 | BS13: 5 | BT13: 6 | BU13: 7 | BV13: 8 | BW13: 9 | BX13: 10 | BY13: 11 | BZ13: 12 | CA13: 13 | CB13: 14 | CC13: 15 | CE13: 0.46503866 | CF13: 0.46503866 | CG13: 0.46503866 | CH13: 0.46503866 | CI13: 0.46503866 | CJ13: 0.46503866 | CK13: 0.27440877 | CL13: 0.01092305 | CM13: 0.01092305 | CN13: 0.01092305 | CO13: 0.01092305 | CP13: 0.01092305 | CQ13: 0.01092305 | CR13: 0.01092305 | CS13: 0.2268427963
A14: O12 | B14: 49 | C14: 9 | D14: 13 | E14: 72 | F14: 7 | H14: O12 | I14: 8 | J14: 14 | K14: 12 | L14: 4 | M14: 15 | AM14: O12 | AN14: 1000 | AO14: =AF30 -> 13.77494278 | AP14: 986.2250572 | AQ14: 986.2250572 | AU14: O | AV14: 3 | AW14: A | AX14: 3 | AY14: 5.82708459 | AZ14: 6.26187261 | BA14: 6.69666063 | BB14: 7.13144865 | BC14: 7.56623667 | BD14: 8.00102469 | BE14: 8.43581271 | BF14: 8.87060073 | BG14: 9.30538875 | BH14: 9.72258001 | BI14: 10.08694712 | BJ14: 10.26319643 | BK14: 10.43944574 | BL14: 10.61569505 | BM14: 10.79194436 | BO14: 1 | BP14: 2 | BQ14: 3 | BR14: 4 | BS14: 5 | BT14: 6 | BU14: 7 | BV14: 8 | BW14: 9 | BX14: 10 | BY14: 11 | BZ14: 12 | CA14: 13 | CB14: 14 | CC14: 15 | CE14: 0.43478802 | CF14: 0.43478802 | CG14: 0.43478802 | CH14: 0.43478802 | CI14: 0.43478802 | CJ14: 0.43478802 | CK14: 0.43478802 | CL14: 0.43478802 | CM14: 0.41719126 | CN14: 0.36436711 | CO14: 0.17624931 | CP14: 0.17624931 | CQ14: 0.17624931 | CR14: 0.17624931 | CS14: 0.1185456323
A15: O13 | B15: 72 | C15: 97 | D15: 60 | E15: 49 | F15: 38 | H15: O13 | I15: 5 | J15: 1 | K15: 7 | L15: 8 | M15: 7 | AM15: O13 | AN15: 1000 | AO15: =AG30 -> 5.69732035 | AP15: 994.3026796 | AQ15: 994.3026796 | AU15: O | AV15: 3 | AW15: A | AX15: 4 | AY15: 4.90453734 | AZ15: 5.10366215 | BA15: 5.30278696 | BB15: 5.50191177 | BC15: 5.70103658 | BD15: 5.90016139 | BE15: 6.0992862 | BF15: 6.29841101 | BG15: 6.49753582 | BH15: 6.69666063 | BI15: 6.89578544 | BJ15: 7.09491025 | BK15: 7.29403506 | BL15: 7.49315987 | BM15: 7.63286335 | BO15: 1 | BP15: 2 | BQ15: 3 | BR15: 4 | BS15: 5 | BT15: 6 | BU15: 7 | BV15: 8 | BW15: 9 | BX15: 10 | BY15: 11 | BZ15: 12 | CA15: 13 | CB15: 14 | CC15: 15 | CE15: 0.19912481 | CF15: 0.19912481 | CG15: 0.19912481 | CH15: 0.19912481 | CI15: 0.19912481 | CJ15: 0.19912481 | CK15: 0.19912481 | CL15: 0.19912481 | CM15: 0.19912481 | CN15: 0.19912481 | CO15: 0.19912481 | CP15: 0.19912481 | CQ15: 0.19912481 | CR15: 0.13970348 | CS15: 0.01588101845
A16: O14 | B16: 38 | C16: 80 | D16: 96 | E16: 89 | F16: 24 | H16: O14 | I16: 11 | J16: 5 | K16: 1 | L16: 1 | M16: 12 | AM16: O14 | AN16: 1000 | AO16: =AH30 -> 4.52515874 | AP16: 995.4748413 | AQ16: 995.4748413 | AU16: O | AV16: 3 | AW16: A | AX16: 5 | AY16: 6.69666063 | AZ16: 6.77487609 | BA16: 6.85309155 | BB16: 6.93130701 | BC16: 7.00952247 | BD16: 7.08773793 | BE16: 7.16595339 | BF16: 7.24416885 | BG16: 7.32238431 | BH16: 7.40059977 | BI16: 7.47881523 | BJ16: 7.55703069 | BK16: 7.63524615 | BL16: 7.71346161 | BM16: 7.79167707 | BO16: 1 | BP16: 2 | BQ16: 3 | BR16: 4 | BS16: 5 | BT16: 6 | BU16: 7 | BV16: 8 | BW16: 9 | BX16: 10 | BY16: 11 | BZ16: 12 | CA16: 13 | CB16: 14 | CC16: 15 | CE16: 0.07821546 | CF16: 0.07821546 | CG16: 0.07821546 | CH16: 0.07821546 | CI16: 0.07821546 | CJ16: 0.07821546 | CK16: 0.07821546 | CL16: 0.07821546 | CM16: 0.07821546 | CN16: 0.07821546 | CO16: 0.07821546 | CP16: 0.07821546 | CQ16: 0.07821546 | CR16: 0.07821546 | CS16: 0
A17: O15 | B17: 34 | C17: 7 | D17: 4 | E17: 56 | F17: 34 | H17: O15 | I17: 12 | J17: 15 | K17: 14 | L17: 6 | M17: 8 | AM17: O15 | AN17: 1000 | AO17: =AI30 -> 14.99890596 | AP17: 985.001094 | AQ17: 985.001094 | AU17: O | AV17: 4 | AW17: A | AX17: 1 | AY17: 5.036387 | AZ17: 5.5975176 | BA17: 6.1586482 | BB17: 6.45604405 | BC17: 6.46569582 | BD17: 6.47534759 | BE17: 6.48499936 | BF17: 6.49465113 | BG17: 6.5043029 | BH17: 6.51395467 | BI17: 6.52360644 | BJ17: 6.53325821 | BK17: 6.54290998 | BL17: 6.55256175 | BM17: 6.56221352 | BO17: 1 | BP17: 2 | BQ17: 3 | BR17: 4 | BS17: 5 | BT17: 6 | BU17: 7 | BV17: 8 | BW17: 9 | BX17: 10 | BY17: 11 | BZ17: 12 | CA17: 13 | CB17: 14 | CC17: 15 | CE17: 0.5611306 | CF17: 0.5611306 | CG17: 0.29739585 | CH17: 0.00965177 | CI17: 0.00965177 | CJ17: 0.00965177 | CK17: 0.00965177 | CL17: 0.00965177 | CM17: 0.00965177 | CN17: 0.00965177 | CO17: 0.00965177 | CP17: 0.00965177 | CQ17: 0.00965177 | CR17: 0.00965177 | CS17: 0.2062313734
AN18: szum | AO18: szum | AP18: hiba | AU18: O | AV18: 4 | AW18: A | AX18: 2 | AY18: 5.23628614 | AZ18: 5.62248443 | BA18: 6.08752309 | BB18: 6.55256175 | BC18: 7.01760041 | BD18: 7.48263907 | BE18: 7.94767773 | BF18: 8.41271639 | BG18: 8.87775505 | BH18: 9.34279371 | BI18: 9.80783237 | BJ18: 10.27287103 | BK18: 10.73790969 | BL18: 11.20294835 | BM18: 11.66798701 | BO18: 1 | BP18: 2 | BQ18: 3 | BR18: 4 | BS18: 5 | BT18: 6 | BU18: 7 | BV18: 8 | BW18: 9 | BX18: 10 | BY18: 11 | BZ18: 12 | CA18: 13 | CB18: 14 | CC18: 15 | CE18: 0.38619829 | CF18: 0.46503866 | CG18: 0.46503866 | CH18: 0.46503866 | CI18: 0.46503866 | CJ18: 0.46503866 | CK18: 0.46503866 | CL18: 0.46503866 | CM18: 0.46503866 | CN18: 0.46503866 | CO18: 0.46503866 | CP18: 0.46503866 | CQ18: 0.46503866 | CR18: 0.46503866 | CS18: 0.0210709752
U19: Activation - linear | AK19: Szórás | AN19: =SUM(AN3:AN17) -> 15000 | AO19: =SUM(AO3:AO17) -> 134.3875044 | AP19: =SUMSQ(AP3:AP17) -> 14732587.72 | AQ19: =SUM(AQ3:AQ17)/15 -> 991.040833 | AU19: O | AV19: 4 | AW19: A | AX19: 3 | AY19: 4.89936153 | AZ19: 5.05027559 | BA19: 5.24819769 | BB19: 5.68298571 | BC19: 6.11777373 | BD19: 6.55256175 | BE19: 6.98734977 | BF19: 7.42213779 | BG19: 7.85692581 | BH19: 8.29171383 | BI19: 8.72650185 | BJ19: 9.16128987 | BK19: 9.58944418 | BL19: 9.76569349 | BM19: 9.9419428 | BO19: 1 | BP19: 2 | BQ19: 3 | BR19: 4 | BS19: 5 | BT19: 6 | BU19: 7 | BV19: 8 | BW19: 9 | BX19: 10 | BY19: 11 | BZ19: 12 | CA19: 13 | CB19: 14 | CC19: 15 | CE19: 0.15091406 | CF19: 0.1979221 | CG19: 0.43478802 | CH19: 0.43478802 | CI19: 0.43478802 | CJ19: 0.43478802 | CK19: 0.43478802 | CL19: 0.43478802 | CM19: 0.43478802 | CN19: 0.43478802 | CO19: 0.43478802 | CP19: 0.42815431 | CQ19: 0.17624931 | CR19: 0.17624931 | CS19: 0.1216864108
P20: -1 | T20: A | U20: =IF(U3>0,U3,U3*$P$20) -> 6.2327644 | V20: =IF(V3>0,V3,V3*$P$20) -> 5.8927315 | W20: 4.39990195 | X20: 5.65393183 | Y20: 6.98359906 | Z20: 5.40091387 | AA20: 7.75385879 | AB20: 4.60574401 | AC20: 7.22418237 | AD20: 4.61667127 | AE20: 6.2555413 | AF20: 7.77044778 | AG20: 4.27094175 | AH20: 4.52515874 | AI20: 8.33585771 | AK20: =STDEV(U20:AI20) -> 1.371254363 | AP20: hiba2 | AU20: O | AV20: 4 | AW20: A | AX20: 4 | AY20: 4.95956327 | AZ20: 5.15868808 | BA20: 5.35781289 | BB20: 5.5569377 | BC20: 5.75606251 | BD20: 5.95518732 | BE20: 6.15431213 | BF20: 6.35343694 | BG20: 6.55256175 | BH20: 6.75168656 | BI20: 6.95081137 | BJ20: 7.14993618 | BK20: 7.34906099 | BL20: 7.5481858 | BM20: 7.74731061 | BO20: 1 | BP20: 2 | BQ20: 3 | BR20: 4 | BS20: 5 | BT20: 6 | BU20: 7 | BV20: 8 | BW20: 9 | BX20: 10 | BY20: 11 | BZ20: 12 | CA20: 13 | CB20: 14 | CC20: 15 | CE20: 0.19912481 | CF20: 0.19912481 | CG20: 0.19912481 | CH20: 0.19912481 | CI20: 0.19912481 | CJ20: 0.19912481 | CK20: 0.19912481 | CL20: 0.19912481 | CM20: 0.19912481 | CN20: 0.19912481 | CO20: 0.19912481 | CP20: 0.19912481 | CQ20: 0.19912481 | CR20: 0.19912481 | CS20: 5.142133473e-16
T21: A | U21: =IF(U4>0,U4,U4*$P$20) -> 9.94551675 | V21: 6.14812311 | W21: 6.69666063 | X21: 6.55256175 | Y21: 12.74828404 | Z21: 11.44258963 | AA21: 12.76418608 | AB21: 5.54747122 | AC21: 14.28672195 | AD21: 7.46881641 | AE21: 8.3924881 | AF21: 13.77494278 | AG21: 5.69732035 | AH21: 4.00386112 | AI21: 14.99890596 | AK21: =STDEV(U21:AI21) -> 3.681546003 | AP21: =ABS(AN19-AO19) -> 14865.6125 | AU21: O | AV21: 4 | AW21: A | AX21: 5 | AY21: 6.47434629 | AZ21: 6.55256175 | BA21: 6.63077721 | BB21: 6.70899267 | BC21: 6.78720813 | BD21: 6.86542359 | BE21: 6.94363905 | BF21: 7.02185451 | BG21: 7.10006997 | BH21: 7.17828543 | BI21: 7.25650089 | BJ21: 7.33471635 | BK21: 7.41293181 | BL21: 7.49114727 | BM21: 7.56936273 | BO21: 1 | BP21: 2 | BQ21: 3 | BR21: 4 | BS21: 5 | BT21: 6 | BU21: 7 | BV21: 8 | BW21: 9 | BX21: 10 | BY21: 11 | BZ21: 12 | CA21: 13 | CB21: 14 | CC21: 15 | CE21: 0.07821546 | CF21: 0.07821546 | CG21: 0.07821546 | CH21: 0.07821546 | CI21: 0.07821546 | CJ21: 0.07821546 | CK21: 0.07821546 | CL21: 0.07821546 | CM21: 0.07821546 | CN21: 0.07821546 | CO21: 0.07821546 | CP21: 0.07821546 | CQ21: 0.07821546 | CR21: 0.07821546 | CS21: 0
T22: B | U22: 2.94101077 | V22: 2.46273937 | W22: 2.25568216 | X22: 2.76103849 | Y22: 3.48587511 | Z22: 3.00592839 | AA22: 4.15324843 | AB22: 2.19882738 | AC22: 3.7065225 | AD22: 2.09501632 | AE22: 2.95536045 | AF22: 3.86154404 | AG22: 1.91251856 | AH22: 1.78544173 | AI22: 4.45914554 | AK22: 0.8408775369 | AP22: hiba3 | AU22: O | AV22: 5 | AW22: A | AX22: 1 | AY22: 10.08906551 | AZ22: 10.65019611 | BA22: 11.21132671 | BB22: 11.77245731 | BC22: 12.33358791 | BD22: 12.77723935 | BE22: 12.78689112 | BF22: 12.79654289 | BG22: 12.80619466 | BH22: 12.81584643 | BI22: 12.8254982 | BJ22: 12.83514997 | BK22: 12.84480174 | BL22: 12.85445351 | BM22: 12.86410528 | BO22: 1 | BP22: 2 | BQ22: 3 | BR22: 4 | BS22: 5 | BT22: 6 | BU22: 7 | BV22: 8 | BW22: 9 | BX22: 10 | BY22: 11 | BZ22: 12 | CA22: 13 | CB22: 14 | CC22: 15 | CE22: 0.5611306 | CF22: 0.5611306 | CG22: 0.5611306 | CH22: 0.5611306 | CI22: 0.44365144 | CJ22: 0.00965177 | CK22: 0.00965177 | CL22: 0.00965177 | CM22: 0.00965177 | CN22: 0.00965177 | CO22: 0.00965177 | CP22: 0.00965177 | CQ22: 0.00965177 | CR22: 0.00965177 | CS22: 0.26414955
T23: B | U23: 17.96362254 | V23: 14.84386361 | W23: 8.67695264 | X23: 8.35569901 | Y23: 17.95915757 | Z23: 12.78915588 | AA23: 15.68433074 | AB23: 6.90300475 | AC23: 17.91294131 | AD23: 14.4225038 | AE23: 10.21119812 | AF23: 21.95514435 | AG23: 8.53463712 | AH23: 12.0205455 | AI23: 19.54747017 | AK23: 4.662342181 | AP23: =AP19*AP21 -> 2.190089401e+11 | AU23: O | AV23: 5 | AW23: A | AX23: 2 | AY23: 8.09789744 | AZ23: 8.5629361 | BA23: 9.02797476 | BB23: 9.49301342 | BC23: 9.95805208 | BD23: 10.42309074 | BE23: 10.8881294 | BF23: 11.17855756 | BG23: 11.18948061 | BH23: 11.20040366 | BI23: 11.21132671 | BJ23: 11.22224976 | BK23: 11.23317281 | BL23: 11.24409586 | BM23: 11.25501891 | BO23: 1 | BP23: 2 | BQ23: 3 | BR23: 4 | BS23: 5 | BT23: 6 | BU23: 7 | BV23: 8 | BW23: 9 | BX23: 10 | BY23: 11 | BZ23: 12 | CA23: 13 | CB23: 14 | CC23: 15 | CE23: 0.46503866 | CF23: 0.46503866 | CG23: 0.46503866 | CH23: 0.46503866 | CI23: 0.46503866 | CJ23: 0.46503866 | CK23: 0.29042816 | CL23: 0.01092305 | CM23: 0.01092305 | CN23: 0.01092305 | CO23: 0.01092305 | CP23: 0.01092305 | CQ23: 0.01092305 | CR23: 0.01092305 | CS23: 0.2271548362
T24: C | U24: 10.04239401 | V24: 15.17796966 | W24: 6.96014635 | X24: 12.3310848 | Y24: 11.21132671 | Z24: 7.93711288 | AA24: 16.48316984 | AB24: 11.29230313 | AC24: 12.72691295 | AD24: 9.82594382 | AE24: 13.70974979 | AF24: 16.31229156 | AG24: 9.64041353 | AH24: 11.87346855 | AI24: 16.64103395 | AK24: 3.056076663 | AN24: szórás | AO24: szórás | AU24: O | AV24: 5 | AW24: A | AX24: 3 | AY24: 8.05425967 | AZ24: 8.44889305 | BA24: 8.84352643 | BB24: 9.23815981 | BC24: 9.63279319 | BD24: 10.02742657 | BE24: 10.42205995 | BF24: 10.81669333 | BG24: 11.21132671 | BH24: 11.60596009 | BI24: 12.00059347 | BJ24: 12.39522685 | BK24: 12.78986023 | BL24: 13.18449361 | BM24: 13.57912699 | BO24: 1 | BP24: 2 | BQ24: 3 | BR24: 4 | BS24: 5 | BT24: 6 | BU24: 7 | BV24: 8 | BW24: 9 | BX24: 10 | BY24: 11 | BZ24: 12 | CA24: 13 | CB24: 14 | CC24: 15 | CE24: 0.39463338 | CF24: 0.39463338 | CG24: 0.39463338 | CH24: 0.39463338 | CI24: 0.39463338 | CJ24: 0.39463338 | CK24: 0.39463338 | CL24: 0.39463338 | CM24: 0.39463338 | CN24: 0.39463338 | CO24: 0.39463338 | CP24: 0.39463338 | CQ24: 0.39463338 | CR24: 0.39463338 | CS24: 4.750365566e-16
AN25: =STDEV(AN3:AN17) -> 0 | AO25: =STDEV(AO3:AO17) -> 3.367158499 | AU25: O | AV25: 5 | AW25: A | AX25: 4 | AY25: 9.32771911 | AZ25: 9.46226251 | BA25: 9.59680591 | BB25: 9.73134931 | BC25: 9.86589271 | BD25: 10.00043611 | BE25: 10.13497951 | BF25: 10.26952291 | BG25: 10.40406631 | BH25: 10.53860971 | BI25: 10.67315311 | BJ25: 10.80769651 | BK25: 10.94223991 | BL25: 11.07678331 | BM25: 11.21132671 | BO25: 1 | BP25: 2 | BQ25: 3 | BR25: 4 | BS25: 5 | BT25: 6 | BU25: 7 | BV25: 8 | BW25: 9 | BX25: 10 | BY25: 11 | BZ25: 12 | CA25: 13 | CB25: 14 | CC25: 15 | CE25: 0.1345434 | CF25: 0.1345434 | CG25: 0.1345434 | CH25: 0.1345434 | CI25: 0.1345434 | CJ25: 0.1345434 | CK25: 0.1345434 | CL25: 0.1345434 | CM25: 0.1345434 | CN25: 0.1345434 | CO25: 0.1345434 | CP25: 0.1345434 | CQ25: 0.1345434 | CR25: 0.1345434 | CS25: 1.296880799e-15
T26: A | U26: =MAX(U20:U21) -> 9.94551675 | V26: =MAX(V20:V21) -> 6.14812311 | W26: 6.69666063 | X26: 6.55256175 | Y26: 12.74828404 | Z26: 11.44258963 | AA26: 12.76418608 | AB26: 5.54747122 | AC26: 14.28672195 | AD26: 7.46881641 | AE26: 8.3924881 | AF26: 13.77494278 | AG26: 5.69732035 | AH26: 4.52515874 | AI26: 14.99890596 | AU26: O | AV26: 5 | AW26: A | AX26: 5 | AY26: 7.79983343 | AZ26: 8.22627009 | BA26: 8.65270675 | BB26: 9.07914341 | BC26: 9.50558007 | BD26: 9.93201673 | BE26: 10.35845339 | BF26: 10.78489005 | BG26: 11.21132671 | BH26: 11.63776337 | BI26: 12.06420003 | BJ26: 12.49063669 | BK26: 12.91707335 | BL26: 13.13936134 | BM26: 13.2175768 | BO26: 1 | BP26: 2 | BQ26: 3 | BR26: 4 | BS26: 5 | BT26: 6 | BU26: 7 | BV26: 8 | BW26: 9 | BX26: 10 | BY26: 11 | BZ26: 12 | CA26: 13 | CB26: 14 | CC26: 15 | CE26: 0.42643666 | CF26: 0.42643666 | CG26: 0.42643666 | CH26: 0.42643666 | CI26: 0.42643666 | CJ26: 0.42643666 | CK26: 0.42643666 | CL26: 0.42643666 | CM26: 0.42643666 | CN26: 0.42643666 | CO26: 0.42643666 | CP26: 0.42643666 | CQ26: 0.22228799 | CR26: 0.07821546 | CS26: 0.1041969051
T27: B | U27: =MAX(U22:U23) -> 17.96362254 | V27: =MAX(V22:V23) -> 14.84386361 | W27: 8.67695264 | X27: 8.35569901 | Y27: 17.95915757 | Z27: 12.78915588 | AA27: 15.68433074 | AB27: 6.90300475 | AC27: 17.91294131 | AD27: 14.4225038 | AE27: 10.21119812 | AF27: 21.95514435 | AG27: 8.53463712 | AH27: 12.0205455 | AI27: 19.54747017 | AU27: O | AV27: 6 | AW27: A | AX27: 1 | AY27: 7.37598228 | AZ27: 7.93711288 | BA27: 8.49824348 | BB27: 9.05937408 | BC27: 9.62050468 | BD27: 10.18163528 | BE27: 10.74276588 | BF27: 11.30389648 | BG27: 11.51015202 | BH27: 11.51980379 | BI27: 11.52945556 | BJ27: 11.53910733 | BK27: 11.5487591 | BL27: 11.55841087 | BM27: 11.56806264 | BO27: 1 | BP27: 2 | BQ27: 3 | BR27: 4 | BS27: 5 | BT27: 6 | BU27: 7 | BV27: 8 | BW27: 9 | BX27: 10 | BY27: 11 | BZ27: 12 | CA27: 13 | CB27: 14 | CC27: 15 | CE27: 0.5611306 | CF27: 0.5611306 | CG27: 0.5611306 | CH27: 0.5611306 | CI27: 0.5611306 | CJ27: 0.5611306 | CK27: 0.5611306 | CL27: 0.20625554 | CM27: 0.00965177 | CN27: 0.00965177 | CO27: 0.00965177 | CP27: 0.00965177 | CQ27: 0.00965177 | CR27: 0.00965177 | CS27: 0.2762273929
T28: C | U28: =MAX(U24) -> 10.04239401 | V28: =MAX(V24) -> 15.17796966 | W28: 6.96014635 | X28: 12.3310848 | Y28: 11.21132671 | Z28: 7.93711288 | AA28: 16.48316984 | AB28: 11.29230313 | AC28: 12.72691295 | AD28: 9.82594382 | AE28: 13.70974979 | AF28: 16.31229156 | AG28: 9.64041353 | AH28: 11.87346855 | AI28: 16.64103395 | AU28: O | AV28: 6 | AW28: A | AX28: 2 | AY28: 7.03654821 | AZ28: 7.67572684 | BA28: 7.86065153 | BB28: 7.87157458 | BC28: 7.88249763 | BD28: 7.89342068 | BE28: 7.90434373 | BF28: 7.91526678 | BG28: 7.92618983 | BH28: 7.93711288 | BI28: 7.94803593 | BJ28: 7.95895898 | BK28: 7.96988203 | BL28: 7.98080508 | BM28: 7.99172813 | BO28: 1 | BP28: 2 | BQ28: 3 | BR28: 4 | BS28: 5 | BT28: 6 | BU28: 7 | BV28: 8 | BW28: 9 | BX28: 10 | BY28: 11 | BZ28: 12 | CA28: 13 | CB28: 14 | CC28: 15 | CE28: 0.63917863 | CF28: 0.18492469 | CG28: 0.01092305 | CH28: 0.01092305 | CI28: 0.01092305 | CJ28: 0.01092305 | CK28: 0.01092305 | CL28: 0.01092305 | CM28: 0.01092305 | CN28: 0.01092305 | CO28: 0.01092305 | CP28: 0.01092305 | CQ28: 0.01092305 | CR28: 0.01092305 | CS28: 0.1707470074
AU29: O | AV29: 6 | AW29: A | AX29: 3 | AY29: 4.38541246 | AZ29: 4.78004584 | BA29: 5.17467922 | BB29: 5.5693126 | BC29: 5.96394598 | BD29: 6.35857936 | BE29: 6.75321274 | BF29: 7.14784612 | BG29: 7.5424795 | BH29: 7.93711288 | BI29: 8.33174626 | BJ29: 8.72637964 | BK29: 9.12101302 | BL29: 9.5156464 | BM29: 9.91027978 | BO29: 1 | BP29: 2 | BQ29: 3 | BR29: 4 | BS29: 5 | BT29: 6 | BU29: 7 | BV29: 8 | BW29: 9 | BX29: 10 | BY29: 11 | BZ29: 12 | CA29: 13 | CB29: 14 | CC29: 15 | CE29: 0.39463338 | CF29: 0.39463338 | CG29: 0.39463338 | CH29: 0.39463338 | CI29: 0.39463338 | CJ29: 0.39463338 | CK29: 0.39463338 | CL29: 0.39463338 | CM29: 0.39463338 | CN29: 0.39463338 | CO29: 0.39463338 | CP29: 0.39463338 | CQ29: 0.39463338 | CR29: 0.39463338 | CS29: 6.215876258e-16
T30: min | U30: =MIN(U26:U28) -> 9.94551675 | V30: =MIN(V26:V28) -> 6.14812311 | W30: 6.69666063 | X30: 6.55256175 | Y30: 11.21132671 | Z30: 7.93711288 | AA30: 12.76418608 | AB30: 5.54747122 | AC30: 12.72691295 | AD30: 7.46881641 | AE30: 8.3924881 | AF30: 13.77494278 | AG30: 5.69732035 | AH30: 4.52515874 | AI30: 14.99890596 | AU30: O | AV30: 6 | AW30: A | AX30: 4 | AY30: 6.59167888 | AZ30: 6.72622228 | BA30: 6.86076568 | BB30: 6.99530908 | BC30: 7.12985248 | BD30: 7.26439588 | BE30: 7.39893928 | BF30: 7.53348268 | BG30: 7.66802608 | BH30: 7.80256948 | BI30: 7.93711288 | BJ30: 8.07165628 | BK30: 8.20619968 | BL30: 8.34074308 | BM30: 8.47528648 | BO30: 1 | BP30: 2 | BQ30: 3 | BR30: 4 | BS30: 5 | BT30: 6 | BU30: 7 | BV30: 8 | BW30: 9 | BX30: 10 | BY30: 11 | BZ30: 12 | CA30: 13 | CB30: 14 | CC30: 15 | CE30: 0.1345434 | CF30: 0.1345434 | CG30: 0.1345434 | CH30: 0.1345434 | CI30: 0.1345434 | CJ30: 0.1345434 | CK30: 0.1345434 | CL30: 0.1345434 | CM30: 0.1345434 | CN30: 0.1345434 | CO30: 0.1345434 | CP30: 0.1345434 | CQ30: 0.1345434 | CR30: 0.1345434 | CS30: 3.48372238e-16
AU31: O | AV31: 6 | AW31: A | AX31: 5 | AY31: 7.08423956 | AZ31: 7.51067622 | BA31: 7.93711288 | BB31: 8.36354954 | BC31: 8.7899862 | BD31: 9.21642286 | BE31: 9.64285952 | BF31: 10.06929618 | BG31: 10.49573284 | BH31: 10.9221695 | BI31: 11.34860616 | BJ31: 11.77504282 | BK31: 12.20147948 | BL31: 12.30295969 | BM31: 12.38117515 | BO31: 1 | BP31: 2 | BQ31: 3 | BR31: 4 | BS31: 5 | BT31: 6 | BU31: 7 | BV31: 8 | BW31: 9 | BX31: 10 | BY31: 11 | BZ31: 12 | CA31: 13 | CB31: 14 | CC31: 15 | CE31: 0.42643666 | CF31: 0.42643666 | CG31: 0.42643666 | CH31: 0.42643666 | CI31: 0.42643666 | CJ31: 0.42643666 | CK31: 0.42643666 | CL31: 0.42643666 | CM31: 0.42643666 | CN31: 0.42643666 | CO31: 0.42643666 | CP31: 0.42643666 | CQ31: 0.10148021 | CR31: 0.07821546 | CS31: 0.1223128225
AU32: O | AV32: 7 | AW32: A | AX32: 1 | AY32: 8.62734144 | AZ32: 9.18847204 | BA32: 9.74960264 | BB32: 10.31073324 | BC32: 10.87186384 | BD32: 11.43299444 | BE32: 11.99412504 | BF32: 12.55525564 | BG32: 12.70627546 | BH32: 12.71592723 | BI32: 12.725579 | BJ32: 12.73523077 | BK32: 12.74488254 | BL32: 12.75453431 | BM32: 12.76418608 | BO32: 1 | BP32: 2 | BQ32: 3 | BR32: 4 | BS32: 5 | BT32: 6 | BU32: 7 | BV32: 8 | BW32: 9 | BX32: 10 | BY32: 11 | BZ32: 12 | CA32: 13 | CB32: 14 | CC32: 15 | CE32: 0.5611306 | CF32: 0.5611306 | CG32: 0.5611306 | CH32: 0.5611306 | CI32: 0.5611306 | CJ32: 0.5611306 | CK32: 0.5611306 | CL32: 0.15101982 | CM32: 0.00965177 | CN32: 0.00965177 | CO32: 0.00965177 | CP32: 0.00965177 | CQ32: 0.00965177 | CR32: 0.00965177 | CS32: 0.2780491232
AU33: O | AV33: 7 | AW33: A | AX33: 2 | AY33: 7.64876082 | AZ33: 8.11379948 | BA33: 8.57883814 | BB33: 9.0438768 | BC33: 9.50891546 | BD33: 9.97395412 | BE33: 10.43899278 | BF33: 10.90403144 | BG33: 11.3690701 | BH33: 11.83410876 | BI33: 12.29914742 | BJ33: 12.76418608 | BK33: 13.22922474 | BL33: 13.6942634 | BM33: 14.15930206 | BO33: 1 | BP33: 2 | BQ33: 3 | BR33: 4 | BS33: 5 | BT33: 6 | BU33: 7 | BV33: 8 | BW33: 9 | BX33: 10 | BY33: 11 | BZ33: 12 | CA33: 13 | CB33: 14 | CC33: 15 | CE33: 0.46503866 | CF33: 0.46503866 | CG33: 0.46503866 | CH33: 0.46503866 | CI33: 0.46503866 | CJ33: 0.46503866 | CK33: 0.46503866 | CL33: 0.46503866 | CM33: 0.46503866 | CN33: 0.46503866 | CO33: 0.46503866 | CP33: 0.46503866 | CQ33: 0.46503866 | CR33: 0.46503866 | CS33: 8.328095926e-16
AU34: O | AV34: 7 | AW34: A | AX34: 3 | AY34: 7.54672984 | AZ34: 7.98151786 | BA34: 8.41630588 | BB34: 8.8510939 | BC34: 9.28588192 | BD34: 9.72066994 | BE34: 10.15545796 | BF34: 10.59024598 | BG34: 11.025034 | BH34: 11.45982202 | BI34: 11.89461004 | BJ34: 12.32939806 | BK34: 12.76418608 | BL34: 13.1989741 | BM34: 13.63376212 | BO34: =RANK(AY34,$AY34:$BM34, 1) -> 1 | BP34: 2 | BQ34: 3 | BR34: 4 | BS34: 5 | BT34: 6 | BU34: 7 | BV34: 8 | BW34: 9 | BX34: 10 | BY34: 11 | BZ34: 12 | CA34: 13 | CB34: 14 | CC34: 15 | CE34: 0.43478802 | CF34: 0.43478802 | CG34: 0.43478802 | CH34: 0.43478802 | CI34: 0.43478802 | CJ34: 0.43478802 | CK34: 0.43478802 | CL34: 0.43478802 | CM34: 0.43478802 | CN34: 0.43478802 | CO34: 0.43478802 | CP34: 0.43478802 | CQ34: 0.43478802 | CR34: 0.43478802 | CS34: 8.432749225e-16
AU35: O | AV35: 7 | AW35: A | AX35: 4 | AY35: 11.96768684 | AZ35: 12.16681165 | BA35: 12.36593646 | BB35: 12.56506127 | BC35: 12.76418608 | BD35: 12.96331089 | BE35: 13.1624357 | BF35: 13.36156051 | BG35: 13.56068532 | BH35: 13.75981013 | BI35: 13.95893494 | BJ35: 14.15805975 | BK35: 14.35718456 | BL35: 14.55630937 | BM35: 14.75543418 | BO35: 1 | BP35: 2 | BQ35: 3 | BR35: 4 | BS35: 5 | BT35: 6 | BU35: 7 | BV35: 8 | BW35: 9 | BX35: 10 | BY35: 11 | BZ35: 12 | CA35: 13 | CB35: 14 | CC35: 15 | CE35: 0.19912481 | CF35: 0.19912481 | CG35: =BB35-BA35 -> 0.19912481 | CH35: 0.19912481 | CI35: 0.19912481 | CJ35: 0.19912481 | CK35: 0.19912481 | CL35: 0.19912481 | CM35: 0.19912481 | CN35: 0.19912481 | CO35: 0.19912481 | CP35: 0.19912481 | CQ35: 0.19912481 | CR35: 0.19912481 | CS35: 9.123361728e-16
AU36: O | AV36: 7 | AW36: A | AX36: 5 | AY36: 12.45132424 | AZ36: 12.5295397 | BA36: 12.60775516 | BB36: 12.68597062 | BC36: 12.76418608 | BD36: 12.84240154 | BE36: 12.920617 | BF36: 12.99883246 | BG36: 13.07704792 | BH36: 13.15526338 | BI36: 13.23347884 | BJ36: 13.3116943 | BK36: 13.38990976 | BL36: 13.46812522 | BM36: 13.54634068 | BO36: 1 | BP36: 2 | BQ36: 3 | BR36: 4 | BS36: 5 | BT36: 6 | BU36: 7 | BV36: 8 | BW36: 9 | BX36: 10 | BY36: 11 | BZ36: 12 | CA36: 13 | CB36: 14 | CC36: 15 | CE36: =AZ36-AY36 -> 0.07821546 | CF36: 0.07821546 | CG36: 0.07821546 | CH36: 0.07821546 | CI36: 0.07821546 | CJ36: 0.07821546 | CK36: 0.07821546 | CL36: 0.07821546 | CM36: 0.07821546 | CN36: 0.07821546 | CO36: 0.07821546 | CP36: 0.07821546 | CQ36: 0.07821546 | CR36: 0.07821546 | CS36: 9.217063053e-16
AU37: O | AV37: 8 | AW37: A | AX37: 1 | AY37: 5.46060529 | AZ37: 5.47025706 | BA37: 5.47990883 | BB37: 5.4895606 | BC37: 5.49921237 | BD37: 5.50886414 | BE37: 5.51851591 | BF37: 5.52816768 | BG37: 5.53781945 | BH37: 5.54747122 | BI37: 5.55712299 | BJ37: 5.56677476 | BK37: 5.57642653 | BL37: 5.5860783 | BM37: 5.59573007 | BO37: 1 | BP37: 2 | BQ37: 3 | BR37: 4 | BS37: 5 | BT37: 6 | BU37: 7 | BV37: 8 | BW37: 9 | BX37: 10 | BY37: 11 | BZ37: 12 | CA37: 13 | CB37: 14 | CC37: 15 | CE37: 0.00965177 | CF37: 0.00965177 | CG37: 0.00965177 | CH37: 0.00965177 | CI37: 0.00965177 | CJ37: 0.00965177 | CK37: 0.00965177 | CL37: 0.00965177 | CM37: 0.00965177 | CN37: 0.00965177 | CO37: 0.00965177 | CP37: 0.00965177 | CQ37: 0.00965177 | CR37: 0.00965177 | CS37: 4.561269812e-16
AU38: O | AV38: 8 | AW38: A | AX38: 2 | AY38: 5.54747122 | AZ38: 6.01250988 | BA38: 6.47754854 | BB38: 6.9425872 | BC38: 7.40762586 | BD38: 7.87266452 | BE38: 8.33770318 | BF38: 8.80274184 | BG38: 9.2677805 | BH38: 9.73281916 | BI38: 10.19785782 | BJ38: 10.66289648 | BK38: 11.12793514 | BL38: 11.43430278 | BM38: 11.44522583 | BO38: 1 | BP38: 2 | BQ38: 3 | BR38: 4 | BS38: 5 | BT38: 6 | BU38: 7 | BV38: 8 | BW38: 9 | BX38: 10 | BY38: 11 | BZ38: 12 | CA38: 13 | CB38: 14 | CC38: 15 | CE38: 0.46503866 | CF38: 0.46503866 | CG38: 0.46503866 | CH38: 0.46503866 | CI38: 0.46503866 | CJ38: 0.46503866 | CK38: 0.46503866 | CL38: 0.46503866 | CM38: 0.46503866 | CN38: 0.46503866 | CO38: 0.46503866 | CP38: 0.46503866 | CQ38: 0.30636764 | CR38: 0.01092305 | CS38: 0.1254455195
AU39: O | AV39: 8 | AW39: A | AX39: 3 | AY39: 3.54934559 | AZ39: 3.70025965 | BA39: 3.85117371 | BB39: 4.00208777 | BC39: 4.24310716 | BD39: 4.67789518 | BE39: 5.1126832 | BF39: 5.54747122 | BG39: 5.98225924 | BH39: 6.41704726 | BI39: 6.85183528 | BJ39: 7.2866233 | BK39: 7.72141132 | BL39: 7.96050061 | BM39: 8.13674992 | BO39: 1 | BP39: 2 | BQ39: 3 | BR39: 4 | BS39: 5 | BT39: 6 | BU39: 7 | BV39: 8 | BW39: 9 | BX39: 10 | BY39: 11 | BZ39: 12 | CA39: 13 | CB39: 14 | CC39: 15 | CE39: 0.15091406 | CF39: 0.15091406 | CG39: 0.15091406 | CH39: 0.24101939 | CI39: 0.43478802 | CJ39: 0.43478802 | CK39: 0.43478802 | CL39: 0.43478802 | CM39: 0.43478802 | CN39: 0.43478802 | CO39: 0.43478802 | CP39: 0.43478802 | CQ39: 0.23908929 | CR39: 0.17624931 | CS39: 0.131208948
AU40: O | AV40: 8 | AW40: A | AX40: 4 | AY40: 4.55184717 | AZ40: 4.75097198 | BA40: 4.95009679 | BB40: 5.1492216 | BC40: 5.34834641 | BD40: 5.54747122 | BE40: 5.74659603 | BF40: 5.94572084 | BG40: 6.14484565 | BH40: 6.34397046 | BI40: 6.54309527 | BJ40: 6.74222008 | BK40: 6.94134489 | BL40: 7.1404697 | BM40: 7.33959451 | BO40: 1 | BP40: 2 | BQ40: 3 | BR40: 4 | BS40: 5 | BT40: 6 | BU40: 7 | BV40: 8 | BW40: 9 | BX40: 10 | BY40: 11 | BZ40: 12 | CA40: 13 | CB40: 14 | CC40: 15 | CE40: 0.19912481 | CF40: 0.19912481 | CG40: 0.19912481 | CH40: 0.19912481 | CI40: 0.19912481 | CJ40: 0.19912481 | CK40: 0.19912481 | CL40: 0.19912481 | CM40: 0.19912481 | CN40: 0.19912481 | CO40: 0.19912481 | CP40: 0.19912481 | CQ40: 0.19912481 | CR40: 0.19912481 | CS40: 5.142133473e-16
AU41: O | AV41: 8 | AW41: A | AX41: 5 | AY41: 5.07296806 | AZ41: 5.3910403 | BA41: 5.46925576 | BB41: 5.54747122 | BC41: 5.62568668 | BD41: 5.70390214 | BE41: 5.7821176 | BF41: 5.86033306 | BG41: 5.93854852 | BH41: 6.01676398 | BI41: 6.09497944 | BJ41: 6.1731949 | BK41: 6.25141036 | BL41: 6.32962582 | BM41: 6.40784128 | BO41: 1 | BP41: 2 | BQ41: 3 | BR41: 4 | BS41: 5 | BT41: 6 | BU41: 7 | BV41: 8 | BW41: 9 | BX41: 10 | BY41: 11 | BZ41: 12 | CA41: 13 | CB41: 14 | CC41: 15 | CE41: 0.31807224 | CF41: 0.07821546 | CG41: 0.07821546 | CH41: 0.07821546 | CI41: 0.07821546 | CJ41: 0.07821546 | CK41: 0.07821546 | CL41: 0.07821546 | CM41: 0.07821546 | CN41: 0.07821546 | CO41: 0.07821546 | CP41: 0.07821546 | CQ41: 0.07821546 | CR41: 0.07821546 | CS41: 0.0641044209
AU42: O | AV42: 9 | AW42: A | AX42: 1 | AY42: 12.72691295 | AZ42: 13.28804355 | BA42: 13.84917415 | BB42: 14.31567726 | BC42: 14.32532903 | BD42: 14.3349808 | BE42: 14.34463257 | BF42: 14.35428434 | BG42: 14.36393611 | BH42: 14.37358788 | BI42: 14.38323965 | BJ42: 14.39289142 | BK42: 14.40254319 | BL42: 14.41219496 | BM42: 14.42184673 | BO42: 1 | BP42: 2 | BQ42: 3 | BR42: 4 | BS42: 5 | BT42: 6 | BU42: 7 | BV42: 8 | BW42: 9 | BX42: 10 | BY42: 11 | BZ42: 12 | CA42: 13 | CB42: 14 | CC42: 15 | CE42: 0.5611306 | CF42: 0.5611306 | CG42: 0.46650311 | CH42: 0.00965177 | CI42: 0.00965177 | CJ42: 0.00965177 | CK42: 0.00965177 | CL42: 0.00965177 | CM42: 0.00965177 | CN42: 0.00965177 | CO42: 0.00965177 | CP42: 0.00965177 | CQ42: 0.00965177 | CR42: 0.00965177 | CS42: 0.2224314827
AU43: O | AV43: 9 | AW43: A | AX43: 2 | AY43: 10.56641267 | AZ43: 11.03145133 | BA43: 11.49648999 | BB43: 11.96152865 | BC43: 12.42656731 | BD43: 12.6941438 | BE43: 12.70506685 | BF43: 12.7159899 | BG43: 12.72691295 | BH43: 12.737836 | BI43: 12.74875905 | BJ43: 12.7596821 | BK43: 12.77060515 | BL43: 12.7815282 | BM43: 12.79245125 | BO43: 1 | BP43: 2 | BQ43: 3 | BR43: 4 | BS43: 5 | BT43: 6 | BU43: 7 | BV43: 8 | BW43: 9 | BX43: 10 | BY43: 11 | BZ43: 12 | CA43: 13 | CB43: 14 | CC43: 15 | CE43: 0.46503866 | CF43: 0.46503866 | CG43: 0.46503866 | CH43: 0.46503866 | CI43: 0.26757649 | CJ43: 0.01092305 | CK43: 0.01092305 | CL43: 0.01092305 | CM43: 0.01092305 | CN43: 0.01092305 | CO43: 0.01092305 | CP43: 0.01092305 | CQ43: 0.01092305 | CR43: 0.01092305 | CS43: 0.2119086428
AU44: O | AV44: 9 | AW44: A | AX44: 3 | AY44: 7.20204563 | AZ44: 7.59667901 | BA44: 7.99131239 | BB44: 8.38594577 | BC44: 8.78057915 | BD44: 9.17521253 | BE44: 9.56984591 | BF44: 9.96447929 | BG44: 10.35911267 | BH44: 10.75374605 | BI44: 11.14837943 | BJ44: 11.54301281 | BK44: 11.93764619 | BL44: 12.33227957 | BM44: 12.72691295 | BO44: 1 | BP44: 2 | BQ44: 3 | BR44: 4 | BS44: 5 | BT44: 6 | BU44: 7 | BV44: 8 | BW44: 9 | BX44: 10 | BY44: 11 | BZ44: 12 | CA44: 13 | CB44: 14 | CC44: 15 | CE44: 0.39463338 | CF44: 0.39463338 | CG44: 0.39463338 | CH44: 0.39463338 | CI44: 0.39463338 | CJ44: 0.39463338 | CK44: 0.39463338 | CL44: 0.39463338 | CM44: 0.39463338 | CN44: 0.39463338 | CO44: 0.39463338 | CP44: 0.39463338 | CQ44: 0.39463338 | CR44: 0.39463338 | CS44: 1.472233402e-15
AU45: O | AV45: 9 | AW45: A | AX45: 4 | AY45: 10.97784875 | AZ45: 11.11239215 | BA45: 11.24693555 | BB45: 11.38147895 | BC45: 11.51602235 | BD45: 11.65056575 | BE45: 11.78510915 | BF45: 11.91965255 | BG45: 12.05419595 | BH45: 12.18873935 | BI45: 12.32328275 | BJ45: 12.45782615 | BK45: 12.59236955 | BL45: 12.72691295 | BM45: 12.86145635 | BO45: 1 | BP45: 2 | BQ45: 3 | BR45: 4 | BS45: 5 | BT45: 6 | BU45: 7 | BV45: 8 | BW45: 9 | BX45: 10 | BY45: 11 | BZ45: 12 | CA45: 13 | CB45: 14 | CC45: 15 | CE45: 0.1345434 | CF45: 0.1345434 | CG45: 0.1345434 | CH45: 0.1345434 | CI45: 0.1345434 | CJ45: 0.1345434 | CK45: 0.1345434 | CL45: 0.1345434 | CM45: 0.1345434 | CN45: 0.1345434 | CO45: 0.1345434 | CP45: 0.1345434 | CQ45: 0.1345434 | CR45: 0.1345434 | CS45: 9.853454874e-16
AU46: O | AV46: 9 | AW46: A | AX46: 5 | AY46: 8.88898301 | AZ46: 9.31541967 | BA46: 9.74185633 | BB46: 10.16829299 | BC46: 10.59472965 | BD46: 11.02116631 | BE46: 11.44760297 | BF46: 11.87403963 | BG46: 12.30047629 | BH46: 12.72691295 | BI46: 13.15334961 | BJ46: 13.57978627 | BK46: 14.00622293 | BL46: 14.43265959 | BM46: 14.67779925 | BO46: 1 | BP46: 2 | BQ46: 3 | BR46: 4 | BS46: 5 | BT46: 6 | BU46: 7 | BV46: 8 | BW46: 9 | BX46: 10 | BY46: 11 | BZ46: 12 | CA46: 13 | CB46: 14 | CC46: 15 | CE46: 0.42643666 | CF46: 0.42643666 | CG46: 0.42643666 | CH46: 0.42643666 | CI46: 0.42643666 | CJ46: 0.42643666 | CK46: 0.42643666 | CL46: 0.42643666 | CM46: 0.42643666 | CN46: 0.42643666 | CO46: 0.42643666 | CP46: 0.42643666 | CQ46: 0.42643666 | CR46: 0.24513966 | CS46: 0.04845366137
AU47: O | AV47: 10 | AW47: A | AX47: 1 | AY47: 7.4398611 | AZ47: 7.44951287 | BA47: 7.45916464 | BB47: 7.46881641 | BC47: 7.47846818 | BD47: 7.48811995 | BE47: 7.49777172 | BF47: 7.50742349 | BG47: 7.51707526 | BH47: 7.52672703 | BI47: 7.5363788 | BJ47: 7.54603057 | BK47: 7.55568234 | BL47: 7.56533411 | BM47: 7.57498588 | BO47: 1 | BP47: 2 | BQ47: 3 | BR47: 4 | BS47: 5 | BT47: 6 | BU47: 7 | BV47: 8 | BW47: 9 | BX47: 10 | BY47: 11 | BZ47: 12 | CA47: 13 | CB47: 14 | CC47: 15 | CE47: 0.00965177 | CF47: 0.00965177 | CG47: 0.00965177 | CH47: 0.00965177 | CI47: 0.00965177 | CJ47: 0.00965177 | CK47: 0.00965177 | CL47: 0.00965177 | CM47: 0.00965177 | CN47: 0.00965177 | CO47: 0.00965177 | CP47: 0.00965177 | CQ47: 0.00965177 | CR47: 0.00965177 | CS47: 4.561269812e-16
AU48: O | AV48: 10 | AW48: A | AX48: 2 | AY48: 4.21354579 | AZ48: 4.67858445 | BA48: 5.14362311 | BB48: 5.60866177 | BC48: 6.07370043 | BD48: 6.53873909 | BE48: 7.00377775 | BF48: 7.46881641 | BG48: 7.93385507 | BH48: 8.39889373 | BI48: 8.86393239 | BJ48: 9.32897105 | BK48: 9.79400971 | BL48: 9.89148212 | BM48: 9.90240517 | BO48: 1 | BP48: 2 | BQ48: 3 | BR48: 4 | BS48: 5 | BT48: 6 | BU48: 7 | BV48: 8 | BW48: 9 | BX48: 10 | BY48: 11 | BZ48: 12 | CA48: 13 | CB48: 14 | CC48: 15 | CE48: 0.46503866 | CF48: 0.46503866 | CG48: 0.46503866 | CH48: 0.46503866 | CI48: 0.46503866 | CJ48: 0.46503866 | CK48: 0.46503866 | CL48: 0.46503866 | CM48: 0.46503866 | CN48: 0.46503866 | CO48: 0.46503866 | CP48: 0.46503866 | CQ48: 0.09747241 | CR48: 0.01092305 | CS48: 0.1501538042
AU49: O | AV49: 10 | AW49: A | AX49: 3 | AY49: 5.72966433 | AZ49: 6.16445235 | BA49: 6.59924037 | BB49: 7.03402839 | BC49: 7.46881641 | BD49: 7.90360443 | BE49: 8.33839245 | BF49: 8.77318047 | BG49: 9.20796849 | BH49: 9.64275651 | BI49: 10.07754453 | BJ49: 10.51233255 | BK49: 10.94712057 | BL49: 11.38190859 | BM49: 11.81669661 | BO49: 1 | BP49: 2 | BQ49: 3 | BR49: 4 | BS49: 5 | BT49: 6 | BU49: 7 | BV49: 8 | BW49: 9 | BX49: 10 | BY49: 11 | BZ49: 12 | CA49: 13 | CB49: 14 | CC49: 15 | CE49: 0.43478802 | CF49: 0.43478802 | CG49: 0.43478802 | CH49: 0.43478802 | CI49: 0.43478802 | CJ49: 0.43478802 | CK49: 0.43478802 | CL49: 0.43478802 | CM49: 0.43478802 | CN49: 0.43478802 | CO49: 0.43478802 | CP49: 0.43478802 | CQ49: 0.43478802 | CR49: 0.43478802 | CS49: 7.679514169e-16
AU50: O | AV50: 10 | AW50: A | AX50: 4 | AY50: 7.07056679 | AZ50: 7.2696916 | BA50: 7.46881641 | BB50: 7.66794122 | BC50: 7.86706603 | BD50: 8.06619084 | BE50: 8.26531565 | BF50: 8.46444046 | BG50: 8.66356527 | BH50: 8.86269008 | BI50: 9.06181489 | BJ50: 9.2609397 | BK50: 9.46006451 | BL50: 9.65918932 | BM50: 9.85831413 | BO50: 1 | BP50: 2 | BQ50: 3 | BR50: 4 | BS50: 5 | BT50: 6 | BU50: 7 | BV50: 8 | BW50: 9 | BX50: 10 | BY50: 11 | BZ50: 12 | CA50: 13 | CB50: 14 | CC50: 15 | CE50: 0.19912481 | CF50: 0.19912481 | CG50: 0.19912481 | CH50: 0.19912481 | CI50: 0.19912481 | CJ50: 0.19912481 | CK50: 0.19912481 | CL50: 0.19912481 | CM50: 0.19912481 | CN50: 0.19912481 | CO50: 0.19912481 | CP50: 0.19912481 | CQ50: 0.19912481 | CR50: 0.19912481 | CS50: 7.92783082e-16
AU51: O | AV51: 10 | AW51: A | AX51: 5 | AY51: 5.13514056 | AZ51: 5.56157722 | BA51: 5.98801388 | BB51: 6.41445054 | BC51: 6.8408872 | BD51: 6.99952365 | BE51: 7.07773911 | BF51: 7.15595457 | BG51: 7.23417003 | BH51: 7.31238549 | BI51: 7.39060095 | BJ51: 7.46881641 | BK51: 7.54703187 | BL51: 7.62524733 | BM51: 7.70346279 | BO51: =RANK(AY51,$AY51:$BM51, 1) -> 1 | BP51: 2 | BQ51: 3 | BR51: 4 | BS51: 5 | BT51: 6 | BU51: 7 | BV51: 8 | BW51: 9 | BX51: 10 | BY51: 11 | BZ51: 12 | CA51: 13 | CB51: 14 | CC51: 15 | CE51: 0.42643666 | CF51: 0.42643666 | CG51: 0.42643666 | CH51: 0.42643666 | CI51: 0.15863645 | CJ51: 0.07821546 | CK51: 0.07821546 | CL51: 0.07821546 | CM51: 0.07821546 | CN51: 0.07821546 | CO51: 0.07821546 | CP51: 0.07821546 | CQ51: 0.07821546 | CR51: 0.07821546 | CS51: 0.1608761004
AU52: O | AV52: 11 | AW52: A | AX52: 1 | AY52: 8.31527394 | AZ52: 8.32492571 | BA52: 8.33457748 | BB52: 8.34422925 | BC52: 8.35388102 | BD52: 8.36353279 | BE52: 8.37318456 | BF52: 8.38283633 | BG52: 8.3924881 | BH52: 8.40213987 | BI52: 8.41179164 | BJ52: 8.42144341 | BK52: 8.43109518 | BL52: 8.44074695 | BM52: 8.45039872 | BO52: 1 | BP52: 2 | BQ52: 3 | BR52: 4 | BS52: 5 | BT52: 6 | BU52: 7 | BV52: 8 | BW52: 9 | BX52: 10 | BY52: 11 | BZ52: 12 | CA52: 13 | CB52: 14 | CC52: 15 | CE52: 0.00965177 | CF52: 0.00965177 | CG52: 0.00965177 | CH52: 0.00965177 | CI52: 0.00965177 | CJ52: 0.00965177 | CK52: 0.00965177 | CL52: 0.00965177 | CM52: 0.00965177 | CN52: 0.00965177 | CO52: 0.00965177 | CP52: 0.00965177 | CQ52: 0.00965177 | CR52: 0.00965177 | CS52: 7.564003382e-16
AU53: O | AV53: 11 | AW53: A | AX53: 2 | AY53: 8.3924881 | AZ53: 8.85752676 | BA53: 9.32256542 | BB53: 9.78760408 | BC53: 10.25264274 | BD53: 10.7176814 | BE53: 11.18272006 | BF53: 11.64775872 | BG53: 12.11279738 | BH53: 12.57783604 | BI53: 13.0428747 | BJ53: 13.50791336 | BK53: 13.84082639 | BL53: 13.85174944 | BM53: 13.86267249 | BO53: 1 | BP53: 2 | BQ53: 3 | BR53: 4 | BS53: 5 | BT53: 6 | BU53: 7 | BV53: 8 | BW53: 9 | BX53: 10 | BY53: 11 | BZ53: 12 | CA53: 13 | CB53: 14 | CC53: 15 | CE53: 0.46503866 | CF53: 0.46503866 | CG53: 0.46503866 | CH53: 0.46503866 | CI53: 0.46503866 | CJ53: 0.46503866 | CK53: 0.46503866 | CL53: 0.46503866 | CM53: 0.46503866 | CN53: 0.46503866 | CO53: 0.46503866 | CP53: 0.33291303 | CQ53: 0.01092305 | CR53: 0.01092305 | CS53: 0.1646882806
AU54: O | AV54: 11 | AW54: A | AX54: 3 | AY54: 4.7464007 | AZ54: 4.89731476 | BA54: 5.04822882 | BB54: 5.34897196 | BC54: 5.78375998 | BD54: 6.218548 | BE54: 6.65333602 | BF54: 7.08812404 | BG54: 7.52291206 | BH54: 7.95770008 | BI54: 8.3924881 | BJ54: 8.82727612 | BK54: 9.26206414 | BL54: 9.69685216 | BM54: 10.13164018 | BO54: 1 | BP54: 2 | BQ54: 3 | BR54: 4 | BS54: 5 | BT54: 6 | BU54: 7 | BV54: 8 | BW54: 9 | BX54: 10 | BY54: 11 | BZ54: 12 | CA54: 13 | CB54: 14 | CC54: 15 | CE54: 0.15091406 | CF54: 0.15091406 | CG54: 0.30074314 | CH54: 0.43478802 | CI54: 0.43478802 | CJ54: 0.43478802 | CK54: 0.43478802 | CL54: 0.43478802 | CM54: 0.43478802 | CN54: 0.43478802 | CO54: 0.43478802 | CP54: 0.43478802 | CQ54: 0.43478802 | CR54: 0.43478802 | CS54: 0.1052313826
AU55: O | AV55: 11 | AW55: A | AX55: 4 | AY55: 6.00299038 | AZ55: 6.20211519 | BA55: 6.40124 | BB55: 6.60036481 | BC55: 6.79948962 | BD55: 6.99861443 | BE55: 7.19773924 | BF55: 7.39686405 | BG55: 7.59598886 | BH55: 7.79511367 | BI55: 7.99423848 | BJ55: 8.19336329 | BK55: 8.3924881 | BL55: 8.59161291 | BM55: 8.79073772 | BO55: 1 | BP55: 2 | BQ55: 3 | BR55: 4 | BS55: 5 | BT55: 6 | BU55: 7 | BV55: 8 | BW55: 9 | BX55: 10 | BY55: 11 | BZ55: 12 | CA55: 13 | CB55: 14 | CC55: 15 | CE55: 0.19912481 | CF55: 0.19912481 | CG55: 0.19912481 | CH55: 0.19912481 | CI55: 0.19912481 | CJ55: 0.19912481 | CK55: 0.19912481 | CL55: 0.19912481 | CM55: 0.19912481 | CN55: 0.19912481 | CO55: 0.19912481 | CP55: 0.19912481 | CQ55: 0.19912481 | CR55: 0.19912481 | CS55: 5.42914515e-16
AU56: O | AV56: 11 | AW56: A | AX56: 5 | AY56: 7.16113697 | AZ56: 7.7711492 | BA56: 8.15784172 | BB56: 8.23605718 | BC56: 8.31427264 | BD56: 8.3924881 | BE56: 8.47070356 | BF56: 8.54891902 | BG56: 8.62713448 | BH56: 8.70534994 | BI56: 8.7835654 | BJ56: 8.86178086 | BK56: 8.93999632 | BL56: 9.01821178 | BM56: 9.09642724 | BO56: 1 | BP56: 2 | BQ56: 3 | BR56: 4 | BS56: 5 | BT56: 6 | BU56: 7 | BV56: 8 | BW56: 9 | BX56: 10 | BY56: 11 | BZ56: 12 | CA56: 13 | CB56: 14 | CC56: 15 | CE56: 0.61001223 | CF56: 0.38669252 | CG56: 0.07821546 | CH56: 0.07821546 | CI56: 0.07821546 | CJ56: =BE56-BD56 -> 0.07821546 | CK56: 0.07821546 | CL56: 0.07821546 | CM56: 0.07821546 | CN56: 0.07821546 | CO56: 0.07821546 | CP56: 0.07821546 | CQ56: 0.07821546 | CR56: 0.07821546 | CS56: 0.1587288535
AU57: O | AV57: 12 | AW57: A | AX57: 1 | AY57: 12.38437736 | AZ57: 12.94550796 | BA57: 13.50663856 | BB57: 13.7363357 | BC57: 13.74598747 | BD57: 13.75563924 | BE57: 13.76529101 | BF57: 13.77494278 | BG57: 13.78459455 | BH57: 13.79424632 | BI57: 13.80389809 | BJ57: 13.81354986 | BK57: 13.82320163 | BL57: 13.8328534 | BM57: 13.84250517 | BO57: 1 | BP57: 2 | BQ57: 3 | BR57: 4 | BS57: 5 | BT57: 6 | BU57: 7 | BV57: 8 | BW57: 9 | BX57: 10 | BY57: 11 | BZ57: 12 | CA57: 13 | CB57: 14 | CC57: 15 | CE57: 0.5611306 | CF57: 0.5611306 | CG57: 0.22969714 | CH57: 0.00965177 | CI57: 0.00965177 | CJ57: 0.00965177 | CK57: 0.00965177 | CL57: 0.00965177 | CM57: 0.00965177 | CN57: 0.00965177 | CO57: 0.00965177 | CP57: 0.00965177 | CQ57: 0.00965177 | CR57: 0.00965177 | CS57: 0.2022286771
AU58: O | AV58: 12 | AW58: A | AX58: 2 | AY58: 7.7294402 | AZ58: 8.19447886 | BA58: 8.65951752 | BB58: 9.12455618 | BC58: 9.58959484 | BD58: 10.0546335 | BE58: 10.51967216 | BF58: 10.98471082 | BG58: 11.44974948 | BH58: 11.91478814 | BI58: 12.3798268 | BJ58: 12.84486546 | BK58: 13.30990412 | BL58: 13.77494278 | BM58: 14.23998144 | BO58: 1 | BP58: 2 | BQ58: 3 | BR58: 4 | BS58: 5 | BT58: 6 | BU58: 7 | BV58: 8 | BW58: 9 | BX58: 10 | BY58: 11 | BZ58: 12 | CA58: 13 | CB58: 14 | CC58: 15 | CE58: 0.46503866 | CF58: 0.46503866 | CG58: 0.46503866 | CH58: 0.46503866 | CI58: 0.46503866 | CJ58: 0.46503866 | CK58: 0.46503866 | CL58: 0.46503866 | CM58: 0.46503866 | CN58: 0.46503866 | CO58: 0.46503866 | CP58: 0.46503866 | CQ58: 0.46503866 | CR58: 0.46503866 | CS58: 7.5925969e-16
AU59: O | AV59: 12 | AW59: A | AX59: 3 | AY59: 8.99227456 | AZ59: 9.42706258 | BA59: 9.8618506 | BB59: 10.29663862 | BC59: 10.73142664 | BD59: 11.16621466 | BE59: 11.60100268 | BF59: 12.0357907 | BG59: 12.47057872 | BH59: 12.90536674 | BI59: 13.34015476 | BJ59: 13.77494278 | BK59: 14.2097308 | BL59: 14.64451882 | BM59: 15.07930684 | BO59: 1 | BP59: 2 | BQ59: 3 | BR59: 4 | BS59: 5 | BT59: 6 | BU59: 7 | BV59: 8 | BW59: 9 | BX59: 10 | BY59: 11 | BZ59: 12 | CA59: 13 | CB59: 14 | CC59: 15 | CE59: 0.43478802 | CF59: 0.43478802 | CG59: 0.43478802 | CH59: 0.43478802 | CI59: 0.43478802 | CJ59: 0.43478802 | CK59: 0.43478802 | CL59: 0.43478802 | CM59: 0.43478802 | CN59: 0.43478802 | CO59: 0.43478802 | CP59: 0.43478802 | CQ59: 0.43478802 | CR59: 0.43478802 | CS59: 9.12401124e-16
AU60: O | AV60: 12 | AW60: A | AX60: 4 | AY60: 13.17756835 | AZ60: 13.37669316 | BA60: 13.57581797 | BB60: 13.77494278 | BC60: 13.97406759 | BD60: 14.1731924 | BE60: 14.37231721 | BF60: 14.57144202 | BG60: 14.77056683 | BH60: 14.96969164 | BI60: 15.16881645 | BJ60: 15.36794126 | BK60: 15.56706607 | BL60: 15.76619088 | BM60: 15.96531569 | BO60: 1 | BP60: 2 | BQ60: 3 | BR60: 4 | BS60: 5 | BT60: 6 | BU60: 7 | BV60: 8 | BW60: 9 | BX60: 10 | BY60: 11 | BZ60: 12 | CA60: 13 | CB60: 14 | CC60: 15 | CE60: 0.19912481 | CF60: 0.19912481 | CG60: 0.19912481 | CH60: 0.19912481 | CI60: 0.19912481 | CJ60: 0.19912481 | CK60: 0.19912481 | CL60: 0.19912481 | CM60: 0.19912481 | CN60: 0.19912481 | CO60: 0.19912481 | CP60: 0.19912481 | CQ60: 0.19912481 | CR60: 0.19912481 | CS60: 9.123361728e-16
AU61: O | AV61: 12 | AW61: A | AX61: 5 | AY61: 10.34217832 | AZ61: 10.76861498 | BA61: 11.19505164 | BB61: 11.6214883 | BC61: 12.04792496 | BD61: 12.47436162 | BE61: 12.90079828 | BF61: 13.22743456 | BG61: 13.30565002 | BH61: 13.38386548 | BI61: 13.46208094 | BJ61: 13.5402964 | BK61: 13.61851186 | BL61: 13.69672732 | BM61: 13.77494278 | BO61: 1 | BP61: 2 | BQ61: 3 | BR61: 4 | BS61: 5 | BT61: 6 | BU61: 7 | BV61: 8 | BW61: 9 | BX61: 10 | BY61: 11 | BZ61: 12 | CA61: 13 | CB61: 14 | CC61: 15 | CE61: 0.42643666 | CF61: 0.42643666 | CG61: 0.42643666 | CH61: 0.42643666 | CI61: 0.42643666 | CJ61: 0.42643666 | CK61: 0.32663628 | CL61: 0.07821546 | CM61: 0.07821546 | CN61: 0.07821546 | CO61: 0.07821546 | CP61: 0.07821546 | CQ61: 0.07821546 | CR61: 0.07821546 | CS61: 0.175170046
AU62: O | AV62: 13 | AW62: A | AX62: 1 | AY62: 5.65871327 | AZ62: 5.66836504 | BA62: 5.67801681 | BB62: 5.68766858 | BC62: 5.69732035 | BD62: 5.70697212 | BE62: 5.71662389 | BF62: 5.72627566 | BG62: 5.73592743 | BH62: 5.7455792 | BI62: 5.75523097 | BJ62: 5.76488274 | BK62: 5.77453451 | BL62: 5.87634573 | BM62: 6.05472395 | BO62: 1 | BP62: 2 | BQ62: 3 | BR62: 4 | BS62: 5 | BT62: 6 | BU62: 7 | BV62: 8 | BW62: 9 | BX62: 10 | BY62: 11 | BZ62: 12 | CA62: 13 | CB62: 14 | CC62: 15 | CE62: 0.00965177 | CF62: 0.00965177 | CG62: 0.00965177 | CH62: 0.00965177 | CI62: 0.00965177 | CJ62: 0.00965177 | CK62: 0.00965177 | CL62: 0.00965177 | CM62: 0.00965177 | CN62: 0.00965177 | CO62: 0.00965177 | CP62: 0.00965177 | CQ62: 0.10181122 | CR62: 0.17837822 | CS62: 0.04969170091
AU63: O | AV63: 13 | AW63: A | AX63: 2 | AY63: 5.69732035 | AZ63: 6.16235901 | BA63: 6.62739767 | BB63: 7.09243633 | BC63: 7.55747499 | BD63: 8.02251365 | BE63: 8.48755231 | BF63: 8.95259097 | BG63: 9.41762963 | BH63: 9.73872098 | BI63: 9.74964403 | BJ63: 9.76056708 | BK63: 9.77149013 | BL63: 9.78241318 | BM63: 9.79333623 | BO63: 1 | BP63: 2 | BQ63: 3 | BR63: 4 | BS63: 5 | BT63: 6 | BU63: 7 | BV63: 8 | BW63: 9 | BX63: 10 | BY63: 11 | BZ63: 12 | CA63: 13 | CB63: 14 | CC63: 15 | CE63: 0.46503866 | CF63: 0.46503866 | CG63: 0.46503866 | CH63: 0.46503866 | CI63: 0.46503866 | CJ63: 0.46503866 | CK63: 0.46503866 | CL63: 0.46503866 | CM63: 0.32109135 | CN63: 0.01092305 | CO63: 0.01092305 | CP63: 0.01092305 | CQ63: 0.01092305 | CR63: 0.01092305 | CS63: 0.2210816068
AU64: O | AV64: 13 | AW64: A | AX64: 3 | AY64: 3.36545739 | AZ64: 3.52338025 | BA64: 3.95816827 | BB64: 4.39295629 | BC64: 4.82774431 | BD64: 5.26253233 | BE64: 5.69732035 | BF64: 6.13210837 | BG64: 6.56689639 | BH64: 7.00168441 | BI64: 7.43647243 | BJ64: 7.87126045 | BK64: 8.30604847 | BL64: 8.74083649 | BM64: 9.17562451 | BO64: 1 | BP64: 2 | BQ64: 3 | BR64: 4 | BS64: 5 | BT64: 6 | BU64: 7 | BV64: 8 | BW64: 9 | BX64: 10 | BY64: 11 | BZ64: 12 | CA64: 13 | CB64: 14 | CC64: 15 | CE64: 0.15792286 | CF64: 0.43478802 | CG64: 0.43478802 | CH64: 0.43478802 | CI64: 0.43478802 | CJ64: 0.43478802 | CK64: 0.43478802 | CL64: 0.43478802 | CM64: 0.43478802 | CN64: 0.43478802 | CO64: 0.43478802 | CP64: 0.43478802 | CQ64: 0.43478802 | CR64: 0.43478802 | CS64: 0.0739953265
AU65: O | AV65: 13 | AW65: A | AX65: 4 | AY65: 4.30344668 | AZ65: 4.50257149 | BA65: 4.7016963 | BB65: 4.90082111 | BC65: 5.09994592 | BD65: 5.29907073 | BE65: 5.49819554 | BF65: 5.69732035 | BG65: 5.89644516 | BH65: 6.09556997 | BI65: 6.29469478 | BJ65: 6.49381959 | BK65: 6.6929444 | BL65: 6.89206921 | BM65: 7.09119402 | BO65: 1 | BP65: 2 | BQ65: 3 | BR65: 4 | BS65: 5 | BT65: 6 | BU65: 7 | BV65: 8 | BW65: 9 | BX65: 10 | BY65: 11 | BZ65: 12 | CA65: 13 | CB65: 14 | CC65: 15 | CE65: 0.19912481 | CF65: 0.19912481 | CG65: 0.19912481 | CH65: 0.19912481 | CI65: 0.19912481 | CJ65: 0.19912481 | CK65: 0.19912481 | CL65: 0.19912481 | CM65: 0.19912481 | CN65: 0.19912481 | CO65: 0.19912481 | CP65: 0.19912481 | CQ65: 0.19912481 | CR65: 0.19912481 | CS65: 5.42914515e-16
AU66: O | AV66: 13 | AW66: A | AX66: 5 | AY66: 4.87456374 | AZ66: 5.30624305 | BA66: 5.38445851 | BB66: 5.46267397 | BC66: 5.54088943 | BD66: 5.61910489 | BE66: 5.69732035 | BF66: 5.77553581 | BG66: 5.85375127 | BH66: 5.93196673 | BI66: 6.01018219 | BJ66: 6.08839765 | BK66: 6.16661311 | BL66: 6.24482857 | BM66: 6.32304403 | BO66: 1 | BP66: 2 | BQ66: 3 | BR66: 4 | BS66: 5 | BT66: 6 | BU66: 7 | BV66: 8 | BW66: 9 | BX66: 10 | BY66: 11 | BZ66: 12 | CA66: 13 | CB66: 14 | CC66: 15 | CE66: 0.43167931 | CF66: 0.07821546 | CG66: 0.07821546 | CH66: 0.07821546 | CI66: 0.07821546 | CJ66: 0.07821546 | CK66: 0.07821546 | CL66: 0.07821546 | CM66: 0.07821546 | CN66: 0.07821546 | CO66: 0.07821546 | CP66: 0.07821546 | CQ66: 0.07821546 | CR66: 0.07821546 | CS66: 0.09446718752
AU67: O | AV67: 14 | AW67: A | AX67: 1 | AY67: 3.90734342 | AZ67: 3.91699519 | BA67: 3.92664696 | BB67: 3.93629873 | BC67: 3.9459505 | BD67: 3.95560227 | BE67: 3.96525404 | BF67: 3.99002408 | BG67: 4.1684023 | BH67: 4.34678052 | BI67: 4.52515874 | BJ67: 4.70353696 | BK67: 4.88191518 | BL67: 5.0602934 | BM67: 5.23867162 | BO67: 1 | BP67: 2 | BQ67: 3 | BR67: 4 | BS67: 5 | BT67: 6 | BU67: 7 | BV67: 8 | BW67: 9 | BX67: 10 | BY67: 11 | BZ67: 12 | CA67: 13 | CB67: 14 | CC67: 15 | CE67: 0.00965177 | CF67: 0.00965177 | CG67: 0.00965177 | CH67: 0.00965177 | CI67: 0.00965177 | CJ67: 0.00965177 | CK67: 0.02477004 | CL67: 0.17837822 | CM67: 0.17837822 | CN67: 0.17837822 | CO67: 0.17837822 | CP67: 0.17837822 | CQ67: 0.17837822 | CR67: 0.17837822 | CS67: =STDEV(CE67:CR67) -> 0.08651435472
AU68: O | AV68: 14 | AW68: A | AX68: 2 | AY68: 3.96829782 | AZ68: 4.10751305 | BA68: 4.24672828 | BB68: 4.38594351 | BC68: 4.52515874 | BD68: 4.66437397 | BE68: 4.93393844 | BF68: 5.3989771 | BG68: 5.86401576 | BH68: 6.32905442 | BI68: 6.79409308 | BJ68: 7.25913174 | BK68: 7.7241704 | BL68: 8.18920906 | BM68: 8.65424772 | BO68: =RANK(AY68,$AY68:$BM68, 1) -> 1 | BP68: 2 | BQ68: 3 | BR68: 4 | BS68: 5 | BT68: 6 | BU68: 7 | BV68: 8 | BW68: 9 | BX68: 10 | BY68: 11 | BZ68: 12 | CA68: 13 | CB68: 14 | CC68: 15 | CE68: 0.13921523 | CF68: 0.13921523 | CG68: 0.13921523 | CH68: 0.13921523 | CI68: 0.13921523 | CJ68: 0.26956447 | CK68: 0.46503866 | CL68: 0.46503866 | CM68: 0.46503866 | CN68: 0.46503866 | CO68: 0.46503866 | CP68: 0.46503866 | CQ68: 0.46503866 | CR68: 0.46503866 | CS68: 0.1596196061
AU69: O | AV69: 14 | AW69: A | AX69: 3 | AY69: 4.52515874 | AZ69: 4.6760728 | BA69: 4.87343716 | BB69: 5.30822518 | BC69: 5.7430132 | BD69: 6.17780122 | BE69: 6.61258924 | BF69: 7.04737726 | BG69: 7.48216528 | BH69: 7.9169533 | BI69: 8.35174132 | BJ69: 8.78652934 | BK69: 9.22131736 | BL69: 9.65610538 | BM69: 10.0908934 | BO69: 1 | BP69: 2 | BQ69: 3 | BR69: 4 | BS69: 5 | BT69: 6 | BU69: 7 | BV69: 8 | BW69: 9 | BX69: 10 | BY69: 11 | BZ69: 12 | CA69: 13 | CB69: 14 | CC69: 15 | CE69: 0.15091406 | CF69: 0.19736436 | CG69: 0.43478802 | CH69: 0.43478802 | CI69: 0.43478802 | CJ69: 0.43478802 | CK69: 0.43478802 | CL69: 0.43478802 | CM69: 0.43478802 | CN69: 0.43478802 | CO69: 0.43478802 | CP69: 0.43478802 | CQ69: 0.43478802 | CR69: 0.43478802 | CS69: 0.09508846847
AU70: O | AV70: 14 | AW70: A | AX70: 4 | AY70: 4.52515874 | AZ70: 4.68458781 | BA70: 4.84401688 | BB70: 5.00344595 | BC70: 5.16287502 | BD70: 5.32230409 | BE70: 5.48173316 | BF70: 5.64116223 | BG70: 5.8005913 | BH70: 5.96002037 | BI70: 6.11944944 | BJ70: 6.27887851 | BK70: 6.43830758 | BL70: 6.59773665 | BM70: 6.79160846 | BO70: 1 | BP70: 2 | BQ70: 3 | BR70: 4 | BS70: 5 | BT70: 6 | BU70: 7 | BV70: 8 | BW70: 9 | BX70: 10 | BY70: 11 | BZ70: 12 | CA70: 13 | CB70: 14 | CC70: 15 | CE70: 0.15942907 | CF70: 0.15942907 | CG70: 0.15942907 | CH70: 0.15942907 | CI70: 0.15942907 | CJ70: 0.15942907 | CK70: 0.15942907 | CL70: 0.15942907 | CM70: 0.15942907 | CN70: 0.15942907 | CO70: 0.15942907 | CP70: 0.15942907 | CQ70: 0.15942907 | CR70: 0.19387181 | CS70: 0.009205209467
AU71: O | AV71: 14 | AW71: A | AX71: 5 | AY71: 3.14349106 | AZ71: 3.22800954 | BA71: 3.35772446 | BB71: 3.48743938 | BC71: 3.6171543 | BD71: 3.74686922 | BE71: 3.87658414 | BF71: 4.00629906 | BG71: 4.13601398 | BH71: 4.2657289 | BI71: 4.39544382 | BJ71: 4.52515874 | BK71: 4.65487366 | BL71: 4.78458858 | BM71: 4.9143035 | BO71: 1 | BP71: 2 | BQ71: 3 | BR71: 4 | BS71: 5 | BT71: 6 | BU71: 7 | BV71: 8 | BW71: 9 | BX71: 10 | BY71: 11 | BZ71: 12 | CA71: 13 | CB71: 14 | CC71: 15 | CE71: 0.08451848 | CF71: 0.12971492 | CG71: 0.12971492 | CH71: 0.12971492 | CI71: 0.12971492 | CJ71: 0.12971492 | CK71: 0.12971492 | CL71: 0.12971492 | CM71: 0.12971492 | CN71: 0.12971492 | CO71: 0.12971492 | CP71: 0.12971492 | CQ71: 0.12971492 | CR71: 0.12971492 | CS71: 0.01207925668
AU72: O | AV72: 15 | AW72: A | AX72: 1 | AY72: 10.46859735 | AZ72: 11.02972795 | BA72: 11.59085855 | BB72: 12.15198915 | BC72: 12.71311975 | BD72: 13.27425035 | BE72: 13.83538095 | BF72: 14.39651155 | BG72: 14.95764215 | BH72: 14.97960242 | BI72: 14.98925419 | BJ72: 14.99890596 | BK72: 15.00855773 | BL72: 15.0182095 | BM72: 15.02786127 | BO72: 1 | BP72: 2 | BQ72: 3 | BR72: 4 | BS72: 5 | BT72: 6 | BU72: 7 | BV72: 8 | BW72: 9 | BX72: 10 | BY72: 11 | BZ72: 12 | CA72: 13 | CB72: 14 | CC72: 15 | CE72: 0.5611306 | CF72: 0.5611306 | CG72: 0.5611306 | CH72: 0.5611306 | CI72: 0.5611306 | CJ72: 0.5611306 | CK72: 0.5611306 | CL72: 0.5611306 | CM72: 0.02196027 | CN72: 0.00965177 | CO72: 0.00965177 | CP72: 0.00965177 | CQ72: 0.00965177 | CR72: 0.00965177 | CS72: 0.2821770804
AU73: O | AV73: 15 | AW73: A | AX73: 2 | AY73: 8.48836472 | AZ73: 8.95340338 | BA73: 9.41844204 | BB73: 9.8834807 | BC73: 10.34851936 | BD73: 10.81355802 | BE73: 11.27859668 | BF73: 11.74363534 | BG73: 12.208674 | BH73: 12.67371266 | BI73: 13.13875132 | BJ73: 13.60378998 | BK73: 14.06882864 | BL73: 14.5338673 | BM73: 14.99890596 | BO73: 1 | BP73: 2 | BQ73: 3 | BR73: 4 | BS73: 5 | BT73: 6 | BU73: 7 | BV73: 8 | BW73: 9 | BX73: 10 | BY73: 11 | BZ73: 12 | CA73: 13 | CB73: 14 | CC73: 15 | CE73: 0.46503866 | CF73: 0.46503866 | CG73: 0.46503866 | CH73: 0.46503866 | CI73: 0.46503866 | CJ73: 0.46503866 | CK73: 0.46503866 | CL73: 0.46503866 | CM73: 0.46503866 | CN73: 0.46503866 | CO73: 0.46503866 | CP73: 0.46503866 | CQ73: 0.46503866 | CR73: 0.46503866 | CS73: 8.836298032e-16
AU74: O | AV74: 15 | AW74: A | AX74: 3 | AY74: 9.3466617 | AZ74: 9.78144972 | BA74: 10.21623774 | BB74: 10.65102576 | BC74: 11.08581378 | BD74: 11.5206018 | BE74: 11.95538982 | BF74: 12.39017784 | BG74: 12.82496586 | BH74: 13.25975388 | BI74: 13.6945419 | BJ74: 14.12932992 | BK74: 14.56411794 | BL74: 14.99890596 | BM74: 15.43369398 | BO74: 1 | BP74: 2 | BQ74: 3 | BR74: 4 | BS74: 5 | BT74: 6 | BU74: 7 | BV74: 8 | BW74: 9 | BX74: 10 | BY74: 11 | BZ74: 12 | CA74: 13 | CB74: 14 | CC74: 15 | CE74: 0.43478802 | CF74: 0.43478802 | CG74: 0.43478802 | CH74: 0.43478802 | CI74: 0.43478802 | CJ74: 0.43478802 | CK74: 0.43478802 | CL74: 0.43478802 | CM74: 0.43478802 | CN74: 0.43478802 | CO74: 0.43478802 | CP74: 0.43478802 | CQ74: 0.43478802 | CR74: 0.43478802 | CS74: 9.217063053e-16
AU75: O | AV75: 15 | AW75: A | AX75: 4 | AY75: 14.00328191 | AZ75: 14.20240672 | BA75: 14.40153153 | BB75: 14.60065634 | BC75: 14.79978115 | BD75: 14.99890596 | BE75: 15.19803077 | BF75: 15.39715558 | BG75: 15.59628039 | BH75: 15.7954052 | BI75: 15.99453001 | BJ75: 16.19365482 | BK75: 16.39277963 | BL75: 16.59190444 | BM75: 16.79102925 | BO75: 1 | BP75: 2 | BQ75: 3 | BR75: 4 | BS75: 5 | BT75: 6 | BU75: 7 | BV75: 8 | BW75: 9 | BX75: 10 | BY75: 11 | BZ75: 12 | CA75: 13 | CB75: 14 | CC75: 15 | CE75: 0.19912481 | CF75: 0.19912481 | CG75: 0.19912481 | CH75: 0.19912481 | CI75: 0.19912481 | CJ75: 0.19912481 | CK75: 0.19912481 | CL75: 0.19912481 | CM75: 0.19912481 | CN75: 0.19912481 | CO75: 0.19912481 | CP75: 0.19912481 | CQ75: 0.19912481 | CR75: 0.19912481 | CS75: 8.832944216e-16
AU76: O | AV76: 15 | AW76: A | AX76: 5 | AY76: 13.65597733 | AZ76: 14.08241399 | BA76: 14.50885065 | BB76: 14.68604412 | BC76: 14.76425958 | BD76: 14.84247504 | BE76: 14.9206905 | BF76: 14.99890596 | BG76: 15.07712142 | BH76: 15.15533688 | BI76: 15.23355234 | BJ76: 15.3117678 | BK76: 15.38998326 | BL76: 15.46819872 | BM76: 15.54641418 | BO76: 1 | BP76: 2 | BQ76: 3 | BR76: 4 | BS76: 5 | BT76: 6 | BU76: 7 | BV76: 8 | BW76: 9 | BX76: 10 | BY76: 11 | BZ76: 12 | CA76: 13 | CB76: 14 | CC76: 15 | CE76: 0.42643666 | CF76: 0.42643666 | CG76: 0.17719347 | CH76: 0.07821546 | CI76: 0.07821546 | CJ76: 0.07821546 | CK76: 0.07821546 | CL76: 0.07821546 | CM76: 0.07821546 | CN76: 0.07821546 | CO76: 0.07821546 | CP76: 0.07821546 | CQ76: 0.07821546 | CR76: 0.07821546 | CS76: 0.1262233224
BO77: =AVERAGE(BO2:BO76) -> 1 | BP77: =AVERAGE(BP2:BP76) -> 2 | BQ77: 3 | BR77: 4 | BS77: 5 | BT77: 6 | BU77: 7 | BV77: 8 | BW77: 9 | BX77: 10 | BY77: 11 | BZ77: 12 | CA77: 13 | CB77: 14 | CC77: 15
BO78: =STDEV(BO2:BO76) -> 0 | BP78: =STDEV(BP2:BP76) -> 0 | BQ78: 0 | BR78: 0 | BS78: 0 | BT78: 0 | BU78: 0 | BV78: 0 | BW78: 0 | BX78: 0 | BY78: 0 | BZ78: 0 | CA78: 0 | CB78: 0 | CC78: 0

Sheet nn - ranked data - new (35)
A1: irány | B1: 0 | C1: 0 | D1: 0 | E1: 0 | F1: 0 | M1: súlyok | U1: 2. layer vektor | AK1: 2 layer súlyok | AS1: Futtat | AY1: 1 | AZ1: 2 | BA1: 3 | BB1: 4 | BC1: 5 | BD1: 6 | BE1: 7 | BF1: 8 | BG1: 9 | BH1: 10 | BI1: 11 | BJ1: 12 | BK1: 13 | BL1: 14 | BM1: 15 | BO1: Ranking | CE1: O2 - O1 | CF1: O3 - O2 | CG1: O4 - O3 | CH1: O5 - O4 | CI1: O6 - O5 | CJ1: O7 - O6 | CK1: O8 - O7 | CL1: O9 - O8 | CM1: O10 - O9 | CN1: O11 - O10 | CO1: O12 - O11 | CP1: O13 - 12 | CQ1: O14 - O13 | CR1: O15 - O14
A2: rnd(1-100) | B2: A1 | C2: A2 | D2: A3 | E2: A4 | F2: A5 | H2: rank = 0 | I2: =B2 -> A1 | J2: A2 | K2: A3 | L2: A4 | M2: A5 | O2: w1 | P2: w2 | Q2: w3 | R2: w4 | S2: w5 | U2: O1 | V2: O2 | W2: O3 | X2: O4 | Y2: O5 | Z2: O6 | AA2: O7 | AB2: O8 | AC2: O9 | AD2: O10 | AE2: O11 | AF2: O12 | AG2: O13 | AH2: O14 | AI2: O15 | AK2: w6 | AN2: Y0 | AO2: Ybecslés | AP2: eltérés | AQ2: MAE | AU2: O | AV2: 1 | AW2: A | AX2: 1 | AY2: 922.6327581 | AZ2: 962.2670241 | BA2: 1001.90129 | BB2: 1041.535556 | BC2: 1081.169822 | BD2: 1120.804088 | BE2: 1160.438354 | BF2: 1200.07262 | BG2: 1239.706886 | BH2: 1279.341152 | BI2: 1318.975418 | BJ2: 1358.609684 | BK2: 1398.24395 | BL2: 1437.878216 | BM2: 1477.512482 | BO2: =RANK(AY2,$AY2:$BM2, 1) -> 1 | BP2: =RANK(AZ2,$AY2:$BM2, 1) -> 2 | BQ2: 3 | BR2: 4 | BS2: 5 | BT2: 6 | BU2: 7 | BV2: =RANK(BF2,$AY2:$BM2, 1) -> 8 | BW2: 9 | BX2: 10 | BY2: 11 | BZ2: 12 | CA2: 13 | CB2: 14 | CC2: 15 | CE2: =AZ2-AY2 -> 39.634266 | CF2: =BA2-AZ2 -> 39.634266 | CG2: 39.634266 | CH2: 39.634266 | CI2: =BD2-BC2 -> 39.634266 | CJ2: 39.634266 | CK2: 39.634266 | CL2: 39.634266 | CM2: =BH2-BG2 -> 39.634266 | CN2: 39.634266 | CO2: 39.634266 | CP2: 39.634266 | CQ2: 39.634266 | CR2: =BM2-BL2 -> 39.634266 | CS2: =STDEV(CE2:CR2) -> 8.47167938e-14
A3: O1 | B3: 70 | C3: 10 | D3: 93 | E3: 33 | F3: 29 | H3: =A3 -> O1 | I3: 6 | J3: 13 | K3: 2 | L3: 11 | M3: 10 | O3: 39.634384 | P3: 2.2018464 | Q3: 0.9451806 | R3: 46.669975 | S3: 33.91167 | U3: =$I$3*$O3+$J$3*$P3+$K$3*$Q3+$L$3*$R3+$M$3*$S3 -> 1120.807093 | V3: =$I$4*$O3+$J$4*$P3+$K$4*$Q3+$L$4*$R3+$M$4*$S3 -> 1100.342123 | W3: =$I$5*$O3+$J$5*$P3+$K$5*$Q3+$L$5*$R3+$M$5*$S3 -> 796.3005746 | X3: =$I$6*$O3+$J$6*$P3+$K$6*$Q3+$L$6*$R3+$M$6*$S3 -> 1057.21296 | Y3: =$I$7*$O3+$J$7*$P3+$K$7*$Q3+$L$7*$R3+$M$7*$S3 -> 1156.884743 | Z3: =$I$8*$O3+$J$8*$P3+$K$8*$Q3+$L$8*$R3+$M$8*$S3 -> 725.843773 | AA3: =$I$9*$O3+$J$9*$P3+$K$9*$Q3+$L$9*$R3+$M$9*$S3 -> 1036.13349 | AB3: =$I$10*$O3+$J$10*$P3+$K$10*$Q3+$L$10*$R3+$M$10*$S3 -> 821.7736612 | AC3: =$I$11*$O3+$J$11*$P3+$K$11*$Q3+$L$11*$R3+$M$11*$S3 -> 1066.125061 | AD3: =$I$12*$O3+$J$12*$P3+$K$12*$Q3+$L$12*$R3+$M$12*$S3 -> 727.8281752 | AE3: =$I$13*$O3+$J$13*$P3+$K$13*$Q3+$L$13*$R3+$M$13*$S3 -> 1179.487984 | AF3: =$I$14*$O3+$J$14*$P3+$K$14*$Q3+$L$14*$R3+$M$14*$S3 -> 1054.598039 | AG3: =$I$15*$O3+$J$15*$P3+$K$15*$Q3+$L$15*$R3+$M$15*$S3 -> 817.7315206 | AH3: =$I$16*$O3+$J$16*$P3+$K$16*$Q3+$L$16*$R3+$M$16*$S3 -> 901.5426516 | AI3: =$I$17*$O3+$J$17*$P3+$K$17*$Q3+$L$17*$R3+$M$17*$S3 -> 1073.186042 | AK3: 100 | AM3: O1 | AN3: 1000 | AO3: =U30 -> 1120.804088 | AP3: =AN3-AO3 -> -120.8040881 | AQ3: =ABS(AP3) -> 120.8040881 | AU3: O | AV3: 1 | AW3: A | AX3: 2 | AY3: 1094.383208 | AZ3: 1096.584948 | BA3: 1098.786688 | BB3: 1100.988428 | BC3: 1103.190168 | BD3: 1105.391908 | BE3: 1107.593648 | BF3: 1109.795388 | BG3: 1111.997128 | BH3: 1114.198868 | BI3: 1116.400608 | BJ3: 1118.602348 | BK3: 1120.804088 | BL3: 1123.005828 | BM3: 1125.207568 | BO3: =RANK(AY3,$AY3:$BM3, 1) -> 1 | BP3: 2 | BQ3: 3 | BR3: 4 | BS3: 5 | BT3: 6 | BU3: 7 | BV3: 8 | BW3: 9 | BX3: 10 | BY3: 11 | BZ3: 12 | CA3: 13 | CB3: 14 | CC3: 15 | CE3: =AZ3-AY3 -> 2.20174 | CF3: 2.20174 | CG3: 2.20174 | CH3: 2.20174 | CI3: 2.20174 | CJ3: 2.20174 | CK3: 2.20174 | CL3: 2.20174 | CM3: 2.20174 | CN3: 2.20174 | CO3: 2.20174 | CP3: 2.20174 | CQ3: 2.20174 | CR3: 2.20174 | CS3: =STDEV(CE3:CR3) -> 6.076849185e-14
A4: O2 | B4: 17 | C4: 74 | D4: 84 | E4: 78 | F4: 23 | H4: =A4 -> O2 | I4: 13 | J4: 6 | K4: 4 | L4: 2 | M4: 14 | O4: 39.634243 | P4: 2.2016923 | Q4: 0.94561315 | R4: 46.66971 | S4: 33.911762 | U4: =$I$3*$O4+$J$3*$P4+$K$3*$Q4+$L$3*$R4+$M$3*$S4 -> 1120.803114 | V4: =$I$4*$O4+$J$4*$P4+$K$4*$Q4+$L$4*$R4+$M$4*$S4 -> 1100.341853 | W4: =$I$5*$O4+$J$5*$P4+$K$5*$Q4+$L$5*$R4+$M$5*$S4 -> 796.2972485 | X4: =$I$6*$O4+$J$6*$P4+$K$6*$Q4+$L$6*$R4+$M$6*$S4 -> 1057.210764 | Y4: =$I$7*$O4+$J$7*$P4+$K$7*$Q4+$L$7*$R4+$M$7*$S4 -> 1156.883371 | Z4: =$I$8*$O4+$J$8*$P4+$K$8*$Q4+$L$8*$R4+$M$8*$S4 -> 725.8436365 | AA4: =$I$9*$O4+$J$9*$P4+$K$9*$Q4+$L$9*$R4+$M$9*$S4 -> 1036.134284 | AB4: =$I$10*$O4+$J$10*$P4+$K$10*$Q4+$L$10*$R4+$M$10*$S4 -> 821.7743355 | AC4: =$I$11*$O4+$J$11*$P4+$K$11*$Q4+$L$11*$R4+$M$11*$S4 -> 1066.127231 | AD4: =$I$12*$O4+$J$12*$P4+$K$12*$Q4+$L$12*$R4+$M$12*$S4 -> 727.8288501 | AE4: =$I$13*$O4+$J$13*$P4+$K$13*$Q4+$L$13*$R4+$M$13*$S4 -> 1179.488426 | AF4: =$I$14*$O4+$J$14*$P4+$K$14*$Q4+$L$14*$R4+$M$14*$S4 -> 1054.600264 | AG4: =$I$15*$O4+$J$15*$P4+$K$15*$Q4+$L$15*$R4+$M$15*$S4 -> 817.7322134 | AH4: =$I$16*$O4+$J$16*$P4+$K$16*$Q4+$L$16*$R4+$M$16*$S4 -> 901.5416017 | AI4: =$I$17*$O4+$J$17*$P4+$K$17*$Q4+$L$17*$R4+$M$17*$S4 -> 1073.187241 | AK4: 100 | AM4: O2 | AN4: 1000 | AO4: =V30 -> 1100.341954 | AP4: =AN4-AO4 -> -100.3419538 | AQ4: =ABS(AP4) -> 100.3419538 | AU4: O | AV4: 1 | AW4: A | AX4: 3 | AY4: 1119.858575 | AZ4: 1120.804088 | BA4: 1121.749602 | BB4: 1122.695115 | BC4: 1123.640629 | BD4: 1124.586142 | BE4: 1125.531656 | BF4: 1126.477169 | BG4: 1127.422683 | BH4: 1128.368196 | BI4: 1129.31371 | BJ4: 1130.259085 | BK4: 1131.20442 | BL4: 1132.149754 | BM4: 1133.095088 | BO4: =RANK(AY4,$AY4:$BM4, 1) -> 1 | BP4: 2 | BQ4: 3 | BR4: 4 | BS4: 5 | BT4: 6 | BU4: 7 | BV4: 8 | BW4: 9 | BX4: 10 | BY4: 11 | BZ4: 12 | CA4: 13 | CB4: 14 | CC4: 15 | CE4: 0.94551355 | CF4: 0.94551355 | CG4: 0.94551355 | CH4: 0.94551355 | CI4: 0.94551355 | CJ4: 0.94551355 | CK4: 0.94551355 | CL4: 0.94551355 | CM4: 0.94551355 | CN4: 0.94551355 | CO4: 0.94537511 | CP4: 0.94533443 | CQ4: 0.94533443 | CR4: 0.94533443 | CS4: 7.980540049e-05
A5: O3 | B5: 57 | C5: 57 | D5: 89 | E5: 37 | F5: 85 | H5: O3 | I5: 7 | J5: 7 | K5: 3 | L5: 10 | M5: 1 | O5: 39.634266 | P5: 2.20174 | Q5: 0.94551355 | R5: 46.669765 | S5: 33.911743 | U5: =$I$3*$O5+$J$3*$P5+$K$3*$Q5+$L$3*$R5+$M$3*$S5 -> 1120.804088 | V5: =$I$4*$O5+$J$4*$P5+$K$4*$Q5+$L$4*$R5+$M$4*$S5 -> 1100.341884 | W5: =$I$5*$O5+$J$5*$P5+$K$5*$Q5+$L$5*$R5+$M$5*$S5 -> 796.2979756 | X5: 1057.211136 | Y5: 1156.883722 | Z5: 725.8437115 | AA5: 1036.134086 | AB5: 821.7740704 | AC5: 1066.126769 | AD5: 727.8287628 | AE5: 1179.488186 | AF5: 1054.599856 | AG5: 817.7319859 | AH5: 901.5418205 | AI5: 1073.187016 | AK5: 100 | AM5: O3 | AN5: 1000 | AO5: =W30 -> 796.2979756 | AP5: 203.7020244 | AQ5: =ABS(AP5) -> 203.7020244 | AU5: O | AV5: 1 | AW5: A | AX5: 4 | AY5: 654.1064381 | AZ5: 700.7762031 | BA5: 747.4459681 | BB5: 794.1157331 | BC5: 840.7854981 | BD5: 887.4552631 | BE5: 934.1250281 | BF5: 980.7947931 | BG5: 1027.464558 | BH5: 1074.134323 | BI5: 1120.804088 | BJ5: 1167.473853 | BK5: 1214.143618 | BL5: 1260.813383 | BM5: 1307.483148 | BO5: 1 | BP5: 2 | BQ5: 3 | BR5: 4 | BS5: 5 | BT5: 6 | BU5: 7 | BV5: 8 | BW5: 9 | BX5: 10 | BY5: 11 | BZ5: 12 | CA5: 13 | CB5: 14 | CC5: 15 | CE5: 46.669765 | CF5: 46.669765 | CG5: 46.669765 | CH5: 46.669765 | CI5: 46.669765 | CJ5: 46.669765 | CK5: 46.669765 | CL5: 46.669765 | CM5: 46.669765 | CN5: 46.669765 | CO5: 46.669765 | CP5: 46.669765 | CQ5: 46.669765 | CR5: 46.669765 | CS5: 9.829778136e-14
A6: O4 | B6: 13 | C6: 88 | D6: 62 | E6: 44 | F6: 75 | H6: O4 | I6: 14 | J6: 4 | K6: 6 | L6: 9 | M6: 2 | O6: 39.634274 | P6: 2.2017257 | Q6: 0.9455339 | R6: 46.66975 | S6: 33.911743 | U6: 1120.803826 | V6: =$I$4*$O6+$J$4*$P6+$K$4*$Q6+$L$4*$R6+$M$4*$S6 -> 1100.341954 | W6: 796.2978426 | X6: 1057.211178 | Y6: 1156.883547 | Z6: 725.843623 | AA6: 1036.134224 | AB6: 821.7742089 | AC6: 1066.126744 | AD6: 727.8287371 | AE6: 1179.488273 | AF6: 1054.599904 | AG6: 817.732034 | AH6: 901.5418424 | AI6: 1073.187092 | AK6: 100 | AM6: O4 | AN6: 1000 | AO6: =X30 -> 1057.211178 | AP6: -57.2111782 | AQ6: 57.2111782 | AU6: O | AV6: 1 | AW6: A | AX6: 5 | AY6: 815.5984011 | AZ6: 849.5101441 | BA6: 883.4218871 | BB6: 917.3336301 | BC6: 951.2453731 | BD6: 985.1571161 | BE6: 1019.068859 | BF6: 1052.980602 | BG6: 1086.892345 | BH6: 1120.804088 | BI6: 1154.715831 | BJ6: 1188.627574 | BK6: 1222.539317 | BL6: 1256.45106 | BM6: 1290.362803 | BO6: 1 | BP6: 2 | BQ6: 3 | BR6: 4 | BS6: 5 | BT6: 6 | BU6: 7 | BV6: 8 | BW6: 9 | BX6: 10 | BY6: 11 | BZ6: 12 | CA6: 13 | CB6: 14 | CC6: 15 | CE6: 33.911743 | CF6: =BA6-AZ6 -> 33.911743 | CG6: 33.911743 | CH6: 33.911743 | CI6: 33.911743 | CJ6: 33.911743 | CK6: 33.911743 | CL6: 33.911743 | CM6: 33.911743 | CN6: 33.911743 | CO6: 33.911743 | CP6: 33.911743 | CQ6: 33.911743 | CR6: 33.911743 | CS6: 8.300329546e-14
A7: O5 | B7: 76 | C7: 25 | D7: 28 | E7: 1 | F7: 33 | H7: O5 | I7: 3 | J7: 11 | K7: 9 | L7: 15 | M7: 9 | O7: 39.63433 | P7: 2.20181 | Q7: 0.94533443 | R7: 46.669872 | S7: 33.911697 | U7: 1120.805741 | V7: 1100.34199 | W7: 796.2994003 | X7: 1057.212109 | Y7: 1156.884263 | Z7: 725.8437873 | AA7: 1036.133863 | AB7: 821.7738054 | AC7: 1066.125814 | AD7: 727.8284521 | AE7: 1179.487977 | AF7: 1054.598936 | AG7: 817.731656 | AH7: 901.5422504 | AI7: 1073.1866 | AK7: 100 | AM7: O5 | AN7: 1000 | AO7: =Y30 -> 1156.883722 | AP7: -156.883722 | AQ7: 156.883722 | AU7: O | AV7: 2 | AW7: A | AX7: 1 | AY7: 624.7300297 | AZ7: 664.3643597 | BA7: 703.9986897 | BB7: 743.6330197 | BC7: 783.2673497 | BD7: 822.9016797 | BE7: 862.5360097 | BF7: 902.1703397 | BG7: 941.8046697 | BH7: 981.4389997 | BI7: 1021.07333 | BJ7: 1060.70766 | BK7: 1100.341954 | BL7: 1139.976228 | BM7: 1179.610502 | BO7: 1 | BP7: 2 | BQ7: 3 | BR7: 4 | BS7: 5 | BT7: 6 | BU7: 7 | BV7: 8 | BW7: 9 | BX7: 10 | BY7: 11 | BZ7: 12 | CA7: 13 | CB7: 14 | CC7: 15 | CE7: 39.63433 | CF7: 39.63433 | CG7: 39.63433 | CH7: 39.63433 | CI7: 39.63433 | CJ7: 39.63433 | CK7: 39.63433 | CL7: 39.63433 | CM7: 39.63433 | CN7: 39.63433 | CO7: 39.63433 | CP7: 39.63429408 | CQ7: 39.634274 | CR7: 39.634274 | CS7: 2.148231104e-05
A8: O6 | B8: 82 | C8: 33 | D8: 24 | E8: 33 | F8: 73 | H8: O6 | I8: 2 | J8: 10 | K8: 10 | L8: 11 | M8: 3 | AM8: O6 | AN8: 1000 | AO8: =Z30 -> 725.8437115 | AP8: 274.1562885 | AQ8: 274.1562885 | AU8: O | AV8: 2 | AW8: A | AX8: 2 | AY8: 1089.33294 | AZ8: 1091.53475 | BA8: 1093.73656 | BB8: 1095.93837 | BC8: 1098.14018 | BD8: 1100.341954 | BE8: 1102.54368 | BF8: 1104.745405 | BG8: 1106.947131 | BH8: 1109.148857 | BI8: 1111.350584 | BJ8: 1113.552324 | BK8: 1115.754064 | BL8: 1117.955804 | BM8: 1120.157544 | BO8: 1 | BP8: 2 | BQ8: 3 | BR8: 4 | BS8: 5 | BT8: 6 | BU8: 7 | BV8: 8 | BW8: 9 | BX8: 10 | BY8: 11 | BZ8: 12 | CA8: 13 | CB8: 14 | CC8: 15 | CE8: 2.20181 | CF8: 2.20181 | CG8: 2.20181 | CH8: 2.20181 | CI8: 2.20177408 | CJ8: 2.2017257 | CK8: 2.2017257 | CL8: 2.2017257 | CM8: 2.2017257 | CN8: 2.2017276 | CO8: 2.20174 | CP8: 2.20174 | CQ8: 2.20174 | CR8: 2.20174 | CS8: 3.665205112e-05
A9: O7 | B9: 12 | C9: 19 | D9: 11 | E9: 69 | F9: 55 | H9: O7 | I9: 15 | J9: 12 | K9: 13 | L9: 5 | M9: 5 | AM9: O7 | AN9: 1000 | AO9: =AA30 -> 1036.133863 | AP9: -36.13386259 | AQ9: 36.13386259 | AU9: O | AV9: 2 | AW9: A | AX9: 3 | AY9: 1097.505352 | AZ9: 1098.450886 | BA9: 1099.39642 | BB9: 1100.341954 | BC9: 1101.287324 | BD9: 1102.232659 | BE9: 1103.177993 | BF9: 1104.123327 | BG9: 1105.068662 | BH9: 1106.013996 | BI9: 1106.959331 | BJ9: 1107.904665 | BK9: 1108.85 | BL9: 1109.795334 | BM9: 1110.740668 | BO9: 1 | BP9: 2 | BQ9: 3 | BR9: 4 | BS9: 5 | BT9: 6 | BU9: 7 | BV9: 8 | BW9: 9 | BX9: 10 | BY9: 11 | BZ9: 12 | CA9: 13 | CB9: 14 | CC9: 15 | CE9: 0.9455339 | CF9: 0.9455339 | CG9: 0.9455339 | CH9: 0.94537035 | CI9: 0.94533443 | CJ9: 0.94533443 | CK9: 0.94533443 | CL9: 0.94533443 | CM9: 0.94533443 | CN9: 0.94533443 | CO9: 0.94533443 | CP9: 0.94533443 | CQ9: 0.94533443 | CR9: 0.94533443 | CS9: 8.40851445e-05
A10: O8 | B10: 39 | C10: 97 | D10: 57 | E10: 56 | F10: 67 | H10: O8 | I10: 10 | J10: 1 | K10: 8 | L10: 6 | M10: 4 | AM10: O8 | AN10: 1000 | AO10: =AB30 -> 821.7738054 | AP10: 178.2261946 | AQ10: 178.2261946 | AU10: O | AV10: 2 | AW10: A | AX10: 4 | AY10: 1053.672118 | AZ10: 1100.341954 | BA10: 1147.011704 | BB10: 1193.681454 | BC10: 1240.351204 | BD10: 1287.020954 | BE10: 1333.690709 | BF10: 1380.360474 | BG10: 1427.030239 | BH10: 1473.700004 | BI10: 1520.369769 | BJ10: 1567.039534 | BK10: 1613.709299 | BL10: 1660.379064 | BM10: 1707.048829 | BO10: 1 | BP10: 2 | BQ10: 3 | BR10: 4 | BS10: 5 | BT10: 6 | BU10: 7 | BV10: 8 | BW10: 9 | BX10: 10 | BY10: 11 | BZ10: 12 | CA10: 13 | CB10: 14 | CC10: 15 | CE10: 46.66983608 | CF10: 46.66975 | CG10: 46.66975 | CH10: 46.66975 | CI10: 46.66975 | CJ10: 46.6697554 | CK10: 46.669765 | CL10: 46.669765 | CM10: 46.669765 | CN10: 46.669765 | CO10: 46.669765 | CP10: 46.669765 | CQ10: 46.669765 | CR10: 46.669765 | CS10: 2.156273487e-05
A11: O9 | B11: 90 | C11: 37 | D11: 1 | E11: 6 | F11: 29 | H11: O9 | I11: 1 | J11: 9 | K11: 15 | L11: 14 | M11: 10 | AM11: O9 | AN11: 1000 | AO11: =AC30 -> 1066.125814 | AP11: -66.12581445 | AQ11: 66.12581445 | AU11: O | AV11: 2 | AW11: A | AX11: 5 | AY11: 659.4892948 | AZ11: 693.4010378 | BA11: 727.3127808 | BB11: 761.2245238 | BC11: 795.1362668 | BD11: 829.0480098 | BE11: 862.9597528 | BF11: 896.8714958 | BG11: 930.7832388 | BH11: 964.6949818 | BI11: 998.6067248 | BJ11: 1032.518468 | BK11: 1066.430211 | BL11: 1100.341954 | BM11: 1134.253687 | BO11: 1 | BP11: 2 | BQ11: 3 | BR11: 4 | BS11: 5 | BT11: 6 | BU11: 7 | BV11: 8 | BW11: 9 | BX11: 10 | BY11: 11 | BZ11: 12 | CA11: 13 | CB11: 14 | CC11: 15 | CE11: 33.911743 | CF11: 33.911743 | CG11: 33.911743 | CH11: 33.911743 | CI11: 33.911743 | CJ11: 33.911743 | CK11: 33.911743 | CL11: 33.911743 | CM11: 33.911743 | CN11: 33.911743 | CO11: 33.911743 | CP11: 33.911743 | CQ11: 33.911743 | CR11: 33.91173292 | CS11: 2.693993296e-06
A12: O10 | B12: 74 | C12: 47 | D12: 82 | E12: 76 | F12: 24 | H12: O10 | I12: 4 | J12: 8 | K12: 5 | L12: 3 | M12: 12 | AM12: O10 | AN12: 1000 | AO12: =AD30 -> 727.8284521 | AP12: 272.1715479 | AQ12: 272.1715479 | AU12: O | AV12: 3 | AW12: A | AX12: 1 | AY12: 558.4923796 | AZ12: 598.1266457 | BA12: 637.7609116 | BB12: 677.3951776 | BC12: 717.0294436 | BD12: 756.6637096 | BE12: 796.2979756 | BF12: 835.9322416 | BG12: 875.5665076 | BH12: 915.2007736 | BI12: 954.8350396 | BJ12: 994.4693056 | BK12: 1034.103572 | BL12: 1073.737838 | BM12: 1113.372104 | BO12: 1 | BP12: 2 | BQ12: 3 | BR12: 4 | BS12: 5 | BT12: 6 | BU12: 7 | BV12: 8 | BW12: 9 | BX12: 10 | BY12: 11 | BZ12: 12 | CA12: 13 | CB12: 14 | CC12: 15 | CE12: 39.634266 | CF12: 39.634266 | CG12: 39.634266 | CH12: 39.634266 | CI12: 39.634266 | CJ12: 39.634266 | CK12: 39.634266 | CL12: 39.634266 | CM12: 39.634266 | CN12: 39.634266 | CO12: 39.634266 | CP12: 39.634266 | CQ12: 39.634266 | CR12: 39.634266 | CS12: 6.080467924e-14
A13: O11 | B13: 43 | C13: 97 | D13: 15 | E13: 28 | F13: 46 | H13: O11 | I13: 9 | J13: 1 | K13: 11 | L13: 13 | M13: 6 | AM13: O11 | AN13: 1000 | AO13: =AE30 -> 1179.487977 | AP13: -179.4879767 | AQ13: 179.4879767 | AU13: O | AV13: 3 | AW13: A | AX13: 2 | AY13: 783.0875356 | AZ13: 785.2892756 | BA13: 787.4910156 | BB13: 789.6927556 | BC13: 791.8944956 | BD13: 794.0962356 | BE13: 796.2979756 | BF13: 798.4997156 | BG13: 800.7014556 | BH13: 802.9031956 | BI13: 805.1049356 | BJ13: 807.3066756 | BK13: 809.5084156 | BL13: 811.7101556 | BM13: 813.9118956 | BO13: 1 | BP13: 2 | BQ13: 3 | BR13: 4 | BS13: 5 | BT13: 6 | BU13: 7 | BV13: 8 | BW13: 9 | BX13: 10 | BY13: 11 | BZ13: 12 | CA13: 13 | CB13: 14 | CC13: 15 | CE13: 2.20174 | CF13: 2.20174 | CG13: 2.20174 | CH13: 2.20174 | CI13: 2.20174 | CJ13: 2.20174 | CK13: 2.20174 | CL13: 2.20174 | CM13: 2.20174 | CN13: 2.20174 | CO13: 2.20174 | CP13: 2.20174 | CQ13: 2.20174 | CR13: 2.20174 | CS13: 4.840964123e-14
A14: O12 | B14: 49 | C14: 9 | D14: 13 | E14: 72 | F14: 7 | H14: O12 | I14: 8 | J14: 14 | K14: 12 | L14: 4 | M14: 15 | AM14: O12 | AN14: 1000 | AO14: =AF30 -> 1054.598936 | AP14: -54.59893616 | AQ14: 54.59893616 | AU14: O | AV14: 3 | AW14: A | AX14: 3 | AY14: 794.4069485 | AZ14: 795.3524621 | BA14: 796.2979756 | BB14: 797.2434892 | BC14: 798.1890027 | BD14: 799.1345163 | BE14: 800.0800298 | BF14: 801.0255434 | BG14: 801.9710569 | BH14: 802.9165799 | BI14: 803.8620757 | BJ14: 804.8074102 | BK14: 805.7527446 | BL14: 806.698079 | BM14: 807.6434135 | BO14: 1 | BP14: 2 | BQ14: 3 | BR14: 4 | BS14: 5 | BT14: 6 | BU14: 7 | BV14: 8 | BW14: 9 | BX14: 10 | BY14: 11 | BZ14: 12 | CA14: 13 | CB14: 14 | CC14: 15 | CE14: 0.94551355 | CF14: 0.94551355 | CG14: 0.94551355 | CH14: 0.94551355 | CI14: 0.94551355 | CJ14: 0.94551355 | CK14: 0.94551355 | CL14: 0.94551355 | CM14: 0.94552295 | CN14: 0.94549583 | CO14: 0.94533443 | CP14: 0.94533443 | CQ14: 0.94533443 | CR14: 0.94533443 | CS14: 8.376447043e-05
A15: O13 | B15: 72 | C15: 97 | D15: 60 | E15: 49 | F15: 38 | H15: O13 | I15: 5 | J15: 1 | K15: 7 | L15: 8 | M15: 7 | AM15: O13 | AN15: 1000 | AO15: =AG30 -> 817.731656 | AP15: 182.268344 | AQ15: 182.268344 | AU15: O | AV15: 3 | AW15: A | AX15: 4 | AY15: 376.2700926 | AZ15: 422.9398556 | BA15: 469.6096206 | BB15: 516.2793856 | BC15: 562.9491506 | BD15: 609.6189156 | BE15: 656.2886806 | BF15: 702.9584456 | BG15: 749.6282106 | BH15: 796.2979756 | BI15: 842.9677406 | BJ15: 889.6375056 | BK15: 936.3072706 | BL15: 982.9770356 | BM15: 1029.646801 | BO15: 1 | BP15: 2 | BQ15: 3 | BR15: 4 | BS15: 5 | BT15: 6 | BU15: 7 | BV15: 8 | BW15: 9 | BX15: 10 | BY15: 11 | BZ15: 12 | CA15: 13 | CB15: 14 | CC15: 15 | CE15: 46.66976305 | CF15: 46.669765 | CG15: 46.669765 | CH15: 46.669765 | CI15: 46.669765 | CJ15: 46.669765 | CK15: 46.669765 | CL15: 46.669765 | CM15: 46.669765 | CN15: 46.669765 | CO15: 46.669765 | CP15: 46.669765 | CQ15: 46.669765 | CR15: 46.669765 | CS15: 5.211594448e-07
A16: O14 | B16: 38 | C16: 80 | D16: 96 | E16: 89 | F16: 24 | H16: O14 | I16: 11 | J16: 5 | K16: 1 | L16: 1 | M16: 12 | AM16: O14 | AN16: 1000 | AO16: =AH30 -> 901.5418424 | AP16: 98.4581576 | AQ16: 98.4581576 | AU16: O | AV16: 3 | AW16: A | AX16: 5 | AY16: 796.2979756 | AZ16: 830.2097186 | BA16: 864.1214616 | BB16: 898.0332046 | BC16: 931.9449476 | BD16: 965.8566906 | BE16: 999.7684336 | BF16: 1033.680177 | BG16: 1067.59192 | BH16: 1101.503663 | BI16: 1135.415406 | BJ16: 1169.327149 | BK16: 1203.238892 | BL16: 1237.150635 | BM16: 1271.062378 | BO16: 1 | BP16: 2 | BQ16: 3 | BR16: 4 | BS16: 5 | BT16: 6 | BU16: 7 | BV16: 8 | BW16: 9 | BX16: 10 | BY16: 11 | BZ16: 12 | CA16: 13 | CB16: 14 | CC16: 15 | CE16: 33.911743 | CF16: 33.911743 | CG16: 33.911743 | CH16: 33.911743 | CI16: 33.911743 | CJ16: 33.911743 | CK16: 33.911743 | CL16: 33.911743 | CM16: 33.911743 | CN16: 33.911743 | CO16: 33.911743 | CP16: 33.911743 | CQ16: 33.911743 | CR16: 33.911743 | CS16: 8.918329292e-14
A17: O15 | B17: 34 | C17: 7 | D17: 4 | E17: 56 | F17: 34 | H17: O15 | I17: 12 | J17: 15 | K17: 14 | L17: 6 | M17: 8 | AM17: O15 | AN17: 1000 | AO17: =AI30 -> 1073.1866 | AP17: -73.18660002 | AQ17: 73.18660002 | AU17: O | AV17: 4 | AW17: A | AX17: 1 | AY17: 541.9656783 | AZ17: 581.5999443 | BA17: 621.2342103 | BB17: 660.8684763 | BC17: 700.5027423 | BD17: 740.1370083 | BE17: 779.7712743 | BF17: 819.4055403 | BG17: 859.0398082 | BH17: 898.6740822 | BI17: 938.3083562 | BJ17: 977.9426302 | BK17: 1017.576904 | BL17: 1057.211178 | BM17: 1096.845452 | BO17: 1 | BP17: 2 | BQ17: 3 | BR17: 4 | BS17: 5 | BT17: 6 | BU17: 7 | BV17: 8 | BW17: 9 | BX17: 10 | BY17: 11 | BZ17: 12 | CA17: 13 | CB17: 14 | CC17: 15 | CE17: 39.634266 | CF17: 39.634266 | CG17: 39.634266 | CH17: 39.634266 | CI17: 39.634266 | CJ17: 39.634266 | CK17: 39.634266 | CL17: 39.6342679 | CM17: 39.634274 | CN17: 39.634274 | CO17: 39.634274 | CP17: 39.634274 | CQ17: 39.634274 | CR17: 39.634274 | CS17: 4.016812204e-06
AN18: szum | AO18: szum | AP18: hiba | AU18: O | AV18: 4 | AW18: A | AX18: 2 | AY18: 1050.606001 | AZ18: 1052.807727 | BA18: 1055.009452 | BB18: 1057.211178 | BC18: 1059.412904 | BD18: 1061.61463 | BE18: 1063.816356 | BF18: 1066.018096 | BG18: 1068.219836 | BH18: 1070.421576 | BI18: 1072.623316 | BJ18: 1074.825056 | BK18: 1077.026796 | BL18: 1079.228536 | BM18: 1081.430276 | BO18: 1 | BP18: 2 | BQ18: 3 | BR18: 4 | BS18: 5 | BT18: 6 | BU18: 7 | BV18: 8 | BW18: 9 | BX18: 10 | BY18: 11 | BZ18: 12 | CA18: 13 | CB18: 14 | CC18: 15 | CE18: 2.2017257 | CF18: 2.2017257 | CG18: 2.2017257 | CH18: 2.2017257 | CI18: 2.2017257 | CJ18: 2.2017267 | CK18: 2.20174 | CL18: 2.20174 | CM18: 2.20174 | CN18: 2.20174 | CO18: 2.20174 | CP18: 2.20174 | CQ18: 2.20174 | CR18: 2.20174 | CS18: 7.262624502e-06
U19: Activation - linear | AK19: Szórás | AN19: =SUM(AN3:AN17) -> 15000 | AO19: =SUM(AO3:AO17) -> 14635.79158 | AP19: =SUMSQ(AP3:AP17) -> 364193.1631 | AQ19: =SUM(AQ3:AQ17)/15 -> 136.9171126 | AU19: O | AV19: 4 | AW19: A | AX19: 3 | AY19: 1052.483569 | AZ19: 1053.429082 | BA19: 1054.374596 | BB19: 1055.32011 | BC19: 1056.265644 | BD19: 1057.211178 | BE19: 1058.156712 | BF19: 1059.102246 | BG19: 1060.04778 | BH19: 1060.993314 | BI19: 1061.938781 | BJ19: 1062.884115 | BK19: 1063.82945 | BL19: 1064.774784 | BM19: 1065.720118 | BO19: 1 | BP19: 2 | BQ19: 3 | BR19: 4 | BS19: 5 | BT19: 6 | BU19: 7 | BV19: 8 | BW19: 9 | BX19: 10 | BY19: 11 | BZ19: 12 | CA19: 13 | CB19: 14 | CC19: 15 | CE19: 0.94551355 | CF19: 0.94551355 | CG19: 0.94551475 | CH19: 0.9455339 | CI19: 0.9455339 | CJ19: 0.9455339 | CK19: 0.9455339 | CL19: 0.9455339 | CM19: 0.9455339 | CN19: 0.94546693 | CO19: 0.94533443 | CP19: 0.94533443 | CQ19: 0.94533443 | CR19: 0.94533443 | CS19: 8.933800854e-05
T20: A | U20: =IF(U3>0,U3,U3*$T$15) -> 1120.807093 | V20: 1100.342123 | W20: 796.3005746 | X20: 1057.21296 | Y20: 1156.884743 | Z20: 725.843773 | AA20: 1036.13349 | AB20: 821.7736612 | AC20: 1066.125061 | AD20: 727.8281752 | AE20: 1179.487984 | AF20: 1054.598039 | AG20: 817.7315206 | AH20: 901.5426516 | AI20: 1073.186042 | AK20: =STDEV(U20:AI20) -> 159.3178012 | AP20: hiba2 | AU20: O | AV20: 4 | AW20: A | AX20: 4 | AY20: 683.8531326 | AZ20: 730.5229282 | BA20: 777.1926782 | BB20: 823.8624282 | BC20: 870.5321782 | BD20: 917.2019282 | BE20: 963.8716782 | BF20: 1010.541428 | BG20: 1057.211178 | BH20: 1103.880928 | BI20: 1150.550678 | BJ20: 1197.220431 | BK20: 1243.890196 | BL20: 1290.559961 | BM20: 1337.229726 | BO20: 1 | BP20: 2 | BQ20: 3 | BR20: 4 | BS20: 5 | BT20: 6 | BU20: 7 | BV20: 8 | BW20: 9 | BX20: 10 | BY20: 11 | BZ20: 12 | CA20: 13 | CB20: 14 | CC20: 15 | CE20: 46.66979562 | CF20: 46.66975 | CG20: 46.66975 | CH20: 46.66975 | CI20: 46.66975 | CJ20: 46.66975 | CK20: 46.66975 | CL20: 46.66975 | CM20: 46.66975 | CN20: 46.66975 | CO20: 46.6697531 | CP20: 46.669765 | CQ20: 46.669765 | CR20: 46.669765 | CS20: 1.282547329e-05
T21: A | U21: =IF(U4>0,U4,U4*$T$15) -> 1120.803114 | V21: 1100.341853 | W21: 796.2972485 | X21: 1057.210764 | Y21: 1156.883371 | Z21: 725.8436365 | AA21: 1036.134284 | AB21: 821.7743355 | AC21: 1066.127231 | AD21: 727.8288501 | AE21: 1179.488426 | AF21: 1054.600264 | AG21: 817.7322134 | AH21: 901.5416017 | AI21: 1073.187241 | AK21: =STDEV(U21:AI21) -> 159.3177637 | AP21: =ABS(AN19-AO19) -> 364.2084248 | AU21: O | AV21: 4 | AW21: A | AX21: 5 | AY21: 1023.299435 | AZ21: 1057.211178 | BA21: 1091.122921 | BB21: 1125.034664 | BC21: 1158.946407 | BD21: 1192.85815 | BE21: 1226.769893 | BF21: 1260.681636 | BG21: 1294.593379 | BH21: 1328.505122 | BI21: 1362.416865 | BJ21: 1396.328608 | BK21: 1430.240351 | BL21: 1464.152094 | BM21: 1498.063837 | BO21: 1 | BP21: 2 | BQ21: 3 | BR21: 4 | BS21: 5 | BT21: 6 | BU21: 7 | BV21: 8 | BW21: 9 | BX21: 10 | BY21: 11 | BZ21: 12 | CA21: 13 | CB21: 14 | CC21: 15 | CE21: 33.911743 | CF21: 33.911743 | CG21: 33.911743 | CH21: 33.911743 | CI21: 33.911743 | CJ21: 33.911743 | CK21: 33.911743 | CL21: 33.911743 | CM21: 33.911743 | CN21: 33.911743 | CO21: 33.911743 | CP21: 33.911743 | CQ21: 33.911743 | CR21: 33.911743 | CS21: 1.133789745e-13
T22: B | U22: =IF(U5>0,U5,U5*$T$15) -> 1120.804088 | V22: 1100.341884 | W22: 796.2979756 | X22: 1057.211136 | Y22: 1156.883722 | Z22: 725.8437115 | AA22: 1036.134086 | AB22: 821.7740704 | AC22: 1066.126769 | AD22: 727.8287628 | AE22: 1179.488186 | AF22: 1054.599856 | AG22: 817.7319859 | AH22: 901.5418205 | AI22: 1073.187016 | AK22: 159.3177706 | AP22: hiba3 | AU22: O | AV22: 5 | AW22: A | AX22: 1 | AY22: 1077.61519 | AZ22: 1117.249456 | BA22: 1156.883722 | BB22: 1196.517988 | BC22: 1236.152254 | BD22: 1275.78652 | BE22: 1315.420786 | BF22: 1355.055052 | BG22: 1394.689318 | BH22: 1434.323584 | BI22: 1473.95785 | BJ22: 1513.592116 | BK22: 1553.226382 | BL22: 1592.860648 | BM22: 1632.494914 | BO22: 1 | BP22: 2 | BQ22: 3 | BR22: 4 | BS22: 5 | BT22: 6 | BU22: 7 | BV22: 8 | BW22: 9 | BX22: 10 | BY22: 11 | BZ22: 12 | CA22: 13 | CB22: 14 | CC22: 15 | CE22: 39.634266 | CF22: 39.634266 | CG22: 39.634266 | CH22: 39.634266 | CI22: 39.634266 | CJ22: 39.634266 | CK22: 39.634266 | CL22: 39.634266 | CM22: 39.634266 | CN22: 39.634266 | CO22: 39.634266 | CP22: 39.634266 | CQ22: 39.634266 | CR22: 39.634266 | CS22: 8.26281374e-14
T23: B | U23: =IF(U6>0,U6,U6*$T$15) -> 1120.803826 | V23: 1100.341954 | W23: 796.2978426 | X23: 1057.211178 | Y23: 1156.883547 | Z23: 725.843623 | AA23: 1036.134224 | AB23: 821.7742089 | AC23: 1066.126744 | AD23: 727.8287371 | AE23: 1179.488273 | AF23: 1054.599904 | AG23: 817.732034 | AH23: 901.5418424 | AI23: 1073.187092 | AK23: 159.3177701 | AP23: =AP19*AP21 -> 132642218.3 | AU23: O | AV23: 5 | AW23: A | AX23: 2 | AY23: 1134.866163 | AZ23: 1137.067973 | BA23: 1139.269783 | BB23: 1141.471542 | BC23: 1143.673282 | BD23: 1145.875022 | BE23: 1148.076762 | BF23: 1150.278502 | BG23: 1152.480242 | BH23: 1154.681982 | BI23: 1156.883722 | BJ23: 1159.085462 | BK23: 1161.287202 | BL23: 1163.488942 | BM23: 1165.690682 | BO23: 1 | BP23: 2 | BQ23: 3 | BR23: 4 | BS23: 5 | BT23: 6 | BU23: 7 | BV23: 8 | BW23: 9 | BX23: 10 | BY23: 11 | BZ23: 12 | CA23: 13 | CB23: 14 | CC23: 15 | CE23: 2.20181 | CF23: 2.20181 | CG23: 2.20175908 | CH23: 2.20174 | CI23: 2.20174 | CJ23: 2.20174 | CK23: 2.20174 | CL23: 2.20174 | CM23: 2.20174 | CN23: 2.20174 | CO23: 2.20174 | CP23: 2.20174 | CQ23: 2.20174 | CR23: 2.20174 | CS23: 2.535356611e-05
T24: C | U24: =IF(U7>0,U7,U7*$T$15) -> 1120.805741 | V24: 1100.34199 | W24: 796.2994003 | X24: 1057.212109 | Y24: 1156.884263 | Z24: 725.8437873 | AA24: 1036.133863 | AB24: 821.7738054 | AC24: 1066.125814 | AD24: 727.8284521 | AE24: 1179.487977 | AF24: 1054.598936 | AG24: 817.731656 | AH24: 901.5422504 | AI24: 1073.1866 | AK24: 159.3177877 | AN24: szórás | AO24: szórás | AU24: O | AV24: 5 | AW24: A | AX24: 3 | AY24: 1149.319614 | AZ24: 1150.265127 | BA24: 1151.210641 | BB24: 1152.156154 | BC24: 1153.101668 | BD24: 1154.047181 | BE24: 1154.992695 | BF24: 1155.938208 | BG24: 1156.883722 | BH24: 1157.829235 | BI24: 1158.774749 | BJ24: 1159.720263 | BK24: 1160.665601 | BL24: 1161.610935 | BM24: 1162.556269 | BO24: 1 | BP24: 2 | BQ24: 3 | BR24: 4 | BS24: 5 | BT24: 6 | BU24: 7 | BV24: 8 | BW24: 9 | BX24: 10 | BY24: 11 | BZ24: 12 | CA24: 13 | CB24: 14 | CC24: 15 | CE24: 0.94551355 | CF24: 0.94551355 | CG24: 0.94551355 | CH24: 0.94551355 | CI24: 0.94551355 | CJ24: 0.94551355 | CK24: 0.94551355 | CL24: 0.94551355 | CM24: 0.94551355 | CN24: 0.94551355 | CO24: 0.94551355 | CP24: 0.94533799 | CQ24: 0.94533443 | CR24: 0.94533443 | CS24: 7.5771027e-05
AN25: =STDEV(AN3:AN17) -> 0 | AO25: =STDEV(AO3:AO17) -> 159.3177369 | AU25: O | AV25: 5 | AW25: A | AX25: 4 | AY25: 503.5060549 | AZ25: 550.1759269 | BA25: 596.8457989 | BB25: 643.5156709 | BC25: 690.1855429 | BD25: 736.8554149 | BE25: 783.5252869 | BF25: 830.1951589 | BG25: 876.8650309 | BH25: 923.5348678 | BI25: 970.2046619 | BJ25: 1016.874427 | BK25: 1063.544192 | BL25: 1110.213957 | BM25: 1156.883722 | BO25: 1 | BP25: 2 | BQ25: 3 | BR25: 4 | BS25: 5 | BT25: 6 | BU25: 7 | BV25: 8 | BW25: 9 | BX25: 10 | BY25: 11 | BZ25: 12 | CA25: 13 | CB25: 14 | CC25: 15 | CE25: 46.669872 | CF25: 46.669872 | CG25: 46.669872 | CH25: 46.669872 | CI25: 46.669872 | CJ25: 46.669872 | CK25: 46.669872 | CL25: 46.669872 | CM25: 46.66983693 | CN25: 46.66979415 | CO25: 46.669765 | CP25: 46.669765 | CQ25: 46.669765 | CR25: 46.669765 | CS25: 4.975858958e-05
T26: A | U26: =MAX(U20:U21) -> 1120.807093 | V26: =MAX(V20:V21) -> 1100.342123 | W26: 796.3005746 | X26: 1057.21296 | Y26: 1156.884743 | Z26: 725.843773 | AA26: 1036.134284 | AB26: 821.7743355 | AC26: 1066.127231 | AD26: 727.8288501 | AE26: 1179.488426 | AF26: 1054.600264 | AG26: 817.7322134 | AH26: 901.5426516 | AI26: 1073.187241 | AU26: O | AV26: 5 | AW26: A | AX26: 5 | AY26: 885.5897779 | AZ26: 919.5015209 | BA26: 953.4132639 | BB26: 987.3250069 | BC26: 1021.23675 | BD26: 1055.148493 | BE26: 1089.060236 | BF26: 1122.971979 | BG26: 1156.883722 | BH26: 1190.795465 | BI26: 1224.707208 | BJ26: 1258.618951 | BK26: 1292.530694 | BL26: 1326.442437 | BM26: 1360.35418 | BO26: 1 | BP26: 2 | BQ26: 3 | BR26: 4 | BS26: 5 | BT26: 6 | BU26: 7 | BV26: 8 | BW26: 9 | BX26: 10 | BY26: 11 | BZ26: 12 | CA26: 13 | CB26: 14 | CC26: 15 | CE26: 33.911743 | CF26: 33.911743 | CG26: 33.911743 | CH26: 33.911743 | CI26: 33.911743 | CJ26: 33.911743 | CK26: 33.911743 | CL26: 33.911743 | CM26: 33.911743 | CN26: 33.911743 | CO26: 33.911743 | CP26: 33.911743 | CQ26: 33.911743 | CR26: 33.911743 | CS26: 9.422293771e-14
T27: B | U27: =MAX(U22:U23) -> 1120.804088 | V27: =MAX(V22:V23) -> 1100.341954 | W27: 796.2979756 | X27: 1057.211178 | Y27: 1156.883722 | Z27: 725.8437115 | AA27: 1036.134224 | AB27: 821.7742089 | AC27: 1066.126769 | AD27: 727.8287628 | AE27: 1179.488273 | AF27: 1054.599904 | AG27: 817.732034 | AH27: 901.5418424 | AI27: 1073.187092 | AU27: O | AV27: 6 | AW27: A | AX27: 1 | AY27: 686.2093935 | AZ27: 725.8437115 | BA27: 765.4779775 | BB27: 805.1122435 | BC27: 844.7465095 | BD27: 884.3807755 | BE27: 924.0150415 | BF27: 963.6493075 | BG27: 1003.283573 | BH27: 1042.917839 | BI27: 1082.552105 | BJ27: 1122.186371 | BK27: 1161.820637 | BL27: 1201.454911 | BM27: 1241.089185 | BO27: 1 | BP27: 2 | BQ27: 3 | BR27: 4 | BS27: 5 | BT27: 6 | BU27: 7 | BV27: 8 | BW27: 9 | BX27: 10 | BY27: 11 | BZ27: 12 | CA27: 13 | CB27: 14 | CC27: 15 | CE27: 39.634318 | CF27: 39.634266 | CG27: 39.634266 | CH27: 39.634266 | CI27: 39.634266 | CJ27: 39.634266 | CK27: 39.634266 | CL27: 39.634266 | CM27: 39.634266 | CN27: 39.634266 | CO27: 39.634266 | CP27: 39.634266 | CQ27: 39.6342735 | CR27: 39.634274 | CS27: 1.386418621e-05
T28: C | U28: =MAX(U24) -> 1120.805741 | V28: =MAX(V24) -> 1100.34199 | W28: 796.2994003 | X28: 1057.212109 | Y28: 1156.884263 | Z28: 725.8437873 | AA28: 1036.133863 | AB28: 821.7738054 | AC28: 1066.125814 | AD28: 727.8284521 | AE28: 1179.487977 | AF28: 1054.598936 | AG28: 817.731656 | AH28: 901.5422504 | AI28: 1073.1866 | AU28: O | AV28: 6 | AW28: A | AX28: 2 | AY28: 706.0274973 | AZ28: 708.2293073 | BA28: 710.4311173 | BB28: 712.6329273 | BC28: 714.8347373 | BD28: 717.0365473 | BE28: 719.2383573 | BF28: 721.4401673 | BG28: 723.6419442 | BH28: 725.8437115 | BI28: 728.0454515 | BJ28: 730.2471915 | BK28: 732.4489315 | BL28: 734.6506715 | BM28: 736.8524115 | BO28: 1 | BP28: 2 | BQ28: 3 | BR28: 4 | BS28: 5 | BT28: 6 | BU28: 7 | BV28: 8 | BW28: 9 | BX28: 10 | BY28: 11 | BZ28: 12 | CA28: 13 | CB28: 14 | CC28: 15 | CE28: 2.20181 | CF28: 2.20181 | CG28: 2.20181 | CH28: 2.20181 | CI28: 2.20181 | CJ28: 2.20181 | CK28: 2.20181 | CL28: 2.2017769 | CM28: 2.2017673 | CN28: 2.20174 | CO28: 2.20174 | CP28: 2.20174 | CQ28: 2.20174 | CR28: 2.20174 | CS28: 3.33610749e-05
AU29: O | AV29: 6 | AW29: A | AX29: 3 | AY29: 717.3340895 | AZ29: 718.2796031 | BA29: 719.2251166 | BB29: 720.1706302 | BC29: 721.1161437 | BD29: 722.0616573 | BE29: 723.0071708 | BF29: 723.9526844 | BG29: 724.8981979 | BH29: 725.8437115 | BI29: 726.7891217 | BJ29: 727.7344562 | BK29: 728.6797906 | BL29: 729.625125 | BM29: 730.5704595 | BO29: 1 | BP29: 2 | BQ29: 3 | BR29: 4 | BS29: 5 | BT29: 6 | BU29: 7 | BV29: 8 | BW29: 9 | BX29: 10 | BY29: 11 | BZ29: 12 | CA29: 13 | CB29: 14 | CC29: 15 | CE29: 0.94551355 | CF29: 0.94551355 | CG29: 0.94551355 | CH29: 0.94551355 | CI29: 0.94551355 | CJ29: 0.94551355 | CK29: 0.94551355 | CL29: 0.94551355 | CM29: 0.94551355 | CN29: 0.94541023 | CO29: 0.94533443 | CP29: 0.94533443 | CQ29: 0.94533443 | CR29: 0.94533443 | CS29: 8.366865706e-05
T30: min | U30: =MIN(U26:U28) -> 1120.804088 | V30: =MIN(V26:V28) -> 1100.341954 | W30: 796.2979756 | X30: 1057.211178 | Y30: 1156.883722 | Z30: 725.8437115 | AA30: 1036.133863 | AB30: 821.7738054 | AC30: 1066.125814 | AD30: 727.8284521 | AE30: 1179.487977 | AF30: 1054.598936 | AG30: 817.731656 | AH30: 901.5418424 | AI30: 1073.1866 | AU30: O | AV30: 6 | AW30: A | AX30: 4 | AY30: 259.1450673 | AZ30: 305.8149393 | BA30: 352.4848113 | BB30: 399.1546833 | BC30: 445.8245553 | BD30: 492.4944273 | BE30: 539.1642993 | BF30: 585.8341713 | BG30: 632.5040433 | BH30: 679.1739153 | BI30: 725.8437115 | BJ30: 772.5134765 | BK30: 819.1832415 | BL30: 865.8530065 | BM30: 912.5227715 | BO30: 1 | BP30: 2 | BQ30: 3 | BR30: 4 | BS30: 5 | BT30: 6 | BU30: 7 | BV30: 8 | BW30: 9 | BX30: 10 | BY30: 11 | BZ30: 12 | CA30: 13 | CB30: 14 | CC30: 15 | CE30: 46.669872 | CF30: 46.669872 | CG30: 46.669872 | CH30: 46.669872 | CI30: 46.669872 | CJ30: 46.669872 | CK30: 46.669872 | CL30: 46.669872 | CM30: 46.669872 | CN30: 46.6697962 | CO30: 46.669765 | CP30: 46.669765 | CQ30: 46.669765 | CR30: 46.669765 | CS30: 5.069671294e-05
AU31: O | AV31: 6 | AW31: A | AX31: 5 | AY31: 658.0202255 | AZ31: 691.9319685 | BA31: 725.8437115 | BB31: 759.755443 | BC31: 793.6671605 | BD31: 827.5788783 | BE31: 861.4905753 | BF31: 895.4022723 | BG31: 929.3139693 | BH31: 963.2256663 | BI31: 997.1373633 | BJ31: 1031.04906 | BK31: 1064.960757 | BL31: 1098.872454 | BM31: 1132.784151 | BO31: 1 | BP31: 2 | BQ31: 3 | BR31: 4 | BS31: 5 | BT31: 6 | BU31: 7 | BV31: 8 | BW31: 9 | BX31: 10 | BY31: 11 | BZ31: 12 | CA31: 13 | CB31: 14 | CC31: 15 | CE31: 33.911743 | CF31: 33.911743 | CG31: 33.9117315 | CH31: 33.9117175 | CI31: 33.9117178 | CJ31: 33.911697 | CK31: 33.911697 | CL31: 33.911697 | CM31: 33.911697 | CN31: 33.911697 | CO31: 33.911697 | CP31: 33.911697 | CQ31: 33.911697 | CR31: 33.911697 | CS31: 1.811063681e-05
AU32: O | AV32: 7 | AW32: A | AX32: 1 | AY32: 481.2532426 | AZ32: 520.8875726 | BA32: 560.5219026 | BB32: 600.1562326 | BC32: 639.7905626 | BD32: 679.4248926 | BE32: 719.0592226 | BF32: 758.6935526 | BG32: 798.3278826 | BH32: 837.9622126 | BI32: 877.5965426 | BJ32: 917.2308726 | BK32: 956.8652026 | BL32: 996.4995326 | BM32: 1036.133863 | BO32: 1 | BP32: 2 | BQ32: 3 | BR32: 4 | BS32: 5 | BT32: 6 | BU32: 7 | BV32: 8 | BW32: 9 | BX32: 10 | BY32: 11 | BZ32: 12 | CA32: 13 | CB32: 14 | CC32: 15 | CE32: 39.63433 | CF32: 39.63433 | CG32: 39.63433 | CH32: 39.63433 | CI32: 39.63433 | CJ32: 39.63433 | CK32: 39.63433 | CL32: 39.63433 | CM32: 39.63433 | CN32: 39.63433 | CO32: 39.63433 | CP32: 39.63433 | CQ32: 39.63433 | CR32: 39.63433 | CS32: 9.120701887e-14
AU33: O | AV33: 7 | AW33: A | AX33: 2 | AY33: 1011.913953 | AZ33: 1014.115763 | BA33: 1016.317573 | BB33: 1018.519383 | BC33: 1020.721193 | BD33: 1022.923003 | BE33: 1025.124813 | BF33: 1027.326623 | BG33: 1029.528433 | BH33: 1031.730243 | BI33: 1033.932053 | BJ33: 1036.133863 | BK33: 1038.335673 | BL33: 1040.537483 | BM33: 1042.739293 | BO33: 1 | BP33: 2 | BQ33: 3 | BR33: 4 | BS33: 5 | BT33: 6 | BU33: 7 | BV33: 8 | BW33: 9 | BX33: 10 | BY33: 11 | BZ33: 12 | CA33: 13 | CB33: 14 | CC33: 15 | CE33: 2.20181 | CF33: 2.20181 | CG33: 2.20181 | CH33: 2.20181 | CI33: 2.20181 | CJ33: 2.20181 | CK33: 2.20181 | CL33: 2.20181 | CM33: 2.20181 | CN33: 2.20181 | CO33: 2.20181 | CP33: 2.20181 | CQ33: 2.20181 | CR33: 2.20181 | CS33: 6.076849185e-14
AU34: O | AV34: 7 | AW34: A | AX34: 3 | AY34: 1024.787924 | AZ34: 1025.733437 | BA34: 1026.678951 | BB34: 1027.624464 | BC34: 1028.569978 | BD34: 1029.515491 | BE34: 1030.461021 | BF34: 1031.406555 | BG34: 1032.352088 | BH34: 1033.297622 | BI34: 1034.243128 | BJ34: 1035.188528 | BK34: 1036.133863 | BL34: 1037.079197 | BM34: 1038.024531 | BO34: =RANK(AY34,$AY34:$BM34, 1) -> 1 | BP34: 2 | BQ34: 3 | BR34: 4 | BS34: 5 | BT34: 6 | BU34: 7 | BV34: 8 | BW34: 9 | BX34: 10 | BY34: 11 | BZ34: 12 | CA34: 13 | CB34: 14 | CC34: 15 | CE34: 0.94551355 | CF34: 0.94551355 | CG34: 0.94551355 | CH34: 0.94551355 | CI34: 0.94551355 | CJ34: 0.9455294 | CK34: 0.9455339 | CL34: 0.9455339 | CM34: 0.9455339 | CN34: 0.945506 | CO34: 0.94539976 | CP34: 0.94533443 | CQ34: 0.94533443 | CR34: 0.94533443 | CS34: 8.16053986e-05
AU35: O | AV35: 7 | AW35: A | AX35: 4 | AY35: 849.4543746 | AZ35: 896.1242466 | BA35: 942.7941186 | BB35: 989.4639906 | BC35: 1036.133863 | BD35: 1082.803735 | BE35: 1129.473607 | BF35: 1176.143415 | BG35: 1222.813224 | BH35: 1269.482974 | BI35: 1316.152724 | BJ35: 1362.822474 | BK35: 1409.492224 | BL35: 1456.161974 | BM35: 1502.831736 | BO35: 1 | BP35: 2 | BQ35: 3 | BR35: 4 | BS35: 5 | BT35: 6 | BU35: 7 | BV35: 8 | BW35: 9 | BX35: 10 | BY35: 11 | BZ35: 12 | CA35: 13 | CB35: 14 | CC35: 15 | CE35: 46.669872 | CF35: 46.669872 | CG35: =BB35-BA35 -> 46.669872 | CH35: 46.669872 | CI35: 46.669872 | CJ35: 46.669872 | CK35: 46.66980801 | CL35: 46.6698095 | CM35: 46.66975 | CN35: 46.66975 | CO35: 46.66975 | CP35: 46.66975 | CQ35: 46.66975 | CR35: 46.66976205 | CS35: 5.773561107e-05
AU36: O | AV36: 7 | AW36: A | AX36: 5 | AY36: 900.4870746 | AZ36: 934.3987716 | BA36: 968.3104686 | BB36: 1002.222166 | BC36: 1036.133863 | BD36: 1070.04556 | BE36: 1103.957257 | BF36: 1137.868954 | BG36: 1171.780651 | BH36: 1205.692348 | BI36: 1239.604045 | BJ36: 1273.515742 | BK36: 1307.427439 | BL36: 1341.339136 | BM36: 1375.250833 | BO36: 1 | BP36: 2 | BQ36: 3 | BR36: 4 | BS36: 5 | BT36: 6 | BU36: 7 | BV36: 8 | BW36: 9 | BX36: 10 | BY36: 11 | BZ36: 12 | CA36: 13 | CB36: 14 | CC36: 15 | CE36: =AZ36-AY36 -> 33.911697 | CF36: 33.911697 | CG36: 33.911697 | CH36: 33.911697 | CI36: 33.911697 | CJ36: 33.911697 | CK36: 33.911697 | CL36: 33.911697 | CM36: 33.911697 | CN36: 33.911697 | CO36: 33.911697 | CP36: 33.911697 | CQ36: 33.911697 | CR36: 33.911697 | CS36: 6.080467924e-14
AU37: O | AV37: 8 | AW37: A | AX37: 1 | AY37: 465.0648354 | AZ37: 504.6991654 | BA37: 544.3334954 | BB37: 583.9678254 | BC37: 623.6021554 | BD37: 663.2364854 | BE37: 702.8708154 | BF37: 742.5051454 | BG37: 782.1394754 | BH37: 821.7738054 | BI37: 861.4081354 | BJ37: 901.0424654 | BK37: 940.6767954 | BL37: 980.3111254 | BM37: 1019.945455 | BO37: 1 | BP37: 2 | BQ37: 3 | BR37: 4 | BS37: 5 | BT37: 6 | BU37: 7 | BV37: 8 | BW37: 9 | BX37: 10 | BY37: 11 | BZ37: 12 | CA37: 13 | CB37: 14 | CC37: 15 | CE37: 39.63433 | CF37: 39.63433 | CG37: 39.63433 | CH37: 39.63433 | CI37: 39.63433 | CJ37: 39.63433 | CK37: 39.63433 | CL37: 39.63433 | CM37: 39.63433 | CN37: 39.63433 | CO37: 39.63433 | CP37: 39.63433 | CQ37: 39.63433 | CR37: 39.63433 | CS37: 6.589302256e-14
AU38: O | AV38: 8 | AW38: A | AX38: 2 | AY38: 821.7738054 | AZ38: 823.9756154 | BA38: 826.1774254 | BB38: 828.3792354 | BC38: 830.5810454 | BD38: 832.7828374 | BE38: 834.9845631 | BF38: 837.1862888 | BG38: 839.3880145 | BH38: 841.5897402 | BI38: 843.7914704 | BJ38: 845.9932104 | BK38: 848.1949504 | BL38: 850.3966904 | BM38: 852.5984304 | BO38: 1 | BP38: 2 | BQ38: 3 | BR38: 4 | BS38: 5 | BT38: 6 | BU38: 7 | BV38: 8 | BW38: 9 | BX38: 10 | BY38: 11 | BZ38: 12 | CA38: 13 | CB38: 14 | CC38: 15 | CE38: 2.20181 | CF38: 2.20181 | CG38: 2.20181 | CH38: 2.20181 | CI38: 2.20179196 | CJ38: 2.2017257 | CK38: 2.2017257 | CL38: 2.2017257 | CM38: 2.2017257 | CN38: 2.2017302 | CO38: 2.20174 | CP38: 2.20174 | CQ38: 2.20174 | CR38: 2.20174 | CS38: 3.741583822e-05
AU39: O | AV39: 8 | AW39: A | AX39: 3 | AY39: 815.1554755 | AZ39: 816.1010055 | BA39: 817.0465394 | BB39: 817.9920733 | BC39: 818.9376072 | BD39: 819.8831366 | BE39: 820.828471 | BF39: 821.7738054 | BG39: 822.7191399 | BH39: 823.6644743 | BI39: 824.6098087 | BJ39: 825.5551432 | BK39: 826.5004776 | BL39: 827.445812 | BM39: 828.3911464 | BO39: 1 | BP39: 2 | BQ39: 3 | BR39: 4 | BS39: 5 | BT39: 6 | BU39: 7 | BV39: 8 | BW39: 9 | BX39: 10 | BY39: 11 | BZ39: 12 | CA39: 13 | CB39: 14 | CC39: 15 | CE39: 0.94552995 | CF39: 0.9455339 | CG39: 0.9455339 | CH39: 0.9455339 | CI39: 0.94552938 | CJ39: 0.94533443 | CK39: 0.94533443 | CL39: 0.94533443 | CM39: 0.94533443 | CN39: 0.94533443 | CO39: 0.94533443 | CP39: 0.94533443 | CQ39: 0.94533443 | CR39: 0.94533443 | CS39: 9.835163883e-05
AU40: O | AV40: 8 | AW40: A | AX40: 4 | AY40: 588.4244454 | AZ40: 635.0943174 | BA40: 681.7641894 | BB40: 728.4340614 | BC40: 775.1039334 | BD40: 821.7738054 | BE40: 868.4436774 | BF40: 915.1135494 | BG40: 961.7834214 | BH40: 1008.453209 | BI40: 1055.122959 | BJ40: 1101.792709 | BK40: 1148.462459 | BL40: 1195.132209 | BM40: 1241.801959 | BO40: 1 | BP40: 2 | BQ40: 3 | BR40: 4 | BS40: 5 | BT40: 6 | BU40: 7 | BV40: 8 | BW40: 9 | BX40: 10 | BY40: 11 | BZ40: 12 | CA40: 13 | CB40: 14 | CC40: 15 | CE40: 46.669872 | CF40: 46.669872 | CG40: 46.669872 | CH40: 46.669872 | CI40: 46.669872 | CJ40: 46.669872 | CK40: 46.669872 | CL40: 46.669872 | CM40: 46.66978746 | CN40: 46.66975 | CO40: 46.66975 | CP40: 46.66975 | CQ40: 46.66975 | CR40: 46.66975 | CS40: 6.01989536e-05
AU41: O | AV41: 8 | AW41: A | AX41: 5 | AY41: 720.0387144 | AZ41: 753.9504114 | BA41: 787.8621084 | BB41: 821.7738054 | BC41: 855.6855024 | BD41: 889.5971994 | BE41: 923.5088964 | BF41: 957.4205934 | BG41: 991.3322904 | BH41: 1025.243987 | BI41: 1059.155684 | BJ41: 1093.067381 | BK41: 1126.979078 | BL41: 1160.890775 | BM41: 1194.802472 | BO41: 1 | BP41: 2 | BQ41: 3 | BR41: 4 | BS41: 5 | BT41: 6 | BU41: 7 | BV41: 8 | BW41: 9 | BX41: 10 | BY41: 11 | BZ41: 12 | CA41: 13 | CB41: 14 | CC41: 15 | CE41: 33.911697 | CF41: 33.911697 | CG41: 33.911697 | CH41: 33.911697 | CI41: 33.911697 | CJ41: 33.911697 | CK41: 33.911697 | CL41: 33.911697 | CM41: 33.911697 | CN41: 33.911697 | CO41: 33.911697 | CP41: 33.911697 | CQ41: 33.911697 | CR41: 33.911697 | CS41: 3.040233962e-14
AU42: O | AV42: 9 | AW42: A | AX42: 1 | AY42: 1066.125814 | AZ42: 1105.760144 | BA42: 1145.394474 | BB42: 1185.028804 | BC42: 1224.663134 | BD42: 1264.297464 | BE42: 1303.931794 | BF42: 1343.566124 | BG42: 1383.200454 | BH42: 1422.834784 | BI42: 1462.469114 | BJ42: 1502.103444 | BK42: 1541.737774 | BL42: 1581.372104 | BM42: 1621.006434 | BO42: 1 | BP42: 2 | BQ42: 3 | BR42: 4 | BS42: 5 | BT42: 6 | BU42: 7 | BV42: 8 | BW42: 9 | BX42: 10 | BY42: 11 | BZ42: 12 | CA42: 13 | CB42: 14 | CC42: 15 | CE42: 39.63433 | CF42: 39.63433 | CG42: 39.63433 | CH42: 39.63433 | CI42: 39.63433 | CJ42: 39.63433 | CK42: 39.63433 | CL42: 39.63433 | CM42: 39.63433 | CN42: 39.63433 | CO42: 39.63433 | CP42: 39.63433 | CQ42: 39.63433 | CR42: 39.63433 | CS42: 1.131046148e-13
AU43: O | AV43: 9 | AW43: A | AX43: 2 | AY43: 1048.511334 | AZ43: 1050.713144 | BA43: 1052.914954 | BB43: 1055.116764 | BC43: 1057.318574 | BD43: 1059.520384 | BE43: 1061.722194 | BF43: 1063.924004 | BG43: 1066.125814 | BH43: 1068.327624 | BI43: 1070.529434 | BJ43: 1072.731244 | BK43: 1074.933054 | BL43: 1077.134864 | BM43: 1079.336674 | BO43: 1 | BP43: 2 | BQ43: 3 | BR43: 4 | BS43: 5 | BT43: 6 | BU43: 7 | BV43: 8 | BW43: 9 | BX43: 10 | BY43: 11 | BZ43: 12 | CA43: 13 | CB43: 14 | CC43: 15 | CE43: 2.20181 | CF43: 2.20181 | CG43: 2.20181 | CH43: 2.20181 | CI43: 2.20181 | CJ43: 2.20181 | CK43: 2.20181 | CL43: 2.20181 | CM43: 2.20181 | CN43: 2.20181 | CO43: 2.20181 | CP43: 2.20181 | CQ43: 2.20181 | CR43: 2.20181 | CS43: 8.25677114e-14
AU44: O | AV44: 9 | AW44: A | AX44: 3 | AY44: 1052.88958 | AZ44: 1053.835093 | BA44: 1054.780607 | BB44: 1055.72612 | BC44: 1056.671634 | BD44: 1057.617147 | BE44: 1058.562661 | BF44: 1059.508174 | BG44: 1060.453688 | BH44: 1061.399142 | BI44: 1062.344477 | BJ44: 1063.289811 | BK44: 1064.235146 | BL44: 1065.18048 | BM44: 1066.125814 | BO44: 1 | BP44: 2 | BQ44: 3 | BR44: 4 | BS44: 5 | BT44: 6 | BU44: 7 | BV44: 8 | BW44: 9 | BX44: 10 | BY44: 11 | BZ44: 12 | CA44: 13 | CB44: 14 | CC44: 15 | CE44: 0.94551355 | CF44: 0.94551355 | CG44: 0.94551355 | CH44: 0.94551355 | CI44: 0.94551355 | CJ44: 0.94551355 | CK44: 0.94551355 | CL44: 0.94551355 | CM44: 0.94545435 | CN44: 0.94533443 | CO44: 0.94533443 | CP44: 0.94533443 | CQ44: 0.94533443 | CR44: 0.94533443 | CS44: 8.718113417e-05
AU45: O | AV45: 9 | AW45: A | AX45: 4 | AY45: 459.4174784 | AZ45: 506.0873504 | BA45: 552.7572224 | BB45: 599.4270944 | BC45: 646.0969664 | BD45: 692.7668385 | BE45: 739.4367104 | BF45: 786.1065824 | BG45: 832.7764544 | BH45: 879.4463265 | BI45: 926.1161984 | BJ45: 972.7860704 | BK45: 1019.455942 | BL45: 1066.125814 | BM45: 1112.795686 | BO45: 1 | BP45: 2 | BQ45: 3 | BR45: 4 | BS45: 5 | BT45: 6 | BU45: 7 | BV45: 8 | BW45: 9 | BX45: 10 | BY45: 11 | BZ45: 12 | CA45: 13 | CB45: 14 | CC45: 15 | CE45: 46.669872 | CF45: 46.669872 | CG45: 46.669872 | CH45: 46.669872 | CI45: 46.669872 | CJ45: 46.669872 | CK45: 46.669872 | CL45: 46.669872 | CM45: 46.669872 | CN45: 46.669872 | CO45: 46.669872 | CP45: 46.669872 | CQ45: 46.669872 | CR45: 46.669872 | CS45: 7.050558372e-14
AU46: O | AV46: 9 | AW46: A | AX46: 5 | AY46: 760.9205414 | AZ46: 794.8322384 | BA46: 828.7439354 | BB46: 862.6556324 | BC46: 896.5673294 | BD46: 930.4790264 | BE46: 964.3907234 | BF46: 998.3024204 | BG46: 1032.214117 | BH46: 1066.125814 | BI46: 1100.037511 | BJ46: 1133.949208 | BK46: 1167.860905 | BL46: 1201.772602 | BM46: 1235.684299 | BO46: 1 | BP46: 2 | BQ46: 3 | BR46: 4 | BS46: 5 | BT46: 6 | BU46: 7 | BV46: 8 | BW46: 9 | BX46: 10 | BY46: 11 | BZ46: 12 | CA46: 13 | CB46: 14 | CC46: 15 | CE46: 33.911697 | CF46: 33.911697 | CG46: 33.911697 | CH46: 33.911697 | CI46: 33.911697 | CJ46: 33.911697 | CK46: 33.911697 | CL46: 33.911697 | CM46: 33.911697 | CN46: 33.911697 | CO46: 33.911697 | CP46: 33.911697 | CQ46: 33.911697 | CR46: 33.911697 | CS46: 6.080467924e-14
AU47: O | AV47: 10 | AW47: A | AX47: 1 | AY47: 608.9254621 | AZ47: 648.5597921 | BA47: 688.1941221 | BB47: 727.8284521 | BC47: 767.4627821 | BD47: 807.0971121 | BE47: 846.7314422 | BF47: 886.3657721 | BG47: 926.0000952 | BH47: 965.6343811 | BI47: 1005.268655 | BJ47: 1044.902929 | BK47: 1084.537203 | BL47: 1124.171477 | BM47: 1163.805751 | BO47: 1 | BP47: 2 | BQ47: 3 | BR47: 4 | BS47: 5 | BT47: 6 | BU47: 7 | BV47: 8 | BW47: 9 | BX47: 10 | BY47: 11 | BZ47: 12 | CA47: 13 | CB47: 14 | CC47: 15 | CE47: 39.63433 | CF47: 39.63433 | CG47: 39.63433 | CH47: 39.63433 | CI47: 39.63433 | CJ47: 39.63433 | CK47: 39.63433 | CL47: 39.63432305 | CM47: 39.6342859 | CN47: 39.634274 | CO47: 39.634274 | CP47: 39.634274 | CQ47: 39.634274 | CR47: 39.634274 | CS47: 2.75191714e-05
AU48: O | AV48: 10 | AW48: A | AX48: 2 | AY48: 712.4157821 | AZ48: 714.6175921 | BA48: 716.8194021 | BB48: 719.0212121 | BC48: 721.2230221 | BD48: 723.4248321 | BE48: 725.6266421 | BF48: 727.8284521 | BG48: 730.0302621 | BH48: 732.2320721 | BI48: 734.4338821 | BJ48: 736.6356194 | BK48: 738.8374072 | BL48: 741.0392027 | BM48: 743.2409427 | BO48: 1 | BP48: 2 | BQ48: 3 | BR48: 4 | BS48: 5 | BT48: 6 | BU48: 7 | BV48: 8 | BW48: 9 | BX48: 10 | BY48: 11 | BZ48: 12 | CA48: 13 | CB48: 14 | CC48: 15 | CE48: 2.20181 | CF48: 2.20181 | CG48: 2.20181 | CH48: 2.20181 | CI48: 2.20181 | CJ48: 2.20181 | CK48: 2.20181 | CL48: 2.20181 | CM48: 2.20181 | CN48: 2.20181 | CO48: 2.2017372 | CP48: 2.20178785 | CQ48: 2.20179555 | CR48: 2.20174 | CS48: 2.572096142e-05
AU49: O | AV49: 10 | AW49: A | AX49: 3 | AY49: 724.0467085 | AZ49: 724.9922221 | BA49: 725.9377357 | BB49: 726.8831177 | BC49: 727.8284521 | BD49: 728.7737866 | BE49: 729.719121 | BF49: 730.6644554 | BG49: 731.6097899 | BH49: 732.5551243 | BI49: 733.5004587 | BJ49: 734.4457932 | BK49: 735.3911276 | BL49: 736.336462 | BM49: 737.2817964 | BO49: 1 | BP49: 2 | BQ49: 3 | BR49: 4 | BS49: 5 | BT49: 6 | BU49: 7 | BV49: 8 | BW49: 9 | BX49: 10 | BY49: 11 | BZ49: 12 | CA49: 13 | CB49: 14 | CC49: 15 | CE49: 0.94551355 | CF49: 0.94551355 | CG49: 0.94538207 | CH49: 0.94533443 | CI49: 0.94533443 | CJ49: 0.94533443 | CK49: 0.94533443 | CL49: 0.94533443 | CM49: 0.94533443 | CN49: 0.94533443 | CO49: 0.94533443 | CP49: 0.94533443 | CQ49: 0.94533443 | CR49: 0.94533443 | CS49: 6.484922003e-05
AU50: O | AV50: 10 | AW50: A | AX50: 4 | AY50: 634.4887081 | AZ50: 681.1585801 | BA50: 727.8284521 | BB50: 774.4983241 | BC50: 821.1681961 | BD50: 867.8380577 | BE50: 914.5078228 | BF50: 961.1775877 | BG50: 1007.847353 | BH50: 1054.517118 | BI50: 1101.186883 | BJ50: 1147.856648 | BK50: 1194.526413 | BL50: 1241.196178 | BM50: 1287.865943 | BO50: 1 | BP50: 2 | BQ50: 3 | BR50: 4 | BS50: 5 | BT50: 6 | BU50: 7 | BV50: 8 | BW50: 9 | BX50: 10 | BY50: 11 | BZ50: 12 | CA50: 13 | CB50: 14 | CC50: 15 | CE50: 46.669872 | CF50: 46.669872 | CG50: 46.669872 | CH50: 46.669872 | CI50: 46.6698616 | CJ50: 46.669765 | CK50: 46.669765 | CL50: 46.669765 | CM50: 46.669765 | CN50: 46.669765 | CO50: 46.669765 | CP50: 46.669765 | CQ50: 46.669765 | CR50: 46.669765 | CS50: 5.223471332e-05
AU51: O | AV51: 10 | AW51: A | AX51: 5 | AY51: 354.7995897 | AZ51: 388.7113327 | BA51: 422.6230757 | BB51: 456.5348152 | BC51: 490.4465161 | BD51: 524.3582701 | BE51: 558.2699671 | BF51: 592.1816641 | BG51: 626.0933611 | BH51: 660.0050581 | BI51: 693.9167551 | BJ51: 727.8284521 | BK51: 761.7401491 | BL51: 795.6518461 | BM51: 829.5635431 | BO51: =RANK(AY51,$AY51:$BM51, 1) -> 1 | BP51: 2 | BQ51: 3 | BR51: 4 | BS51: 5 | BT51: 6 | BU51: 7 | BV51: 8 | BW51: 9 | BX51: 10 | BY51: 11 | BZ51: 12 | CA51: 13 | CB51: 14 | CC51: 15 | CE51: 33.911743 | CF51: 33.911743 | CG51: 33.91173945 | CH51: 33.91170095 | CI51: 33.911754 | CJ51: 33.911697 | CK51: 33.911697 | CL51: 33.911697 | CM51: 33.911697 | CN51: 33.911697 | CO51: 33.911697 | CP51: 33.911697 | CQ51: 33.911697 | CR51: 33.911697 | CS51: 2.248312064e-05
AU52: O | AV52: 11 | AW52: A | AX52: 1 | AY52: 862.4133367 | AZ52: 902.0476667 | BA52: 941.6819967 | BB52: 981.3163267 | BC52: 1020.950657 | BD52: 1060.584987 | BE52: 1100.219317 | BF52: 1139.853647 | BG52: 1179.487977 | BH52: 1219.122307 | BI52: 1258.756637 | BJ52: 1298.390967 | BK52: 1338.025297 | BL52: 1377.659627 | BM52: 1417.293917 | BO52: 1 | BP52: 2 | BQ52: 3 | BR52: 4 | BS52: 5 | BT52: 6 | BU52: 7 | BV52: 8 | BW52: 9 | BX52: 10 | BY52: 11 | BZ52: 12 | CA52: 13 | CB52: 14 | CC52: 15 | CE52: 39.63433 | CF52: 39.63433 | CG52: 39.63433 | CH52: 39.63433 | CI52: 39.63433 | CJ52: 39.63433 | CK52: 39.63433 | CL52: 39.63433 | CM52: 39.63433 | CN52: 39.63433 | CO52: 39.63433 | CP52: 39.63433 | CQ52: 39.63433 | CR52: 39.63428987 | CS52: 1.072519371e-05
AU53: O | AV53: 11 | AW53: A | AX53: 2 | AY53: 1179.487977 | AZ53: 1181.689787 | BA53: 1183.891597 | BB53: 1186.093407 | BC53: 1188.295175 | BD53: 1190.496901 | BE53: 1192.698627 | BF53: 1194.900366 | BG53: 1197.102106 | BH53: 1199.303846 | BI53: 1201.505586 | BJ53: 1203.707326 | BK53: 1205.909066 | BL53: 1208.110806 | BM53: 1210.312546 | BO53: 1 | BP53: 2 | BQ53: 3 | BR53: 4 | BS53: 5 | BT53: 6 | BU53: 7 | BV53: 8 | BW53: 9 | BX53: 10 | BY53: 11 | BZ53: 12 | CA53: 13 | CB53: 14 | CC53: 15 | CE53: 2.20181 | CF53: 2.20181 | CG53: 2.20181 | CH53: 2.20176867 | CI53: 2.2017257 | CJ53: 2.2017257 | CK53: 2.20173925 | CL53: 2.20174 | CM53: 2.20174 | CN53: 2.20174 | CO53: 2.20174 | CP53: 2.20174 | CQ53: 2.20174 | CR53: 2.20174 | CS53: 3.13808839e-05
AU54: O | AV54: 11 | AW54: A | AX54: 3 | AY54: 1170.033051 | AZ54: 1170.978564 | BA54: 1171.924078 | BB54: 1172.869591 | BC54: 1173.815105 | BD54: 1174.760618 | BE54: 1175.706137 | BF54: 1176.651671 | BG54: 1177.597205 | BH54: 1178.542642 | BI54: 1179.487977 | BJ54: 1180.433311 | BK54: 1181.378646 | BL54: 1182.32398 | BM54: 1183.269314 | BO54: 1 | BP54: 2 | BQ54: 3 | BR54: 4 | BS54: 5 | BT54: 6 | BU54: 7 | BV54: 8 | BW54: 9 | BX54: 10 | BY54: 11 | BZ54: 12 | CA54: 13 | CB54: 14 | CC54: 15 | CE54: 0.94551355 | CF54: 0.94551355 | CG54: 0.94551355 | CH54: 0.94551355 | CI54: 0.94551355 | CJ54: 0.9455187 | CK54: 0.9455339 | CL54: 0.9455339 | CM54: 0.9454375 | CN54: 0.94533443 | CO54: 0.94533443 | CP54: 0.94533443 | CQ54: 0.94533443 | CR54: 0.94533443 | CS54: 9.022894409e-05
AU55: O | AV55: 11 | AW55: A | AX55: 4 | AY55: 619.4495127 | AZ55: 666.1193847 | BA55: 712.7892567 | BB55: 759.4591287 | BC55: 806.1290007 | BD55: 852.7988727 | BE55: 899.4687447 | BF55: 946.1386167 | BG55: 992.8084887 | BH55: 1039.478361 | BI55: 1086.148233 | BJ55: 1132.818105 | BK55: 1179.487977 | BL55: 1226.157849 | BM55: 1272.827721 | BO55: 1 | BP55: 2 | BQ55: 3 | BR55: 4 | BS55: 5 | BT55: 6 | BU55: 7 | BV55: 8 | BW55: 9 | BX55: 10 | BY55: 11 | BZ55: 12 | CA55: 13 | CB55: 14 | CC55: 15 | CE55: 46.669872 | CF55: 46.669872 | CG55: 46.669872 | CH55: 46.669872 | CI55: 46.669872 | CJ55: 46.669872 | CK55: 46.669872 | CL55: 46.669872 | CM55: 46.669872 | CN55: 46.669872 | CO55: 46.669872 | CP55: 46.669872 | CQ55: 46.669872 | CR55: 46.669872 | CS55: 9.682492305e-14
AU56: O | AV56: 11 | AW56: A | AX56: 5 | AY56: 1009.929492 | AZ56: 1043.841189 | BA56: 1077.752886 | BB56: 1111.664583 | BC56: 1145.57628 | BD56: 1179.487977 | BE56: 1213.399674 | BF56: 1247.311371 | BG56: 1281.223068 | BH56: 1315.134765 | BI56: 1349.046462 | BJ56: 1382.958159 | BK56: 1416.869856 | BL56: 1450.781553 | BM56: 1484.69325 | BO56: 1 | BP56: 2 | BQ56: 3 | BR56: 4 | BS56: 5 | BT56: 6 | BU56: 7 | BV56: 8 | BW56: 9 | BX56: 10 | BY56: 11 | BZ56: 12 | CA56: 13 | CB56: 14 | CC56: 15 | CE56: 33.911697 | CF56: 33.911697 | CG56: 33.911697 | CH56: 33.911697 | CI56: 33.911697 | CJ56: =BE56-BD56 -> 33.911697 | CK56: 33.911697 | CL56: 33.911697 | CM56: 33.911697 | CN56: 33.911697 | CO56: 33.911697 | CP56: 33.911697 | CQ56: 33.911697 | CR56: 33.911697 | CS56: 0
AU57: O | AV57: 12 | AW57: A | AX57: 1 | AY57: 777.1586262 | AZ57: 816.7929562 | BA57: 856.4272862 | BB57: 896.0616162 | BC57: 935.6959462 | BD57: 975.3302762 | BE57: 1014.964606 | BF57: 1054.598936 | BG57: 1094.233266 | BH57: 1133.867596 | BI57: 1173.501926 | BJ57: 1213.136256 | BK57: 1252.770586 | BL57: 1292.404916 | BM57: 1332.039246 | BO57: 1 | BP57: 2 | BQ57: 3 | BR57: 4 | BS57: 5 | BT57: 6 | BU57: 7 | BV57: 8 | BW57: 9 | BX57: 10 | BY57: 11 | BZ57: 12 | CA57: 13 | CB57: 14 | CC57: 15 | CE57: 39.63433 | CF57: 39.63433 | CG57: 39.63433 | CH57: 39.63433 | CI57: 39.63433 | CJ57: 39.63433 | CK57: 39.63433 | CL57: 39.63433 | CM57: 39.63433 | CN57: 39.63433 | CO57: 39.63433 | CP57: 39.63433 | CQ57: 39.63433 | CR57: 39.63433 | CS57: 1.619087851e-13
AU58: O | AV58: 12 | AW58: A | AX58: 2 | AY58: 1025.975406 | AZ58: 1028.177216 | BA58: 1030.379026 | BB58: 1032.580836 | BC58: 1034.782646 | BD58: 1036.984456 | BE58: 1039.186266 | BF58: 1041.388076 | BG58: 1043.589886 | BH58: 1045.791696 | BI58: 1047.993506 | BJ58: 1050.195316 | BK58: 1052.397126 | BL58: 1054.598936 | BM58: 1056.800746 | BO58: 1 | BP58: 2 | BQ58: 3 | BR58: 4 | BS58: 5 | BT58: 6 | BU58: 7 | BV58: 8 | BW58: 9 | BX58: 10 | BY58: 11 | BZ58: 12 | CA58: 13 | CB58: 14 | CC58: 15 | CE58: 2.20181 | CF58: 2.20181 | CG58: 2.20181 | CH58: 2.20181 | CI58: 2.20181 | CJ58: 2.20181 | CK58: 2.20181 | CL58: 2.20181 | CM58: 2.20181 | CN58: 2.20181 | CO58: 2.20181 | CP58: 2.20181 | CQ58: 2.20181 | CR58: 2.20181 | CS58: 6.076849185e-14
AU59: O | AV59: 12 | AW59: A | AX59: 3 | AY59: 1044.199207 | AZ59: 1045.14472 | BA59: 1046.090234 | BB59: 1047.035747 | BC59: 1047.981261 | BD59: 1048.926774 | BE59: 1049.872198 | BF59: 1050.817598 | BG59: 1051.762933 | BH59: 1052.708267 | BI59: 1053.653602 | BJ59: 1054.598936 | BK59: 1055.544271 | BL59: 1056.489605 | BM59: 1057.434939 | BO59: 1 | BP59: 2 | BQ59: 3 | BR59: 4 | BS59: 5 | BT59: 6 | BU59: 7 | BV59: 8 | BW59: 9 | BX59: 10 | BY59: 11 | BZ59: 12 | CA59: 13 | CB59: 14 | CC59: 15 | CE59: 0.94551355 | CF59: 0.94551355 | CG59: 0.94551355 | CH59: 0.94551355 | CI59: 0.94551355 | CJ59: 0.94542395 | CK59: 0.94540019 | CL59: 0.94533443 | CM59: 0.94533443 | CN59: 0.94533443 | CO59: 0.94533443 | CP59: 0.94533443 | CQ59: 0.94533443 | CR59: 0.94533443 | CS59: 8.497783635e-05
AU60: O | AV60: 12 | AW60: A | AX60: 4 | AY60: 914.5893202 | AZ60: 961.2591922 | BA60: 1007.929064 | BB60: 1054.598936 | BC60: 1101.268808 | BD60: 1147.93868 | BE60: 1194.608552 | BF60: 1241.278424 | BG60: 1287.948296 | BH60: 1334.618168 | BI60: 1381.28804 | BJ60: 1427.957912 | BK60: 1474.627741 | BL60: 1521.297506 | BM60: 1567.967271 | BO60: 1 | BP60: 2 | BQ60: 3 | BR60: 4 | BS60: 5 | BT60: 6 | BU60: 7 | BV60: 8 | BW60: 9 | BX60: 10 | BY60: 11 | BZ60: 12 | CA60: 13 | CB60: 14 | CC60: 15 | CE60: 46.669872 | CF60: 46.669872 | CG60: 46.669872 | CH60: 46.669872 | CI60: 46.669872 | CJ60: 46.669872 | CK60: 46.669872 | CL60: 46.669872 | CM60: 46.669872 | CN60: 46.669872 | CO60: 46.669872 | CP60: 46.66982844 | CQ60: 46.669765 | CR60: 46.669765 | CS60: 3.927918362e-05
AU61: O | AV61: 12 | AW61: A | AX61: 5 | AY61: 579.8351782 | AZ61: 613.7468752 | BA61: 647.6585722 | BB61: 681.5702692 | BC61: 715.4819662 | BD61: 749.3936632 | BE61: 783.3053602 | BF61: 817.2170572 | BG61: 851.1287542 | BH61: 885.0404512 | BI61: 918.9521482 | BJ61: 952.8638452 | BK61: 986.7755422 | BL61: 1020.687239 | BM61: 1054.598936 | BO61: 1 | BP61: 2 | BQ61: 3 | BR61: 4 | BS61: 5 | BT61: 6 | BU61: 7 | BV61: 8 | BW61: 9 | BX61: 10 | BY61: 11 | BZ61: 12 | CA61: 13 | CB61: 14 | CC61: 15 | CE61: 33.911697 | CF61: 33.911697 | CG61: 33.911697 | CH61: 33.911697 | CI61: 33.911697 | CJ61: 33.911697 | CK61: 33.911697 | CL61: 33.911697 | CM61: 33.911697 | CN61: 33.911697 | CO61: 33.911697 | CP61: 33.911697 | CQ61: 33.911697 | CR61: 33.911697 | CS61: 4.459164646e-14
AU62: O | AV62: 13 | AW62: A | AX62: 1 | AY62: 659.194336 | AZ62: 698.828666 | BA62: 738.462996 | BB62: 778.097326 | BC62: 817.731656 | BD62: 857.365986 | BE62: 897.000316 | BF62: 936.634646 | BG62: 976.268976 | BH62: 1015.903306 | BI62: 1055.537636 | BJ62: 1095.171952 | BK62: 1134.806226 | BL62: 1174.4405 | BM62: 1214.074774 | BO62: 1 | BP62: 2 | BQ62: 3 | BR62: 4 | BS62: 5 | BT62: 6 | BU62: 7 | BV62: 8 | BW62: 9 | BX62: 10 | BY62: 11 | BZ62: 12 | CA62: 13 | CB62: 14 | CC62: 15 | CE62: 39.63433 | CF62: 39.63433 | CG62: 39.63433 | CH62: 39.63433 | CI62: 39.63433 | CJ62: 39.63433 | CK62: 39.63433 | CL62: 39.63433 | CM62: 39.63433 | CN62: 39.63433 | CO62: 39.63431599 | CP62: 39.634274 | CQ62: 39.634274 | CR62: 39.634274 | CS62: 2.359599068e-05
AU63: O | AV63: 13 | AW63: A | AX63: 2 | AY63: 817.731656 | AZ63: 819.933466 | BA63: 822.135276 | BB63: 824.337086 | BC63: 826.538896 | BD63: 828.7406858 | BE63: 830.9424258 | BF63: 833.1441658 | BG63: 835.3459059 | BH63: 837.5476458 | BI63: 839.7493858 | BJ63: 841.9511259 | BK63: 844.1528659 | BL63: 846.3546058 | BM63: 848.5563458 | BO63: 1 | BP63: 2 | BQ63: 3 | BR63: 4 | BS63: 5 | BT63: 6 | BU63: 7 | BV63: 8 | BW63: 9 | BX63: 10 | BY63: 11 | BZ63: 12 | CA63: 13 | CB63: 14 | CC63: 15 | CE63: 2.20181 | CF63: 2.20181 | CG63: 2.20181 | CH63: 2.20181 | CI63: 2.20178984 | CJ63: 2.20174 | CK63: 2.20174 | CL63: 2.20174 | CM63: 2.20174 | CN63: 2.20174 | CO63: 2.20174 | CP63: 2.20174 | CQ63: 2.20174 | CR63: 2.20174 | CS63: 3.318131447e-05
AU64: O | AV64: 13 | AW64: A | AX64: 3 | AY64: 812.0589045 | AZ64: 813.0044181 | BA64: 813.9499316 | BB64: 814.8954452 | BC64: 815.8409662 | BD64: 816.7863216 | BE64: 817.731656 | BF64: 818.6769904 | BG64: 819.6223249 | BH64: 820.5676593 | BI64: 821.5129937 | BJ64: 822.4583282 | BK64: 823.4036626 | BL64: 824.348997 | BM64: 825.2943315 | BO64: 1 | BP64: 2 | BQ64: 3 | BR64: 4 | BS64: 5 | BT64: 6 | BU64: 7 | BV64: 8 | BW64: 9 | BX64: 10 | BY64: 11 | BZ64: 12 | CA64: 13 | CB64: 14 | CC64: 15 | CE64: 0.94551355 | CF64: 0.94551355 | CG64: 0.94551355 | CH64: 0.945521 | CI64: 0.94535538 | CJ64: 0.94533443 | CK64: 0.94533443 | CL64: 0.94533443 | CM64: 0.94533443 | CN64: 0.94533443 | CO64: 0.94533443 | CP64: 0.94533443 | CQ64: 0.94533443 | CR64: 0.94533443 | CS64: 8.406376616e-05
AU65: O | AV65: 13 | AW65: A | AX65: 4 | AY65: 491.042552 | AZ65: 537.712424 | BA65: 584.382296 | BB65: 631.052168 | BC65: 677.72204 | BD65: 724.391912 | BE65: 771.061784 | BF65: 817.731656 | BG65: 864.401528 | BH65: 911.0714 | BI65: 957.741272 | BJ65: 1004.411046 | BK65: 1051.080811 | BL65: 1097.750576 | BM65: 1144.420341 | BO65: 1 | BP65: 2 | BQ65: 3 | BR65: 4 | BS65: 5 | BT65: 6 | BU65: 7 | BV65: 8 | BW65: 9 | BX65: 10 | BY65: 11 | BZ65: 12 | CA65: 13 | CB65: 14 | CC65: 15 | CE65: 46.669872 | CF65: 46.669872 | CG65: 46.669872 | CH65: 46.669872 | CI65: 46.669872 | CJ65: 46.669872 | CK65: 46.669872 | CL65: 46.669872 | CM65: 46.669872 | CN65: 46.669872 | CO65: 46.66977384 | CP65: 46.669765 | CQ65: 46.669765 | CR65: 46.669765 | CS65: 4.917217414e-05
AU66: O | AV66: 13 | AW66: A | AX66: 5 | AY66: 614.261474 | AZ66: 648.173171 | BA66: 682.084868 | BB66: 715.996565 | BC66: 749.908262 | BD66: 783.819959 | BE66: 817.731656 | BF66: 851.643353 | BG66: 885.55505 | BH66: 919.466747 | BI66: 953.378444 | BJ66: 987.290141 | BK66: 1021.201838 | BL66: 1055.113535 | BM66: 1089.025232 | BO66: 1 | BP66: 2 | BQ66: 3 | BR66: 4 | BS66: 5 | BT66: 6 | BU66: 7 | BV66: 8 | BW66: 9 | BX66: 10 | BY66: 11 | BZ66: 12 | CA66: 13 | CB66: 14 | CC66: 15 | CE66: 33.911697 | CF66: 33.911697 | CG66: 33.911697 | CH66: 33.911697 | CI66: 33.911697 | CJ66: 33.911697 | CK66: 33.911697 | CL66: 33.911697 | CM66: 33.911697 | CN66: 33.911697 | CO66: 33.911697 | CP66: 33.911697 | CQ66: 33.911697 | CR66: 33.911697 | CS66: 4.133756263e-14
AU67: O | AV67: 14 | AW67: A | AX67: 1 | AY67: 505.1989504 | AZ67: 544.8332804 | BA67: 584.4676104 | BB67: 624.1019404 | BC67: 663.7362245 | BD67: 703.3704905 | BE67: 743.0047565 | BF67: 782.6390225 | BG67: 822.2732944 | BH67: 861.9075684 | BI67: 901.5418424 | BJ67: 941.1761164 | BK67: 980.8103904 | BL67: 1020.444664 | BM67: 1060.078938 | BO67: 1 | BP67: 2 | BQ67: 3 | BR67: 4 | BS67: 5 | BT67: 6 | BU67: 7 | BV67: 8 | BW67: 9 | BX67: 10 | BY67: 11 | BZ67: 12 | CA67: 13 | CB67: 14 | CC67: 15 | CE67: 39.63433 | CF67: 39.63433 | CG67: 39.63433 | CH67: 39.63428412 | CI67: 39.634266 | CJ67: 39.634266 | CK67: 39.634266 | CL67: 39.63427185 | CM67: 39.634274 | CN67: 39.634274 | CO67: 39.634274 | CP67: 39.634274 | CQ67: 39.634274 | CR67: 39.634274 | CS67: =STDEV(CE67:CR67) -> 2.489578671e-05
AU68: O | AV68: 14 | AW68: A | AX68: 2 | AY68: 892.7349396 | AZ68: 894.9366653 | BA68: 897.138391 | BB68: 899.3401167 | BC68: 901.5418424 | BD68: 903.7435681 | BE68: 905.9453005 | BF68: 908.1470405 | BG68: 910.3487805 | BH68: 912.5505205 | BI68: 914.7522605 | BJ68: 916.9540005 | BK68: 919.1557405 | BL68: 921.3574805 | BM68: 923.5592205 | BO68: =RANK(AY68,$AY68:$BM68, 1) -> 1 | BP68: 2 | BQ68: 3 | BR68: 4 | BS68: 5 | BT68: 6 | BU68: 7 | BV68: 8 | BW68: 9 | BX68: 10 | BY68: 11 | BZ68: 12 | CA68: 13 | CB68: 14 | CC68: 15 | CE68: 2.2017257 | CF68: 2.2017257 | CG68: 2.2017257 | CH68: 2.2017257 | CI68: 2.2017257 | CJ68: 2.20173245 | CK68: 2.20174 | CL68: 2.20174 | CM68: 2.20174 | CN68: 2.20174 | CO68: 2.20174 | CP68: 2.20174 | CQ68: 2.20174 | CR68: 2.20174 | CS68: 6.978551325e-06
AU69: O | AV69: 14 | AW69: A | AX69: 3 | AY69: 901.5418424 | AZ69: 902.4873763 | BA69: 903.4329102 | BB69: 904.3782537 | BC69: 905.3235881 | BD69: 906.2689226 | BE69: 907.214257 | BF69: 908.1595914 | BG69: 909.1049259 | BH69: 910.0502603 | BI69: 910.9955947 | BJ69: 911.9409292 | BK69: 912.8862636 | BL69: 913.831598 | BM69: 914.7769324 | BO69: 1 | BP69: 2 | BQ69: 3 | BR69: 4 | BS69: 5 | BT69: 6 | BU69: 7 | BV69: 8 | BW69: 9 | BX69: 10 | BY69: 11 | BZ69: 12 | CA69: 13 | CB69: 14 | CC69: 15 | CE69: 0.9455339 | CF69: 0.9455339 | CG69: 0.94534352 | CH69: 0.94533443 | CI69: 0.94533443 | CJ69: 0.94533443 | CK69: 0.94533443 | CL69: 0.94533443 | CM69: 0.94533443 | CN69: 0.94533443 | CO69: 0.94533443 | CP69: 0.94533443 | CQ69: 0.94533443 | CR69: 0.94533443 | CS69: 7.22001255e-05
AU70: O | AV70: 14 | AW70: A | AX70: 4 | AY70: 901.5418424 | AZ70: 948.2115924 | BA70: 994.8813505 | BB70: 1041.551116 | BC70: 1088.220881 | BD70: 1134.890646 | BE70: 1181.560411 | BF70: 1228.230176 | BG70: 1274.899941 | BH70: 1321.569706 | BI70: 1368.239471 | BJ70: 1414.909236 | BK70: 1461.579001 | BL70: 1508.248766 | BM70: 1554.918531 | BO70: 1 | BP70: 2 | BQ70: 3 | BR70: 4 | BS70: 5 | BT70: 6 | BU70: 7 | BV70: 8 | BW70: 9 | BX70: 10 | BY70: 11 | BZ70: 12 | CA70: 13 | CB70: 14 | CC70: 15 | CE70: 46.66975 | CF70: 46.66975815 | CG70: 46.669765 | CH70: 46.669765 | CI70: 46.669765 | CJ70: 46.669765 | CK70: 46.669765 | CL70: 46.669765 | CM70: 46.669765 | CN70: 46.669765 | CO70: 46.669765 | CP70: 46.669765 | CQ70: 46.669765 | CR70: 46.669765 | CS70: 4.277138622e-06
AU71: O | AV71: 14 | AW71: A | AX71: 5 | AY71: 528.5126694 | AZ71: 562.4244124 | BA71: 596.3361554 | BB71: 630.2478984 | BC71: 664.1596414 | BD71: 698.0713844 | BE71: 731.9831274 | BF71: 765.8948704 | BG71: 799.8066134 | BH71: 833.7183564 | BI71: 867.6300994 | BJ71: 901.5418424 | BK71: 935.4535854 | BL71: 969.3653284 | BM71: 1003.277071 | BO71: 1 | BP71: 2 | BQ71: 3 | BR71: 4 | BS71: 5 | BT71: 6 | BU71: 7 | BV71: 8 | BW71: 9 | BX71: 10 | BY71: 11 | BZ71: 12 | CA71: 13 | CB71: 14 | CC71: 15 | CE71: 33.911743 | CF71: 33.911743 | CG71: 33.911743 | CH71: 33.911743 | CI71: 33.911743 | CJ71: 33.911743 | CK71: 33.911743 | CL71: 33.911743 | CM71: 33.911743 | CN71: 33.911743 | CO71: 33.911743 | CP71: 33.911743 | CQ71: 33.911743 | CR71: 33.911743 | CS71: 1.179784071e-13
AU72: O | AV72: 15 | AW72: A | AX72: 1 | AY72: 637.20897 | AZ72: 676.8433 | BA72: 716.47763 | BB72: 756.11196 | BC72: 795.74629 | BD72: 835.38062 | BE72: 875.01495 | BF72: 914.64928 | BG72: 954.28361 | BH72: 993.91794 | BI72: 1033.55227 | BJ72: 1073.1866 | BK72: 1112.82093 | BL72: 1152.45526 | BM72: 1192.08959 | BO72: 1 | BP72: 2 | BQ72: 3 | BR72: 4 | BS72: 5 | BT72: 6 | BU72: 7 | BV72: 8 | BW72: 9 | BX72: 10 | BY72: 11 | BZ72: 12 | CA72: 13 | CB72: 14 | CC72: 15 | CE72: 39.63433 | CF72: 39.63433 | CG72: 39.63433 | CH72: 39.63433 | CI72: 39.63433 | CJ72: 39.63433 | CK72: 39.63433 | CL72: 39.63433 | CM72: 39.63433 | CN72: 39.63433 | CO72: 39.63433 | CP72: 39.63433 | CQ72: 39.63433 | CR72: 39.63433 | CS72: 1.131046148e-13
AU73: O | AV73: 15 | AW73: A | AX73: 2 | AY73: 1042.36126 | AZ73: 1044.56307 | BA73: 1046.76488 | BB73: 1048.96669 | BC73: 1051.1685 | BD73: 1053.37031 | BE73: 1055.57212 | BF73: 1057.77393 | BG73: 1059.97574 | BH73: 1062.17755 | BI73: 1064.37936 | BJ73: 1066.58117 | BK73: 1068.78298 | BL73: 1070.98479 | BM73: 1073.1866 | BO73: 1 | BP73: 2 | BQ73: 3 | BR73: 4 | BS73: 5 | BT73: 6 | BU73: 7 | BV73: 8 | BW73: 9 | BX73: 10 | BY73: 11 | BZ73: 12 | CA73: 13 | CB73: 14 | CC73: 15 | CE73: 2.20181 | CF73: 2.20181 | CG73: 2.20181 | CH73: 2.20181 | CI73: 2.20181 | CJ73: 2.20181 | CK73: 2.20181 | CL73: 2.20181 | CM73: 2.20181 | CN73: 2.20181 | CO73: 2.20181 | CP73: 2.20181 | CQ73: 2.20181 | CR73: 2.20181 | CS73: 6.076849185e-14
AU74: O | AV74: 15 | AW74: A | AX74: 3 | AY74: 1060.89534 | AZ74: 1061.840853 | BA74: 1062.786367 | BB74: 1063.73188 | BC74: 1064.677394 | BD74: 1065.622907 | BE74: 1066.568421 | BF74: 1067.513934 | BG74: 1068.459448 | BH74: 1069.404961 | BI74: 1070.35049 | BJ74: 1071.295931 | BK74: 1072.241266 | BL74: 1073.1866 | BM74: 1074.131934 | BO74: 1 | BP74: 2 | BQ74: 3 | BR74: 4 | BS74: 5 | BT74: 6 | BU74: 7 | BV74: 8 | BW74: 9 | BX74: 10 | BY74: 11 | BZ74: 12 | CA74: 13 | CB74: 14 | CC74: 15 | CE74: 0.94551355 | CF74: 0.94551355 | CG74: 0.94551355 | CH74: 0.94551355 | CI74: 0.94551355 | CJ74: 0.94551355 | CK74: 0.94551355 | CL74: 0.94551355 | CM74: 0.94551355 | CN74: 0.9455289 | CO74: 0.94544076 | CP74: 0.94533443 | CQ74: 0.94533443 | CR74: 0.94533443 | CS74: 7.671898119e-05
AU75: O | AV75: 15 | AW75: A | AX75: 4 | AY75: 839.83724 | AZ75: 886.507112 | BA75: 933.176984 | BB75: 979.846856 | BC75: 1026.516728 | BD75: 1073.1866 | BE75: 1119.856472 | BF75: 1166.526344 | BG75: 1213.196216 | BH75: 1259.866081 | BI75: 1306.535842 | BJ75: 1353.205606 | BK75: 1399.875371 | BL75: 1446.545136 | BM75: 1493.214901 | BO75: 1 | BP75: 2 | BQ75: 3 | BR75: 4 | BS75: 5 | BT75: 6 | BU75: 7 | BV75: 8 | BW75: 9 | BX75: 10 | BY75: 11 | BZ75: 12 | CA75: 13 | CB75: 14 | CC75: 15 | CE75: 46.669872 | CF75: 46.669872 | CG75: 46.669872 | CH75: 46.669872 | CI75: 46.669872 | CJ75: 46.669872 | CK75: 46.669872 | CL75: 46.669872 | CM75: 46.66986458 | CN75: 46.6697615 | CO75: 46.6697636 | CP75: 46.669765 | CQ75: 46.669765 | CR75: 46.669765 | CS75: 5.332468181e-05
AU76: O | AV76: 15 | AW76: A | AX76: 5 | AY76: 835.804721 | AZ76: 869.716418 | BA76: 903.628115 | BB76: 937.539812 | BC76: 971.451509 | BD76: 1005.363206 | BE76: 1039.274903 | BF76: 1073.1866 | BG76: 1107.098297 | BH76: 1141.009994 | BI76: 1174.921691 | BJ76: 1208.833388 | BK76: 1242.745085 | BL76: 1276.656782 | BM76: 1310.568479 | BO76: 1 | BP76: 2 | BQ76: 3 | BR76: 4 | BS76: 5 | BT76: 6 | BU76: 7 | BV76: 8 | BW76: 9 | BX76: 10 | BY76: 11 | BZ76: 12 | CA76: 13 | CB76: 14 | CC76: 15 | CE76: 33.911697 | CF76: 33.911697 | CG76: 33.911697 | CH76: 33.911697 | CI76: 33.911697 | CJ76: 33.911697 | CK76: 33.911697 | CL76: 33.911697 | CM76: 33.911697 | CN76: 33.911697 | CO76: 33.911697 | CP76: 33.911697 | CQ76: 33.911697 | CR76: 33.911697 | CS76: 6.080467924e-14
BO77: =AVERAGE(BO2:BO76) -> 1 | BP77: =AVERAGE(BP2:BP76) -> 2 | BQ77: 3 | BR77: 4 | BS77: 5 | BT77: 6 | BU77: 7 | BV77: 8 | BW77: 9 | BX77: 10 | BY77: 11 | BZ77: 12 | CA77: 13 | CB77: 14 | CC77: 15
BO78: =STDEV(BO2:BO76) -> 0 | BP78: =STDEV(BP2:BP76) -> 0 | BQ78: 0 | BR78: 0 | BS78: 0 | BT78: 0 | BU78: 0 | BV78: 0 | BW78: 0 | BX78: 0 | BY78: 0 | BZ78: 0 | CA78: 0 | CB78: 0 | CC78: 0

Sheet nn - ranked data - new (36)
A1: irány | B1: 0 | C1: 0 | D1: 0 | E1: 0 | F1: 0 | M1: súlyok | U1: 2. layer vektor | AK1: 2 layer súlyok | AS1: Futtat | AY1: 1 | AZ1: 2 | BA1: 3 | BB1: 4 | BC1: 5 | BD1: 6 | BE1: 7 | BF1: 8 | BG1: 9 | BH1: 10 | BI1: 11 | BJ1: 12 | BK1: 13 | BL1: 14 | BM1: 15 | BO1: Ranking | CE1: O2 - O1 | CF1: O3 - O2 | CG1: O4 - O3 | CH1: O5 - O4 | CI1: O6 - O5 | CJ1: O7 - O6 | CK1: O8 - O7 | CL1: O9 - O8 | CM1: O10 - O9 | CN1: O11 - O10 | CO1: O12 - O11 | CP1: O13 - 12 | CQ1: O14 - O13 | CR1: O15 - O14
